Workbook

Sheet Designer_Sink_Quote_1 (hidden)
I2: Sink Configuration Model
C3: Logo
D7: Project Information
D10: Architect/Designer | I10: Project Name | N10: Email | S10: Phone
D12: Country/State | I12: Location Details | N12: Sloan Representative | S12: Cloud for Sales ID #
D16: Sink Information
D19: Sink Quantity | I19: Sink Model | N19: Station Quantity | S19: Notes:
D22: Material | I22: Material Color | N22: Colors Marked with *** will need Special Pricing
N23: If alternate color option, please list in Notes
D25: Trough Style | I25: Edge Type | N25: Enclosure
D28: LED | I28: Purse Hooks | N28: Purse Hook Quantity | S28: Purse Hook Color
D31: Faucet Quantity (per sink) | I31: Sloan Faucet Model | N31: Sloan Faucet Code | S31: Faucet Hole Size (If Non Sloan)
D34: Soap Dispenser Quantity (per sink) | I34: Sloan Soap Dispenser Model | N34: Sloan Soap Dispenser Code | S34: Soap Dispenser Hole Size (If Non Sloan)
D37: Drawing Requested? | I37: Discount (May Require Approval)
D40: Approval Signature | I40: Approvers Title | N40: Date (mm/dd/yyyy)
D45: Sink Model Number | I45: =IF(Calculator!G2=0,"",(IF(Calculator!AE2="Oops! Something Went Wrong Please Contact Sloan","Oops! Something Went Wrong Please Contact Sloan",Calculator!AG2))) ->  | N45: Sloan Product Code | S45: =IF(I45="","",(IF(Calculator!AE2="","",Calculator!AH2))) -> 
D50: Internal Use Only
D53: Internal Sloan Representative | I53: List Price (Good for 60 Days) | N53: Additional Notes:
I54: Base Sink Price (EA): | K54: =IF(Calculator!AE2="Oops! Something Went Wrong Please Contact Sloan",0,Quote3[Base Sink $$]) -> 0
I55: Faucet & Soap Total: | K55: =Quote3[Faucet & Soap Total] -> 0
D56: Shipping Lead Time* | I56: Add-On Total: | K56: =Quote3[Add-On Total] -> 0
I57: Mounting Total: | K57: =Quote3[Mounting Total] -> 0
I58: Sink Total: | K58: =Quote3[Sink Total] -> 0
D59: Quote Number | I59: Discount: | K59: =Quote3[[Discount ]] -> 0
I60: Extended Price: | K60: =Quote3[Extended Price] -> 0
D62: *Lead Time Starts upon Sloan's receipt of order - Note: Changes to Drawings after sign-off may extend lead time | N62: **Any Corian sinks longer than 120 inches will need to be seamed on site, any Quartz sinks over 119 inches will need to be seamed on site. Quartz meterials that are seamed will have a visible seam

Sheet Arc Worksheet
AT1: Material # | AU1: Description
I2: Sink Configuration Model | AJ2: ZZ_ALCOVE | AK2: =IF(Z30="YES","FULL","NO") -> NO | AR2: SJS1650 SOAP DISP SENSOR DECK MNT LIQ | AS2: SJS1650 | AT2: 3335193 | AU2: EAF100-LT CP ELECT FAUCET 0.35 GPM (IQ)
AJ3: ZZ_APRON_HEIGHT | AK3: =IF(AA50 <> "",AA50,AA49) -> 4.75" | AL3: =SUBSTITUTE(AK3,CHAR(34),"") -> 4.75 | AR3: SJS1750 BELOW DECK FOAM SOAP DISPENSER | AS3: SJS1750 | AT3: 3335173 | AU3: EAF100-LT CP ELECT FAUCET 0.5 GPM (IQ)
AJ4: ZZ_ARC_WS_NUM | AK4: =I55 -> 0 | AR4: ESD 2000 Soap Dispenser with Soap | AS4: ESD-2000 | AT4: 3335132 | AU4: EAF100-LT CP ELECT FAUCET 1.0 GPM (IQ)
AJ5: ZZ_BABY_CHANGER | AK5: =IF(D41="YES","BOTH","NO") -> NO | AR5: ESD 2000 Soap Dispenser with Soap | AS5: ESD-2000 | AT5: 3335012 | AU5: EAF100-LT CP ELECT FAUCET 1.5 GPM (IQ)
AJ6: ZZ_BACKSPLASH | AK6: =IF(AA54,"YES","NO") -> NO | AR6: ESD 2000 Soap Dispenser with Soap | AS6: ESD-2000 | AT6: 3335166 | AU6: EAF100-LT-ISM CP ELECT FCT 0.35 GPM
K7: Project Information | Y7: =INDEX(Images!C$2:C$93,MATCH(Images!$A$2,Images!$B$2:$B$93,0)) ->  | AJ7: ZZ_BASIN_CENTERED | AK7: =IF(OR(AA34=AC34,AA34=AC34),"YES","NO") -> YES | AR7: ESD 2000 Soap Dispenser with Soap | AS7: ESD-2000 | AT7: 3335140 | AU7: EAF100-LT-ISM CP ELECT FCT 0.5 GPM (IQ)
AJ8: ZZ_BASIN_DEPTH | AK8: =IF(I20="DSG",14,IF(I20="AD",15.5,IF(I20="DSWD",17,14))) -> 14 | AR8: ESD 400 BASYS Soap Dispenser | AS8: ESD-400 | AT8: 3335127 | AU8: EAF100-LT-ISM CP ELECT FCT 1.0 GPM (IQ)
AJ9: ZZ_BASIN_WIDTH | AK9: =IF(AND(ISBLANK(AA34),ISBLANK(AB34),ISBLANK(AC34),ISBLANK(AD34)),AB33,IF(ISBLANK(AB34),"0",AB34)) ->  | AL9: =SUBSTITUTE(AK9,CHAR(34),"") ->  | AR9: ESD 400 BASYS Soap Dispenser | AS9: ESD-400 | AT9: 3335013 | AU9: EAF100-LT-ISM CP ELECT FCT 1.5 GPM (IQ)
D10: Architect/Designer | I10: Project Name | N10: Email | S10: Phone | AH10: Dimension Key | AJ10: ZZ_COMPANY | AK10: Sloan | AR10: ESD 400 BASYS Soap Dispenser | AS10: ESD-400 | AT10: 3335161 | AU10: EAF100-P CP ELECT FAUCET 0.35 GPM
AJ11: ZZ_DECK_HEIGHT | AK11: =IF(F13="Ontario",33,34) -> 34 | AR11: ESD 400 BASYS Soap Dispenser | AS11: ESD-400 | AT11: 3335124 | AU11: EAF100-P CP ELECT FAUCET 1.0 GPM (IQ)
D12: Select Country | F12: Select State/Province | I12: Location Details | N12: Sloan Representitave | S12: Cloud for Sales ID # | AH12: A = Left Side of Sink | AJ12: ZZ_DRYER | AK12: =IF(I32>0,"YES","NO") -> NO | AR12: ESD 500 BASYS Soap Dispenser with Soap | AS12: ESD-500 | AT12: 3335003 | AU12: EAF100-P CP ELECT FAUCET 1.5 GPM (IQ)
AH13: B = Basin of Sink | AJ13: ZZ_DRYER_HOLE | AK13: =IF(I32>0,"YES","NO") -> NO | AR13: ESD 500 BASYS Soap Dispenser with Soap | AS13: ESD-500 | AT13: 3335157 | AU13: EAF100-P-ISM CP ELECT FCT 0.35 GPM
AH14: C = Right Side of Sink | AJ14: ZZ_DRYER_HOLE_SIZE | AK14: 1.5 | AR14: ESD 500 BASYS Soap Dispenser with Soap | AS14: ESD-500 | AT14: 3335180 | AU14: EAF100-P-ISM CP ELECT FCT 0.5(EAF12)
AH15: D = Full Length of Sink | AJ15: ZZ_DRYER_MODEL | AK15: EHD-510 | AR15: ESD 500 BASYS Soap Dispenser with Soap | AS15: ESD-500 | AT15: 3335123 | AU15: EAF100-P-ISM CP ELECT FCT 1.0 GPM (IQ)
K16: Sink Information | S16: Repeat Project? | AJ16: ZZ_DRYER_POSITION | AK16: Inside | AR16: ESD 600 Soap Dispenser with Soap | AS16: ESD-600 | AT16: 3335004 | AU16: EAF100-P-ISM CP ELECT FCT 1.5 GPM (IQ)
AJ17: ZZ_DRYER_VERT_SPACING | AK17: 2.25 | AR17: ESD 600 Soap Dispenser with Soap | AS17: ESD-600 | AT17: 3335153 | AU17: EAF150 CP BATTERY FAUCET 0.35 GPM
S18: Notes and Color information if | AJ18: ZZ_ENCLOSURE_WIDTH | AK18: =IF(AL33="SOLID_SURFACE",AL42-1.5,AL42-2) ->  | AR18: ESD 600 Soap Dispenser with Soap | AS18: ESD-600 | AT18: 3335109 | AU18: EAF150 CP BATTERY FAUCET 0.5 GPM (IQ)
D19: Sink Quantity | I19: Sink Model | N19: Station Quantity | S19: not listed in drop down box: | AJ19: ZZ_FAUCET | AK19: =IF(D35>0,"YES","NO") -> NO | AR19: ESD 600 Soap Dispenser with Soap | AS19: ESD-600 | AT19: 3335122 | AU19: EAF150 CP BATTERY FAUCET 1.0 GPM (IQ)
AJ20: ZZ_FAUCET_HOLE | AK20: =IF(D35>0,"YES","NO") -> NO | AR20: ESD1500A CP SOAP DISPENSER W/SOAP | AS20: ESD-1500 | AT20: 3335000 | AU20: EAF150 CP BATTERY FAUCET 1.5 GPM (IQ)
AJ21: ZZ_FAUCET_HOLE_SIZE | AK21: =IF(ISBLANK(AA46),AA45,AA46) -> 1.25" | AL21: =SUBSTITUTE(AK21,CHAR(34),"") -> 1.25 | AR21: ESD1501A CP FAUCET/SOAP DISPENSER COMBO | AS21: ESD1501A | AT21: 3335151 | AU21: EAF150-ISM CP BATTERY FCT 0.35 GPM
D22: Material | I22: Material Color | N22: Basin Type | AJ22: ZZ_FAUCET_HORI_SPACING | AK22: =IF(AK53 = "AD",31,30) -> 30 | AR22: ESD2000A CP SOAP DISPENSER W/SOAP | AS22: ESD-2000 | AT22: 3335121 | AU22: EAF150-ISM CP BATTERY FCT 1.0 GPM (IQ)
I23: =IFERROR(VLOOKUP($J$23,'Drop Tables'!P:Q,2,0),"") ->  | AJ23: ZZ_FAUCET_MODEL | AK23: =IF(ISNUMBER(SEARCH("-",AK59)),LEFT(AK59,(FIND("-",AK59,1)-1)),IF(ISNUMBER(SEARCH(".",AK59)),LEFT(AK59,(FIND(".",AK59,1)-1)),LEFT(AK59,(FIND(" ",AK59,1)-1)))) ->  | AL23: =IF(ISERR(IF(LEFT(AK23,2)="SF",CONCATENATE(LEFT(AK23,2),"-",RIGHT(AK23,LEN(AK23)-2)),CONCATENATE(LEFT(AK23,3),"-",RIGHT(AK23,LEN(AK23)-3)))), "",IF(LEFT(AK23,2)="SF",CONCATENATE(LEFT(AK23,2),"-",RIGHT(AK23,LEN(AK23)-2)),CONCATENATE(LEFT(AK23,3),"-",RIGHT(AK23,LEN(AK23)-3)))) ->  | AR23: ESD2001A CP FAUCET/SOAP DISPENSER COMBO | AS23: ESD2001A | AT23: 3335001 | AU23: EAF150-ISM CP BATTERY FCT 1.5 GPM (IQ)
AJ24: ZZ_FAUCET_VERT_SPACING | AK24: 2.25 | AR24: ESD200-LT CP ELECT SOAP DISPENSER | AS24: ESD-200 | AT24: 3335177 | AU24: EAF150-ISM CP BATTERY FCT W/EAF12
D25: Trough Style | I25: Edge Type | N25: Mounting Type | S25: Laminate Color | AJ25: ZZ_FRONT_APRON | AK25: YES | AR25: ESD200-P CP ELECT SOAP DISPENSER | AS25: ESD-200 | AT25: 3335055 | AU25: EAF200-LT CP ELECT FAUCET (IQ)
AJ26: ZZ_LAMINATE | AK26: =IF(ISBLANK(S26),"NO","YES") -> NO | AR26: ESD2100A CP SOAP DISPENSER W/SOAP | AS26: ESD-2100 | AT26: 3335164 | AU26: EAF200-LT CP ELECT FAUCET 0.35 GPM
Z27: Sink Dimensions | AJ27: ZZ_LAMINATE_BASE_MAT | AK27: =IF(AK26="NO","","ENTER INFO") ->  | AR27: ESD2101A CP FAUCET/SOAP DISPENSER COMBO | AS27: ESD2101A | AT27: 3335164T | AU27: EAF200-LT CP ELECT FAUCET 0.35 GPM CO
D28: LED | I28: Bag Hooks | N28: Bag Hook Quantity | S28: Bag Hook Color | AJ28: ZZ_LAMINATE_GRAIN_DIR | AK28: =IF(AK26="NO","","ENTER INFO") ->  | AR28: ESD250 CP BATTERY SOAP DISPENSER | AS28: ESD-250 | AT28: 3335054 | AU28: EAF200-LT-ISM CP ELECT FAUCET (IQ)
Z29: Alcove | AJ29: ZZ_LAMINATE_INSIDE_FINISH | AK29: =IF(AK26="NO","",S26) ->  | AR29: ESD300-LT CP ELECT SOAP DISPENSER | AS29: ESD300-LT | AT29: 3335172 | AU29: EAF200-LT-ISM CP ELECT FAUCET 0.35 GPM
AJ30: ZZ_LAMINATE_OUTSIDE_FINISH | AK30: =IF(AK26="NO","",S26) ->  | AR30: ESD300-P CP ELECT SOAP DISPENSER | AS30: ESD300-P | AT30: 3335050 | AU30: EAF200-P CP ELECT FAUCET (IQ)
D31: Hand Dryer | I31: Hand Dryer Quantity (Per Sink) | N31: Trash Hole | S31: Paper Towel holder | AJ31: ZZ_LAMINATE_THICKNESS | AK31: =IF(AK26="NO","",".75") ->  | AR31: ESD350 CP BATTERY SOAP DISPENSER | AS31: ESD350 | AT31: 3335158 | AU31: EAF200-P CP ELECT FAUCET 0.35 GPM
Z32: Dimensions | AA32: A+ | AB32: B+ | AC32: C= | AD32: D | AJ32: ZZ_MAGNET_CATCH | AK32: NO | AR32: ESD400A CP BASYS STYLE FOAMING SOAP KIT | AS32: ESD-400 | AT32: 3335158T | AU32: EAF200-P CP ELECT FAUCET 0.35 GPM CO
Z33: Standard | AA33: =IFERROR(IF(ISBLANK($I$20),"",VLOOKUP(Dimensions!$A$2,Dimensions!E:F,2,0)&""""),"") ->  | AB33: =IFERROR(IF(ISBLANK($I$20),"",VLOOKUP(Dimensions!$A$2,Dimensions!E:G,3,0)&""""),"") ->  | AC33: =IFERROR(IF(ISBLANK($I$20),"",VLOOKUP(Dimensions!$A$2,Dimensions!E:H,4,0)&""""),"") ->  | AD33: =IFERROR(IF(ISBLANK($I$20),"",VLOOKUP(Dimensions!$A$2,Dimensions!E:I,5,0)&""""),"") ->  | AJ33: ZZ_MATERIAL | AK33: =TRIM(LEFT(D23,(FIND("-",D23,1)-1))) ->  | AL33: =IF(AK33="Solid Surface","SOLID_SURFACE",UPPER(AK33)) ->  | AR33: ESD500A CP SOAP DISPENSER W/SOAP | AS33: ESD-500 | AT33: 3335194 | AU33: EAF200-P CP ELECT FCT 0.35 GPM PVDBN
D34: Faucet Quantity (per sink) | I34: Faucet Model | N34: Sloan Faucet Code | S34: Bowl Type | Z34: Custom | AJ34: ZZ_MAT_BRAND | AK34: =TRIM(MID(D23,FIND("-",D23)+1,256)) ->  | AL34: =IF(AK34 = "Corian Quartz",TRIM(LEFT(AK34,(FIND(" ",AK34,1)-1))),AK34) ->  | AR34: ESD501A CP FAUCET/SOAP DISPENSER COMBO | AS34: ESD501A | AT34: 3335051 | AU34: EAF200-P-ISM CP ELECT FAUCET (IQ)
AJ35: ZZ_MOUNTING_TYPE | AK35: =IF(N26="Angle Bracket","ANGLE_BRACKETS",IF(N26="Angled Stainless Steel Enclosure","ANGLED_HOLD_OPEN",IF(N26="Vertical Cabinet Style Laminated Doors","VERTICAL_CABINET_FRONT",IF(N26="Vertical Stainless Steel Enclosure","VERTICAL_HOLD_OPEN","ANGLED_HOLD_OPEN")))) -> ANGLED_HOLD_OPEN | AR35: ESD600A CP SOAP DISPENSER W/SOAP | AS35: ESD-600 | AT35: 3335156 | AU35: EAF200-P-ISM CP ELECT FAUCET 0.35 GPM
Z36: Sink Depth | AJ36: ZZ_NUMBER_OF_DOORS | AK36: =IF(AK18<30,1,IF(AK18<120,2,IF(AK18=120,3,4))) ->  | AR36: ESD601A CP FAUCET/SOAP DISPENSER COMBO | AS36: ESD601A | AT36: 3335186 | AU36: EAF200-P-ITM CP ELECT FAUCET 0.35
D37: Soap Dispenser Quantity (per sink) | I37: Sloan Soap Dispenser Model | N37: Sloan Soap Dispenser Code | S37: Basin Grates | Z37: Standard | AA37: =IFERROR(IF(ISBLANK($I$20),"",VLOOKUP(Dimensions!$A$2,Dimensions!E:J,6,0)&""""),"") ->  | AJ37: ZZ_SIDE_SPLASH | AK37: =IF(Z30="YES","FULL","NO") -> NO | AR37: ESD700A CP SOAP DISPENSER W/SOAP | AS37: ESD-700 | AT37: 3335187 | AU37: EAF200-P-ITM CP ELECT FAUCET 0.5
Z38: Custom | AJ38: ZZ_SINK_DEPTH | AK38: =IF(ISBLANK(AA38),AA37,AA38) ->  | AL38: =SUBSTITUTE(AK38,CHAR(34),"") ->  | AR38: ESD701A CP FAUCET/SOAP DISPENSER COMBO | AS38: ESD701A | AT38: 3335188 | AU38: EAF200-P-ITM CP ELECT FAUCET 1.0
AJ39: ZZ_SINK_FINISH | AK39: =IF(AK33="Solid Surface","MATTE","POLISHED") ->  | AR39: ESD800A CP SOAP DISPENSER W/SOAP | AS39: ESD-800 | AT39: 3335179 | AU39: EAF200-P-LL CP FCT L/LOGO 0.35GPM
D40: Baby Changing Station | I40: Corian Colors | K40: Corian Quartz | Z40: Soap Hole | AJ40: ZZ_SINK_LEFT_SIDE | AK40: =IF(AND(ISBLANK(AA34),ISBLANK(AB34),ISBLANK(AC34),ISBLANK(AD34)),AA33,IF(ISBLANK(AA34),"0",AA34)) ->  | AL40: =SUBSTITUTE(AK40,CHAR(34),"") ->  | AR40: ESD801A CP FAUCET/SOAP DISPENSER COMBO | AS40: ESD801A | AT40: 3335075 | AU40: EAF225-P-ISM CP ELECT FAUCET 0.5 GPM
I41: Caeserstone | K41: Silestone | Z41: Standard | AA41: 1" | AJ41: ZZ_SINK_RIGHT_SIDE | AK41: =IF(AND(ISBLANK(AA34),ISBLANK(AB34),ISBLANK(AC34),ISBLANK(AD34)),AC33,IF(ISBLANK(AC34),"0",AC34)) ->  | AL41: =SUBSTITUTE(AK41,CHAR(34),"") ->  | AT41: 3335130 | AU41: EAF225-P-ISM CP ELECT FAUCET 1.0 GPM
Z42: Custom | AJ42: ZZ_SINK_WIDTH | AK42: =IF(AND(ISBLANK(AA34),ISBLANK(AB34),ISBLANK(AC34),ISBLANK(AD34)),AD33,IF(ISBLANK(AD34),"0",AD34)) ->  | AL42: =SUBSTITUTE(AK42,CHAR(34),"") ->  | AT42: 3335181 | AU42: EAF250 CP BATT FAUCET 0.35 GPM L/LOGO
D43: Approval Name | I43: Approvers Title | N43: Date (mm/dd/yyyy) | AJ43: ZZ_SOAP | AK43: =IF(D38>0,"YES","NO") -> NO | AT43: 3335060 | AU43: EAF250 CP BATTERY FAUCET (IQ)
S44: Drawing Requested? | Z44: Faucet Hole | AJ44: ZZ_SOAP_HOLE | AK44: =IF(D38>0,"YES","NO") -> NO | AT44: 3335182 | AU44: EAF250 CP BATTERY FAUCET (IQ) W/EAF13
Z45: Standard | AA45: 1.25" | AJ45: ZZ_SOAP_HOLE_SIZE | AK45: =IF(ISBLANK(AA42),AA41,AA42) -> 1" | AL45: =SUBSTITUTE(AK45,CHAR(34),"") -> 1 | AT45: 3335155 | AU45: EAF250 CP BATTERY FAUCET 0.35 GPM
Z46: Custom | AJ46: ZZ_SOAP_MODEL | AK46: =IF(AND(ISBLANK(I38),ISBLANK(N38)),"",VLOOKUP(AK60,AR2:AS40,2,FALSE)) ->  | AT46: 3335061 | AU46: EAF250-ISM CP BATTERY FAUCET (IQ)
V47: V24.01.23-1 | AJ47: ZZ_SOAP_POSITION | AK47: =IF(OR(AK53 = "DSWD",AK53 = "DSG"),"INSIDE","OUTSIDE") -> OUTSIDE | AT47: 3335154 | AU47: EAF250-ISM CP BATTERY FAUCET 0.35 GPM
D48: Internal Use Only | Z48: Apron | AJ48: ZZ_SOAP_VERT_SPACING | AK48: =IF(I20="AD",1.875,2.25) -> 2.25 | AT48: 3335167 | AU48: EAF250-ISM CP LL BATTERY FAUCET 0.35 GPM
Z49: Standard | AA49: 4.75" | AJ49: ZZ_SPLASH_HEIGHT | AK49: =AA54 -> 0 | AT49: 3335149 | AU49: EAF-250-ISM PVDGR ELECTRONIC FAUCET 0.5
Z50: Custom | AJ50: ZZ_TRASH_HOLE | AK50: =IF(N32="YES","BOTH","NO") -> NO | AT50: 3335183 | AU50: EAF250-ITM CP BATTERY FAUCET 0.35
D51: Internal Representative | I51: Compliance Notes | N51: Additional Notes: | AJ51: ZZ_TRASH_HOLE_STYLE | AK51: =IF(N32="YES","FLANGED SQAURE","NO") -> NO | AT51: 3335184 | AU51: EAF250-ITM CP BATTERY FAUCET 0.5
Z52: Back Splash | AJ52: ZZ_TROUGH_STYLE | AK52: =IF(D26="Individual Basin","INDIVIDUAL","CONTINUOUS") -> CONTINUOUS | AT52: 3335185 | AU52: EAF250-ITM CP BATTERY FAUCET 1.0
Z53: Standard | AA53: =IF(I20="DSCT","4"&"""","DSCT Only") -> DSCT Only | AJ53: ZZ_SINK_MODEL | AK53: =I20 -> 0 | AT53: 3335016 | AU53: EAF275 CP BATTERY FAUCET
D54: List Price Per Sink | I54: Quote Number | Z54: Custom | AJ54: ZZ_MATERIAL_COLOR | AK54: =IF(ISBLANK(J23),"",RIGHT(J23,LEN(J23)-SEARCH("#",SUBSTITUTE(J23,"-","#",LEN(J23)-LEN(SUBSTITUTE(J23,"-",""))))-1)) ->  | AT54: 3335152 | AU54: EAF275 CP BATTERY FAUCET 0.35 GPM
AJ55: ZZ_WORK_REQUIRED | AT55: 3335152T | AU55: EAF275 CP BATTERY FAUCET 0.35 GPM CO
AJ56: ZZ_REPEAT | AK56: =IF(ISBLANK(S17),"NO",S17) -> NO | AT56: 3335150 | AU56: EAF275-ISM CP BATT FAUCET W/MIX 0.35 GPM
D57: *Lead Time Starts upon Sloan's receipt of order - Note: Changes to Drawings after sign-off may extend lead time | N57: **Any Corian sinks longer than 120 inches will need to be seamed on site, any Quartz sinks over 119 inches will need to be seamed on site. Quartz materials that are seamed will have a visible seam | AJ57: ZZ_DRAW_REQ | AK57: =IF(ISBLANK(S45),"YES",S45) -> YES | AT57: 3335017 | AU57: EAF275-ISM CP BATTERY FAUCET W/MIX
AJ58: ZZ_ARC_DATE | AK58: =IF(ISBLANK(N44)," ",N44) ->  | AT58: 3335047 | AU58: EAF275-ISM CP BATTERY FCT W/MIX & 2" EXT
AJ59: ZZ_FAUCET_DESCR | AK59: =IF(ISBLANK(N35),IF(ISBLANK(I35),"",I35),INDEX(AU2:AU818,MATCH(N35,AT2:AT818,0))) ->  | AT59: 3335070 | AU59: EAF275-ISM PVDBN BATTERY FAUCET W/MIX
AJ60: ZZ_SOAP_DESCR | AK60: =IF(ISBLANK(N38),IF(ISBLANK(I38),"",I38),INDEX(AU2:AU818,MATCH(N38,AT2:AT818,0))) ->  | AT60: 3335117 | AU60: EAF275-ISM PVDPB BATTERY FCT W/MIX
AJ61: ZZ_BAG_HOOK | AK61: =IF(ISBLANK(I29),"NO",I29) -> NO | AT61: 3335092 | AU61: EAF275-ISM PVDSF BATTERY FAUCET W/MIX
AJ62: ZZ_PAPER_TOWEL_HOLDER | AK62: =IF(ISBLANK(S32),"NO",S32) -> NO | AT62: 3335189 | AU62: EAF275-ITM CP ELECT FAUCET 0.35
D63: Note: | AT63: 3335190 | AU63: EAF275-ITM CP ELECT FAUCET 0.5
D64: This quote is applicable to the request that accompanied it. Any changes may result in price and lead time changes and requires a new quote. After order has been placed any changes may result in extension of the lead time and/or fees up to the full price of the product. | AT64: 3335191 | AU64: EAF275-ITM CP ELECT FAUCET 1.0
AT65: 3335160 | AU65: EAF350 CP BATTERY FAUCET 0.35 GPM
D66: Cancellation and Return Policy: | AT66: 3335110 | AU66: EAF350 CP BATTERY FAUCET 0.5 GPM
D67: AER-DEC and Designer Series Cancellation Policy: | AT67: 3335106 | AU67: EAF350 CP BATTERY FAUCET 1.5 GPM
D68: In the event of an order cancellation the following items may apply: | AT68: 3335148 | AU68: EAF350 PVDGR ELECTRONIC FAUCET 0.5 GPM
D69: -If the order is cancelled more than 5 working days from order placement it will result in a minimum of a 25% fee, up to the full price of that product. | AT69: 3335159 | AU69: EAF350-ISM CP BATTERY FAUCET 0.35 GPM
D70: -If the order is 5 working days or less from scheduled shipment any cancelations result in the full price of the sink. | AT70: 3335111 | AU70: EAF350-ISM CP BATTERY FAUCET 0.5 GPM
AT71: 3335107 | AU71: EAF350-ISM CP BATTERY FAUCET 1.5 GPM
D72: SloanStone Cancellation Policy: | AT72: 3335098 | AU72: EAF700-B CP ELECT FAUCET 1.5 GPM
D73: In the event of an order cancellation the following items may apply: | AT73: 3335119 | AU73: EAF700-LT CP ELECT FAUCET 0.5 GPM
D74: -The order must be cancelled within 3 working days of order placement to avoid a fee, anything beyond 3 days may result in a fee up to 50% the price of the product. | AT74: 3335094 | AU74: EAF700-LT CP ELECT FAUCET 1.5 GPM
AT75: 3335128 | AU75: EAF700-LT-ISM CP ELECT FAUCET 1.0 GPM
D76: Stainless Steel Sinks Cancellation Policy: | AT76: 3335081 | AU76: EAF700-LT-ISM CP ELECT FAUCET 1.5 GPM
D77: In the event of an order cancellation the following items may apply: | AT77: 3335131 | AU77: EAF700-P CP ELECT FAUCET 1.0 GPM
D78: -The order must be cancelled within 5 working days of order placement, anything beyond 5 days may result in a fee up to 50% the price of the product. | AT78: 3335096 | AU78: EAF700-P CP ELECT FAUCET 1.5 GPM
AT79: 3335129 | AU79: EAF700-P-ISM CP ELECT FAUCET 1.0 GPM
D80: Return Policy All Sink Models: | AT80: 3335079 | AU80: EAF700-P-ISM CP ELECT FAUCET 1.5 GPM
D81: The following items apply: | AT81: 3335097 | AU81: EAF750 CP ELECT GOOSENECK FAUCET
D82: -Sinks and Mounting cannot be returned once shipped. If components (faucets, soap dispensers, hand dryers) have not been opened they can be returned for partial credit. | AT82: 3335162 | AU82: EAF750-ISM CP BATTERY FAUCET 0.35 GPM
AT83: 3335125 | AU83: EAF750-ISM CP BATTERY FAUCET 1.0 GPM
D84: Installation/Field Measurements: | AT84: 3335074 | AU84: EAF750-ISM CP BATTERY FAUCET 1.5 GPM
D85: Sloan requires all sinks be installed by knowledgeable Corian or Quartz installers. Installation and/or field measurement is not included in this estimate, and is by others. Installation must be performed by qualified personnel and in accordance with installation instructions and generally accepted industry practices. Incorrect or improper installation will void any product warranty. Any standard sinks over 120” will need to be seamed in the field during installation. For custom sinks refer to signed drawings packet to see if seaming will be required. If seaming is required and you’d prefer to purchase the seaming material/epoxy from Sloan ask your Sloan representative about ordering details. | AT85: 3315144BT | AU85: EBF187-4-BAT-ADM-CP-0.5-GPM-MLM-FCT
AT86: 3315146BT | AU86: EBF187-4-BAT-BDM-CP-0.5-GPM-MLM-FCT
D87: Materials: | AT87: 3315094BT | AU87: EBF187-4-BAT-BDT-CP-0.5-GPM-MLM-FCT
D88: Sloan produces using Corian and Quartz slabs which may vary in color by slab/lot, because of this there may be a slight variation between orders. Variation can also occur in grain, veins and surface finish both between lots/slabs and even within the same lot/slab. While Sloan takes the utmost caution to match and orient these products in such a way that these imperfections add to the aesthetic value of the product, Sloan will not be held responsible for this variation. | AT88: 3315379BT | AU88: EBF187-4-BAT-BN-0.5-GPM-MLM-FCT
AT89: 3315325BT | AU89: EBF187-4-BAT-CP-0.35-GPM-MLM-FCT
D90: Signed Document Submittal: | AT90: 3315107BT | AU90: EBF187-4-BAT-CP-0.5-GPM-MLM-FCT
D91: Sloan requires a signed architectural worksheet or signed drawing (if applicable) to be able to place an order. If an order is placed without these documents submitted to Sloan it will result in an order hold that will extend any previously agreed upon lead time commitments. Once the documents are received the order will be reinstated and an updated ship date will be provided. | AT91: 3315380BT | AU91: EBF187-4-BAT-PB-0.5-GPM-MLM-FCT
AT92: 3315337BT | AU92: EBF187-4-TUR-CP-0.5-GPM-MLM-FCT
D93: Claim Process: | AT93: 3315338BT | AU93: EBF187-4-TUR-CP-1.5-GPM-LAM-FCT
D94: For all Sloan Sinks if you receive a damaged sink or suspect damage (crate broken, etc.) please reference our “Sink Claims Procedure”. Send the below information to sinkclaim@sloan.com within 1 week of receipt of sinks to be considered for a full credit replacement sink. Incomplete claims and/or late claims there will not be eligible for full credit replacement sinks. | AT94: 3315145BT | AU94: EBF187-8-BAT-ADM-CP-0.5-GPM-MLM-FCT
AT95: 3315147BT | AU95: EBF187-8-BAT-BDM-CP-0.5-GPM-MLM-FCT
D96: Information to be provided: | AT96: 3315095BT | AU96: EBF187-8-BAT-BDT-CP-0.5-GPM-MLM-FCT
D97: 1. Upon notification of a cargo claim, Sloan and our manufacture’s reps should instruct the notifying party that they must keep all original packaging, including cartons and contents, until the claim resolution process is completed. It may be necessary to make the packaging / contents available for inspection by the carrier’s representative. Keep merchandise and all packaging materials. | AT97: 3315141BT | AU97: EBF187-8-BAT-CP-0.5-MLM-FCT
AT98: 3315099BT | AU98: EBF550-BAT-BDM-CP-1.5-GPM-SHR-FCT
D99: NOTE: It is imperative that the receiver keep the merchandise segregated and available for inspection until the claim is settled. If the claim is for full replacement value, and the claim is successfully paid, the carrier has the right to the cargo and may elect to collect it for sale or salvage to recoup a portion of their costs. | AT99: 3315161BT | AU99: EBF550-BAT-BDM-CP-1.5-GPM-SHR-S-FCT
AT100: 3315162BT | AU100: EBF550-BAT-BDM-CP-2.2-GPM-LAM-FCT
D101: 2. Explanation of what we are filing a claim for (i.e. damage, lost, shortage), against whom we should file, and the value of the claim being filed. For a damage claim, provide as much detail as possible specifically describing the damage to the product. | AT101: 3315160BT | AU101: EBF550-BAT-BDM-CP-2.2-GPM-LAM-S-FCT
D102: 3. Account Number | AT102: 3315163BT | AU102: EBF550-BAT-BDT-CP-1.5-GPM-SHR-FCT
D103: 4. Customer Name, Customer Contact Name, Customer Address, Customer Phone Number | AT103: 3315098BT | AU103: EBF550-BAT-BDT-CP-2.2-GPM-LAM-FCT
D104: 5. Signed copy of carrier bill of lading, or delivery receipt from recipient (copy should be signed by receiver noting that the cargo was short or damaged when delivered) and photos. | AT104: 3315101BT | AU104: EBF550-BAT-BDT-CP-2.2-GPM-LAM-S-FCT
D105: 6. Sloan Delivery Number and/or Sales Order Number | AT105: 3315333BT | AU105: EBF550-BAT-CP-0.35-GPM-MLM-FCT
D106: 7. Copied of all documentation related to proof of claim value. This can be a copy of original invoice from vendor or supplier, copy of retail invoice or receipt, final confirmation screen if online order with proof of payment, itemized repair invoice or statement of non-repair, appraisals, expense statement, or any other applicable documentation. | AT106: 3315313BT | AU106: EBF550-BAT-CP-1.0-GPM-LAM-FCT
AT107: 3315157BT | AU107: EBF550-BAT-CP-1.5-GPM-SHR-FCT
D108: 8. Copy of any inspection form that may have been completed noting damage and cost of repair. | AT108: 3315159BT | AU108: EBF550-BAT-CP-1.5-GPM-SHR-S-FCT
D109: 9. Copies of any photos showing damage. | AT109: 3315156BT | AU109: EBF550-BAT-CP-2.2-GPM-LAM-FCT
D110: If you have a shortage (missing soap dispenser, etc.) please contact Sloan’s customer service. Please have ready your order number and the item name and quantity that you are missing. | AT110: 3315158BT | AU110: EBF550-BAT-CP-2.2-GPM-LAM-S-FCT
AT111: 3315312BT | AU111: EBF550-BAT-EBF550-BAT-CP-1.5-GPM-LAM-FCT
AT112: 3315099 | AU112: EBF550-H-BDM CP BATTERY FCT 1.5 GPM
AT113: 3315163 | AU113: EBF550-H-BDT CP BATTERY FCT 1.5 GPM
AT114: 3315161 | AU114: EBF550S-H-BDM CP BATTERY FCT 1.5 GPM
AT115: 3315180 | AU115: EBF550S-H-BDT CP BATTERY FCT 1.5 GPM
AT116: 3315370BT | AU116: EBF550-TUR-CP-1.5-GPM-LAM-FCT
AT117: 3315371BT | AU117: EBF550-TUR-CP-1.5-GPM-LAM-S-FCT
AT118: 3315372BT | AU118: EBF550-TUR-CP-1.5-GPM-SHR-FCT
AT119: 3315373BT | AU119: EBF550-TUR-CP-1.5-GPM-SHR-S-FCT
AT120: 3315331BT | AU120: EBF615-4-BAT-BDM-CP-0.35-GPM-MLM-FCT
AT121: 3315181BT | AU121: EBF615-4-BAT-BDT-CP-0.5-GPM-MLM-FCT
AT122: 3315324BT | AU122: EBF615-4-BAT-CP-0.35-GPM-MLM-FCT
AT123: 3315114BT | AU123: EBF615-4-BAT-CP-0.5-MLM-FCT
AT124: 3315154BT | AU124: EBF615-4-BDM-CP-0.5-MLM-FCT
AT125: 3315342BT | AU125: EBF615-4-TUR-BDM-CP-0.5-GPM-MLM-FCT
AT126: 3315344BT | AU126: EBF615-4-TUR-BDM-CP-1.5-LAM-FCT
AT127: 3315343BT | AU127: EBF615-4-TUR-BDT-CP-0.5-GPM-MLM-FCT
AT128: 3315345BT | AU128: EBF615-4-TUR-BDT-CP-1.5-LAM-FCT
AT129: 3315339BT | AU129: EBF615-4-TUR-CP-0.5-MLM-FCT
AT130: 3315340BT | AU130: EBF615-4-TUR-CP-1.5-LAM-FCT
AT131: 3315153BT | AU131: EBF615-8-BAT-ADM-CP-0.5-GPM-MLM-FCT
AT132: 3315155BT | AU132: EBF615-8-BAT-BDM-CP-0.5-GPM-MLM-FCT
AT133: 3315182BT | AU133: EBF615-8-BAT-BDT-CP-0.5-GPM-MLM-FCT
AT134: 3315152BT | AU134: EBF615-8-BAT-CP-0.5-GPM-MLM-FCT
AT135: 3315429BT | AU135: EBF615-8-BAT-CP-2.2-GPM-LAM-FCT
AT136: 3315249 | AU136: EBF650 PVDBN BATTERY FAUCET
AT137: 3315138BT | AU137: EBF650-8-BAT-BDM-CP-0.5-GPM-MLM-FCT
AT138: 3315184BT | AU138: EBF650-8-BAT-BDT-CP-0.5-GPM-MLM-FCT
AT139: 3315139BT | AU139: EBF650-8-BAT-CP-0.5-GPM-MLM-FCT
AT140: 3315326BT | AU140: EBF650-BAT-BDM-CP-0.35-GPM-MLM-FCT
AT141: 3315137BT | AU141: EBF650-BAT-BDM-CP-0.5-GPM-MLM-FCT
AT142: 3315330BT | AU142: EBF650-BAT-BDT-CP-0.35-GPM-MLM-FCT
AT143: 3315183BT | AU143: EBF650-BAT-BDT-CP-0.5-GPM-MLM-FCT
AT144: 3315249BT | AU144: EBF650-BAT-BN-0.5-GPM-MLM-FCT
AT145: 3315322BT | AU145: EBF650-BAT-CP-0.35-GPM-MLM-FCT
AT146: 3315025BT | AU146: EBF650-BAT-CP-0.5-GPM-MLM-FCT
AT147: 3315381BT | AU147: EBF650-BAT-CP-0.5-GPM-MLM-FCT L/LOGO
AT148: 3315049BT | AU148: EBF650-BAT-CP-0.5-GPM-MLM-FCT#491G79
AT149: 3315374BT | AU149: EBF650-BAT-GR-0.5-GPM-MLM-FCT
AT150: 3315077BT | AU150: EBF650-BAT-PB-0.5-GPM-MLM-FCT
AT151: 3315193BT | AU151: EBF650-BAT-SF-0.5-GPM-MLM-FCT
AT152: 3315350BT | AU152: EBF650-TUR-BDM-CP-0.35-GPM-MLM-FCT
AT153: 3315348BT | AU153: EBF650-TUR-BDM-CP-0.5-GPM-MLM-FCT
AT154: 3315351BT | AU154: EBF650-TUR-BDT-CP-0.35-GPM-MLM-FCT
AT155: 3315349BT | AU155: EBF650-TUR-BDT-CP-0.5-GPM-MLM-FCT
AT156: 3315347BT | AU156: EBF650-TUR-CP-0.35-GPM-MLM-FCT
AT157: 3315346BT | AU157: EBF650-TUR-CP-0.5-GPM-MLM-FCT
AT158: 3315352BT | AU158: EBF665-4-BAT-CP-0.35-GPM-MLM-FCT
AT159: 3315353BT | AU159: EBF665-4-BAT-CP-0.5-GPM-MLM-FCT
AT160: 3315356BT | AU160: EBF665-4-TUR-CP-0.35-GPM-MLM-FCT
AT161: 3315355BT | AU161: EBF665-4-TUR-CP-0.5-GPM-MLM-FCT
AT162: 3315357BT | AU162: EBF665-4-TUR-CP-1.5-GPM-LAM-FCT
AT163: 3315354BT | AU163: EBF665-8-BAT-CP-0.5-GPM-MLM-FCT
AT164: 3315315BT | AU164: EBF750-4-BAT-BDM-CP-1.5-GPM-LAM-FCT
AT165: 3315316BT | AU165: EBF750-4-BAT-BDM-CP-1.5-GPM-LAM-S-FCT
AT166: 3315172BT | AU166: EBF750-4-BAT-BDM-CP-1.5-GPM-SHR-FCT
AT167: 3315178BT | AU167: EBF750-4-BAT-BDM-CP-1.5-GPM-SHR-S-FCT
AT168: 3315170BT | AU168: EBF750-4-BAT-BDM-CP-2.2-GPM-LAM-FCT
AT169: 3315176BT | AU169: EBF750-4-BAT-BDM-CP-2.2GPM-LAM-S-FCT
AT170: 3315317BT | AU170: EBF750-4-BAT-BDT-CP-1.5-GPM-LAM-FCT
AT171: 3315187BT | AU171: EBF750-4-BAT-BDT-CP-1.5-GPM-SHR-FCT
AT172: 3315191BT | AU172: EBF750-4-BAT-BDT-CP-1.5-GPM-SHR-S-FCT
AT173: 3315185BT | AU173: EBF750-4-BAT-BDT-CP-2.2-GPM-LAM-FCT
AT174: 3315189BT | AU174: EBF750-4-BAT-BDT-CP-2.2-GPM-LAM-S-FCT
AT175: 3315327BT | AU175: EBF750-4-BAT-CP-0.35-GPM-MLM-FCT
AT176: 3315318BT | AU176: EBF750-4-BAT-CP-1.0-GPM-LAM-FCT
AT177: 3315319BT | AU177: EBF750-4-BAT-CP-1.0-GPM-LAM-S-FCT
AT178: 3315314BT | AU178: EBF750-4-BAT-CP-1.5-GPM-LAM-FCT
AT179: 3315059BT | AU179: EBF750-4-BAT-CP-1.5-GPM-SHR-FCT
AT180: 3315068BT | AU180: EBF750-4-BAT-CP-1.5-GPM-SHR-S-FCT
AT181: 3315104BT | AU181: EBF750-4-BAT-CP-2.2-GPM-LAM-FCT
AT182: 3315105BT | AU182: EBF750-4-BAT-CP-2.2-GPM-LAM-S-FCT
AT183: 3315378BT | AU183: EBF750-4-TUR-BDT-CP-0.35-GPM-MLM-FCT
AT184: 3315336BT | AU184: EBF750-4-TUR-CP-1.5-GPM-LAM-FCT
AT185: 3315368BT | AU185: EBF750-4-TUR-CP-1.5-GPM-LAM-S-FCT
AT186: 3315367BT | AU186: EBF750-4-TUR-CP-1.5-GPM-SHR-FCT
AT187: 3315369BT | AU187: EBF750-4-TUR-CP-1.5-GPM-SHR-S-FCT
AT188: 3315169BT | AU188: EBF750-8-BAT-ADM-CP-1.5-GPM-SHR-FCT
AT189: 3315175BT | AU189: EBF750-8-BAT-ADM-CP-1.5-GPM-SHR-S-FCT
AT190: 3315168BT | AU190: EBF750-8-BAT-ADM-CP-2.2-GPM-LAM-FCT
AT191: 3315174BT | AU191: EBF750-8-BAT-ADM-CP-2.2GPM-LAM-S-FCT
AT192: 3315173BT | AU192: EBF750-8-BAT-BDM-CP-1.5-GPM-SHR-FCT
AT193: 3315179BT | AU193: EBF750-8-BAT-BDM-CP-1.5-GPM-SHR-S-FCT
AT194: 3315171BT | AU194: EBF750-8-BAT-BDM-CP-2.2GPM-LAM-FCT
AT195: 3315177BT | AU195: EBF750-8-BAT-BDM-CP-2.2-GPM-LAM-S-FCT
AT196: 3315188BT | AU196: EBF750-8-BAT-BDT-CP-1.5-GPM-SHR-FCT
AT197: 3315192BT | AU197: EBF750-8-BAT-BDT-CP-1.5-GPM-SHR-S-FCT
AT198: 3315186BT | AU198: EBF750-8-BAT-BDT-CP-2.2-GPM-LAM-FCT
AT199: 3315190BT | AU199: EBF750-8-BAT-BDT-CP-2.2-GPM-LAM-S-FCT
AT200: 3315165BT | AU200: EBF750-8-BAT-CP-1.5-GPM-SHR-FCT
... 618 more rows

Sheet Images (hidden)
A1: Bounce | B1: Code | C1: Image
A2: =IF(ISBLANK('Arc Worksheet'!$N$20),"Blank",CONCATENATE('Arc Worksheet'!I20,'Arc Worksheet'!N20)) -> Blank | B2: AD1 | F2: =IF(ISBLANK(A2),#N/A,(INDEX($C$2:$C$63,MATCH($A$2,$B$2:$B$63,0)))) -> 
B3: AD2
B4: AD3
B5: AD4
B6: AD5
B7: AD6+
B8: DSG1
B9: DSG2
B10: DSG3
B11: DSG4
B12: DSG5
B13: DSG6+
B14: DSOF1
B15: DSOF2
B16: DSOF3
B17: DSOF4
B18: DSOF5
B19: DSOF6+
B20: DSWD1
B21: DSWD2
B22: DSWD3
B23: DSWD4
B24: DSWD5
B25: DSWD6+
B26: DSCT1
B27: DSCT2
B28: DSCT3
B29: DSCT4
B30: DSCT5
B31: DSCT6+
B32: DSVR1
B33: DSVR2
B34: DSVR3
B35: DSVR4
B36: DSVR5
B37: DSVR6+
B38: Other/Custom

Sheet Designer_Sink_Quote_BOM (hidden)
I2: Sink Configuration Model
C3: Logo
D7: Project Information
D10: Architect/Designer | I10: Project Name | N10: Email | S10: Phone
D11: =IF(ISBLANK('Arc Worksheet'!D11),"",'Arc Worksheet'!D11) ->  | I11: ='Arc Worksheet'!I11 -> 0 | N11: ='Arc Worksheet'!N11 -> 0 | S11: ='Arc Worksheet'!S11 -> 0
D12: Country/State | I12: Location Details | N12: Sloan Representative | S12: Cloud for Sales ID #
D13: ='Arc Worksheet'!D13 -> 0 | I13: ='Arc Worksheet'!I13 -> 0 | N13: ='Arc Worksheet'!N13 -> 0 | S13: ='Arc Worksheet'!S13 -> 0
D16: Sink Information
D19: Sink Quantity | I19: Sink Model | N19: Station Quantity | S19: Notes: | AA19: Sink Location Alcove
D20: ='Arc Worksheet'!D20 -> 0 | I20: ='Arc Worksheet'!I20 -> 0 | N20: ='Arc Worksheet'!N20 -> 0 | S20: ='Arc Worksheet'!S20 -> 0
D22: Material | I22: Material Color | N22: Colors Marked with *** will need Special Pricing | AA22: Dimensions | AB22: A+ | AC22: B+ | AD22: C= | AE22: D
D23: =VLOOKUP('Arc Worksheet'!D23,'Drop Tables'!H:I,2,0) ->  | I23: =VLOOKUP('Arc Worksheet'!I23,'Drop Tables'!P:Q,2,0) ->  | N23: If alternate color option, please list in Notes | AA23: Standard | AB23: 4.5" | AC23: 21" | AD23: 4.5" | AE23: 30"
AA24: Custom | AE24: =SUM(AB24:AD24) -> 0
D25: Trough Style | I25: Edge Type | N25: Enclosure
D26: ='Arc Worksheet'!D26 -> 0 | I26: ='Arc Worksheet'!I26 -> 0 | N26: ='Arc Worksheet'!N26 -> 0 | AA26: Soap Hole
AA27: Standard | AD27: 1"
D28: LED | I28: Purse Hooks | N28: Purse Hook Quantity | S28: Purse Hook Color | AA28: Custom
D29: ='Arc Worksheet'!D29 -> 0 | I29: ='Arc Worksheet'!I29 -> 0 | N29: ='Arc Worksheet'!N29 -> 0 | S29: ='Arc Worksheet'!S29 -> 0
AA30: Faucet Hole
D31: Hand Dryer | I31: Trash Hole | N31: Paper Towel holder | S31: Baby Changing Station | AA31: Standard | AD31: 1.25"
AA32: Custom
D34: Faucet Quantity (per sink) | I34: Sloan Faucet Model | N34: Sloan Faucet Code | S34: Laminate Code | AA34: Apron
D35: ='Arc Worksheet'!D35 -> 0 | I35: ='Arc Worksheet'!I35 -> 0 | N35: =VLOOKUP(I35,'Faucet Price Table'!#REF!,3,0) ->  | S35: =VLOOKUP('Arc Worksheet'!S26,'Drop Tables'!T:U,2,0) ->  | AA35: Standard | AD35: 5"
AA36: Custom
D37: Soap Dispenser Quantity (per sink) | I37: Sloan Soap Dispenser Model | N37: Sloan Soap Dispenser Code | S37: Basin Grate Code
D38: ='Arc Worksheet'!D38 -> 0 | I38: ='Arc Worksheet'!I38 -> 0 | N38: =VLOOKUP(I38,'Soap Price Table'!#REF!,3,0) -> 
D43: Approval Signature | I43: Approvers Title | N43: Date (mm/dd/yyyy)
D48: Sink Model Number | I48: =IF(Calculator_2!G2=0,"",(IF(Calculator_2!AE2="Oops! Something Went Wrong Please Contact Sloan","Oops! Something Went Wrong Please Contact Sloan",Calculator_2!AG2))) ->  | N48: Sloan Product Code | S48: =IF(I48="","",(IF(Calculator_2!AE2="","",Calculator_2!AH2))) -> 
D53: Internal Use Only
D56: Internal Sloan Representative | I56: List Price (Good for 60 Days) | N56: Extended Price (good for 60 Days) | S56: Additional Notes:
D57: ='Arc Worksheet'!D52 -> 0 | I57: Base Sink Price (EA) | K57: =IF(Calculator!AE2="Oops! Something Went Wrong Please Contact Sloan",0,Quote3[Base Sink $$]) -> 0 | N57: Base Sink Price | P57: =K57*D20 -> 0
I58: Mounting Price (EA) | K58: =Quote3[Faucet & Soap Total] -> 0 | N58: Mounting Price | P58: =N58*D20 -> 
D59: Shipping Lead Time* | I59: LED Price (EA) | K59: =Quote3[Add-On Total] -> 0 | N59: LED Price | P59: =(K59*N20)*D20 -> 0
D60: ='Arc Worksheet'!D55 -> 0 | I60: Purse Hook Price (EA) | K60: =Quote3[Mounting Total] -> 0 | N60: Purse Hook Price | P60: =K60*N29 -> 0
I61: Hand Dryer Price (EA) | K61: =Quote3[Sink Total] -> 0 | N61: Hand Dryer Price | P61: =(K61*N20)*D20 -> 0
D62: Quote Number | I62: Trash Hole (EA) | K62: =Quote3[[Discount ]] -> 0 | N62: Trash Hole
D63: ='Arc Worksheet'!I55 -> 0 | I63: Paper Towel Holder (EA) | K63: =Quote3[Extended Price] -> 0 | N63: Paper Towel Holder
I64: Baby Changing Station (EA) | K64: 0 | N64: Baby Changing Station
D65: Compliance Notes | I65: Faucet Price (EA) | K65: 0 | N65: Faucet Price
D66: ='Arc Worksheet'!I52 -> 0 | I66: Soap Dispencer Price (EA) | K66: 0 | N66: Soap Dispencer Price | P66: =(K66*N20)*D20 -> 0

Sheet Bill Of Material (hidden)
E2: Enter Quantity Below | G2: =IF(ISBLANK('Arc Worksheet'!AA38),"","Void Pricing: Custom Depth or Selection") -> 
F4: Price to SVC | G4: =G5/0.85 -> 0
B5: Generic Code: | C5: =IFERROR(INDEX('Generic Codes'!G2:P345,MATCH(CodeList2!A9,'Generic Codes'!A2:A345,0),MATCH(CodeList2!B9,'Generic Codes'!G1:P1,0)),"") ->  | D5: Sink Quantity: | E5: =IF(ISBLANK('Arc Worksheet'!D20),"",'Arc Worksheet'!D20) ->  | F5: Total Cost per Sink | G5: =IFERROR(SUM(G8:G17),"Information Missing") -> 0
B6: Component | C6: Description | D6: Material Code | E6: Quantity Per Sink | F6: Quantity Per Order | G6: Cost Per Sink
B7: Color | C7: =IF(ISBLANK('Arc Worksheet'!J23),"",'Arc Worksheet'!J23) ->  | D7: =IF(ISBLANK(C7),"",IFERROR(VLOOKUP(C7,'Drop Tables'!P:R,3,0),"")) ->  | E7: =IF(ISBLANK(C7),"",'Arc Worksheet'!I23) -> 
B8: Model | C8: =IF(ISBLANK('Arc Worksheet'!I20),"",'Arc Worksheet'!I20) ->  | D8: =IFERROR(INDEX('Sku List'!G2:$P$245,MATCH(CodeList2!A9,'Sku List'!A2:$A$245,0),MATCH(CodeList2!$B$9,'Sku List'!$G$1:$P$1,0)),"") ->  | E8: =IF(ISBLANK('Arc Worksheet'!I20),"","1") ->  | F8: =IF(ISBLANK($E$5),"",IFERROR($E$5*E8,"")) ->  | G8: =IFERROR(INDEX('Sink Price Table'!G2:$K$241,MATCH(CodeList2!A9,'Sink Price Table'!A2:$A$241,0),MATCH(CodeList2!B9,'Sink Price Table'!G1:$K$1,0))*E8,"") -> 
B9: Mounting | C9: =IF(ISBLANK('Arc Worksheet'!N26),"",'Arc Worksheet'!N26) ->  | D9: =IF(ISBLANK('Arc Worksheet'!N26),"",IFERROR(VLOOKUP(CodeList2!B2,Table10[[#All],[LUP]:[Material Number]],2,0),VLOOKUP(CodeList2!B2,'Mounting Cheat Sheet'!A:B,2,0))) ->  | E9: =IF(ISBLANK('Arc Worksheet'!N26),"",IFERROR(VLOOKUP(D9,'Mounting Cheat Sheet'!B:C,2,0),VLOOKUP(D9,Table10[[#All],[Material Number]:[Quantity Per Sink]],2,0))) ->  | F9: =IF(ISBLANK($E$5),"",IFERROR($E$5*E9,"")) ->  | G9: =IFERROR(IF(D9="","",IFERROR(VLOOKUP(CodeList2!B2,Table10[[#All],[LUP]:[Cost]],4,0),VLOOKUP(D9,'Mounting Cheat Sheet'!B:F,5,0)))*E9,"") -> 
B10: Angle Bracket ext. | C10: =IF(C9="Angle Bracket","Angle Bracket","Not Needed") -> Not Needed | D10: =IFERROR(IF(C10="","",VLOOKUP(CodeList2!B2,'Mounting Cheat Sheet'!A:D,4,0)),"") ->  | E10: =IFERROR(IF(C10="","",VLOOKUP(D10,'Mounting Cheat Sheet'!D:E,2,0)),"") ->  | F10: =IF(ISBLANK($E$5),"",IFERROR($E$5*E10,"")) ->  | G10: =IFERROR(IFERROR(VLOOKUP(D10,'Mounting Cheat Sheet'!D:G,4,0),0)*E10,"") -> 
B11: LED | C11: =IF(ISBLANK('Arc Worksheet'!D29),"",'Arc Worksheet'!D29) ->  | D11: =IF(ISBLANK('Arc Worksheet'!D29),"",IF('Arc Worksheet'!D29="No","",VLOOKUP(CodeList2!B3,Table12[[#All],[LookUp]:[Material Number]],2,0))) ->  | E11: =IF(ISBLANK('Arc Worksheet'!D29),"",IF('Arc Worksheet'!D29="No","",VLOOKUP(CodeList2!B3,Table12[[#All],[LookUp]:[Quantity Per Sink]],3,0))) ->  | F11: =IF(ISBLANK($E$5),"",IFERROR($E$5*E11,"")) ->  | G11: =IF(D11="","",IFERROR(VLOOKUP(CodeList2!B3,Table12[[#All],[LookUp]:[Cost]],4,0)*E11,"")) -> 
B12: Bag Hooks | C12: =IF(ISBLANK('Arc Worksheet'!I29),"",'Arc Worksheet'!I29) ->  | D12: =IF(ISBLANK('Arc Worksheet'!S29),"",IF('Arc Worksheet'!I29="No","",VLOOKUP(CodeList2!B4,Table13[[#All],[Lookup]:[Material Number]],2,0))) ->  | E12: =IF(D12="","", 'Arc Worksheet'!N29) ->  | G12: =IF(D12="","",IFERROR(VLOOKUP(CodeList2!B4,Table13[[#All],[Lookup]:[Cost]],4,0)*E12,"")) -> 
B13: Hand Dryer | C13: =IF(ISBLANK('Arc Worksheet'!D32),"",'Arc Worksheet'!D32) ->  | D13: =IF(ISBLANK('Arc Worksheet'!D32),"",VLOOKUP(CodeList2!B6,Table14[[#All],[Lookup]:[Material Number]],2,0)) ->  | E13: =IF(D13="","",'Arc Worksheet'!I32) ->  | G13: =IF(C13="","",IFERROR(VLOOKUP(CodeList2!B6,Table14[[#All],[Lookup]:[Cost]],4,0)*E13,"")) -> 
B14: Paper Towel Holder | C14: =IF(ISBLANK('Arc Worksheet'!S32),"",'Arc Worksheet'!S32) ->  | D14: =IF('Arc Worksheet'!S32="Yes",VLOOKUP(CodeList2!B7,CodeList2!D197:E202,2,0),"") ->  | E14: =IF(ISBLANK('Arc Worksheet'!S32),"",IF('Arc Worksheet'!S32="No","",VLOOKUP(D14,CodeList2!E197:F202,2,0))) ->  | G14: =IF(D14="","",IFERROR(VLOOKUP(CodeList2!B7,CodeList2!D197:G202,4,0)*E14,"")) -> 
B15: Basin Grates | C15: =IF(ISBLANK('Arc Worksheet'!S38),"",'Arc Worksheet'!S38) ->  | D15: =IF(ISBLANK('Arc Worksheet'!S38),"",IF('Arc Worksheet'!S38="No","",VLOOKUP(CodeList2!B5,Table11[[#All],[LookUp]:[Column1]],2,0))) ->  | E15: =IF(ISBLANK('Arc Worksheet'!S38),"",IF('Arc Worksheet'!S38="No","",1)) ->  | G15: =IF(D15="","",IFERROR(VLOOKUP(CodeList2!B5,Table11[[#All],[LookUp]:[Cost]],4,0)*E15,"")) -> 
B16: Faucet | C16: =IF(ISBLANK('Arc Worksheet'!I35),IFERROR(VLOOKUP('Arc Worksheet'!N35,'Faucet Price Table'!A:B,2,0),""),'Arc Worksheet'!I35) ->  | D16: =IF(ISBLANK('Arc Worksheet'!I35),'Arc Worksheet'!N35,VLOOKUP('Arc Worksheet'!I35,'Faucet Price Table'!B:D,3,0)) -> 0 | E16: =IF(ISBLANK('Arc Worksheet'!D35),"",'Arc Worksheet'!D35) ->  | G16: =IFERROR(IF(ISBLANK('Arc Worksheet'!I35),VLOOKUP('Arc Worksheet'!N35,'Faucet Price Table'!A:C,3,0)*E16,VLOOKUP(D16,'Faucet Price Table'!A:C,3,0)*E16),"") -> 
B17: Soap Dispenser | C17: =IF(ISBLANK('Arc Worksheet'!I38),IFERROR(VLOOKUP('Arc Worksheet'!N38,'Soap Price Table'!A:B,2,0),""),'Arc Worksheet'!I38) ->  | D17: =IF(ISBLANK('Arc Worksheet'!I38),'Arc Worksheet'!N38,VLOOKUP('Arc Worksheet'!I38,'Soap Price Table'!B:D,3,0)) -> 0 | E17: =IF(ISBLANK('Arc Worksheet'!D38),"",'Arc Worksheet'!D38) ->  | G17: =IFERROR(IF(ISBLANK('Arc Worksheet'!I38),(VLOOKUP('Arc Worksheet'!N38,'Soap Price Table'!A:C,3,0)*E17),(VLOOKUP('Arc Worksheet'!I38,'Soap Price Table'!B:C,2,0)*E17)),"") -> 

Sheet Manufacturing BOM (hidden)
A2: Project Name: | B2: =IF(ISBLANK('Arc Worksheet'!I11),"",'Arc Worksheet'!I11) ->  | D2: Quote Number: | E2: =IF(ISBLANK('Arc Worksheet'!I55),"",'Arc Worksheet'!I55) -> 
A3: WaterJet
A4: Generic Code: | B4: ='Bill Of Material'!C5 ->  | D4: Sink Quantity: | F4: ='Bill Of Material'!E5 -> 
A5: Component | B5: Description | C5: Material Code | D5: Quantity Per Sink | E5: Quantity Per Order | F5: Color Tier
A6: Color | B6: =IF(ISBLANK('Arc Worksheet'!$J$23),"",'Arc Worksheet'!$J$23) ->  | C6: =IF(ISBLANK(B6),"",VLOOKUP(B6,'Drop Tables'!P:R,3,0)) ->  | D6: ='Bill Of Material'!E7 ->  | F6: ='Bill Of Material'!G7 -> 0
A7: Model | B7: =IF(ISBLANK('Bill Of Material'!C8),"",'Bill Of Material'!C8) ->  | C7: ='Bill Of Material'!D8 ->  | D7: ='Bill Of Material'!E8 ->  | E7: =$F$4*D7 -> 
A8: Trough Style | B8: =IF(ISBLANK('Arc Worksheet'!D26),"",'Arc Worksheet'!D26) -> 
A9: Bowl Type | B9: =IF(ISBLANK('Arc Worksheet'!S35),"",'Arc Worksheet'!S35) -> 
A10: Edge Type | B10: =IF(ISBLANK('Arc Worksheet'!I26),"",'Arc Worksheet'!I26) -> 
A11: Alcove | B11: =IF(ISBLANK('Arc Worksheet'!Z30),"",'Arc Worksheet'!Z30) -> 
A12: LED | B12: =IF(ISBLANK('Bill Of Material'!C11),"",'Bill Of Material'!C11) ->  | C12: ='Bill Of Material'!D11 ->  | D12: ='Bill Of Material'!E11 ->  | E12: =$F$4*D12 -> 
A13: Hand Dryer | B13: =IF(ISBLANK('Bill Of Material'!C13),"",'Bill Of Material'!C13) ->  | C13: ='Bill Of Material'!D13 ->  | D13: ='Bill Of Material'!E13 -> 
A14: Faucet | B14: =IF(ISBLANK('Bill Of Material'!C16),"",'Bill Of Material'!C16) ->  | C14: ='Bill Of Material'!D16 -> 0 | D14: ='Bill Of Material'!E16 -> 
A15: Soap Dispenser | B15: =IF(ISBLANK('Bill Of Material'!C17),"",'Bill Of Material'!C17) ->  | C15: ='Bill Of Material'!D17 -> 0 | D15: ='Bill Of Material'!E17 -> 
A16: Trash Hole | B16: =IF(ISBLANK('Arc Worksheet'!N32),"",'Arc Worksheet'!N32) ->  | D16: =IF(B16="Yes",1,"") -> 
A17: Paper Towel Holder | B17: =IF(ISBLANK('Bill Of Material'!C14),"",'Bill Of Material'!C14) ->  | C17: ='Bill Of Material'!D14 ->  | D17: ='Bill Of Material'!E14 -> 
A18: Baby Changing Station | B18: =IF(ISBLANK('Arc Worksheet'!D41),"",'Arc Worksheet'!D41) ->  | C18: =IF(B18="Yes",CodeList2!D207,"") ->  | D18: =IF(B18="Yes",1,"") -> 
A19: Dimensions | B19: A+ | C19: B+ | D19: C= | E19: D
A20: Standard | B20: =IF(ISBLANK('Arc Worksheet'!AA33),"",'Arc Worksheet'!AA33) ->  | C20: =IF(ISBLANK('Arc Worksheet'!AB33),"",'Arc Worksheet'!AB33) ->  | D20: =IF(ISBLANK('Arc Worksheet'!AC33),"",'Arc Worksheet'!AC33) ->  | E20: =IF(ISBLANK('Arc Worksheet'!AD33),"",'Arc Worksheet'!AD33) -> 
A21: Custom | B21: =IF(ISBLANK('Arc Worksheet'!AA34),"",'Arc Worksheet'!AA34) ->  | C21: =IF(ISBLANK('Arc Worksheet'!AB34),"",'Arc Worksheet'!AB34) ->  | D21: =IF(ISBLANK('Arc Worksheet'!AC34),"",'Arc Worksheet'!AC34) ->  | E21: =IF(ISBLANK('Arc Worksheet'!AD34),"",'Arc Worksheet'!AD34) -> 
A22: Soap Hole | B22: Inches | C22: Faucet Hole | D22: Inches
A23: Standard | B23: 1" | C23: Standard | D23: 1.25"
A24: Custom | B24: =IF(ISBLANK('Arc Worksheet'!AA42),"",'Arc Worksheet'!AA42) ->  | C24: Custom | D24: =IF(ISBLANK('Arc Worksheet'!AA46),"",'Arc Worksheet'!AA46) -> 
A25: Back Splash | B25: Inches | C25: Apron | D25: Inches
A26: Standard | B26: ='Arc Worksheet'!AA53 -> DSCT Only | C26: Standard | D26: 5"
A27: Custom | B27: =IF(ISBLANK('Arc Worksheet'!AA54),"",'Arc Worksheet'!AA54) ->  | C27: Custom | D27: =IF(ISBLANK('Arc Worksheet'!AA50),"",'Arc Worksheet'!AA50) -> 
A28: Sales Notes: | D28: Internal Notes:
A29: =IF(ISBLANK('Arc Worksheet'!S20),"",'Arc Worksheet'!S20) ->  | D29: =IF(ISBLANK('Arc Worksheet'!N52),"",'Arc Worksheet'!N52) -> 
A38: Corian Assembly
A39: Generic Code: | B39: =IF(ISBLANK('Bill Of Material'!C5),"",'Bill Of Material'!C5) ->  | D39: Sink Quantity: | F39: =IF(ISBLANK(F4),"",F4) -> 
A40: Component | B40: Description | C40: Material Code | D40: Quantity Per Sink | E40: Quantity Per Order
A41: Color Tier | B41: =IF(ISBLANK(B6),"",B6) ->  | C41: =IF(ISBLANK(C6),"",C6) ->  | D41: =IF(ISBLANK(D6),"",D6) -> 
A42: Model | B42: =IF(ISBLANK('Bill Of Material'!C8),"",'Bill Of Material'!C8) ->  | C42: =IF(ISBLANK(C7),"",C7) ->  | D42: =IF(ISBLANK(D7),"",D7) ->  | E42: =IF(ISBLANK(E7),"",E7) -> 
A43: Trough Style | B43: =IF(ISBLANK('Arc Worksheet'!D26),"",'Arc Worksheet'!D26) -> 
A44: Bowl Type | B44: =IF(ISBLANK('Arc Worksheet'!S35),"",'Arc Worksheet'!S35) -> 
A45: Edge Type | B45: =IF(ISBLANK('Arc Worksheet'!I26),"",'Arc Worksheet'!I26) -> 
A46: Alcove | B46: =IF(ISBLANK('Arc Worksheet'!Z30),"",'Arc Worksheet'!Z30) -> 
A47: LED | B47: =IF(ISBLANK('Bill Of Material'!C11),"",'Bill Of Material'!C11) ->  | C47: =IF(ISBLANK(C12),"",C12) ->  | D47: =IF(ISBLANK(D12),"",D12) ->  | E47: =IF(ISBLANK(E12),"",E12) -> 
A48: Bag Hooks | B48: =IF(ISBLANK('Bill Of Material'!C12),"",'Bill Of Material'!C12) ->  | C48: =IF(ISBLANK('Bill Of Material'!D12),"",'Bill Of Material'!D12) ->  | D48: =IF(ISBLANK('Bill Of Material'!E12),"",'Bill Of Material'!E12) ->  | E48: =IF(ISBLANK('Bill Of Material'!F12),"",'Bill Of Material'!F12) -> 
A49: Basin Grates | B49: =IF(ISBLANK('Bill Of Material'!C15),"",'Bill Of Material'!C15) ->  | C49: =IF(ISBLANK('Bill Of Material'!D15),"",'Bill Of Material'!D15) ->  | D49: =IF(ISBLANK('Bill Of Material'!E15),"",'Bill Of Material'!E15) ->  | E49: =IF(ISBLANK('Bill Of Material'!F15),"",'Bill Of Material'!F15) -> 
A50: Hand Dryer | B50: =IF(ISBLANK(B13),"",B13) -> 
A51: Faucet | C51: 0
A52: Soap Dispenser | C52: 0
A53: Trash Hole | B53: =IF(ISBLANK(B16),"",B16) ->  | D53: =IF(ISBLANK(D16),"",D16) -> 
A54: Paper Towel Holder | B54: =IF(ISBLANK(B17),"",B17) ->  | C54: =IF(ISBLANK(C17),"",C17) -> 
A55: Baby Changing Station | B55: =IF(ISBLANK(B18),"",B18) ->  | C55: =IF(ISBLANK(C18),"",C18) -> 
A56: Dimensions | B56: A+ | C56: B+ | D56: C= | E56: D
A57: Standard | B57: =IF(ISBLANK(B20),"",B20) -> 
A58: Custom
A59: Soap Hole | B59: Inches | C59: Faucet Hole | D59: Inches
A60: Standard | B60: 1" | C60: Standard | D60: 1.25"
A61: Custom | B61: =IF(ISBLANK(B24),"",B24) ->  | C61: Custom | D61: =IF(ISBLANK(D24),"",D24) -> 
A62: Back Splash | B62: Inches | C62: Apron | D62: Inches
A63: Standard | B63: =B26 -> DSCT Only | C63: Standard | D63: 5"
A64: Custom | B64: =IF(ISBLANK(B27),"",B27) ->  | C64: Custom | D64: =IF(ISBLANK(D27),"",D27) -> 
A72: Weldments
A73: Generic Code: | B73: =IF(ISBLANK(B4),"",B4) ->  | D73: Sink Quantity: | F73: =IF(ISBLANK(F4),"",F4) -> 
A74: Component | B74: Description | C74: Material Code | D74: Quantity Per Sink | E74: Quantity Per Order
A75: Model | B75: =IF(ISBLANK(B7),"",B7) ->  | C75: =IF(ISBLANK(C7),"",C7) ->  | D75: =IF(ISBLANK(D7),"",D7) ->  | E75: =IF(ISBLANK(E7),"",E7) -> 
A76: Trough Style | B76: =IF(ISBLANK(B8),"",B8) -> 
A77: Bowl Type | B77: =IF(ISBLANK(B9),"",B9) -> 
A78: Mounting Type | B78: =IF(ISBLANK('Bill Of Material'!C9),"",'Bill Of Material'!C9) ->  | C78: =IF(ISBLANK('Bill Of Material'!D9),"",'Bill Of Material'!D9) ->  | D78: =IF(ISBLANK('Bill Of Material'!E9),"",'Bill Of Material'!E9) ->  | E78: =IF(ISBLANK('Bill Of Material'!F9),"",'Bill Of Material'!F9) -> 
A79: Angle Bracket (If App) | B79: =IF(ISBLANK('Bill Of Material'!C10),"",'Bill Of Material'!C10) -> Not Needed | C79: =IF(ISBLANK('Bill Of Material'!D10),"",'Bill Of Material'!D10) ->  | D79: =IF(ISBLANK('Bill Of Material'!E10),"",'Bill Of Material'!E10) ->  | E79: =IF(ISBLANK('Bill Of Material'!F10),"",'Bill Of Material'!F10) -> 
A80: Alcove | B80: =IF(ISBLANK(B11),"",B11) ->  | E80: =IF(ISBLANK(#REF!),"",IFERROR(#REF!*D80,"")) -> 
A81: Laminate Color | B81: =IF(ISBLANK('Arc Worksheet'!S26),"",'Arc Worksheet'!S26) ->  | C81: =IF(ISBLANK(B81),"",VLOOKUP(B81,'Drop Tables'!T:U,2,0)) -> 
A82: Dimensions | B82: A+ | C82: B+ | D82: C= | E82: D
A83: Standard | B83: =IF(ISBLANK(B20),"",B20) -> 
A84: Custom

Sheet Costs (hidden)
A1: Type | B1: Bounce Code | C1: Color Code
A2: Enclosure | B2: =CONCATENATE('Arc Worksheet'!$I$20,'Arc Worksheet'!$N$20) -> 
A3: LED | B3: =CONCATENATE('Arc Worksheet'!$I$20,'Arc Worksheet'!$N$20) -> 
A4: Bag Hook | B4: =CONCATENATE('Arc Worksheet'!I20,'Arc Worksheet'!N20,'Arc Worksheet'!S29) -> 
A5: Basin Grates | B5: =CONCATENATE('Arc Worksheet'!$I$20,'Arc Worksheet'!$N$20) -> 
A6: Hand Dryer | B6: =CONCATENATE('Arc Worksheet'!I20,'Arc Worksheet'!N20,'Arc Worksheet'!D32) -> 
A7: Paper Towel Holder | B7: ='Arc Worksheet'!$N$20 -> 0
A8: Baby Changing Station | B8: ='Arc Worksheet'!$N$20 -> 0
A10: Enclosure | B10: Station Amount | C10: LookUp | D10: Material Number | E10: Quantity Per Sink | F10: Cost
A11: AD | B11: 1 | C11: =Table1019[[#This Row],[Enclosure]]&Table1019[[#This Row],[Station Amount]] -> AD1 | D11: E0000001 | E11: 1 | F11: 900
A12: AD | B12: 2 | C12: =Table1019[[#This Row],[Enclosure]]&Table1019[[#This Row],[Station Amount]] -> AD2 | D12: E0000002 | E12: 1 | F12: 1200
A13: AD | B13: 3 | C13: =Table1019[[#This Row],[Enclosure]]&Table1019[[#This Row],[Station Amount]] -> AD3 | D13: E0000003 | E13: 1 | F13: 1400
A14: AD | B14: 4 | C14: =Table1019[[#This Row],[Enclosure]]&Table1019[[#This Row],[Station Amount]] -> AD4 | D14: E0000004 | E14: 1 | F14: 1600
A15: AD | B15: 5 | C15: =Table1019[[#This Row],[Enclosure]]&Table1019[[#This Row],[Station Amount]] -> AD5 | D15: E0000005 | E15: 1 | F15: 1800
A16: AD | B16: 6+ | C16: =Table1019[[#This Row],[Enclosure]]&Table1019[[#This Row],[Station Amount]] -> AD6+ | D16: E0000006 | E16: 1 | F16: 2000
A17: DSG | B17: 1 | C17: =Table1019[[#This Row],[Enclosure]]&Table1019[[#This Row],[Station Amount]] -> DSG1 | D17: E0000007 | E17: 1 | F17: 500
A18: DSG | B18: 2 | C18: =Table1019[[#This Row],[Enclosure]]&Table1019[[#This Row],[Station Amount]] -> DSG2 | D18: E0000008 | E18: 1 | F18: 700
A19: DSG | B19: 3 | C19: =Table1019[[#This Row],[Enclosure]]&Table1019[[#This Row],[Station Amount]] -> DSG3 | D19: E0000009 | E19: 1 | F19: 900
A20: DSG | B20: 4 | C20: =Table1019[[#This Row],[Enclosure]]&Table1019[[#This Row],[Station Amount]] -> DSG4 | D20: E0000010 | E20: 1 | F20: 1100
A21: DSG | B21: 5 | C21: =Table1019[[#This Row],[Enclosure]]&Table1019[[#This Row],[Station Amount]] -> DSG5 | D21: E0000011 | E21: 1 | F21: 1300
A22: DSG | B22: 6+ | C22: =Table1019[[#This Row],[Enclosure]]&Table1019[[#This Row],[Station Amount]] -> DSG6+ | D22: E0000012 | E22: 1 | F22: 1500
A23: DSCT | B23: 1 | C23: =Table1019[[#This Row],[Enclosure]]&Table1019[[#This Row],[Station Amount]] -> DSCT1 | D23: E0000007 | E23: 1 | F23: 500
A24: DSCT | B24: 2 | C24: =Table1019[[#This Row],[Enclosure]]&Table1019[[#This Row],[Station Amount]] -> DSCT2 | D24: E0000008 | E24: 1 | F24: 700
A25: DSCT | B25: 3 | C25: =Table1019[[#This Row],[Enclosure]]&Table1019[[#This Row],[Station Amount]] -> DSCT3 | D25: E0000009 | E25: 1 | F25: 900
A26: DSCT | B26: 4 | C26: =Table1019[[#This Row],[Enclosure]]&Table1019[[#This Row],[Station Amount]] -> DSCT4 | D26: E0000010 | E26: 1 | F26: 1100
A27: DSCT | B27: 5 | C27: =Table1019[[#This Row],[Enclosure]]&Table1019[[#This Row],[Station Amount]] -> DSCT5 | D27: E0000011 | E27: 1 | F27: 1300
A28: DSCT | B28: 6+ | C28: =Table1019[[#This Row],[Enclosure]]&Table1019[[#This Row],[Station Amount]] -> DSCT6+ | D28: E0000012 | E28: 1 | F28: 1500
A29: DSOF | B29: 1 | C29: =Table1019[[#This Row],[Enclosure]]&Table1019[[#This Row],[Station Amount]] -> DSOF1 | D29: E0000007 | E29: 1 | F29: 500
A30: DSOF | B30: 2 | C30: =Table1019[[#This Row],[Enclosure]]&Table1019[[#This Row],[Station Amount]] -> DSOF2 | D30: E0000008 | E30: 1 | F30: 700
A31: DSOF | B31: 3 | C31: =Table1019[[#This Row],[Enclosure]]&Table1019[[#This Row],[Station Amount]] -> DSOF3 | D31: E0000009 | E31: 1 | F31: 900
A32: DSOF | B32: 4 | C32: =Table1019[[#This Row],[Enclosure]]&Table1019[[#This Row],[Station Amount]] -> DSOF4 | D32: E0000010 | E32: 1 | F32: 1100
A33: DSOF | B33: 5 | C33: =Table1019[[#This Row],[Enclosure]]&Table1019[[#This Row],[Station Amount]] -> DSOF5 | D33: E0000011 | E33: 1 | F33: 1300
A34: DSOF | B34: 6+ | C34: =Table1019[[#This Row],[Enclosure]]&Table1019[[#This Row],[Station Amount]] -> DSOF6+ | D34: E0000012 | E34: 1 | F34: 1500
A35: DSUP | B35: 1 | C35: =Table1019[[#This Row],[Enclosure]]&Table1019[[#This Row],[Station Amount]] -> DSUP1 | D35: E0000007 | E35: 1 | F35: 500
A36: DSUP | B36: 2 | C36: =Table1019[[#This Row],[Enclosure]]&Table1019[[#This Row],[Station Amount]] -> DSUP2 | D36: E0000008 | E36: 1 | F36: 700
A37: DSUP | B37: 3 | C37: =Table1019[[#This Row],[Enclosure]]&Table1019[[#This Row],[Station Amount]] -> DSUP3 | D37: E0000009 | E37: 1 | F37: 900
A38: DSUP | B38: 4 | C38: =Table1019[[#This Row],[Enclosure]]&Table1019[[#This Row],[Station Amount]] -> DSUP4 | D38: E0000010 | E38: 1 | F38: 1100
A39: DSUP | B39: 5 | C39: =Table1019[[#This Row],[Enclosure]]&Table1019[[#This Row],[Station Amount]] -> DSUP5 | D39: E0000011 | E39: 1 | F39: 1300
A40: DSUP | B40: 6+ | C40: =Table1019[[#This Row],[Enclosure]]&Table1019[[#This Row],[Station Amount]] -> DSUP6+ | D40: E0000012 | E40: 1 | F40: 1500
A41: DSVR | B41: 1 | C41: =Table1019[[#This Row],[Enclosure]]&Table1019[[#This Row],[Station Amount]] -> DSVR1 | D41: E0000007 | E41: 1 | F41: 500
A42: DSVR | B42: 2 | C42: =Table1019[[#This Row],[Enclosure]]&Table1019[[#This Row],[Station Amount]] -> DSVR2 | D42: E0000008 | E42: 1 | F42: 700
A43: DSVR | B43: 3 | C43: =Table1019[[#This Row],[Enclosure]]&Table1019[[#This Row],[Station Amount]] -> DSVR3 | D43: E0000009 | E43: 1 | F43: 900
A44: DSVR | B44: 4 | C44: =Table1019[[#This Row],[Enclosure]]&Table1019[[#This Row],[Station Amount]] -> DSVR4 | D44: E0000010 | E44: 1 | F44: 1100
A45: DSVR | B45: 5 | C45: =Table1019[[#This Row],[Enclosure]]&Table1019[[#This Row],[Station Amount]] -> DSVR5 | D45: E0000011 | E45: 1 | F45: 1300
A46: DSVR | B46: 6+ | C46: =Table1019[[#This Row],[Enclosure]]&Table1019[[#This Row],[Station Amount]] -> DSVR6+ | D46: E0000012 | E46: 1 | F46: 1500
A47: DSWD | B47: 1 | C47: =Table1019[[#This Row],[Enclosure]]&Table1019[[#This Row],[Station Amount]] -> DSWD1 | D47: E0000007 | E47: 1 | F47: 500
A48: DSWD | B48: 2 | C48: =Table1019[[#This Row],[Enclosure]]&Table1019[[#This Row],[Station Amount]] -> DSWD2 | D48: E0000008 | E48: 1 | F48: 700
A49: DSWD | B49: 3 | C49: =Table1019[[#This Row],[Enclosure]]&Table1019[[#This Row],[Station Amount]] -> DSWD3 | D49: E0000009 | E49: 1 | F49: 900
A50: DSWD | B50: 4 | C50: =Table1019[[#This Row],[Enclosure]]&Table1019[[#This Row],[Station Amount]] -> DSWD4 | D50: E0000010 | E50: 1 | F50: 1100
A51: DSWD | B51: 5 | C51: =Table1019[[#This Row],[Enclosure]]&Table1019[[#This Row],[Station Amount]] -> DSWD5 | D51: E0000011 | E51: 1 | F51: 1300
A52: DSWD | B52: 6+ | C52: =Table1019[[#This Row],[Enclosure]]&Table1019[[#This Row],[Station Amount]] -> DSWD6+ | D52: E0000012 | E52: 1 | F52: 1500
A54: Basin Grates | B54: Station Amount | C54: LookUp | D54: Material Number | E54: Quantity Per Sink | F54: Cost
A55: DSWD | B55: 1 | C55: =A55&B55 -> DSWD1 | D55: BG0000013 | E55: 1 | F55: 200
A56: DSWD | B56: 2 | C56: DSWD2 | D56: BG0000014 | E56: 1 | F56: 300
A57: DSWD | B57: 3 | C57: DSWD3 | D57: BG0000015 | E57: 1 | F57: 400
A58: DSWD | B58: 4 | C58: DSWD4 | D58: BG0000016 | E58: 1 | F58: 500
A59: DSWD | B59: 5 | C59: DSWD5 | D59: BG0000017 | E59: 1 | F59: 600
A60: DSWD | B60: 6+ | C60: DSWD6+ | D60: BG0000018 | E60: 1 | F60: 700
A63: LED | B63: Station Amount | C63: LookUp | D63: Material Number | E63: Quantity Per Sink | F63: Cost
A64: AD | B64: 1 | C64: =A64&B64 -> AD1 | D64: L0000019 | E64: 1 | F64: 125
A65: AD | B65: 2 | C65: =A65&B65 -> AD2 | D65: L0000020 | E65: 1 | F65: 250
A66: AD | B66: 3 | C66: AD3 | D66: L0000021 | E66: 1 | F66: 375
A67: AD | B67: 4 | C67: AD4 | D67: L0000022 | E67: 1 | F67: 500
A68: AD | B68: 5 | C68: AD5 | D68: L0000023 | E68: 1 | F68: 625
A69: AD | B69: 6+ | C69: AD6+ | D69: L0000024 | E69: 1 | F69: 750
A70: DSG | B70: 1 | C70: DSG1 | D70: L0000019 | E70: 2 | F70: 150
A71: DSG | B71: 2 | C71: DSG2 | D71: L0000020 | E71: 2 | F71: 300
A72: DSG | B72: 3 | C72: DSG3 | D72: L0000021 | E72: 2 | F72: 450
A73: DSG | B73: 4 | C73: DSG4 | D73: L0000022 | E73: 2 | F73: 600
A74: DSG | B74: 5 | C74: DSG5 | D74: L0000023 | E74: 2 | F74: 750
A75: DSG | B75: 6+ | C75: DSG6+ | D75: L0000024 | E75: 2 | F75: 900
A78: Purse Hook | B78: Station Amount | C78: Color | D78: Lookup | E78: Material Number | F78: Quantity Per Sink | G78: Cost
A79: AD | B79: 1 | C79: Light Grey | D79: =A79&B79&Table1322[[#This Row],[Color]] -> AD1Light Grey | E79: P0000025 | F79: 1 | G79: =30*Table1322[[#This Row],[Quantity Per Sink]] -> 30
A80: AD | B80: 2 | C80: Light Grey | D80: =A80&B80&Table1322[[#This Row],[Color]] -> AD2Light Grey | E80: P0000026 | F80: 2 | G80: =30*Table1322[[#This Row],[Quantity Per Sink]] -> 60
A81: AD | B81: 3 | C81: Light Grey | D81: =A81&B81&Table1322[[#This Row],[Color]] -> AD3Light Grey | E81: P0000027 | F81: 3 | G81: =30*Table1322[[#This Row],[Quantity Per Sink]] -> 90
A82: AD | B82: 4 | C82: Light Grey | D82: =A82&B82&Table1322[[#This Row],[Color]] -> AD4Light Grey | E82: P0000028 | F82: 4 | G82: =30*Table1322[[#This Row],[Quantity Per Sink]] -> 120
A83: AD | B83: 5 | C83: Light Grey | D83: =A83&B83&Table1322[[#This Row],[Color]] -> AD5Light Grey | E83: P0000029 | F83: 5 | G83: =30*Table1322[[#This Row],[Quantity Per Sink]] -> 150
A84: AD | B84: 6+ | C84: Light Grey | D84: =A84&B84&Table1322[[#This Row],[Color]] -> AD6+Light Grey | E84: P0000030 | F84: 6 | G84: =30*Table1322[[#This Row],[Quantity Per Sink]] -> 180
A85: DSG | B85: 1 | C85: Light Grey | D85: =A85&B85&Table1322[[#This Row],[Color]] -> DSG1Light Grey | E85: P0000025 | F85: 1 | G85: =30*Table1322[[#This Row],[Quantity Per Sink]] -> 30
A86: DSG | B86: 2 | C86: Light Grey | D86: =A86&B86&Table1322[[#This Row],[Color]] -> DSG2Light Grey | E86: P0000026 | F86: 2 | G86: =30*Table1322[[#This Row],[Quantity Per Sink]] -> 60
A87: DSG | B87: 3 | C87: Light Grey | D87: =A87&B87&Table1322[[#This Row],[Color]] -> DSG3Light Grey | E87: P0000027 | F87: 3 | G87: =30*Table1322[[#This Row],[Quantity Per Sink]] -> 90
A88: DSG | B88: 4 | C88: Light Grey | D88: =A88&B88&Table1322[[#This Row],[Color]] -> DSG4Light Grey | E88: P0000028 | F88: 4 | G88: =30*Table1322[[#This Row],[Quantity Per Sink]] -> 120
A89: DSG | B89: 5 | C89: Light Grey | D89: =A89&B89&Table1322[[#This Row],[Color]] -> DSG5Light Grey | E89: P0000029 | F89: 5 | G89: =30*Table1322[[#This Row],[Quantity Per Sink]] -> 150
A90: DSG | B90: 6+ | C90: Light Grey | D90: =A90&B90&Table1322[[#This Row],[Color]] -> DSG6+Light Grey | E90: P0000030 | F90: 6 | G90: =30*Table1322[[#This Row],[Quantity Per Sink]] -> 180
A91: DSCT | B91: 1 | C91: Light Grey | D91: =A91&B91&Table1322[[#This Row],[Color]] -> DSCT1Light Grey | E91: P0000025 | F91: 1 | G91: =30*Table1322[[#This Row],[Quantity Per Sink]] -> 30
A92: DSCT | B92: 2 | C92: Light Grey | D92: =A92&B92&Table1322[[#This Row],[Color]] -> DSCT2Light Grey | E92: P0000026 | F92: 2 | G92: =30*Table1322[[#This Row],[Quantity Per Sink]] -> 60
A93: DSCT | B93: 3 | C93: Light Grey | D93: =A93&B93&Table1322[[#This Row],[Color]] -> DSCT3Light Grey | E93: P0000027 | F93: 3 | G93: =30*Table1322[[#This Row],[Quantity Per Sink]] -> 90
A94: DSCT | B94: 4 | C94: Light Grey | D94: =A94&B94&Table1322[[#This Row],[Color]] -> DSCT4Light Grey | E94: P0000028 | F94: 4 | G94: =30*Table1322[[#This Row],[Quantity Per Sink]] -> 120
A95: DSCT | B95: 5 | C95: Light Grey | D95: =A95&B95&Table1322[[#This Row],[Color]] -> DSCT5Light Grey | E95: P0000029 | F95: 5 | G95: =30*Table1322[[#This Row],[Quantity Per Sink]] -> 150
A96: DSCT | B96: 6+ | C96: Light Grey | D96: =A96&B96&Table1322[[#This Row],[Color]] -> DSCT6+Light Grey | E96: P0000030 | F96: 6 | G96: =30*Table1322[[#This Row],[Quantity Per Sink]] -> 180
A97: DSOF | B97: 1 | C97: Light Grey | D97: =A97&B97&Table1322[[#This Row],[Color]] -> DSOF1Light Grey | E97: P0000025 | F97: 1 | G97: =30*Table1322[[#This Row],[Quantity Per Sink]] -> 30
A98: DSOF | B98: 2 | C98: Light Grey | D98: =A98&B98&Table1322[[#This Row],[Color]] -> DSOF2Light Grey | E98: P0000026 | F98: 2 | G98: =30*Table1322[[#This Row],[Quantity Per Sink]] -> 60
A99: DSOF | B99: 3 | C99: Light Grey | D99: =A99&B99&Table1322[[#This Row],[Color]] -> DSOF3Light Grey | E99: P0000027 | F99: 3 | G99: =30*Table1322[[#This Row],[Quantity Per Sink]] -> 90
A100: DSOF | B100: 4 | C100: Light Grey | D100: =A100&B100&Table1322[[#This Row],[Color]] -> DSOF4Light Grey | E100: P0000028 | F100: 4 | G100: =30*Table1322[[#This Row],[Quantity Per Sink]] -> 120
A101: DSOF | B101: 5 | C101: Light Grey | D101: =A101&B101&Table1322[[#This Row],[Color]] -> DSOF5Light Grey | E101: P0000029 | F101: 5 | G101: =30*Table1322[[#This Row],[Quantity Per Sink]] -> 150
A102: DSOF | B102: 6+ | C102: Light Grey | D102: =A102&B102&Table1322[[#This Row],[Color]] -> DSOF6+Light Grey | E102: P0000030 | F102: 6 | G102: =30*Table1322[[#This Row],[Quantity Per Sink]] -> 180
A103: DSUP | B103: 1 | C103: Light Grey | D103: =A103&B103&Table1322[[#This Row],[Color]] -> DSUP1Light Grey | E103: P0000025 | F103: 1 | G103: =30*Table1322[[#This Row],[Quantity Per Sink]] -> 30
A104: DSUP | B104: 2 | C104: Light Grey | D104: =A104&B104&Table1322[[#This Row],[Color]] -> DSUP2Light Grey | E104: P0000026 | F104: 2 | G104: =30*Table1322[[#This Row],[Quantity Per Sink]] -> 60
A105: DSUP | B105: 3 | C105: Light Grey | D105: =A105&B105&Table1322[[#This Row],[Color]] -> DSUP3Light Grey | E105: P0000027 | F105: 3 | G105: =30*Table1322[[#This Row],[Quantity Per Sink]] -> 90
A106: DSUP | B106: 4 | C106: Light Grey | D106: =A106&B106&Table1322[[#This Row],[Color]] -> DSUP4Light Grey | E106: P0000028 | F106: 4 | G106: =30*Table1322[[#This Row],[Quantity Per Sink]] -> 120
A107: DSUP | B107: 5 | C107: Light Grey | D107: =A107&B107&Table1322[[#This Row],[Color]] -> DSUP5Light Grey | E107: P0000029 | F107: 5 | G107: =30*Table1322[[#This Row],[Quantity Per Sink]] -> 150
A108: DSUP | B108: 6+ | C108: Light Grey | D108: =A108&B108&Table1322[[#This Row],[Color]] -> DSUP6+Light Grey | E108: P0000030 | F108: 6 | G108: =30*Table1322[[#This Row],[Quantity Per Sink]] -> 180
A109: DSVR | B109: 1 | C109: Light Grey | D109: =A109&B109&Table1322[[#This Row],[Color]] -> DSVR1Light Grey | E109: P0000025 | F109: 1 | G109: =30*Table1322[[#This Row],[Quantity Per Sink]] -> 30
A110: DSVR | B110: 2 | C110: Light Grey | D110: =A110&B110&Table1322[[#This Row],[Color]] -> DSVR2Light Grey | E110: P0000026 | F110: 2 | G110: =30*Table1322[[#This Row],[Quantity Per Sink]] -> 60
A111: DSVR | B111: 3 | C111: Light Grey | D111: =A111&B111&Table1322[[#This Row],[Color]] -> DSVR3Light Grey | E111: P0000027 | F111: 3 | G111: =30*Table1322[[#This Row],[Quantity Per Sink]] -> 90
A112: DSVR | B112: 4 | C112: Light Grey | D112: =A112&B112&Table1322[[#This Row],[Color]] -> DSVR4Light Grey | E112: P0000028 | F112: 4 | G112: =30*Table1322[[#This Row],[Quantity Per Sink]] -> 120
A113: DSVR | B113: 5 | C113: Light Grey | D113: =A113&B113&Table1322[[#This Row],[Color]] -> DSVR5Light Grey | E113: P0000029 | F113: 5 | G113: =30*Table1322[[#This Row],[Quantity Per Sink]] -> 150
A114: DSVR | B114: 6+ | C114: Light Grey | D114: =A114&B114&Table1322[[#This Row],[Color]] -> DSVR6+Light Grey | E114: P0000030 | F114: 6 | G114: =30*Table1322[[#This Row],[Quantity Per Sink]] -> 180
A115: DSWD | B115: 1 | C115: Light Grey | D115: =A115&B115&Table1322[[#This Row],[Color]] -> DSWD1Light Grey | E115: P0000025 | F115: 1 | G115: =30*Table1322[[#This Row],[Quantity Per Sink]] -> 30
A116: DSWD | B116: 2 | C116: Light Grey | D116: =A116&B116&Table1322[[#This Row],[Color]] -> DSWD2Light Grey | E116: P0000026 | F116: 2 | G116: =30*Table1322[[#This Row],[Quantity Per Sink]] -> 60
A117: DSWD | B117: 3 | C117: Light Grey | D117: =A117&B117&Table1322[[#This Row],[Color]] -> DSWD3Light Grey | E117: P0000027 | F117: 3 | G117: =30*Table1322[[#This Row],[Quantity Per Sink]] -> 90
A118: DSWD | B118: 4 | C118: Light Grey | D118: =A118&B118&Table1322[[#This Row],[Color]] -> DSWD4Light Grey | E118: P0000028 | F118: 4 | G118: =30*Table1322[[#This Row],[Quantity Per Sink]] -> 120
A119: DSWD | B119: 5 | C119: Light Grey | D119: =A119&B119&Table1322[[#This Row],[Color]] -> DSWD5Light Grey | E119: P0000029 | F119: 5 | G119: =30*Table1322[[#This Row],[Quantity Per Sink]] -> 150
A120: DSWD | B120: 6+ | C120: Light Grey | D120: =A120&B120&Table1322[[#This Row],[Color]] -> DSWD6+Light Grey | E120: P0000030 | F120: 6 | G120: =30*Table1322[[#This Row],[Quantity Per Sink]] -> 180
A121: AD | B121: 1 | C121: Dark Grey | D121: =A121&B121&Table1322[[#This Row],[Color]] -> AD1Dark Grey | E121: P0000031 | F121: 1 | G121: =30*Table1322[[#This Row],[Quantity Per Sink]] -> 30
A122: AD | B122: 2 | C122: Dark Grey | D122: =A122&B122&Table1322[[#This Row],[Color]] -> AD2Dark Grey | E122: P0000032 | F122: 2 | G122: =30*Table1322[[#This Row],[Quantity Per Sink]] -> 60
A123: AD | B123: 3 | C123: Dark Grey | D123: =A123&B123&Table1322[[#This Row],[Color]] -> AD3Dark Grey | E123: P0000033 | F123: 3 | G123: =30*Table1322[[#This Row],[Quantity Per Sink]] -> 90
A124: AD | B124: 4 | C124: Dark Grey | D124: =A124&B124&Table1322[[#This Row],[Color]] -> AD4Dark Grey | E124: P0000034 | F124: 4 | G124: =30*Table1322[[#This Row],[Quantity Per Sink]] -> 120
A125: AD | B125: 5 | C125: Dark Grey | D125: =A125&B125&Table1322[[#This Row],[Color]] -> AD5Dark Grey | E125: P0000035 | F125: 5 | G125: =30*Table1322[[#This Row],[Quantity Per Sink]] -> 150
A126: AD | B126: 6+ | C126: Dark Grey | D126: =A126&B126&Table1322[[#This Row],[Color]] -> AD6+Dark Grey | E126: P0000036 | F126: 6 | G126: =30*Table1322[[#This Row],[Quantity Per Sink]] -> 180
A127: DSG | B127: 1 | C127: Dark Grey | D127: =A127&B127&Table1322[[#This Row],[Color]] -> DSG1Dark Grey | E127: P0000031 | F127: 1 | G127: =30*Table1322[[#This Row],[Quantity Per Sink]] -> 30
A128: DSG | B128: 2 | C128: Dark Grey | D128: =A128&B128&Table1322[[#This Row],[Color]] -> DSG2Dark Grey | E128: P0000032 | F128: 2 | G128: =30*Table1322[[#This Row],[Quantity Per Sink]] -> 60
A129: DSG | B129: 3 | C129: Dark Grey | D129: =A129&B129&Table1322[[#This Row],[Color]] -> DSG3Dark Grey | E129: P0000033 | F129: 3 | G129: =30*Table1322[[#This Row],[Quantity Per Sink]] -> 90
A130: DSG | B130: 4 | C130: Dark Grey | D130: =A130&B130&Table1322[[#This Row],[Color]] -> DSG4Dark Grey | E130: P0000034 | F130: 4 | G130: =30*Table1322[[#This Row],[Quantity Per Sink]] -> 120
A131: DSG | B131: 5 | C131: Dark Grey | D131: =A131&B131&Table1322[[#This Row],[Color]] -> DSG5Dark Grey | E131: P0000035 | F131: 5 | G131: =30*Table1322[[#This Row],[Quantity Per Sink]] -> 150
A132: DSG | B132: 6+ | C132: Dark Grey | D132: =A132&B132&Table1322[[#This Row],[Color]] -> DSG6+Dark Grey | E132: P0000036 | F132: 6 | G132: =30*Table1322[[#This Row],[Quantity Per Sink]] -> 180
A133: DSCT | B133: 1 | C133: Dark Grey | D133: =A133&B133&Table1322[[#This Row],[Color]] -> DSCT1Dark Grey | E133: P0000031 | F133: 1 | G133: =30*Table1322[[#This Row],[Quantity Per Sink]] -> 30
A134: DSCT | B134: 2 | C134: Dark Grey | D134: =A134&B134&Table1322[[#This Row],[Color]] -> DSCT2Dark Grey | E134: P0000032 | F134: 2 | G134: =30*Table1322[[#This Row],[Quantity Per Sink]] -> 60
A135: DSCT | B135: 3 | C135: Dark Grey | D135: =A135&B135&Table1322[[#This Row],[Color]] -> DSCT3Dark Grey | E135: P0000033 | F135: 3 | G135: =30*Table1322[[#This Row],[Quantity Per Sink]] -> 90
A136: DSCT | B136: 4 | C136: Dark Grey | D136: =A136&B136&Table1322[[#This Row],[Color]] -> DSCT4Dark Grey | E136: P0000034 | F136: 4 | G136: =30*Table1322[[#This Row],[Quantity Per Sink]] -> 120
A137: DSCT | B137: 5 | C137: Dark Grey | D137: =A137&B137&Table1322[[#This Row],[Color]] -> DSCT5Dark Grey | E137: P0000035 | F137: 5 | G137: =30*Table1322[[#This Row],[Quantity Per Sink]] -> 150
A138: DSCT | B138: 6+ | C138: Dark Grey | D138: =A138&B138&Table1322[[#This Row],[Color]] -> DSCT6+Dark Grey | E138: P0000036 | F138: 6 | G138: =30*Table1322[[#This Row],[Quantity Per Sink]] -> 180
A139: DSOF | B139: 1 | C139: Dark Grey | D139: =A139&B139&Table1322[[#This Row],[Color]] -> DSOF1Dark Grey | E139: P0000031 | F139: 1 | G139: =30*Table1322[[#This Row],[Quantity Per Sink]] -> 30
A140: DSOF | B140: 2 | C140: Dark Grey | D140: =A140&B140&Table1322[[#This Row],[Color]] -> DSOF2Dark Grey | E140: P0000032 | F140: 2 | G140: =30*Table1322[[#This Row],[Quantity Per Sink]] -> 60
A141: DSOF | B141: 3 | C141: Dark Grey | D141: =A141&B141&Table1322[[#This Row],[Color]] -> DSOF3Dark Grey | E141: P0000033 | F141: 3 | G141: =30*Table1322[[#This Row],[Quantity Per Sink]] -> 90
A142: DSOF | B142: 4 | C142: Dark Grey | D142: =A142&B142&Table1322[[#This Row],[Color]] -> DSOF4Dark Grey | E142: P0000034 | F142: 4 | G142: =30*Table1322[[#This Row],[Quantity Per Sink]] -> 120
A143: DSOF | B143: 5 | C143: Dark Grey | D143: =A143&B143&Table1322[[#This Row],[Color]] -> DSOF5Dark Grey | E143: P0000035 | F143: 5 | G143: =30*Table1322[[#This Row],[Quantity Per Sink]] -> 150
A144: DSOF | B144: 6+ | C144: Dark Grey | D144: =A144&B144&Table1322[[#This Row],[Color]] -> DSOF6+Dark Grey | E144: P0000036 | F144: 6 | G144: =30*Table1322[[#This Row],[Quantity Per Sink]] -> 180
A145: DSUP | B145: 1 | C145: Dark Grey | D145: =A145&B145&Table1322[[#This Row],[Color]] -> DSUP1Dark Grey | E145: P0000031 | F145: 1 | G145: =30*Table1322[[#This Row],[Quantity Per Sink]] -> 30
A146: DSUP | B146: 2 | C146: Dark Grey | D146: =A146&B146&Table1322[[#This Row],[Color]] -> DSUP2Dark Grey | E146: P0000032 | F146: 2 | G146: =30*Table1322[[#This Row],[Quantity Per Sink]] -> 60
A147: DSUP | B147: 3 | C147: Dark Grey | D147: =A147&B147&Table1322[[#This Row],[Color]] -> DSUP3Dark Grey | E147: P0000033 | F147: 3 | G147: =30*Table1322[[#This Row],[Quantity Per Sink]] -> 90
A148: DSUP | B148: 4 | C148: Dark Grey | D148: =A148&B148&Table1322[[#This Row],[Color]] -> DSUP4Dark Grey | E148: P0000034 | F148: 4 | G148: =30*Table1322[[#This Row],[Quantity Per Sink]] -> 120
A149: DSUP | B149: 5 | C149: Dark Grey | D149: =A149&B149&Table1322[[#This Row],[Color]] -> DSUP5Dark Grey | E149: P0000035 | F149: 5 | G149: =30*Table1322[[#This Row],[Quantity Per Sink]] -> 150
A150: DSUP | B150: 6+ | C150: Dark Grey | D150: =A150&B150&Table1322[[#This Row],[Color]] -> DSUP6+Dark Grey | E150: P0000036 | F150: 6 | G150: =30*Table1322[[#This Row],[Quantity Per Sink]] -> 180
A151: DSVR | B151: 1 | C151: Dark Grey | D151: =A151&B151&Table1322[[#This Row],[Color]] -> DSVR1Dark Grey | E151: P0000031 | F151: 1 | G151: =30*Table1322[[#This Row],[Quantity Per Sink]] -> 30
A152: DSVR | B152: 2 | C152: Dark Grey | D152: =A152&B152&Table1322[[#This Row],[Color]] -> DSVR2Dark Grey | E152: P0000032 | F152: 2 | G152: =30*Table1322[[#This Row],[Quantity Per Sink]] -> 60
A153: DSVR | B153: 3 | C153: Dark Grey | D153: =A153&B153&Table1322[[#This Row],[Color]] -> DSVR3Dark Grey | E153: P0000033 | F153: 3 | G153: =30*Table1322[[#This Row],[Quantity Per Sink]] -> 90
A154: DSVR | B154: 4 | C154: Dark Grey | D154: =A154&B154&Table1322[[#This Row],[Color]] -> DSVR4Dark Grey | E154: P0000034 | F154: 4 | G154: =30*Table1322[[#This Row],[Quantity Per Sink]] -> 120
A155: DSVR | B155: 5 | C155: Dark Grey | D155: =A155&B155&Table1322[[#This Row],[Color]] -> DSVR5Dark Grey | E155: P0000035 | F155: 5 | G155: =30*Table1322[[#This Row],[Quantity Per Sink]] -> 150
A156: DSVR | B156: 6+ | C156: Dark Grey | D156: =A156&B156&Table1322[[#This Row],[Color]] -> DSVR6+Dark Grey | E156: P0000036 | F156: 6 | G156: =30*Table1322[[#This Row],[Quantity Per Sink]] -> 180
A157: DSWD | B157: 1 | C157: Dark Grey | D157: =A157&B157&Table1322[[#This Row],[Color]] -> DSWD1Dark Grey | E157: P0000031 | F157: 1 | G157: =30*Table1322[[#This Row],[Quantity Per Sink]] -> 30
A158: DSWD | B158: 2 | C158: Dark Grey | D158: =A158&B158&Table1322[[#This Row],[Color]] -> DSWD2Dark Grey | E158: P0000032 | F158: 2 | G158: =30*Table1322[[#This Row],[Quantity Per Sink]] -> 60
A159: DSWD | B159: 3 | C159: Dark Grey | D159: =A159&B159&Table1322[[#This Row],[Color]] -> DSWD3Dark Grey | E159: P0000033 | F159: 3 | G159: =30*Table1322[[#This Row],[Quantity Per Sink]] -> 90
A160: DSWD | B160: 4 | C160: Dark Grey | D160: =A160&B160&Table1322[[#This Row],[Color]] -> DSWD4Dark Grey | E160: P0000034 | F160: 4 | G160: =30*Table1322[[#This Row],[Quantity Per Sink]] -> 120
A161: DSWD | B161: 5 | C161: Dark Grey | D161: =A161&B161&Table1322[[#This Row],[Color]] -> DSWD5Dark Grey | E161: P0000035 | F161: 5 | G161: =30*Table1322[[#This Row],[Quantity Per Sink]] -> 150
A162: DSWD | B162: 6+ | C162: Dark Grey | D162: =A162&B162&Table1322[[#This Row],[Color]] -> DSWD6+Dark Grey | E162: P0000036 | F162: 6 | G162: =30*Table1322[[#This Row],[Quantity Per Sink]] -> 180
A164: Hand Dryer | B164: Station Amount | C164: Finish | D164: Lookup | E164: Material Number | F164: Quantity Per Sink | G164: Cost
A165: AD | B165: 1 | C165: Chrome Plated | D165: =A165&B165&C165 -> AD1Chrome Plated | E165: 3366085 | F165: 1 | G165: =700*Table1423[[#This Row],[Quantity Per Sink]] -> 700
A166: AD | B166: 2 | C166: Chrome Plated | D166: =A166&B166&C166 -> AD2Chrome Plated | E166: 3366085 | F166: 2 | G166: =700*Table1423[[#This Row],[Quantity Per Sink]] -> 1400
A167: AD | B167: 3 | C167: Chrome Plated | D167: AD3Chrome Plated | E167: 3366085 | F167: 3 | G167: =700*Table1423[[#This Row],[Quantity Per Sink]] -> 2100
A168: AD | B168: 4 | C168: Chrome Plated | D168: AD4Chrome Plated | E168: 3366085 | F168: 4 | G168: =700*Table1423[[#This Row],[Quantity Per Sink]] -> 2800
A169: AD | B169: 5 | C169: Chrome Plated | D169: AD5Chrome Plated | E169: 3366085 | F169: 5 | G169: =700*Table1423[[#This Row],[Quantity Per Sink]] -> 3500
A170: AD | B170: 6+ | C170: Chrome Plated | D170: AD6+Chrome Plated | E170: 3366085 | F170: 6 | G170: =700*Table1423[[#This Row],[Quantity Per Sink]] -> 4200
A171: AD | B171: 1 | C171: Brushed Nickel | D171: AD1Brushed Nickel | E171: 3366081 | F171: 1 | G171: =700*Table1423[[#This Row],[Quantity Per Sink]] -> 700
A172: AD | B172: 2 | C172: Brushed Nickel | D172: AD2Brushed Nickel | E172: 3366081 | F172: 2 | G172: =700*Table1423[[#This Row],[Quantity Per Sink]] -> 1400
A173: AD | B173: 3 | C173: Brushed Nickel | D173: AD3Brushed Nickel | E173: 3366081 | F173: 3 | G173: =700*Table1423[[#This Row],[Quantity Per Sink]] -> 2100
A174: AD | B174: 4 | C174: Brushed Nickel | D174: AD4Brushed Nickel | E174: 3366081 | F174: 4 | G174: =700*Table1423[[#This Row],[Quantity Per Sink]] -> 2800
A175: AD | B175: 5 | C175: Brushed Nickel | D175: AD5Brushed Nickel | E175: 3366081 | F175: 5 | G175: =700*Table1423[[#This Row],[Quantity Per Sink]] -> 3500
A176: AD | B176: 6+ | C176: Brushed Nickel | D176: AD6+Brushed Nickel | E176: 3366081 | F176: 6 | G176: =700*Table1423[[#This Row],[Quantity Per Sink]] -> 4200
A177: AD | B177: 1 | C177: Polished Brass | D177: AD1Polished Brass | E177: 3366083 | F177: 1 | G177: =700*Table1423[[#This Row],[Quantity Per Sink]] -> 700
A178: AD | B178: 2 | C178: Polished Brass | D178: AD2Polished Brass | E178: 3366083 | F178: 2 | G178: =700*Table1423[[#This Row],[Quantity Per Sink]] -> 1400
A179: AD | B179: 3 | C179: Polished Brass | D179: AD3Polished Brass | E179: 3366083 | F179: 3 | G179: =700*Table1423[[#This Row],[Quantity Per Sink]] -> 2100
A180: AD | B180: 4 | C180: Polished Brass | D180: AD4Polished Brass | E180: 3366083 | F180: 4 | G180: =700*Table1423[[#This Row],[Quantity Per Sink]] -> 2800
A181: AD | B181: 5 | C181: Polished Brass | D181: AD5Polished Brass | E181: 3366083 | F181: 5 | G181: =700*Table1423[[#This Row],[Quantity Per Sink]] -> 3500
A182: AD | B182: 6+ | C182: Polished Brass | D182: AD6+Polished Brass | E182: 3366083 | F182: 6 | G182: =700*Table1423[[#This Row],[Quantity Per Sink]] -> 4200
A183: AD | B183: 1 | C183: Brushed Stainless | D183: AD1Brushed Stainless | E183: 3366082 | F183: 1 | G183: =700*Table1423[[#This Row],[Quantity Per Sink]] -> 700
A184: AD | B184: 2 | C184: Brushed Stainless | D184: AD2Brushed Stainless | E184: 3366082 | F184: 2 | G184: =700*Table1423[[#This Row],[Quantity Per Sink]] -> 1400
A185: AD | B185: 3 | C185: Brushed Stainless | D185: AD3Brushed Stainless | E185: 3366082 | F185: 3 | G185: =700*Table1423[[#This Row],[Quantity Per Sink]] -> 2100
A186: AD | B186: 4 | C186: Brushed Stainless | D186: AD4Brushed Stainless | E186: 3366082 | F186: 4 | G186: =700*Table1423[[#This Row],[Quantity Per Sink]] -> 2800
A187: AD | B187: 5 | C187: Brushed Stainless | D187: AD5Brushed Stainless | E187: 3366082 | F187: 5 | G187: =700*Table1423[[#This Row],[Quantity Per Sink]] -> 3500
A188: AD | B188: 6+ | C188: Brushed Stainless | D188: AD6+Brushed Stainless | E188: 3366082 | F188: 6 | G188: =700*Table1423[[#This Row],[Quantity Per Sink]] -> 4200
A191: Paper Towel holder | B191: Station Amount | C191: Look Up | D191: Material Number | E191: Quantity Per Sink | F191: Cost
A192: All Types | B192: 1 | C192: 1 | D192: 0000043 | E192: 1 | F192: =1000*Table1524[[#This Row],[Quantity Per Sink]] -> 1000
A193: All Types | B193: 2 | C193: 2 | D193: 0000043 | E193: 1 | F193: =1000*Table1524[[#This Row],[Quantity Per Sink]] -> 1000
A194: All Types | B194: 3 | C194: 3 | D194: 0000043 | E194: 2 | F194: =1000*Table1524[[#This Row],[Quantity Per Sink]] -> 2000
A195: All Types | B195: 4 | C195: 4 | D195: 0000043 | E195: 2 | F195: =1000*Table1524[[#This Row],[Quantity Per Sink]] -> 2000
A196: All Types | B196: 5 | C196: 5 | D196: 0000043 | E196: 3 | F196: =1000*Table1524[[#This Row],[Quantity Per Sink]] -> 3000
A197: All Types | B197: 6+ | C197: 6+ | D197: 0000043 | E197: 3 | F197: =1000*Table1524[[#This Row],[Quantity Per Sink]] -> 3000
A200: Baby Changing Station | B200: Station Amount | C200: Look Up | D200: Material Number | E200: Quantity Per Sink | F200: Cost
A201: All Types | B201: 1 | C201: 1 | D201: 0000044 | E201: 1 | F201: =1500*Table1625[[#This Row],[Quantity Per Sink]] -> 1500
A202: All Types | B202: 2 | C202: 2 | D202: 0000044 | E202: 1 | F202: =1500*Table1625[[#This Row],[Quantity Per Sink]] -> 1500
A203: All Types | B203: 3 | C203: 3 | D203: 0000044 | E203: 1 | F203: =1500*Table1625[[#This Row],[Quantity Per Sink]] -> 1500
A204: All Types | B204: 4 | C204: 4 | D204: 0000044 | E204: 1 | F204: =1500*Table1625[[#This Row],[Quantity Per Sink]] -> 1500
A205: All Types | B205: 5 | C205: 5 | D205: 0000044 | E205: 1 | F205: =1500*Table1625[[#This Row],[Quantity Per Sink]] -> 1500
A206: All Types | B206: 6+ | C206: 6+ | D206: 0000044 | E206: 1 | F206: =1500*Table1625[[#This Row],[Quantity Per Sink]] -> 1500

Sheet Engineering BOM (hidden)
A1: =IF(ISBLANK('Arc Worksheet'!D13),"",'Arc Worksheet'!D13) ->  | B1: =IF(ISBLANK('Arc Worksheet'!F13),"",'Arc Worksheet'!F13) ->  | C1: =IF(ISBLANK('Arc Worksheet'!I13),"",'Arc Worksheet'!I13) ->  | D1: =IF(ISBLANK('Arc Worksheet'!N13),"",'Arc Worksheet'!N13) ->  | E1: =IF(ISBLANK('Arc Worksheet'!S13),"",'Arc Worksheet'!S13) -> 
A2: Shipping Lead Time* | B2: Quote Number | C2: Compliance Notes | D2: Additional Notes
A3: =IF(ISBLANK('Arc Worksheet'!D55),"",'Arc Worksheet'!D55) ->  | B3: =IF(ISBLANK('Arc Worksheet'!I55),"",'Arc Worksheet'!I55) ->  | C3: =IF(ISBLANK('Arc Worksheet'!I52),"",'Arc Worksheet'!I52) ->  | D3: =IF(ISBLANK('Arc Worksheet'!N52),"",'Arc Worksheet'!N52) ->  | E3: =IF(ISBLANK('Arc Worksheet'!D52),"",'Arc Worksheet'!D52) -> 
A4: Generic Code | B4: SAP Code | C4: Sink Quantity
A5: ='Bill Of Material'!C5 ->  | B5: ='Bill Of Material'!D8 ->  | C5: =IF(ISBLANK('Arc Worksheet'!D20),"",'Arc Worksheet'!D20) -> 
A6: Sink Model | B6: Station Quantity | C6: Drawing Requested?
A7: =IF(ISBLANK('Arc Worksheet'!I20),"",'Arc Worksheet'!I20) ->  | B7: =IF(ISBLANK('Arc Worksheet'!N20),"",'Arc Worksheet'!N20) ->  | C7: =IF(ISBLANK('Arc Worksheet'!S45),"",'Arc Worksheet'!S45) -> 
A8: Material | B8: Material Code | C8: Material Color | D8: Material Color Code
A9: =IF(ISBLANK('Arc Worksheet'!D23),"",'Arc Worksheet'!D23) ->  | B9: =IF(ISBLANK('Arc Worksheet'!D23),"",VLOOKUP('Arc Worksheet'!D23,'Drop Tables'!H:I,2,0)) ->  | C9: =IF(ISBLANK('Arc Worksheet'!I23),"",'Arc Worksheet'!I23) ->  | D9: =IF(ISBLANK('Arc Worksheet'!I23),"",VLOOKUP('Arc Worksheet'!I23,'Drop Tables'!P:R,3,0)) -> 
A10: Enclosure | B10: Material Code | C10: Quantity Per Sink | D10: Quantity Per Order
A11: =IF(ISBLANK('Arc Worksheet'!N26),"",'Arc Worksheet'!N26) ->  | B11: ='Bill Of Material'!D9 ->  | C11: ='Bill Of Material'!E9 ->  | D11: ='Bill Of Material'!F8 -> 
A12: Trough Style | B12: Edge Type | C12: Bowl Type | D12: Trash Hole
A13: =IF(ISBLANK('Arc Worksheet'!D26),"",'Arc Worksheet'!D26) ->  | B13: =IF(ISBLANK('Arc Worksheet'!I26),"",'Arc Worksheet'!I26) ->  | C13: =IF(ISBLANK('Arc Worksheet'!S35),"",'Arc Worksheet'!S35) ->  | D13: =IF(ISBLANK('Arc Worksheet'!N32),"",'Arc Worksheet'!N32) -> 
A14: Laminate Color | B14: Material Code
A15: =IF(ISBLANK('Arc Worksheet'!S26),"",'Arc Worksheet'!S26) ->  | B15: =IF(ISBLANK('Arc Worksheet'!S26),"",VLOOKUP('Arc Worksheet'!S26,'Drop Tables'!T:U,2,0)) -> 
A16: LED | B16: Material Number | C16: Quantity Per Sink | D16: Quantity Per Order
A17: =IF(ISBLANK('Arc Worksheet'!D29),"",'Arc Worksheet'!D29) ->  | B17: =IF(ISBLANK('Arc Worksheet'!D29),"",IF('Arc Worksheet'!D29="No","",VLOOKUP(CodeList2!B3,Table12[[#All],[LookUp]:[Material Number]],2,0))) ->  | C17: =IF(ISBLANK('Arc Worksheet'!D29),"",IF('Arc Worksheet'!D29="No","",VLOOKUP(CodeList2!B3,Table12[[#All],[LookUp]:[Quantity Per Sink]],3,0))) ->  | D17: =IF(ISBLANK('Arc Worksheet'!D29),"",IF('Arc Worksheet'!D29="No","",(VLOOKUP(CodeList2!B3,Table12[[#All],[LookUp]:[Quantity Per Sink]],3,0)*C5))) -> 
A18: Bag Hooks | B18: Material Number | C18: Quantity Per Sink | D18: Quantity Per Order
A19: =IF(ISBLANK('Arc Worksheet'!I29),"",'Arc Worksheet'!I29) ->  | B19: =IF(ISBLANK('Arc Worksheet'!S29),"",IF('Arc Worksheet'!I29="No","",VLOOKUP(CodeList2!B4,Table13[[#All],[Lookup]:[Material Number]],2,0))) ->  | C19: =IF(ISBLANK('Arc Worksheet'!N29),"",'Arc Worksheet'!N29) ->  | D19: =IF(ISBLANK('Arc Worksheet'!I29),"",IF('Arc Worksheet'!I29="No","",('Arc Worksheet'!N29*C5))) -> 
A20: Hand Dryer (AD) | B20: Material Number | C20: Quantity Per Sink | D20: Quantity Per Order
A21: =IF(ISBLANK('Arc Worksheet'!D32),"",'Arc Worksheet'!D32) ->  | B21: =IF(ISBLANK('Arc Worksheet'!D32),"",VLOOKUP(CodeList2!B6,Table14[[#All],[Lookup]:[Material Number]],2,0)) ->  | C21: =IF(ISBLANK('Arc Worksheet'!D32),"",VLOOKUP(CodeList2!B6,Table14[[#All],[Lookup]:[Quantity Per Sink]],3,0)) ->  | D21: =IF(ISBLANK('Arc Worksheet'!D32),"",(C5*'Engineering BOM'!C21)) -> 
A22: Paper Towel holder | B22: Material Number | C22: Quantity Per Sink | D22: Quantity Per Order
A23: =IF(ISBLANK('Arc Worksheet'!S32),"",'Arc Worksheet'!S32) ->  | B23: =IF('Arc Worksheet'!S32="Yes",VLOOKUP(CodeList2!B9,CodeList2!D197:E202,2,0),"") ->  | C23: =IF(ISBLANK('Arc Worksheet'!S32),"",IF('Arc Worksheet'!S32="No","",VLOOKUP(CodeList2!B9,CodeList2!D197:F202,3,0))) ->  | D23: =IF(ISBLANK('Arc Worksheet'!S32),"",IF('Arc Worksheet'!S32="No","",(C5*'Engineering BOM'!C23))) -> 
A24: Baby Changing Station | B24: Material Number | C24: Quantity Per Sink | D24: Quantity Per Order
A25: =IF(ISBLANK('Arc Worksheet'!D41),"",'Arc Worksheet'!D41) ->  | B25: =IF(ISBLANK('Arc Worksheet'!D41),"",IF('Arc Worksheet'!D41="No","",VLOOKUP(CodeList2!B8,Table16[[#All],[Look Up]:[Material Number]],2,0))) ->  | C25: =IF(ISBLANK('Arc Worksheet'!D41),"",IF('Arc Worksheet'!D41="No","",1)) ->  | D25: =IF(C25=1,C5,"") -> 
A26: Basin Grates (DSWD) | B26: Material Number | C26: Quantity Per Sink | D26: Quantity Per Order
A27: =IF(ISBLANK('Arc Worksheet'!S38),"",'Arc Worksheet'!S38) ->  | B27: =IF(ISBLANK('Arc Worksheet'!S38),"",IF('Arc Worksheet'!S38="No","",VLOOKUP(CodeList2!B5,Table11[[#All],[LookUp]:[Column1]],2,0))) ->  | C27: =IF(ISBLANK('Arc Worksheet'!S38),"",IF('Arc Worksheet'!S38="No","",1)) ->  | D27: =IF('Arc Worksheet'!S38="Yes",C5,"") -> 
A28: Sloan Faucet Model | B28: Sloan Faucet Code | C28: Faucet Quantity (per sink) | D28: Quantity Per Order
A29: =IF(ISBLANK('Arc Worksheet'!I35),IFERROR(VLOOKUP('Arc Worksheet'!N35,'Faucet Price Table'!#REF!,2,0),""),'Arc Worksheet'!I35) ->  | B29: =IF(ISBLANK('Arc Worksheet'!I35),'Arc Worksheet'!N35,VLOOKUP('Arc Worksheet'!I35,'Faucet Price Table'!#REF!,3,0)) -> 0 | C29: =IF(ISBLANK('Arc Worksheet'!D35),"",'Arc Worksheet'!D35) ->  | D29: =IF(ISBLANK('Arc Worksheet'!D35),"",('Arc Worksheet'!D35*C5)) -> 
A30: Sloan Soap Dispenser Model | B30: Sloan Soap Dispenser Code | C30: Soap Dispenser Quantity (per sink) | D30: Quantity Per Order
A31: =IF(ISBLANK('Arc Worksheet'!I38),IFERROR(VLOOKUP('Arc Worksheet'!I38,'Soap Price Table'!#REF!,3,0),""),'Arc Worksheet'!I38) ->  | B31: =IF(ISBLANK('Arc Worksheet'!I38),'Arc Worksheet'!N38,VLOOKUP('Arc Worksheet'!I38,'Soap Price Table'!#REF!,3,0)) -> 0 | C31: =IF(ISBLANK('Arc Worksheet'!D38),"",'Arc Worksheet'!D38) ->  | D31: =IF(ISBLANK('Arc Worksheet'!D38),"",('Arc Worksheet'!D38*C5)) -> 
A32: Alcove | B32: Material Number | C32: Quantity Per Sink | D32: Quantity Per Order
A33: =IF(ISBLANK('Arc Worksheet'!Z30),"",'Arc Worksheet'!Z30) ->  | B33: =IF(ISBLANK(A33),"",IFERROR(VLOOKUP(A33,Dimensions!K:L,2,0),"")) ->  | C33: =IF(ISBLANK('Arc Worksheet'!Z30),"",IF('Arc Worksheet'!Z30="No","",1)) ->  | D33: =IF(ISBLANK('Arc Worksheet'!Z30),"",IF('Arc Worksheet'!Z30="No","",C5)) -> 
A34: Dimensions | B34: A+ | C34: B+ | D34: C= | E34: D
A35: Standard | B35: ='Arc Worksheet'!AA33 ->  | C35: ='Arc Worksheet'!AB33 ->  | D35: ='Arc Worksheet'!AC33 ->  | E35: ='Arc Worksheet'!AD33 -> 
A36: Custom | B36: =IF(ISBLANK('Arc Worksheet'!AA34),"",'Arc Worksheet'!AA34) ->  | C36: =IF(ISBLANK('Arc Worksheet'!AB34),"",'Arc Worksheet'!AB34) ->  | D36: =IF(ISBLANK('Arc Worksheet'!AC34),"",'Arc Worksheet'!AC34) ->  | E36: =IF(ISBLANK('Arc Worksheet'!AD34),"",'Arc Worksheet'!AD34) -> 
A37: Soap Hole | B37: Inches | C37: Faucet Hole | D37: Inches
A38: Standard | B38: ='Arc Worksheet'!AA41 -> 1" | C38: Standard | D38: ='Arc Worksheet'!AA45 -> 1.25"
A39: Custom | B39: =IF(ISBLANK('Arc Worksheet'!AA42),"",'Arc Worksheet'!AA42) ->  | C39: Custom | D39: =IF(ISBLANK('Arc Worksheet'!AA46),"",'Arc Worksheet'!AA46) -> 
A40: Back Splash | B40: Inches | C40: Apron | D40: Inches
A41: Standard | B41: ='Arc Worksheet'!AA53 -> DSCT Only | C41: Standard | D41: ='Arc Worksheet'!AA49 -> 4.75"
A42: Custom | B42: =IF(ISBLANK('Arc Worksheet'!AA54),"",'Arc Worksheet'!AA54) ->  | C42: Custom | D42: =IF(ISBLANK('Arc Worksheet'!AA50),"",'Arc Worksheet'!AA50) -> 

Sheet Drop Tables (hidden)
A1: Yes/No1 | B1: Country | C1: CA State List | D1: US State List | E1: Rep List | F1: Model | G1: Yes/No2 | H1: Material Name | I1: Material Code | J1: Trough Style | K1: Station Quantity | L1: Enclosure Options | M1: Purse Hook Color | N1: Edge Type | O1: Color Bounce Code | P1: Sink Color List | Q1: Color Category | R1: Color Code | S1: Color Group | T1: Laminate Color | U1: Laminate Code | V1: Bowl Type | W1: Hand Dryer Color | X1: Basin Type | Y1: Table 111
A2: Yes | B2: Canada | C2: Alberta | D2: Alabama | E2: BADGERLAND TRADING OF WISCONSIN INC | F2: AD | G2: Yes | H2: Solid Surface - Corian | I2: E0001 | J2: Continuous Trough | K2: 1 | L2: Angle Bracket | M2: Light Grey | N2: Beveled | O2: =IF('Arc Worksheet'!D23=H2,O3,IF('Arc Worksheet'!D23=H3,O4,IF('Arc Worksheet'!D23=H4,O5,IF('Arc Worksheet'!D23=H5,O6,IF('Arc Worksheet'!D23=H6,O7,IF('Arc Worksheet'!D23=H7,O8,IF('Arc Worksheet'!D23=H8,O9,IF('Arc Worksheet'!D23=H9,O10,IF('Arc Worksheet'!D23=H10,O11,IF('Arc Worksheet'!D23=H11,O12,IF('Arc Worksheet'!D23=H12,O13,IF('Arc Worksheet'!D23=H13,O14,IF('Arc Worksheet'!D23=H14,O15,IF('Arc Worksheet'!D23=H15,O16,"OTH")))))))))))))) -> OTH | P2: Caesarstone - Adamina | Q2: D | R2: =VLOOKUP(P2,'Color List 2'!E:G,3,0) ->  | S2: A | T2: Alabaster | U2: D431 | V2: Vitreous China | W2: Chrome Plated | X2: Standard | Y2: AD | Z2: ok
A3: No | B3: United States | C3: British Columbia | D3: Alaska | E3: BBN SALES INC | F3: DSG | G3: No | H3: Solid Surface - Other | I3: C0002 | J3: Individual Basin | K3: 2 | L3: Angled Stainless Steel Enclosure | M3: Dark Grey | N3: Straight | O3: SSC | P3: Caesarstone - Agger Grey | Q3: B | R3: =VLOOKUP(P3,'Color List 2'!E:G,3,0) ->  | S3: B | T3: Almond Leather | U3: 2932 | V3: Solid Surface (Integrated) | W3: Brushed Nickel | X3: Recessed | Y3: DSG | Z3: ok
A4: N/A | B4: Other | C4: Manitoba | D4: Arkansas | E4: BILLINGSLEY BWC | F4: DSCT | G4: Yes | H4: Quartz - Caeserstone | I4: S0003 | J4: Raised Basin | K4: 3 | L4: Vertical Cabinet Style Laminated Doors | N4: Rounded | O4: SSO | P4: Caesarstone - Airy Concrete | Q4: E | R4: =VLOOKUP(P4,'Color List 2'!E:G,3,0) ->  | S4: C | T4: Antique White | U4: 1572 | V4: Other | W4: Brushed Stainless | Y4: DSWD | Z4: OK
C5: New Brunswick | D5: Arizona | E5: BONGARD | F5: DSOF | G5: No | H5: Quartz - Corian Quartz | I5: Z0004 | J5: Recessed Basin | K5: 4 | L5: Vertical Stainless Steel Enclosure | N5: Other | O5: QC | P5: Caesarstone - Alpine Mist | Q5: E | R5: =VLOOKUP(P5,'Color List 2'!E:G,3,0) ->  | S5: D | T5: Antique Brush | U5: 4823 | W5: Graphite | Y5: DSOF | Z5: IB
C6: Newfoundland & Labrador | D6: California | E6: BRALEY-GRAY & ASSOCIATES-AK | F6: DSVR | H6: Quartz - Silestone | I6: O0005 | K6: 5 | L6: Floating Enclosure | O6: QCQ | P6: Caesarstone - Arabetto | Q6: E | R6: =VLOOKUP(P6,'Color List 2'!E:G,3,0) ->  | S6: E | T6: Atlantis | U6: D25 | V6: =IF('Arc Worksheet'!I20="DSCT","Bowl","No") -> No | W6: Polished Brass | Y6: DSCT | Z6: IB
C7: Northwest Territories | D7: Colorado | E7: BRALEY-GRAY & ASSOCIATES-OR | F7: DSWD | G7: =IF(OR('Arc Worksheet'!I20='Drop Tables'!F2,'Arc Worksheet'!I20='Drop Tables'!F3),"AD",#N/A) ->  | H7: Quartz - Other | K7: 6+ | L7: Other | O7: QS | P7: Caesarstone - Aterra Blanca | Q7: C | R7: =VLOOKUP(P7,'Color List 2'!E:G,3,0) ->  | T7: Bannister Oak | U7: 7806 | W7: =IF('Arc Worksheet'!I20="AD","Dryer","No") -> No | Y7: DSVR | Z7: IB
C8: Nova Scotia | D8: Connecticut | E8: BRALEY-GRAY & ASSOCIATES-WA | F8: Other/Custom | G8: =IF(OR('Arc Worksheet'!I20='Drop Tables'!F6,'Arc Worksheet'!I20='Drop Tables'!F5,'Arc Worksheet'!I20='Drop Tables'!F4),"Basin","Trough") -> Trough | H8: Natural Stone - Granite | L8: =IF('Arc Worksheet'!I20="AD","ADMounting","AllMounting") -> AllMounting | O8: QO | P8: Caesarstone - Atlantic Salt | Q8: B | R8: =VLOOKUP(P8,'Color List 2'!E:G,3,0) ->  | T8: Basket Weaving 101 | U8: 4965 | Y8: DSUP | Z8: IB
C9: Nunavut | D9: Delaware | E9: BURNS COPE | G9: =IF('Arc Worksheet'!N26='Drop Tables'!L4,"Laminate","#N/A") -> #N/A | H9: Natural Stone - Marble | L9: Angled Stainless Steel Enclosure | O9: NSG | P9: Caesarstone - Bianco Drift | Q9: E | R9: =VLOOKUP(P9,'Color List 2'!E:G,3,0) ->  | T9: Basket Weaving 201 | U9: 4966
C10: Ontario | D10: Florida | E10: C A RINER CO INC | G10: Yes | H10: Natural Stone - Sandstone | L10: Vertical Cabinet Style Laminated Doors | O10: NSM | P10: Caesarstone - Black Tempal | Q10: E | R10: =VLOOKUP(P10,'Color List 2'!E:G,3,0) ->  | T10: Beige | U10: 1530
C11: Prince Edward Island | D11: Georgia | E11: DELCO SALES-CA | G11: No | H11: Natural Stone - Slate | L11: Vertical Stainless Steel Enclosure | O11: NSSS | P11: Caesarstone - Blizzard | Q11: C | R11: =VLOOKUP(P11,'Color List 2'!E:G,3,0) ->  | T11: Beige Pampas | U11: 4170
C12: Quebec | D12: Hawaii | E12: DELCO SALES-HI | G12: Yes | H12: Natural Stone - Other | O12: NSSL | P12: Caesarstone - Calacatta Maximus | Q12: E | R12: =VLOOKUP(P12,'Color List 2'!E:G,3,0) ->  | T12: Beigewood | U12: 7850
C13: Saskatchewan | D13: Idaho | E13: DILLARD ASSOCIATES-Dallas | G13: No | H13: Acrylic | O13: NSO | P13: Caesarstone - Cement | Q13: B | R13: =VLOOKUP(P13,'Color List 2'!E:G,3,0) ->  | T13: Black | U13: 1595
C14: Yukon | D14: Illinois | E14: DILLARD ASSOCIATES-San Antonio | H14: Glass | O14: ACR | P14: Caesarstone - Clamshell | Q14: B | R14: =VLOOKUP(P14,'Color List 2'!E:G,3,0) ->  | T14: Blue Agave | U14: 4919
D15: Indiana | E15: DIVERSIFIED SPEC SALES INC | G15: =IF('Arc Worksheet'!I20="DSWD","Basin","No") -> No | H15: Other | O15: GLS | P15: Caesarstone - Clearskies | Q15: D | R15: =VLOOKUP(P15,'Color List 2'!E:G,3,0) ->  | T15: Boardwalk Oak | U15: 7983
D16: Iowa | E16: EDWARDS PLATT & DEELY INC | G16: Yes | O16: OTH | P16: Caesarstone - Cloudburst Concrete | Q16: E | R16: =VLOOKUP(P16,'Color List 2'!E:G,3,0) ->  | T16: Bordeaux Juparana | U16: 4929
D17: Kansas | E17: ENGINEERED CONCEPTS | G17: No | P17: Caesarstone - Coastal Grey | Q17: C | R17: =VLOOKUP(P17,'Color List 2'!E:G,3,0) ->  | T17: Brazilwood | U17: 7946
D18: Kentucky | E18: HEBCO | P18: Caesarstone - Concrete Gray | Q18: B | R18: =VLOOKUP(P18,'Color List 2'!E:G,3,0) ->  | T18: Brittany Blue | U18: D321
D19: Louisiana | E19: HYDRO SPEC | P19: Caesarstone - Cosmopolitan White | Q19: C | R19: =VLOOKUP(P19,'Color List 2'!E:G,3,0) ->  | T19: Bronze Legacy | U19: 4656
D20: Maine | E20: J B O'CONNOR CO INC | P20: Caesarstone - Darcrest | Q20: D | R20: =VLOOKUP(P20,'Color List 2'!E:G,3,0) ->  | T20: Buka Bark | U20: 7982
D21: Maryland | E21: J H POKORNY ASSOC, LLC | P21: Caesarstone - Dreamy Marfil | Q21: D | R21: =VLOOKUP(P21,'Color List 2'!E:G,3,0) ->  | T21: Burnished Chestnut | U21: 4796
D22: Massachusetts | E22: JOYCE AGENCY INC | P22: Caesarstone - Eggshell | Q22: B | R22: =VLOOKUP(P22,'Color List 2'!E:G,3,0) ->  | T22: Cafe Creme | U22: D456
D23: Michigan | E23: JOYCE AGENCY INC -S. VA | P23: Caesarstone - Empira Black | Q23: E | R23: =VLOOKUP(P23,'Color List 2'!E:G,3,0) ->  | T23: Calacatta Oro | U23: 4981
D24: Minnesota | E24: KLIMAN SALES INC | P24: Caesarstone - Fresh Concrete | Q24: C | R24: =VLOOKUP(P24,'Color List 2'!E:G,3,0) ->  | T24: Canyon Zephyr | U24: 4842
D25: Mississippi | E25: M & M SALES | P25: Caesarstone - Frosty Carrina | Q25: E | R25: =VLOOKUP(P25,'Color List 2'!E:G,3,0) ->  | T25: Carbon EV | U25: 4820
D26: Missouri | E26: M R ASSOCIATES | P26: Caesarstone - Frozen Terra | Q26: B | R26: =VLOOKUP(P26,'Color List 2'!E:G,3,0) ->  | T26: Carbon Mesh | U26: 4880
D27: Montana | E27: MALONEY & CURCIO INC. | P27: Caesarstone - Georgian Bluffs | Q27: C | R27: =VLOOKUP(P27,'Color List 2'!E:G,3,0) ->  | T27: Castle Oak | U27: 7928
D28: Nebraska | E28: MARSHALL-RODENO ASSOCIATES | P28: Caesarstone - Himalayan Moon | Q28: D | R28: =VLOOKUP(P28,'Color List 2'!E:G,3,0) ->  | T28: Casual Linen | U28: 4944
D29: Nevada | E29: MIDWEST SPEC | P29: Caesarstone - Ice Snow | Q29: B | R29: =VLOOKUP(P29,'Color List 2'!E:G,3,0) ->  | T29: Classic Linen | U29: 4943
D30: New Hampshire | E30: PANNELL ASSOCIATES SALES INC | P30: Caesarstone - Icellion | Q30: D | R30: =VLOOKUP(P30,'Color List 2'!E:G,3,0) ->  | T30: Cloud Nebula | U30: 4630
D31: New Jersey | E31: P-M ASSOCIATES | P31: Caesarstone - Jet Black | Q31: B | R31: =VLOOKUP(P31,'Color List 2'!E:G,3,0) ->  | T31: Cloud Zephyr | U31: 4856
D32: New Mexico | E32: R E FITZPATRICK | P32: Caesarstone - Layalite | Q32: D | R32: =VLOOKUP(P32,'Color List 2'!E:G,3,0) ->  | T32: Coffee Bean | U32: D495
D33: New York | E33: REPCO INC | P33: Caesarstone - London Grey | Q33: E | R33: =VLOOKUP(P33,'Color List 2'!E:G,3,0) ->  | T33: Crisp Linen | U33: 4942
D34: North Carolina | E34: REPCO SOUTH | P34: Caesarstone - Midday | Q34: D | R34: =VLOOKUP(P34,'Color List 2'!E:G,3,0) ->  | T34: Deep Springs | U34: 4907
D35: North Dakota | E35: SERVICE REPS INC -Iowa | P35: Caesarstone - Misty Carrera | Q35: B | R35: =VLOOKUP(P35,'Color List 2'!E:G,3,0) ->  | T35: Denim Tracery | U35: 4961
D36: Ohio | E36: SERVICE REPS INC -Nebraska | P36: Caesarstone - Montblanc | Q36: D | R36: =VLOOKUP(P36,'Color List 2'!E:G,3,0) ->  | T36: Desert Springs | U36: 4904
D37: Oklahoma | E37: SMITH & STEVENSON | P37: Caesarstone - Moorland Fog | Q37: C | R37: =VLOOKUP(P37,'Color List 2'!E:G,3,0) ->  | T37: Desert Zephyr | U37: 4841
D38: Oregon | E38: SOUTHERN SPEC | P38: Caesarstone - Noble Grey | Q38: C | R38: =VLOOKUP(P38,'Color List 2'!E:G,3,0) ->  | T38: Designer White | U38: D354
D39: Pennsylvania | E39: SOUTHWESTERN MECH -AZ | P39: Caesarstone - Nougat | Q39: B | R39: =VLOOKUP(P39,'Color List 2'!E:G,3,0) ->  | T39: Dove Grey | U39: D92
D40: Rhode Island | E40: SOUTHWESTERN MECH-Las Vegas | P40: Caesarstone - Ocean Foam | Q40: B | R40: =VLOOKUP(P40,'Color List 2'!E:G,3,0) ->  | T40: Dusk Cascade | U40: 5004
D41: South Carolina | E41: TRI REPS | P41: Caesarstone - Organic White | Q41: C | R41: =VLOOKUP(P41,'Color List 2'!E:G,3,0) ->  | T41: Ebony Recon | U41: 7997
D42: South Dakota | E42: VEMCO | P42: Caesarstone - Palm Shade | Q42: D | R42: =VLOOKUP(P42,'Color List 2'!E:G,3,0) ->  | T42: Eggplant | U42: 4913
D43: Tennessee | E43: WILL & PIERCE AGENCY INC | P43: Caesarstone - Pebble | Q43: C | R43: =VLOOKUP(P43,'Color List 2'!E:G,3,0) ->  | T43: Evening Tigris | U43: 4674
D44: Texas | E44: WMS SALES INC | P44: Caesarstone - Piatra Grey | Q44: D | R44: =VLOOKUP(P44,'Color List 2'!E:G,3,0) ->  | T44: Fashion Grey | U44: D381
D45: Utah | E45: YOST ASSOCIATES | P45: Caesarstone - Primordia | Q45: D | R45: =VLOOKUP(P45,'Color List 2'!E:G,3,0) ->  | T45: Fired Steel | U45: 4994
D46: Vermont | E46: R.G. Dobbin | P46: Caesarstone - Pure White | Q46: D | R46: =VLOOKUP(P46,'Color List 2'!E:G,3,0) ->  | T46: Flamingo | U46: D497
D47: Virginia | P47: Caesarstone - Raindream | Q47: B | R47: =VLOOKUP(P47,'Color List 2'!E:G,3,0) ->  | T47: Flax Linen | U47: 4990
D48: Washington | P48: Caesarstone - Raven | Q48: B | R48: 0000001 | T48: Florence Walnut | U48: 7993
D49: West Virginia | P49: Caesarstone - Raw Concrete | Q49: C | R49: 0108003 | T49: Fonthill Pear | U49: 10745
D50: Wisconsin | P50: Caesarstone - Riverlet | Q50: B | R50: 0108028 | T50: Forged Steel | U50: 4995
D51: Wyoming | P51: Caesarstone - Rugged Concrete | Q51: E | R51: 0108034 | T51: Frosty White | U51: 1573
P52: Caesarstone - Sleek Concrete | Q52: C | R52: 0000000 | T52: Fusion Maple | U52: 7909
P53: Caesarstone - Statuario Nuvo | Q53: E | R53: 0000000 | T53: Gesso Tracery | U53: 4962
P54: Caesarstone - Stoneburst | Q54: B | R54: 0000000 | T54: Gilded Mesh | U54: 4912
P55: Caesarstone - Symphony Grey | Q55: C | R55: 0000000 | T55: Ginseng Tea | U55: 4909
P56: Caesarstone - Taj Royale | Q56: C | R56: 0000000 | T56: Graphite Nebula | U56: 4623
P57: Caesarstone - Topus Concrete | Q57: D | R57: 0108042 | T57: Green Soapstone | U57: 4885
P58: Caesarstone - Turbine Grey | Q58: C | R58: 0000000 | T58: Green Tigris | U58: 4667
P59: Caesarstone - Vanilla Noir | Q59: D | R59: 0108004 | T59: Grey | U59: 1500
P60: Caesarstone - Vivid White | Q60: E | R60: 0108009 | T60: Grey Glace | U60: 4142
P61: Caesarstone - White Attica | Q61: E | R61: 0000000 | T61: Grey Mesh | U61: 4877
P62: Caesarstone - Woodlands | Q62: D | R62: 0000000 | T62: Grey Nebula | U62: 4622
P63: Caesarstone - Wyndigo | Q63: B | R63: 0000000 | T63: Grey Pampas | U63: 4168
P64: Corian - Abalone | Q64: B | R64: 0000000 | T64: Harvest Maple | U64: 7953
P65: Corian - Antarctica | Q65: B | R65: 0000000 | T65: Hibiscus Cherry | U65: 7988
P66: Corian - Archeologic | Q66: B | R66: 0000000 | T66: High Rise | U66: 4996
P67: Corian - Arctic Ice | Q67: C | R67: 0000000 | T67: Hollyberry | U67: D307
P68: Corian - Arrowroot | Q68: D | R68: 0000000 | T68: Huntington Maple | U68: 7929
P69: Corian - Artista Beige | Q69: B | R69: 0000000 | T69: Indigo | U69: D379
P70: Corian - Artista Canvas | Q70: B | R70: 0000000 | T70: Irish Linen | U70: 4993
P71: Corian - Artista Dust | Q71: B | R71: 0000000 | T71: Kalahari Topaz | U71: 4588
P72: Corian - Artista Gray | Q72: B | R72: 0000000 | T72: Kensington Maple | U72: 10776
P73: Corian - Ash Aggregate | Q73: D | R73: 0000000 | T73: Khaki Brown | U73: N D50
P74: Corian - Ash Concrete | Q74: C | R74: 0108037 | T74: Lapis Blue | U74: D417
P75: Corian - Aurora | Q75: B | R75: 0000000 | T75: Light Beige | U75: 1531
P76: Corian - Bisque | Q76: A | R76: 0108053 | T76: Limber Maple | U76: 10734
P77: Corian - Bleached Nuwood | Q77: C | R77: 0108018 | T77: Linen | U77: D427
P78: Corian - Bone | Q78: A | R78: 0108061 | T78: Loden Zephyr | U78: 4844
P79: Corian - Cameo White | Q79: A | R79: 0108065 | T79: Lowell Ash | U79: 7994
P80: Corian - Canvas | Q80: C | R80: 0000000 | T80: Mangalore Mango | U80: 7984
P81: Corian - Canyon | Q81: B | R81: 0000000 | T81: Manitoba Maple | U81: 7911
P82: Corian - Carbon Aggregate | Q82: D | R82: 0108044 | T82: Maroochy Brush | U82: 4745
P83: Corian - Carbon Concrete | Q83: C | R83: 0108001 | T83: Milano Amber | U83: 4724
P84: Corian - Carrara Crema | Q84: D | R84: 0108060 | T84: Milano Brown | U84: 4725
P85: Corian - Carrara Lino | Q85: D | R85: 0000000 | T85: Milano Quartz | U85: 4726
P86: Corian - Cirrus White | Q86: D | R86: 0108015 | T86: Mission Maple | U86: 7990
P87: Corian - Clam Shell | Q87: D | R87: 0000000 | T87: Misted Zephyr | U87: 4843
P88: Corian - Concrete | Q88: C | R88: 0000000 | T88: Monticello Maple | U88: 7925
P89: Corian - Cosmos Prima | Q89: C | R89: 0000000 | T89: Morelia Mango | U89: 7985
P90: Corian - Deep Anthracite | Q90: C | R90: 0000000 | T90: Morro Zephyr | U90: 4846
P91: Corian - Deep Black Quartz | Q91: C | R91: 0000000 | T91: Mystique Dawn | U91: 4762
P92: Corian - Deep Cloud | Q92: C | R92: 0108039 | T92: Natural Almond | U92: D30
P93: Corian - Deep Espresso | Q93: C | R93: 0108002 | T93: Natural Cotton | U93: 4946
P94: Corian - Deep Mink | Q94: C | R94: 0000000 | T94: Natural Nebula | U94: 4633
P95: Corian - Deep Night Sky | Q95: C | R95: 0000000 | T95: Natural Pear | U95: 7061
P96: Corian - Deep Nocturne | Q96: C | R96: 0108026 | T96: Natural Recon | U96: 7996
P97: Corian - Deep Sable | Q97: C | R97: 0000000 | T97: Natural Rift | U97: 7954
P98: Corian - Deep Storm | Q98: C | R98: 0000000 | T98: Natural Tigris | U98: 4669
P99: Corian - Deep Titanium | Q99: C | R99: 0000000 | T99: Navy Legacy | U99: 4651
P100: Corian - Designer White | Q100: B | R100: 0000000 | T100: Neowalnut | U100: 7991
P101: Corian - Doeskin | Q101: C | R101: 0000000 | T101: Neutral Glace | U101: 4143
P102: Corian - Domino Terrazzo | Q102: D | R102: 0108021 | T102: New Age Oak | U102: 7938
P103: Corian - Dove | Q103: B | R103: 0000000 | T103: Nickel EV | U103: 4813
P104: Corian - Dune Prima | Q104: D | R104: 0108006 | T104: North Sea | U104: D90
P105: Corian - Elegant Gray | Q105: B | R105: 0000000 | T105: Ocean | U105: D502
P106: Corian - Evening Prima | Q106: D | R106: 0108048 | T106: Oiled Soapstone | U106: 4882
P107: Corian - Everest | Q107: B | R107: 0000000 | T107: Orange Grove | U107: D501
P108: Corian - Excavage | Q108: B | R108: 0108056 | T108: Organic Cotton | U108: 4945
P109: Corian - Glacier Ice | Q109: B | R109: 0000000 | T109: Oxide | U109: 1787
P110: Corian - Glacier White | Q110: A | R110: 0000000 | T110: Palisades Oak | U110: 7987
P111: Corian - Gray Onyx | Q111: D | R111: 0000000 | T111: Pampas | U111: 4166
P112: Corian - Hazelnut | Q112: C | R112: 0108033 | T112: Pasadena Oak | U112: 7986
P113: Corian - Hot | Q113: C | R113: 0000000 | T113: Pearl Soapstone | U113: 4886
P114: Corian - Juniper | Q114: D | R114: 0108040 | T114: Pebble Piazza | U114: 5009
P115: Corian - Laguna | Q115: C | R115: 0108012 | T115: Pepperdust | U115: D327
P116: Corian - Laguna Terrazzo | Q116: C | R116: 0108036 | T116: Persian Cherry | U116: 7989
P117: Corian - Lava Rock | Q117: C | R117: 0108005 | T117: Pewter Brush | U117: 4779
P118: Corian - Limestone Prima | Q118: D | R118: 0108041 | T118: Pewter Mesh | U118: 4878
P119: Corian - Linen | Q119: A | R119: 0000000 | T119: Pinball | U119: 4937
P120: Corian - Matterhorn | Q120: B | R120: 0000000 | T120: Pinnacle Walnut | U120: 7992
P121: Corian - Modern White | Q121: B | R121: 0108052 | T121: Platinum | U121: D315
P122: Corian - Natural Gray | Q122: D | R122: 0108050 | T122: Port | U122: D14
P123: Corian - Neutral Aggregate | Q123: D | R123: 0000000 | T123: Pressed Linen | U123: 4991
P124: Corian - Neutral Concrete | Q124: B | R124: 0108007 | T124: Putty | U124: 1503
P125: Corian - Nimbus Prima | Q125: C | R125: 0000000 | T125: Raw Cotton | U125: 4947
P126: Corian - Pearl Gray | Q126: A | R126: 0000000 | T126: River Cherry | U126: 7937
P127: Corian - Pebble Lane | Q127: B | R127: 0000000 | T127: Rugged Linen | U127: 4989
P128: Corian - Peppered Terrazzo | Q128: C | R128: 0000000 | T128: Rustic Slate | U128: 4888
P129: Corian - Platinum | Q129: C | R129: 0108025 | T129: Sable Soapstone | U129: 4883
P130: Corian - Rain Cloud | Q130: D | R130: 0000000 | T130: Sand | U130: D331
P131: Corian - Rice Paper | Q131: C | R131: 0000000 | T131: Shadow | U131: D96
P132: Corian - Rosemary | Q132: D | R132: 0000000 | T132: Shadow Zephyr | U132: 4857
P133: Corian - Sagebrush | Q133: D | R133: 0000000 | T133: Sheer Mesh | U133: 4876
P134: Corian - Sahara | Q134: C | R134: 0108019 | T134: Sierra Cascade | U134: 5005
P135: Corian - Sand Storm | Q135: C | R135: 0000000 | T135: Silicon EV | U135: 4811
P136: Corian - Sandalwood | Q136: C | R136: 0000000 | T136: Slate Grey | U136: D91
P137: Corian - Sandstone | Q137: B | R137: 0000000 | T137: Soft Gold Mesh | U137: 4911
P138: Corian - Savannah | Q138: C | R138: 0000000 | T138: Solar Oak | U138: 7816
P139: Corian - Sepia Linear | Q139: D | R139: 0108024 | T139: Spiced Zephyr | U139: 4859
P140: Corian - Serene Sage | Q140: C | R140: 0000000 | T140: Spicewood Springs | U140: 4905
P141: Corian - Silt | Q141: B | R141: 0000000 | T141: Sprout | U141: 4918
P142: Corian - Silver Birch | Q142: C | R142: 0000000 | T142: Steel Mesh | U142: 4879
P143: Corian - Silver Gray | Q143: A | R143: 0108027 | T143: Sterling Ash | U143: 7995
P144: Corian - Silver Linear | Q144: D | R144: 0108008 | T144: Sunshine | U144: D499
P145: Corian - Silverite | Q145: C | R145: 0000000 | T145: Tailored Linen | U145: 4992
P146: Corian - Smoke Drift Prima | Q146: D | R146: 0000000 | T146: Tan Soapstone | U146: 4887
P147: Corian - Sorrel | Q147: D | R147: 0108032 | T147: Tangerine | U147: 4915
P148: Corian - Sparkling Granita | Q148: C | R148: 0000000 | T148: Tawny Legacy | U148: 4663
P149: Corian - Sparkling White | Q149: B | R149: 0108055 | T149: Titanium EV | U149: 4810
P150: Corian - Stonique | Q150: B | R150: 0000000 | T150: Tumbled Roca | U150: 4835
P151: Corian - Vanilla | Q151: A | R151: 0000000 | T151: Tungsten EV | U151: 4814
P152: Corian - Venaro White | Q152: C | R152: 0000000 | T152: Tuscan Walnut | U152: 7921
P153: Corian - Verdant | Q153: C | R153: 0000000 | T153: Twilight Zephyr | U153: 4845
P154: Corian - Weathered Aggregate | Q154: D | R154: 0000000 | T154: Urban Bronze | U154: 4967
P155: Corian - Weathered Concrete | Q155: C | R155: 0000000 | T155: Wallaby | U155: D439
P156: Corian - Whipped Cream | Q156: C | R156: 0108087 | T156: Western Bronze | U156: 4873
P157: Corian - Whisper | Q157: C | R157: 0000000 | T157: Western Storm | U157: 4872
P158: Corian - White Jasmine | Q158: C | R158: 0000000 | T158: Western Suede | U158: 4871
P159: Corian - White Onyx | Q159: D | R159: 0000000 | T159: Western White | U159: 4869
P160: Corian - Willow | Q160: C | R160: 0000000 | T160: White | U160: 1570
P161: Corian - Windswept Prima | Q161: D | R161: 0000000 | T161: White Carrara | U161: 4924
P162: Corian - Witch Hazel | Q162: D | R162: 0000000 | T162: White Cascade | U162: 5003
P163: Corian - Quartz - Alabaster Terrazzo | Q163: E | R163: 0000000 | T163: White Juparana | U163: 4931
P164: Corian - Quartz - Antique Pearl | Q164: B | R164: 0000000 | T164: White Nebula | U164: 4621
P165: Corian - Quartz - Arabesque Perla | Q165: C | R165: 0000000 | T165: White Sand | U165: D403
P166: Corian - Quartz - Ashen Gray | Q166: C | R166: 0000000 | T166: White Tigris | U166: 4783
P167: Corian - Quartz - Ashen Gray - Leathered | Q167: C | R167: 0000000 | T167: Wild Cherry | U167: 7054
P168: Corian - Quartz - Beige Royale | Q168: C | R168: 0000000 | T168: Windswept Bronze | U168: 4794
P169: Corian - Quartz - Bianco Dolomite | Q169: C | R169: 0000000 | T169: Windswept Pewter | U169: 4795
P170: Corian - Quartz - Bianco Marmor | Q170: E | R170: 0000000 | T170: Woolamai Brush | U170: 4746
P171: Corian - Quartz - Bianco Pur | Q171: C | R171: 0000000 | T171: Other (Request New) | U171: 0001
P172: Corian - Quartz - Black Goldstone | Q172: C | R172: 0000000
P173: Corian - Quartz - Blue Carrara | Q173: C | R173: 0000000
P174: Corian - Quartz - Calacatta Natura | Q174: E | R174: 0000000 | T174: Stainless Enclosure Not Applicable | U174: NA
P175: Corian - Quartz - Calacatta Novello | Q175: C | R175: 0000000
P176: Corian - Quartz - Calacatta Villa | Q176: C | R176: 0000000
P177: Corian - Quartz - Carbon Cement | Q177: C | R177: 0000000
P178: Corian - Quartz - Cloud White | Q178: B | R178: 0000000
P179: Corian - Quartz - Coarse Carrara | Q179: C | R179: 0000000
P180: Corian - Quartz - Coarse Marfil | Q180: B | R180: 0000000
P181: Corian - Quartz - Coarse Pepper | Q181: B | R181: 0000000
P182: Corian - Quartz - Coarse Pepper - Leathered | Q182: C | R182: 0000000
P183: Corian - Quartz - Concrete Carrara | Q183: C | R183: 0000000
P184: Corian - Quartz - Dove Grey | Q184: B | R184: 0000000
P185: Corian - Quartz - Dove Grey - Leathered | Q185: C | R185: 0000000
P186: Corian - Quartz - Ethereal White | Q186: C | R186: 0000000
P187: Corian - Quartz - Geo Grigio | Q187: C | R187: 0000000
P188: Corian - Quartz - Graphite | Q188: B | R188: 0000000
P189: Corian - Quartz - Grigione | Q189: C | R189: 0000000
P190: Corian - Quartz - Indigo Swirl | Q190: C | R190: 0000000
P191: Corian - Quartz - Ironstone | Q191: C | R191: 0000000
P192: Corian - Quartz - London Abbey | Q192: C | R192: 0000000
P193: Corian - Quartz - London Royal | Q193: C | R193: 0000000
P194: Corian - Quartz - Marble Mist | Q194: C | R194: 0000000
P195: Corian - Quartz - Nebula | Q195: C | R195: 0000000
P196: Corian - Quartz - Neutral Cement | Q196: C | R196: 0000000
P197: Corian - Quartz - Neve | Q197: C | R197: 0000000
P198: Corian - Quartz - Night Soapstone | Q198: C | R198: 0000000
P199: Corian - Quartz - Oyster Grigio | Q199: C | R199: 0000000
P200: Corian - Quartz - Pearl Stone | Q200: C | R200: 0000000
... 76 more rows

Sheet For the quote Sheets (hidden)
A1: Calculated by | B1: Date Quote Request came in | C1: CFS # | D1: Loaded C4S # | E1: RSM | F1: Rep Name | G1: Rep Group | H1: Arc Sheet# | I1: Project Name | J1: Arc/Designer | K1: S&S Drawing | L1: Drawing Revision | M1: S&S Sink Q# | N1: Quote Date sent back to Rep | O1: Classification | P1: Division | Q1: Total with Current | R1: Days to Quote | S1: Status | T1: Count | U1: Date Overall Request Sent back to Customer | V1: Total with Current | W1: Days to Quote | X1: Status | Y1: Count | Z1: Quote Qty | AA1: Sample Price Offered | AB1: Sink Project | AC1: Material Type | AD1: Model | AE1: Total Stations on Order | AF1: Station | AG1: Sink Cost | AH1: Sink List Price | AI1: Faucet | AJ1: Soap | AK1: AD Hand Dryer | AL1: AB | AM1: FM | AN1: ENC | AO1: Other | AP1: Total Price (w/o Mounting) | AQ1: Total Sink Price | AR1: Total Qty x's price | AS1: Code Number | AT1: Sales Order | AU1: Loaded in Arclink CS | AV1: Notes | AW1: Quote Status | AX1: Time in Funnel | AY1: Date Order entered | AZ1: Qty of Sinks | BA1: Net Total $ | BB1: Time from Quote to Order
A2: ='Arc Worksheet'!N13 -> 0 | C2: ='Arc Worksheet'!S13 -> 0 | D2: =IF(ISBLANK('Arc Worksheet'!S13),"No","Yes") -> No | G2: ='Arc Worksheet'!N13 -> 0 | H2: ='Arc Worksheet'!I55 -> 0 | I2: ='Arc Worksheet'!I11 -> 0 | J2: ='Arc Worksheet'!D11 -> 0 | Z2: ='Arc Worksheet'!D20 -> 0 | AC2: ='Arc Worksheet'!D23 -> 0 | AD2: ='Arc Worksheet'!I20 -> 0 | AF2: ='Arc Worksheet'!N20 -> 0

Sheet CodeList2 (hidden)
A1: Type | B1: Bounce Code | C1: Bowl Type - DSCT
A2: Enclosure | B2: =IF('Arc Worksheet'!N26="Angle Bracket","AB"&'Arc Worksheet'!I20&'Arc Worksheet'!N20,'Arc Worksheet'!I20&'Arc Worksheet'!N20) ->  | C2: =IF('Arc Worksheet'!S35="","",IF('Arc Worksheet'!S35="Vitreous China","VC","SS")) -> 
A3: LED | B3: ='Arc Worksheet'!I20&'Arc Worksheet'!N20 -> 
A4: Bag Hook | B4: ='Arc Worksheet'!I20&'Arc Worksheet'!N29&'Arc Worksheet'!S29 -> 
A5: Basin Grates | B5: ='Arc Worksheet'!N20 -> 0
A6: Hand Dryer | B6: ='Arc Worksheet'!I20&'Arc Worksheet'!I32&'Arc Worksheet'!D32 -> 
A7: Paper Towel Holder | B7: ='Arc Worksheet'!I20&'Arc Worksheet'!N20 -> 
A8: Baby Changing Station | B8: ='Arc Worksheet'!N20 -> 0 | C8: 4
A9: =CONCATENATE('Arc Worksheet'!D23,'Arc Worksheet'!D26,'Arc Worksheet'!I20,'Arc Worksheet'!N20,C2) ->  | B9: =VLOOKUP('Arc Worksheet'!J23,'Drop Tables'!P:Q,2,0) -> 
A10: Enclosure | B10: Station Amount | C10: LUP | D10: Material Number | E10: Quantity Per Sink | F10: Cost
A11: AD | B11: 1 | C11: =Table10[[#This Row],[Enclosure]]&Table10[[#This Row],[Station Amount]] -> AD1 | D11: 385230 | E11: 1 | F11: 760.46
A12: AD | B12: 2 | C12: =Table10[[#This Row],[Enclosure]]&Table10[[#This Row],[Station Amount]] -> AD2 | D12: 385231 | E12: 1 | F12: 760.46
A13: AD | B13: 3 | C13: =Table10[[#This Row],[Enclosure]]&Table10[[#This Row],[Station Amount]] -> AD3 | D13: 385232 | E13: 1 | F13: 1129.69
A14: AD | B14: 4 | C14: =Table10[[#This Row],[Enclosure]]&Table10[[#This Row],[Station Amount]] -> AD4 | D14: 385233 | E14: 1 | F14: 1156.69
A15: AD | B15: 5 | C15: =Table10[[#This Row],[Enclosure]]&Table10[[#This Row],[Station Amount]] -> AD5 | D15: 385234 | E15: 1 | F15: 1861.37
A16: AD | B16: 6+ | C16: =Table10[[#This Row],[Enclosure]]&Table10[[#This Row],[Station Amount]] -> AD6+ | D16: 385235 | E16: 1 | F16: 1947.03
A17: DSG | B17: 1 | C17: =Table10[[#This Row],[Enclosure]]&Table10[[#This Row],[Station Amount]] -> DSG1 | D17: 385212 | E17: 1 | F17: 709.35
A18: DSG | B18: 2 | C18: =Table10[[#This Row],[Enclosure]]&Table10[[#This Row],[Station Amount]] -> DSG2 | D18: 385213 | E18: 1 | F18: 753.22
A19: DSG | B19: 3 | C19: =Table10[[#This Row],[Enclosure]]&Table10[[#This Row],[Station Amount]] -> DSG3 | D19: 385214 | E19: 1 | F19: 1115.08
A20: DSG | B20: 4 | C20: =Table10[[#This Row],[Enclosure]]&Table10[[#This Row],[Station Amount]] -> DSG4 | D20: 385215 | E20: 1 | F20: 565.11
A21: DSG | B21: 5 | C21: =Table10[[#This Row],[Enclosure]]&Table10[[#This Row],[Station Amount]] -> DSG5 | D21: 385216 | E21: 1 | F21: 1828.5
A22: DSG | B22: 6+ | C22: =Table10[[#This Row],[Enclosure]]&Table10[[#This Row],[Station Amount]] -> DSG6+ | D22: 385217 | E22: 1 | F22: 1917.4
A23: DSCT | B23: 1 | C23: =Table10[[#This Row],[Enclosure]]&Table10[[#This Row],[Station Amount]] -> DSCT1 | D23: 385212 | E23: 1 | F23: 709.35
A24: DSCT | B24: 2 | C24: =Table10[[#This Row],[Enclosure]]&Table10[[#This Row],[Station Amount]] -> DSCT2 | D24: 385213 | E24: 1 | F24: 753.22
A25: DSCT | B25: 3 | C25: =Table10[[#This Row],[Enclosure]]&Table10[[#This Row],[Station Amount]] -> DSCT3 | D25: 385214 | E25: 1 | F25: 1115.08
A26: DSCT | B26: 4 | C26: =Table10[[#This Row],[Enclosure]]&Table10[[#This Row],[Station Amount]] -> DSCT4 | D26: 385215 | E26: 1 | F26: 565.11
A27: DSCT | B27: 5 | C27: =Table10[[#This Row],[Enclosure]]&Table10[[#This Row],[Station Amount]] -> DSCT5 | D27: 385216 | E27: 1 | F27: 1828.5
A28: DSCT | B28: 6+ | C28: =Table10[[#This Row],[Enclosure]]&Table10[[#This Row],[Station Amount]] -> DSCT6+ | D28: 385217 | E28: 1 | F28: 1917.4
A29: DSOF | B29: 1 | C29: =Table10[[#This Row],[Enclosure]]&Table10[[#This Row],[Station Amount]] -> DSOF1 | D29: 385212 | E29: 1 | F29: 709.35
A30: DSOF | B30: 2 | C30: =Table10[[#This Row],[Enclosure]]&Table10[[#This Row],[Station Amount]] -> DSOF2 | D30: 385213 | E30: 1 | F30: 753.22
A31: DSOF | B31: 3 | C31: =Table10[[#This Row],[Enclosure]]&Table10[[#This Row],[Station Amount]] -> DSOF3 | D31: 385214 | E31: 1 | F31: 1115.08
A32: DSOF | B32: 4 | C32: =Table10[[#This Row],[Enclosure]]&Table10[[#This Row],[Station Amount]] -> DSOF4 | D32: 385215 | E32: 1 | F32: 565.11
A33: DSOF | B33: 5 | C33: =Table10[[#This Row],[Enclosure]]&Table10[[#This Row],[Station Amount]] -> DSOF5 | D33: 385216 | E33: 1 | F33: 1828.5
A34: DSOF | B34: 6+ | C34: =Table10[[#This Row],[Enclosure]]&Table10[[#This Row],[Station Amount]] -> DSOF6+ | D34: 385217 | E34: 1 | F34: 1917.4
A35: DSUP | B35: 1 | C35: =Table10[[#This Row],[Enclosure]]&Table10[[#This Row],[Station Amount]] -> DSUP1 | D35: 385212 | E35: 1 | F35: 709.35
A36: DSUP | B36: 2 | C36: =Table10[[#This Row],[Enclosure]]&Table10[[#This Row],[Station Amount]] -> DSUP2 | D36: 385213 | E36: 1 | F36: 753.22
A37: DSUP | B37: 3 | C37: =Table10[[#This Row],[Enclosure]]&Table10[[#This Row],[Station Amount]] -> DSUP3 | D37: 385214 | E37: 1 | F37: 1115.08
A38: DSUP | B38: 4 | C38: =Table10[[#This Row],[Enclosure]]&Table10[[#This Row],[Station Amount]] -> DSUP4 | D38: 385215 | E38: 1 | F38: 565.11
A39: DSUP | B39: 5 | C39: =Table10[[#This Row],[Enclosure]]&Table10[[#This Row],[Station Amount]] -> DSUP5 | D39: 385216 | E39: 1 | F39: 1828.5
A40: DSUP | B40: 6+ | C40: =Table10[[#This Row],[Enclosure]]&Table10[[#This Row],[Station Amount]] -> DSUP6+ | D40: 385217 | E40: 1 | F40: 1917.4
A41: DSVR | B41: 1 | C41: =Table10[[#This Row],[Enclosure]]&Table10[[#This Row],[Station Amount]] -> DSVR1 | D41: 385212 | E41: 1 | F41: 709.35
A42: DSVR | B42: 2 | C42: =Table10[[#This Row],[Enclosure]]&Table10[[#This Row],[Station Amount]] -> DSVR2 | D42: 385213 | E42: 1 | F42: 753.22
A43: DSVR | B43: 3 | C43: =Table10[[#This Row],[Enclosure]]&Table10[[#This Row],[Station Amount]] -> DSVR3 | D43: 385214 | E43: 1 | F43: 1115.08
A44: DSVR | B44: 4 | C44: =Table10[[#This Row],[Enclosure]]&Table10[[#This Row],[Station Amount]] -> DSVR4 | D44: 385215 | E44: 1 | F44: 565.11
A45: DSVR | B45: 5 | C45: =Table10[[#This Row],[Enclosure]]&Table10[[#This Row],[Station Amount]] -> DSVR5 | D45: 385216 | E45: 1 | F45: 1828.5
A46: DSVR | B46: 6+ | C46: =Table10[[#This Row],[Enclosure]]&Table10[[#This Row],[Station Amount]] -> DSVR6+ | D46: 385217 | E46: 1 | F46: 1917.4
A47: DSWD | B47: 1 | C47: =Table10[[#This Row],[Enclosure]]&Table10[[#This Row],[Station Amount]] -> DSWD1 | D47: 385212 | E47: 1 | F47: 709.35
A48: DSWD | B48: 2 | C48: =Table10[[#This Row],[Enclosure]]&Table10[[#This Row],[Station Amount]] -> DSWD2 | D48: 385213 | E48: 1 | F48: 753.22
A49: DSWD | B49: 3 | C49: =Table10[[#This Row],[Enclosure]]&Table10[[#This Row],[Station Amount]] -> DSWD3 | D49: 385214 | E49: 1 | F49: 1115.08
A50: DSWD | B50: 4 | C50: =Table10[[#This Row],[Enclosure]]&Table10[[#This Row],[Station Amount]] -> DSWD4 | D50: 385215 | E50: 1 | F50: 565.11
A51: DSWD | B51: 5 | C51: =Table10[[#This Row],[Enclosure]]&Table10[[#This Row],[Station Amount]] -> DSWD5 | D51: 385216 | E51: 1 | F51: 1828.5
A52: DSWD | B52: 6+ | C52: =Table10[[#This Row],[Enclosure]]&Table10[[#This Row],[Station Amount]] -> DSWD6+ | D52: 385217 | E52: 1 | F52: 1917.4
A54: Basin Grates | B54: Station Amount | C54: LookUp | D54: Column1 | E54: Quantity Per Sink | F54: Cost
A55: DSWD | B55: 1 | C55: 1 | D55: 385107 | E55: 1 | F55: 87.92
A56: DSWD | B56: 2 | C56: 2 | D56: 385107 | E56: 1 | F56: 87.92
A57: DSWD | B57: 3 | C57: 3 | D57: 385108 | E57: 1 | F57: 87.92
A58: DSWD | B58: 4 | C58: 4 | D58: 385108 | E58: 2 | F58: 87.92
A59: DSWD | B59: 5 | C59: 5 | D59: NA | E59: 1 | F59: N/A
A60: DSWD | B60: 6+ | C60: 6+ | D60: NA | E60: 1 | F60: N/A
A63: LED | B63: Station Amount | C63: LookUp | D63: Material Number | E63: Quantity Per Sink | F63: Cost | J63: Type | K63: SKU | L63: Description
A64: AD | B64: 1 | C64: =A64&B64 -> AD1 | D64: 385250 | E64: 1 | F64: 629.37 | J64: LED Kit | K64: 385250 | L64: AD LED ASM KIT (UP TO 70") | M64: 1,2
A65: AD | B65: 2 | C65: =A65&B65 -> AD2 | D65: 385250 | E65: 1 | F65: 629.37 | J65: LED Kit | K65: 385251 | L65: DSG LED ASM KIT (UP TO 70")
A66: AD | B66: 3 | C66: AD3 | D66: 385252 | E66: 1 | F66: 1011.35 | J66: LED Kit | K66: 385252 | L66: AD LED ASM KIT (71" TO 143") | M66: 3,4
A67: AD | B67: 4 | C67: AD4 | D67: 385252 | E67: 1 | F67: 1011.35 | J67: LED Kit | K67: 385253 | L67: DSG LED ASM KIT (71"TO 143")
A68: AD | B68: 5 | C68: AD5 | D68: 385254 | E68: 1 | F68: 1863.03 | J68: LED Kit | K68: 385254 | L68: AD LED ASM KIT (144" TO 280") | M68: 5,6
A69: AD | B69: 6+ | C69: AD6+ | D69: 385254 | E69: 1 | F69: 1863.03 | J69: LED Kit | K69: 385255 | L69: DSG LED ASM KIT (144"TO 280")
A70: DSG | B70: 1 | C70: DSG1 | D70: 385251 | E70: 2 | F70: 2014.6 | J70: Purse Hook | K70: 385243 | L70: PURSE HOOK ASM LT GREY
A71: DSG | B71: 2 | C71: DSG2 | D71: 385251 | E71: 2 | F71: 2014.6 | J71: Purse Hook | K71: 385244 | L71: PURSE HOOK ASM DK GREY
A72: DSG | B72: 3 | C72: DSG3 | D72: 385253 | E72: 2 | F72: 3705.36 | J72: Paper Towel Holder | K72: 385109 | L72: PAPER TOWEL HOLDER CORIAN GROUP A
A73: DSG | B73: 4 | C73: DSG4 | D73: 385253 | E73: 2 | F73: 3705.36 | J73: Paper Towel Holder | K73: 385110 | L73: PAPER TOWEL HOLDER CORIAN GROUP B
A74: DSG | B74: 5 | C74: DSG5 | D74: 385255 | E74: 2 | F74: 6915.94 | J74: Paper Towel Holder | K74: 385111 | L74: PAPER TOWEL HOLDER CORIAN GROUP C
A75: DSG | B75: 6+ | C75: DSG6+ | D75: 385255 | E75: 2 | F75: 6915.94 | J75: Paper Towel Holder | K75: 385112 | L75: PAPER TOWEL HOLDER CORIAN GROUP D | M75: E?
J76: Basin Grate | K76: 385107 | L76: S S BASIN GRATE 48" | M76: 1,2
J77: Basin Grate | K77: 385108 | L77: SS BASIN GRATE 96" | M77: 3 only?
A78: Purse Hook | B78: Custom Q Per Sink | C78: Color | D78: Lookup | E78: Material Number | F78: Quantity Per Sink | G78: Cost
A79: AD | B79: ='Arc Worksheet'!$N$29 -> 0 | C79: Light Grey | D79: =A79&B79&Table13[[#This Row],[Color]] -> AD0Light Grey | E79: 385243 | F79: 1 | G79: 65.95
A80: AD | B80: ='Arc Worksheet'!$N$29 -> 0 | C80: Light Grey | D80: =A80&B80&Table13[[#This Row],[Color]] -> AD0Light Grey | E80: 385243 | F80: 2 | G80: 131.9
A81: AD | B81: ='Arc Worksheet'!$N$29 -> 0 | C81: Light Grey | D81: =A81&B81&Table13[[#This Row],[Color]] -> AD0Light Grey | E81: 385243 | F81: 3 | G81: 197.85
A82: AD | B82: ='Arc Worksheet'!$N$29 -> 0 | C82: Light Grey | D82: =A82&B82&Table13[[#This Row],[Color]] -> AD0Light Grey | E82: 385243 | F82: 4 | G82: 263.8
A83: AD | B83: ='Arc Worksheet'!$N$29 -> 0 | C83: Light Grey | D83: =A83&B83&Table13[[#This Row],[Color]] -> AD0Light Grey | E83: 385243 | F83: 5 | G83: 329.75
A84: AD | B84: ='Arc Worksheet'!$N$29 -> 0 | C84: Light Grey | D84: =A84&B84&Table13[[#This Row],[Color]] -> AD0Light Grey | E84: 385243 | F84: 6 | G84: 395.7
A85: DSG | B85: ='Arc Worksheet'!$N$29 -> 0 | C85: Light Grey | D85: =A85&B85&Table13[[#This Row],[Color]] -> DSG0Light Grey | E85: 385243 | F85: 1 | G85: 65.95
A86: DSG | B86: ='Arc Worksheet'!$N$29 -> 0 | C86: Light Grey | D86: =A86&B86&Table13[[#This Row],[Color]] -> DSG0Light Grey | E86: 385243 | F86: 2 | G86: 131.9
A87: DSG | B87: ='Arc Worksheet'!$N$29 -> 0 | C87: Light Grey | D87: =A87&B87&Table13[[#This Row],[Color]] -> DSG0Light Grey | E87: 385243 | F87: 3 | G87: 197.85
A88: DSG | B88: ='Arc Worksheet'!$N$29 -> 0 | C88: Light Grey | D88: =A88&B88&Table13[[#This Row],[Color]] -> DSG0Light Grey | E88: 385243 | F88: 4 | G88: 263.8
A89: DSG | B89: ='Arc Worksheet'!$N$29 -> 0 | C89: Light Grey | D89: =A89&B89&Table13[[#This Row],[Color]] -> DSG0Light Grey | E89: 385243 | F89: 5 | G89: 329.75
A90: DSG | B90: ='Arc Worksheet'!$N$29 -> 0 | C90: Light Grey | D90: =A90&B90&Table13[[#This Row],[Color]] -> DSG0Light Grey | E90: 385243 | F90: 6 | G90: 395.7
A91: DSCT | B91: ='Arc Worksheet'!$N$29 -> 0 | C91: Light Grey | D91: =A91&B91&Table13[[#This Row],[Color]] -> DSCT0Light Grey | E91: 385243 | F91: 1 | G91: 65.95
A92: DSCT | B92: ='Arc Worksheet'!$N$29 -> 0 | C92: Light Grey | D92: =A92&B92&Table13[[#This Row],[Color]] -> DSCT0Light Grey | E92: 385243 | F92: 2 | G92: 131.9
A93: DSCT | B93: ='Arc Worksheet'!$N$29 -> 0 | C93: Light Grey | D93: =A93&B93&Table13[[#This Row],[Color]] -> DSCT0Light Grey | E93: 385243 | F93: 3 | G93: 197.85
A94: DSCT | B94: ='Arc Worksheet'!$N$29 -> 0 | C94: Light Grey | D94: =A94&B94&Table13[[#This Row],[Color]] -> DSCT0Light Grey | E94: 385243 | F94: 4 | G94: 263.8
A95: DSCT | B95: ='Arc Worksheet'!$N$29 -> 0 | C95: Light Grey | D95: =A95&B95&Table13[[#This Row],[Color]] -> DSCT0Light Grey | E95: 385243 | F95: 5 | G95: 329.75
A96: DSCT | B96: ='Arc Worksheet'!$N$29 -> 0 | C96: Light Grey | D96: =A96&B96&Table13[[#This Row],[Color]] -> DSCT0Light Grey | E96: 385243 | F96: 6 | G96: 395.7
A97: DSOF | B97: ='Arc Worksheet'!$N$29 -> 0 | C97: Light Grey | D97: =A97&B97&Table13[[#This Row],[Color]] -> DSOF0Light Grey | E97: 385243 | F97: 1 | G97: 65.95
A98: DSOF | B98: ='Arc Worksheet'!$N$29 -> 0 | C98: Light Grey | D98: =A98&B98&Table13[[#This Row],[Color]] -> DSOF0Light Grey | E98: 385243 | F98: 2 | G98: 131.9
A99: DSOF | B99: ='Arc Worksheet'!$N$29 -> 0 | C99: Light Grey | D99: =A99&B99&Table13[[#This Row],[Color]] -> DSOF0Light Grey | E99: 385243 | F99: 3 | G99: 197.85
A100: DSOF | B100: ='Arc Worksheet'!$N$29 -> 0 | C100: Light Grey | D100: =A100&B100&Table13[[#This Row],[Color]] -> DSOF0Light Grey | E100: 385243 | F100: 4 | G100: 263.8
A101: DSOF | B101: ='Arc Worksheet'!$N$29 -> 0 | C101: Light Grey | D101: =A101&B101&Table13[[#This Row],[Color]] -> DSOF0Light Grey | E101: 385243 | F101: 5 | G101: 329.75
A102: DSOF | B102: ='Arc Worksheet'!$N$29 -> 0 | C102: Light Grey | D102: =A102&B102&Table13[[#This Row],[Color]] -> DSOF0Light Grey | E102: 385243 | F102: 6 | G102: 395.7
A103: DSUP | B103: ='Arc Worksheet'!$N$29 -> 0 | C103: Light Grey | D103: =A103&B103&Table13[[#This Row],[Color]] -> DSUP0Light Grey | E103: 385243 | F103: 1 | G103: 65.95
A104: DSUP | B104: ='Arc Worksheet'!$N$29 -> 0 | C104: Light Grey | D104: =A104&B104&Table13[[#This Row],[Color]] -> DSUP0Light Grey | E104: 385243 | F104: 2 | G104: 131.9
A105: DSUP | B105: ='Arc Worksheet'!$N$29 -> 0 | C105: Light Grey | D105: =A105&B105&Table13[[#This Row],[Color]] -> DSUP0Light Grey | E105: 385243 | F105: 3 | G105: 197.85
A106: DSUP | B106: ='Arc Worksheet'!$N$29 -> 0 | C106: Light Grey | D106: =A106&B106&Table13[[#This Row],[Color]] -> DSUP0Light Grey | E106: 385243 | F106: 4 | G106: 263.8
A107: DSUP | B107: ='Arc Worksheet'!$N$29 -> 0 | C107: Light Grey | D107: =A107&B107&Table13[[#This Row],[Color]] -> DSUP0Light Grey | E107: 385243 | F107: 5 | G107: 329.75
A108: DSUP | B108: ='Arc Worksheet'!$N$29 -> 0 | C108: Light Grey | D108: =A108&B108&Table13[[#This Row],[Color]] -> DSUP0Light Grey | E108: 385243 | F108: 6 | G108: 395.7
A109: DSVR | B109: ='Arc Worksheet'!$N$29 -> 0 | C109: Light Grey | D109: =A109&B109&Table13[[#This Row],[Color]] -> DSVR0Light Grey | E109: 385243 | F109: 1 | G109: 65.95
A110: DSVR | B110: ='Arc Worksheet'!$N$29 -> 0 | C110: Light Grey | D110: =A110&B110&Table13[[#This Row],[Color]] -> DSVR0Light Grey | E110: 385243 | F110: 2 | G110: 131.9
A111: DSVR | B111: ='Arc Worksheet'!$N$29 -> 0 | C111: Light Grey | D111: =A111&B111&Table13[[#This Row],[Color]] -> DSVR0Light Grey | E111: 385243 | F111: 3 | G111: 197.85
A112: DSVR | B112: ='Arc Worksheet'!$N$29 -> 0 | C112: Light Grey | D112: =A112&B112&Table13[[#This Row],[Color]] -> DSVR0Light Grey | E112: 385243 | F112: 4 | G112: 263.8
A113: DSVR | B113: ='Arc Worksheet'!$N$29 -> 0 | C113: Light Grey | D113: =A113&B113&Table13[[#This Row],[Color]] -> DSVR0Light Grey | E113: 385243 | F113: 5 | G113: 329.75
A114: DSVR | B114: ='Arc Worksheet'!$N$29 -> 0 | C114: Light Grey | D114: =A114&B114&Table13[[#This Row],[Color]] -> DSVR0Light Grey | E114: 385243 | F114: 6 | G114: 395.7
A115: DSWD | B115: ='Arc Worksheet'!$N$29 -> 0 | C115: Light Grey | D115: =A115&B115&Table13[[#This Row],[Color]] -> DSWD0Light Grey | E115: 385243 | F115: 1 | G115: 65.95
A116: DSWD | B116: ='Arc Worksheet'!$N$29 -> 0 | C116: Light Grey | D116: =A116&B116&Table13[[#This Row],[Color]] -> DSWD0Light Grey | E116: 385243 | F116: 2 | G116: 131.9
A117: DSWD | B117: ='Arc Worksheet'!$N$29 -> 0 | C117: Light Grey | D117: =A117&B117&Table13[[#This Row],[Color]] -> DSWD0Light Grey | E117: 385243 | F117: 3 | G117: 197.85
A118: DSWD | B118: ='Arc Worksheet'!$N$29 -> 0 | C118: Light Grey | D118: =A118&B118&Table13[[#This Row],[Color]] -> DSWD0Light Grey | E118: 385243 | F118: 4 | G118: 263.8
A119: DSWD | B119: ='Arc Worksheet'!$N$29 -> 0 | C119: Light Grey | D119: =A119&B119&Table13[[#This Row],[Color]] -> DSWD0Light Grey | E119: 385243 | F119: 5 | G119: 329.75
A120: DSWD | B120: ='Arc Worksheet'!$N$29 -> 0 | C120: Light Grey | D120: =A120&B120&Table13[[#This Row],[Color]] -> DSWD0Light Grey | E120: 385243 | F120: 6 | G120: 395.7
A121: AD | B121: ='Arc Worksheet'!$N$29 -> 0 | C121: Dark Grey | D121: =A121&B121&Table13[[#This Row],[Color]] -> AD0Dark Grey | E121: 385244 | F121: 1 | G121: 64.01
A122: AD | B122: ='Arc Worksheet'!$N$29 -> 0 | C122: Dark Grey | D122: =A122&B122&Table13[[#This Row],[Color]] -> AD0Dark Grey | E122: 385244 | F122: 2 | G122: 128.02
A123: AD | B123: ='Arc Worksheet'!$N$29 -> 0 | C123: Dark Grey | D123: =A123&B123&Table13[[#This Row],[Color]] -> AD0Dark Grey | E123: 385244 | F123: 3 | G123: 192.03
A124: AD | B124: ='Arc Worksheet'!$N$29 -> 0 | C124: Dark Grey | D124: =A124&B124&Table13[[#This Row],[Color]] -> AD0Dark Grey | E124: 385244 | F124: 4 | G124: 256.04
A125: AD | B125: ='Arc Worksheet'!$N$29 -> 0 | C125: Dark Grey | D125: =A125&B125&Table13[[#This Row],[Color]] -> AD0Dark Grey | E125: 385244 | F125: 5 | G125: 320.05
A126: AD | B126: ='Arc Worksheet'!$N$29 -> 0 | C126: Dark Grey | D126: =A126&B126&Table13[[#This Row],[Color]] -> AD0Dark Grey | E126: 385244 | F126: 6 | G126: 384.06
A127: DSG | B127: ='Arc Worksheet'!$N$29 -> 0 | C127: Dark Grey | D127: =A127&B127&Table13[[#This Row],[Color]] -> DSG0Dark Grey | E127: 385244 | F127: 1 | G127: 64.01
A128: DSG | B128: ='Arc Worksheet'!$N$29 -> 0 | C128: Dark Grey | D128: =A128&B128&Table13[[#This Row],[Color]] -> DSG0Dark Grey | E128: 385244 | F128: 2 | G128: 128.02
A129: DSG | B129: ='Arc Worksheet'!$N$29 -> 0 | C129: Dark Grey | D129: =A129&B129&Table13[[#This Row],[Color]] -> DSG0Dark Grey | E129: 385244 | F129: 3 | G129: 192.03
A130: DSG | B130: ='Arc Worksheet'!$N$29 -> 0 | C130: Dark Grey | D130: =A130&B130&Table13[[#This Row],[Color]] -> DSG0Dark Grey | E130: 385244 | F130: 4 | G130: 256.04
A131: DSG | B131: ='Arc Worksheet'!$N$29 -> 0 | C131: Dark Grey | D131: =A131&B131&Table13[[#This Row],[Color]] -> DSG0Dark Grey | E131: 385244 | F131: 5 | G131: 320.05
A132: DSG | B132: ='Arc Worksheet'!$N$29 -> 0 | C132: Dark Grey | D132: =A132&B132&Table13[[#This Row],[Color]] -> DSG0Dark Grey | E132: 385244 | F132: 6 | G132: 384.06
A133: DSCT | B133: ='Arc Worksheet'!$N$29 -> 0 | C133: Dark Grey | D133: =A133&B133&Table13[[#This Row],[Color]] -> DSCT0Dark Grey | E133: 385244 | F133: 1 | G133: 64.01
A134: DSCT | B134: ='Arc Worksheet'!$N$29 -> 0 | C134: Dark Grey | D134: =A134&B134&Table13[[#This Row],[Color]] -> DSCT0Dark Grey | E134: 385244 | F134: 2 | G134: 128.02
A135: DSCT | B135: ='Arc Worksheet'!$N$29 -> 0 | C135: Dark Grey | D135: =A135&B135&Table13[[#This Row],[Color]] -> DSCT0Dark Grey | E135: 385244 | F135: 3 | G135: 192.03
A136: DSCT | B136: ='Arc Worksheet'!$N$29 -> 0 | C136: Dark Grey | D136: =A136&B136&Table13[[#This Row],[Color]] -> DSCT0Dark Grey | E136: 385244 | F136: 4 | G136: 256.04
A137: DSCT | B137: ='Arc Worksheet'!$N$29 -> 0 | C137: Dark Grey | D137: =A137&B137&Table13[[#This Row],[Color]] -> DSCT0Dark Grey | E137: 385244 | F137: 5 | G137: 320.05
A138: DSCT | B138: ='Arc Worksheet'!$N$29 -> 0 | C138: Dark Grey | D138: =A138&B138&Table13[[#This Row],[Color]] -> DSCT0Dark Grey | E138: 385244 | F138: 6 | G138: 384.06
A139: DSOF | B139: ='Arc Worksheet'!$N$29 -> 0 | C139: Dark Grey | D139: =A139&B139&Table13[[#This Row],[Color]] -> DSOF0Dark Grey | E139: 385244 | F139: 1 | G139: 64.01
A140: DSOF | B140: ='Arc Worksheet'!$N$29 -> 0 | C140: Dark Grey | D140: =A140&B140&Table13[[#This Row],[Color]] -> DSOF0Dark Grey | E140: 385244 | F140: 2 | G140: 128.02
A141: DSOF | B141: ='Arc Worksheet'!$N$29 -> 0 | C141: Dark Grey | D141: =A141&B141&Table13[[#This Row],[Color]] -> DSOF0Dark Grey | E141: 385244 | F141: 3 | G141: 192.03
A142: DSOF | B142: ='Arc Worksheet'!$N$29 -> 0 | C142: Dark Grey | D142: =A142&B142&Table13[[#This Row],[Color]] -> DSOF0Dark Grey | E142: 385244 | F142: 4 | G142: 256.04
A143: DSOF | B143: ='Arc Worksheet'!$N$29 -> 0 | C143: Dark Grey | D143: =A143&B143&Table13[[#This Row],[Color]] -> DSOF0Dark Grey | E143: 385244 | F143: 5 | G143: 320.05
A144: DSOF | B144: ='Arc Worksheet'!$N$29 -> 0 | C144: Dark Grey | D144: =A144&B144&Table13[[#This Row],[Color]] -> DSOF0Dark Grey | E144: 385244 | F144: 6 | G144: 384.06
A145: DSUP | B145: ='Arc Worksheet'!$N$29 -> 0 | C145: Dark Grey | D145: =A145&B145&Table13[[#This Row],[Color]] -> DSUP0Dark Grey | E145: 385244 | F145: 1 | G145: 64.01
A146: DSUP | B146: ='Arc Worksheet'!$N$29 -> 0 | C146: Dark Grey | D146: =A146&B146&Table13[[#This Row],[Color]] -> DSUP0Dark Grey | E146: 385244 | F146: 2 | G146: 128.02
A147: DSUP | B147: ='Arc Worksheet'!$N$29 -> 0 | C147: Dark Grey | D147: =A147&B147&Table13[[#This Row],[Color]] -> DSUP0Dark Grey | E147: 385244 | F147: 3 | G147: 192.03
A148: DSUP | B148: ='Arc Worksheet'!$N$29 -> 0 | C148: Dark Grey | D148: =A148&B148&Table13[[#This Row],[Color]] -> DSUP0Dark Grey | E148: 385244 | F148: 4 | G148: 256.04
A149: DSUP | B149: ='Arc Worksheet'!$N$29 -> 0 | C149: Dark Grey | D149: =A149&B149&Table13[[#This Row],[Color]] -> DSUP0Dark Grey | E149: 385244 | F149: 5 | G149: 320.05
A150: DSUP | B150: ='Arc Worksheet'!$N$29 -> 0 | C150: Dark Grey | D150: =A150&B150&Table13[[#This Row],[Color]] -> DSUP0Dark Grey | E150: 385244 | F150: 6 | G150: 384.06
A151: DSVR | B151: ='Arc Worksheet'!$N$29 -> 0 | C151: Dark Grey | D151: =A151&B151&Table13[[#This Row],[Color]] -> DSVR0Dark Grey | E151: 385244 | F151: 1 | G151: 64.01
A152: DSVR | B152: ='Arc Worksheet'!$N$29 -> 0 | C152: Dark Grey | D152: =A152&B152&Table13[[#This Row],[Color]] -> DSVR0Dark Grey | E152: 385244 | F152: 2 | G152: 128.02
A153: DSVR | B153: ='Arc Worksheet'!$N$29 -> 0 | C153: Dark Grey | D153: =A153&B153&Table13[[#This Row],[Color]] -> DSVR0Dark Grey | E153: 385244 | F153: 3 | G153: 192.03
A154: DSVR | B154: ='Arc Worksheet'!$N$29 -> 0 | C154: Dark Grey | D154: =A154&B154&Table13[[#This Row],[Color]] -> DSVR0Dark Grey | E154: 385244 | F154: 4 | G154: 256.04
A155: DSVR | B155: ='Arc Worksheet'!$N$29 -> 0 | C155: Dark Grey | D155: =A155&B155&Table13[[#This Row],[Color]] -> DSVR0Dark Grey | E155: 385244 | F155: 5 | G155: 320.05
A156: DSVR | B156: ='Arc Worksheet'!$N$29 -> 0 | C156: Dark Grey | D156: =A156&B156&Table13[[#This Row],[Color]] -> DSVR0Dark Grey | E156: 385244 | F156: 6 | G156: 384.06
A157: DSWD | B157: ='Arc Worksheet'!$N$29 -> 0 | C157: Dark Grey | D157: =A157&B157&Table13[[#This Row],[Color]] -> DSWD0Dark Grey | E157: 385244 | F157: 1 | G157: 64.01
A158: DSWD | B158: ='Arc Worksheet'!$N$29 -> 0 | C158: Dark Grey | D158: =A158&B158&Table13[[#This Row],[Color]] -> DSWD0Dark Grey | E158: 385244 | F158: 2 | G158: 128.02
A159: DSWD | B159: ='Arc Worksheet'!$N$29 -> 0 | C159: Dark Grey | D159: =A159&B159&Table13[[#This Row],[Color]] -> DSWD0Dark Grey | E159: 385244 | F159: 3 | G159: 192.03
A160: DSWD | B160: ='Arc Worksheet'!$N$29 -> 0 | C160: Dark Grey | D160: =A160&B160&Table13[[#This Row],[Color]] -> DSWD0Dark Grey | E160: 385244 | F160: 4 | G160: 256.04
A161: DSWD | B161: ='Arc Worksheet'!$N$29 -> 0 | C161: Dark Grey | D161: =A161&B161&Table13[[#This Row],[Color]] -> DSWD0Dark Grey | E161: 385244 | F161: 5 | G161: 320.05
A162: DSWD | B162: ='Arc Worksheet'!$N$29 -> 0 | C162: Dark Grey | D162: =A162&B162&Table13[[#This Row],[Color]] -> DSWD0Dark Grey | E162: 385244 | F162: 6 | G162: 384.06
A164: Hand Dryer | B164: Custom Q Per Sink | C164: Finish | D164: Lookup | E164: Material Number | F164: Quantity Per Sink | G164: Cost
A165: AD | B165: ='Arc Worksheet'!$I$32 -> 0 | C165: Chrome Plated | D165: =A165&B165&C165 -> AD0Chrome Plated | E165: 3366085 | F165: 1 | G165: 534.45
A166: AD | B166: ='Arc Worksheet'!$I$32 -> 0 | C166: Chrome Plated | D166: =A166&B166&C166 -> AD0Chrome Plated | E166: 3366085 | F166: 2 | G166: 1068.9
A167: AD | B167: ='Arc Worksheet'!$I$32 -> 0 | C167: Chrome Plated | D167: AD0Chrome Plated | E167: 3366085 | F167: 3 | G167: 1603.35
A168: AD | B168: ='Arc Worksheet'!$I$32 -> 0 | C168: Chrome Plated | D168: AD0Chrome Plated | E168: 3366085 | F168: 4 | G168: 2137.8
A169: AD | B169: ='Arc Worksheet'!$I$32 -> 0 | C169: Chrome Plated | D169: AD0Chrome Plated | E169: 3366085 | F169: 5 | G169: 2672.25
A170: AD | B170: ='Arc Worksheet'!$I$32 -> 0 | C170: Chrome Plated | D170: AD0Chrome Plated | E170: 3366085 | F170: 6 | G170: 3206.7
A171: AD | B171: ='Arc Worksheet'!$I$32 -> 0 | C171: Brushed Nickel | D171: AD0Brushed Nickel | E171: 3366081 | F171: 1 | G171: 683.14
A172: AD | B172: ='Arc Worksheet'!$I$32 -> 0 | C172: Brushed Nickel | D172: AD0Brushed Nickel | E172: 3366081 | F172: 2 | G172: 1366.28
A173: AD | B173: ='Arc Worksheet'!$I$32 -> 0 | C173: Brushed Nickel | D173: AD0Brushed Nickel | E173: 3366081 | F173: 3 | G173: 2049.42
A174: AD | B174: ='Arc Worksheet'!$I$32 -> 0 | C174: Brushed Nickel | D174: AD0Brushed Nickel | E174: 3366081 | F174: 4 | G174: 2732.56
A175: AD | B175: ='Arc Worksheet'!$I$32 -> 0 | C175: Brushed Nickel | D175: AD0Brushed Nickel | E175: 3366081 | F175: 5 | G175: 3415.7
A176: AD | B176: ='Arc Worksheet'!$I$32 -> 0 | C176: Brushed Nickel | D176: AD0Brushed Nickel | E176: 3366081 | F176: 6 | G176: 4098.84
A177: AD | B177: ='Arc Worksheet'!$I$32 -> 0 | C177: Polished Brass | D177: AD0Polished Brass | E177: 3366083 | F177: 1 | G177: 675.11
A178: AD | B178: ='Arc Worksheet'!$I$32 -> 0 | C178: Polished Brass | D178: AD0Polished Brass | E178: 3366083 | F178: 2 | G178: 1350.22
A179: AD | B179: ='Arc Worksheet'!$I$32 -> 0 | C179: Polished Brass | D179: AD0Polished Brass | E179: 3366083 | F179: 3 | G179: 2025.33
A180: AD | B180: ='Arc Worksheet'!$I$32 -> 0 | C180: Polished Brass | D180: AD0Polished Brass | E180: 3366083 | F180: 4 | G180: 2700.44
A181: AD | B181: ='Arc Worksheet'!$I$32 -> 0 | C181: Polished Brass | D181: AD0Polished Brass | E181: 3366083 | F181: 5 | G181: 3375.55
A182: AD | B182: ='Arc Worksheet'!$I$32 -> 0 | C182: Polished Brass | D182: AD0Polished Brass | E182: 3366083 | F182: 6 | G182: 4050.66
A183: AD | B183: ='Arc Worksheet'!$I$32 -> 0 | C183: Graphite | D183: =A183&B183&C183 -> AD0Graphite | E183: 3366084 | F183: 1 | G183: 579.52 | J183: =Table14[[#This Row],[Cost]]+Table14[[#This Row],[Cost]] -> 1159.04
A184: AD | B184: ='Arc Worksheet'!$I$32 -> 0 | C184: Graphite | D184: AD0Graphite | E184: 3366084 | F184: 2 | G184: 1159.04 | J184: =J183+G$183 -> 1738.56
A185: AD | B185: ='Arc Worksheet'!$I$32 -> 0 | C185: Graphite | D185: AD0Graphite | E185: 3366084 | F185: 3 | G185: 1738.56 | J185: =J184+G$183 -> 2318.08
A186: AD | B186: ='Arc Worksheet'!$I$32 -> 0 | C186: Graphite | D186: AD0Graphite | E186: 3366084 | F186: 4 | G186: 2318.08 | J186: =J185+G$183 -> 2897.6
A187: AD | B187: ='Arc Worksheet'!$I$32 -> 0 | C187: Graphite | D187: AD0Graphite | E187: 3366084 | F187: 5 | G187: 2897.6 | J187: =J186+G$183 -> 3477.12
A188: AD | B188: ='Arc Worksheet'!$I$32 -> 0 | C188: Graphite | D188: AD0Graphite | E188: 3366084 | F188: 6 | G188: 3477.12 | J188: =J187+G$183 -> 4056.64
A189: AD | B189: ='Arc Worksheet'!$I$32 -> 0 | C189: Brushed Stainless | D189: AD0Brushed Stainless | E189: 3366082 | F189: 1 | G189: 675.11
A190: AD | B190: ='Arc Worksheet'!$I$32 -> 0 | C190: Brushed Stainless | D190: AD0Brushed Stainless | E190: 3366082 | F190: 2 | G190: 1350.22
A191: AD | B191: ='Arc Worksheet'!$I$32 -> 0 | C191: Brushed Stainless | D191: AD0Brushed Stainless | E191: 3366082 | F191: 3 | G191: 2025.33
A192: AD | B192: ='Arc Worksheet'!$I$32 -> 0 | C192: Brushed Stainless | D192: AD0Brushed Stainless | E192: 3366082 | F192: 4 | G192: 2700.44
A193: AD | B193: ='Arc Worksheet'!$I$32 -> 0 | C193: Brushed Stainless | D193: AD0Brushed Stainless | E193: 3366082 | F193: 5 | G193: 3375.55
A194: AD | B194: ='Arc Worksheet'!$I$32 -> 0 | C194: Brushed Stainless | D194: AD0Brushed Stainless | E194: 3366082 | F194: 6 | G194: 4050.66
A197: Paper Towel holder | B197: Station Amount | C197: Finish | D197: Look Up | E197: Material Number | F197: Quantity Per Sink | G197: Cost
A198: AD | B198: 1 | C198: Null | D198: =Table15[[#This Row],[Paper Towel holder]]&Table15[[#This Row],[Station Amount]] -> AD1 | E198: 385109 | F198: 1 | G198: 229.95
A199: AD | B199: 2 | C199: Null | D199: =Table15[[#This Row],[Paper Towel holder]]&Table15[[#This Row],[Station Amount]] -> AD2 | E199: 385110 | F199: 1 | G199: 255.58
A200: AD | B200: 3 | C200: Null | D200: =Table15[[#This Row],[Paper Towel holder]]&Table15[[#This Row],[Station Amount]] -> AD3 | E200: 385111 | F200: 2 | G200: 265.58
A201: AD | B201: 4 | C201: Null | D201: =Table15[[#This Row],[Paper Towel holder]]&Table15[[#This Row],[Station Amount]] -> AD4 | E201: 385112 | F201: 2 | G201: 282.45
A202: AD | B202: 5 | C202: Null | D202: =Table15[[#This Row],[Paper Towel holder]]&Table15[[#This Row],[Station Amount]] -> AD5 | E202: N/A | F202: 3 | G202: N/A
A206: Baby Changing Station | B206: Station Amount | C206: Look Up | D206: Material Number | E206: Quantity Per Sink | F206: Cost
A207: All Types | B207: 1 | C207: 1 | D207: 0000044 | E207: 1 | F207: N/A
A208: All Types | B208: 2 | C208: 2 | D208: 0000044 | E208: 1 | F208: N/A
A209: All Types | B209: 3 | C209: 3 | D209: 0000044 | E209: 1 | F209: N/A
... 3 more rows

Sheet Mounting Cheat Sheet (hidden)
A1: Bounce | B1: Code 1 | C1: Count | D1: Code 2 | E1: Count | F1: Code 1 Cost | G1: Code 2 Cost
A2: ABDSG1 | B2: 386063 | C2: 2 | D2: Xtra Code Not Needed | E2: N/A | F2: 189.43 | G2: 0
A3: ABDSG2 | B3: 386063 | C3: 2 | D3: 386064 | E3: 2 | F3: 189.43 | G3: 194.99
A4: ABDSG3 | B4: 386063 | C4: 2 | D4: 386064 | E4: 4 | F4: 189.43 | G4: 194.99
A5: ABDSG4 | B5: 386063 | C5: 2 | D5: 386064 | E5: 4 | F5: 189.43 | G5: 194.99
A6: ABDSWD1 | B6: 386063 | C6: 2 | D6: Xtra Code Not Needed | E6: N/A | F6: 189.43 | G6: 0
A7: ABDSWD2 | B7: 386063 | C7: 2 | D7: 63860048 | E7: 2 | F7: 189.43 | G7: 194.99
A8: ABDSWD3 | B8: 386063 | C8: 2 | D8: 63860048 | E8: 4 | F8: 189.43 | G8: 194.99
A9: ABDSWD4 | B9: 386063 | C9: 2 | D9: 63860048 | E9: 4 | F9: 189.43 | G9: 194.99
A10: ABDSCT1 | B10: 386063 | C10: 2 | D10: Xtra Code Not Needed | E10: N/A | F10: 189.43 | G10: 0
A11: ABDSCT2 | B11: 386063 | C11: 4 | D11: Xtra Code Not Needed | E11: N/A | F11: 189.43 | G11: 0
A12: ABDSCT3 | B12: 386063 | C12: 6 | D12: Xtra Code Not Needed | E12: N/A | F12: 189.43 | G12: 0
A13: ABDSCT4 | B13: 386063 | C13: 8 | D13: Xtra Code Not Needed | E13: N/A | F13: 189.43 | G13: 0
A14: ABDSOF1 | B14: 386063 | C14: 2 | D14: Xtra Code Not Needed | E14: N/A | F14: 189.43 | G14: 0
A15: ABDSOF2 | B15: 386063 | C15: 4 | D15: Xtra Code Not Needed | E15: N/A | F15: 189.43 | G15: 0
A16: ABDSOF3 | B16: 386063 | C16: 6 | D16: Xtra Code Not Needed | E16: N/A | F16: 189.43 | G16: 0
A17: ABDSOF4 | B17: 386063 | C17: 8 | D17: Xtra Code Not Needed | E17: N/A | F17: 189.43 | G17: 0
A18: ABDSVR1 | B18: 386063 | C18: 2 | D18: Xtra Code Not Needed | E18: N/A | F18: 189.43 | G18: 0
A19: ABDSVR2 | B19: 386063 | C19: 4 | D19: Xtra Code Not Needed | E19: N/A | F19: 189.43 | G19: 0
A20: ABDSVR3 | B20: 386063 | C20: 6 | D20: Xtra Code Not Needed | E20: N/A | F20: 189.43 | G20: 0
A21: ABDSVR4 | B21: 386063 | C21: 8 | D21: Xtra Code Not Needed | E21: N/A | F21: 189.43 | G21: 0

Sheet Generic Codes (hidden)
A1: LOOK UP | B1: Material | C1: Trough or Basin | D1: Prefix | E1: # Stations | F1: Bowl Type | G1: A | H1: B | I1: C | J1: D | K1: E | L1: F | M1: G | N1: H | O1: I | P1: J
A2: =CONCATENATE(B2,C2,D2,E2,F2) -> Solid Surface - CorianContinuous TroughAD1 | B2: Solid Surface - Corian | C2: Continuous Trough | D2: AD | E2: 1 | G2: =$D2&F2 & "-8" & $E2 & "000-C" &G$1 -> AD-81000-CA | H2: =$D2&F2 & "-8" & $E2 & "000-C" &H$1 -> AD-81000-CB | I2: =$D2&F2 & "-8" & $E2 & "000-C" &I$1 -> AD-81000-CC | J2: =$D2&F2 & "-8" & $E2 & "000-C" &J$1 -> AD-81000-CD | K2: N/A | L2: N/A | M2: N/A | N2: N/A | O2: N/A | P2: N/A
A3: =CONCATENATE(B3,C3,D3,E3,F3) -> Solid Surface - CorianContinuous TroughAD2 | B3: Solid Surface - Corian | C3: Continuous Trough | D3: AD | E3: 2 | G3: =$D3&F3 & "-8" & $E3 & "000-C" &G$1 -> AD-82000-CA | H3: =$D3&F3 & "-8" & $E3 & "000-C" &H$1 -> AD-82000-CB | I3: =$D3&F3 & "-8" & $E3 & "000-C" &I$1 -> AD-82000-CC | J3: =$D3&F3 & "-8" & $E3 & "000-C" &J$1 -> AD-82000-CD | K3: N/A | L3: N/A | M3: N/A | N3: N/A | O3: N/A | P3: N/A
A4: Solid Surface - CorianContinuous TroughAD3 | B4: Solid Surface - Corian | C4: Continuous Trough | D4: AD | E4: 3 | G4: AD-83000-CA | H4: AD-83000-CB | I4: AD-83000-CC | J4: AD-83000-CD | K4: N/A | L4: N/A | M4: N/A | N4: N/A | O4: N/A | P4: N/A
A5: Solid Surface - CorianContinuous TroughAD4 | B5: Solid Surface - Corian | C5: Continuous Trough | D5: AD | E5: 4 | G5: AD-84000-CA | H5: AD-84000-CB | I5: AD-84000-CC | J5: AD-84000-CD | K5: N/A | L5: N/A | M5: N/A | N5: N/A | O5: N/A | P5: N/A
A6: Solid Surface - CorianContinuous TroughAD5 | B6: Solid Surface - Corian | C6: Continuous Trough | D6: AD | E6: 5 | G6: AD-85000-CA | H6: AD-85000-CB | I6: AD-85000-CC | J6: AD-85000-CD | K6: N/A | L6: N/A | M6: N/A | N6: N/A | O6: N/A | P6: N/A
A7: Solid Surface - CorianContinuous TroughAD6+ | B7: Solid Surface - Corian | C7: Continuous Trough | D7: AD | E7: 6+ | G7: AD-86+000-CA | H7: AD-86+000-CB | I7: AD-86+000-CC | J7: AD-86+000-CD | K7: N/A | L7: N/A | M7: N/A | N7: N/A | O7: N/A | P7: N/A
A8: Solid Surface - CorianContinuous TroughDSG1 | B8: Solid Surface - Corian | C8: Continuous Trough | D8: DSG | E8: 1 | G8: DSG-81000-CA | H8: DSG-81000-CB | I8: DSG-81000-CC | J8: DSG-81000-CD | K8: N/A | L8: N/A | M8: N/A | N8: N/A | O8: N/A | P8: N/A
A9: Solid Surface - CorianContinuous TroughDSG2 | B9: Solid Surface - Corian | C9: Continuous Trough | D9: DSG | E9: 2 | G9: DSG-82000-CA | H9: DSG-82000-CB | I9: DSG-82000-CC | J9: DSG-82000-CD | K9: N/A | L9: N/A | M9: N/A | N9: N/A | O9: N/A | P9: N/A
A10: Solid Surface - CorianContinuous TroughDSG3 | B10: Solid Surface - Corian | C10: Continuous Trough | D10: DSG | E10: 3 | G10: DSG-83000-CA | H10: DSG-83000-CB | I10: DSG-83000-CC | J10: DSG-83000-CD | K10: N/A | L10: N/A | M10: N/A | N10: N/A | O10: N/A | P10: N/A
A11: Solid Surface - CorianContinuous TroughDSG4 | B11: Solid Surface - Corian | C11: Continuous Trough | D11: DSG | E11: 4 | G11: DSG-84000-CA | H11: DSG-84000-CB | I11: DSG-84000-CC | J11: DSG-84000-CD | K11: N/A | L11: N/A | M11: N/A | N11: N/A | O11: N/A | P11: N/A
A12: Solid Surface - CorianContinuous TroughDSG5 | B12: Solid Surface - Corian | C12: Continuous Trough | D12: DSG | E12: 5 | G12: DSG-85000-CA | H12: DSG-85000-CB | I12: DSG-85000-CC | J12: DSG-85000-CD | K12: N/A | L12: N/A | M12: N/A | N12: N/A | O12: N/A | P12: N/A
A13: Solid Surface - CorianContinuous TroughDSG6+ | B13: Solid Surface - Corian | C13: Continuous Trough | D13: DSG | E13: 6+ | G13: DSG-86+000-CA | H13: DSG-86+000-CB | I13: DSG-86+000-CC | J13: DSG-86+000-CD | K13: N/A | L13: N/A | M13: N/A | N13: N/A | O13: N/A | P13: N/A
A14: Solid Surface - CorianContinuous TroughDSWD1 | B14: Solid Surface - Corian | C14: Continuous Trough | D14: DSWD | E14: 1 | G14: DSWD-81000-CA | H14: DSWD-81000-CB | I14: DSWD-81000-CC | J14: DSWD-81000-CD | K14: N/A | L14: N/A | M14: N/A | N14: N/A | O14: N/A | P14: N/A
A15: Solid Surface - CorianContinuous TroughDSWD2 | B15: Solid Surface - Corian | C15: Continuous Trough | D15: DSWD | E15: 2 | G15: DSWD-82000-CA | H15: DSWD-82000-CB | I15: DSWD-82000-CC | J15: DSWD-82000-CD | K15: N/A | L15: N/A | M15: N/A | N15: N/A | O15: N/A | P15: N/A
A16: Solid Surface - CorianContinuous TroughDSWD3 | B16: Solid Surface - Corian | C16: Continuous Trough | D16: DSWD | E16: 3 | G16: DSWD-83000-CA | H16: DSWD-83000-CB | I16: DSWD-83000-CC | J16: DSWD-83000-CD | K16: N/A | L16: N/A | M16: N/A | N16: N/A | O16: N/A | P16: N/A
A17: Solid Surface - CorianContinuous TroughDSWD4 | B17: Solid Surface - Corian | C17: Continuous Trough | D17: DSWD | E17: 4 | G17: DSWD-84000-CA | H17: DSWD-84000-CB | I17: DSWD-84000-CC | J17: DSWD-84000-CD | K17: N/A | L17: N/A | M17: N/A | N17: N/A | O17: N/A | P17: N/A
A18: Solid Surface - CorianContinuous TroughDSWD5 | B18: Solid Surface - Corian | C18: Continuous Trough | D18: DSWD | E18: 5 | G18: DSWD-85000-CA | H18: DSWD-85000-CB | I18: DSWD-85000-CC | J18: DSWD-85000-CD | K18: N/A | L18: N/A | M18: N/A | N18: N/A | O18: N/A | P18: N/A
A19: Solid Surface - CorianContinuous TroughDSWD6+ | B19: Solid Surface - Corian | C19: Continuous Trough | D19: DSWD | E19: 6+ | G19: DSWD-86+000-CA | H19: DSWD-86+000-CB | I19: DSWD-86+000-CC | J19: DSWD-86+000-CD | K19: N/A | L19: N/A | M19: N/A | N19: N/A | O19: N/A | P19: N/A
A20: Solid Surface - CorianContinuous TroughDSOF1 | B20: Solid Surface - Corian | C20: Continuous Trough | D20: DSOF | E20: 1 | G20: DSOF-81000-CA | H20: DSOF-81000-CB | I20: DSOF-81000-CC | J20: DSOF-81000-CD | K20: N/A | L20: N/A | M20: N/A | N20: N/A | O20: N/A | P20: N/A
A21: Solid Surface - CorianContinuous TroughDSOF2 | B21: Solid Surface - Corian | C21: Continuous Trough | D21: DSOF | E21: 2 | G21: DSOF-82000-CA | H21: DSOF-82000-CB | I21: DSOF-82000-CC | J21: DSOF-82000-CD | K21: N/A | L21: N/A | M21: N/A | N21: N/A | O21: N/A | P21: N/A
A22: Solid Surface - CorianContinuous TroughDSOF3 | B22: Solid Surface - Corian | C22: Continuous Trough | D22: DSOF | E22: 3 | G22: DSOF-83000-CA | H22: DSOF-83000-CB | I22: DSOF-83000-CC | J22: DSOF-83000-CD | K22: N/A | L22: N/A | M22: N/A | N22: N/A | O22: N/A | P22: N/A
A23: Solid Surface - CorianContinuous TroughDSOF4 | B23: Solid Surface - Corian | C23: Continuous Trough | D23: DSOF | E23: 4 | G23: DSOF-84000-CA | H23: DSOF-84000-CB | I23: DSOF-84000-CC | J23: DSOF-84000-CD | K23: N/A | L23: N/A | M23: N/A | N23: N/A | O23: N/A | P23: N/A
A24: Solid Surface - CorianContinuous TroughDSOF5 | B24: Solid Surface - Corian | C24: Continuous Trough | D24: DSOF | E24: 5 | G24: DSOF-85000-CA | H24: DSOF-85000-CB | I24: DSOF-85000-CC | J24: DSOF-85000-CD | K24: N/A | L24: N/A | M24: N/A | N24: N/A | O24: N/A | P24: N/A
A25: Solid Surface - CorianContinuous TroughDSOF6+ | B25: Solid Surface - Corian | C25: Continuous Trough | D25: DSOF | E25: 6+ | G25: DSOF-86+000-CA | H25: DSOF-86+000-CB | I25: DSOF-86+000-CC | J25: DSOF-86+000-CD | K25: N/A | L25: N/A | M25: N/A | N25: N/A | O25: N/A | P25: N/A
A26: Solid Surface - CorianContinuous TroughDSUP1 | B26: Solid Surface - Corian | C26: Continuous Trough | D26: DSUP | E26: 1 | G26: DSUP-81000-CA | H26: DSUP-81000-CB | I26: DSUP-81000-CC | J26: DSUP-81000-CD | K26: N/A | L26: N/A | M26: N/A | N26: N/A | O26: N/A | P26: N/A
A27: Solid Surface - CorianContinuous TroughDSVR1 | B27: Solid Surface - Corian | C27: Continuous Trough | D27: DSVR | E27: 1 | G27: DSVR-81000-CA | H27: DSVR-81000-CB | I27: DSVR-81000-CC | J27: DSVR-81000-CD | K27: N/A | L27: N/A | M27: N/A | N27: N/A | O27: N/A | P27: N/A
A28: Solid Surface - CorianContinuous TroughDSVR2 | B28: Solid Surface - Corian | C28: Continuous Trough | D28: DSVR | E28: 2 | G28: DSVR-82000-CA | H28: DSVR-82000-CB | I28: DSVR-82000-CC | J28: DSVR-82000-CD | K28: N/A | L28: N/A | M28: N/A | N28: N/A | O28: N/A | P28: N/A
A29: Solid Surface - CorianContinuous TroughDSVR3 | B29: Solid Surface - Corian | C29: Continuous Trough | D29: DSVR | E29: 3 | G29: DSVR-83000-CA | H29: DSVR-83000-CB | I29: DSVR-83000-CC | J29: DSVR-83000-CD | K29: N/A | L29: N/A | M29: N/A | N29: N/A | O29: N/A | P29: N/A
A30: Solid Surface - CorianContinuous TroughDSVR4 | B30: Solid Surface - Corian | C30: Continuous Trough | D30: DSVR | E30: 4 | G30: DSVR-84000-CA | H30: DSVR-84000-CB | I30: DSVR-84000-CC | J30: DSVR-84000-CD | K30: N/A | L30: N/A | M30: N/A | N30: N/A | O30: N/A | P30: N/A
A31: Solid Surface - CorianContinuous TroughDSVR5 | B31: Solid Surface - Corian | C31: Continuous Trough | D31: DSVR | E31: 5 | G31: DSVR-85000-CA | H31: DSVR-85000-CB | I31: DSVR-85000-CC | J31: DSVR-85000-CD | K31: N/A | L31: N/A | M31: N/A | N31: N/A | O31: N/A | P31: N/A
A32: Solid Surface - CorianContinuous TroughDSVR6+ | B32: Solid Surface - Corian | C32: Continuous Trough | D32: DSVR | E32: 6+ | G32: DSVR-86+000-CA | H32: DSVR-86+000-CB | I32: DSVR-86+000-CC | J32: DSVR-86+000-CD | K32: N/A | L32: N/A | M32: N/A | N32: N/A | O32: N/A | P32: N/A
A33: Solid Surface - CorianContinuous TroughDSCT1SS | B33: Solid Surface - Corian | C33: Continuous Trough | D33: DSCT | E33: 1 | F33: SS | G33: DSCTSS-81000-CA | H33: DSCTSS-81000-CB | I33: DSCTSS-81000-CC | J33: DSCTSS-81000-CD | K33: N/A | L33: N/A | M33: N/A | N33: N/A | O33: N/A | P33: N/A
A34: Solid Surface - CorianContinuous TroughDSCT2SS | B34: Solid Surface - Corian | C34: Continuous Trough | D34: DSCT | E34: 2 | F34: SS | G34: DSCTSS-82000-CA | H34: DSCTSS-82000-CB | I34: DSCTSS-82000-CC | J34: DSCTSS-82000-CD | K34: N/A | L34: N/A | M34: N/A | N34: N/A | O34: N/A | P34: N/A
A35: Solid Surface - CorianContinuous TroughDSCT3SS | B35: Solid Surface - Corian | C35: Continuous Trough | D35: DSCT | E35: 3 | F35: SS | G35: DSCTSS-83000-CA | H35: DSCTSS-83000-CB | I35: DSCTSS-83000-CC | J35: DSCTSS-83000-CD | K35: N/A | L35: N/A | M35: N/A | N35: N/A | O35: N/A | P35: N/A
A36: Solid Surface - CorianContinuous TroughDSCT4SS | B36: Solid Surface - Corian | C36: Continuous Trough | D36: DSCT | E36: 4 | F36: SS | G36: DSCTSS-84000-CA | H36: DSCTSS-84000-CB | I36: DSCTSS-84000-CC | J36: DSCTSS-84000-CD | K36: N/A | L36: N/A | M36: N/A | N36: N/A | O36: N/A | P36: N/A
A37: Solid Surface - CorianContinuous TroughDSCT5SS | B37: Solid Surface - Corian | C37: Continuous Trough | D37: DSCT | E37: 5 | F37: SS | G37: DSCTSS-85000-CA | H37: DSCTSS-85000-CB | I37: DSCTSS-85000-CC | J37: DSCTSS-85000-CD | K37: N/A | L37: N/A | M37: N/A | N37: N/A | O37: N/A | P37: N/A
A38: Solid Surface - CorianContinuous TroughDSCT6+SS | B38: Solid Surface - Corian | C38: Continuous Trough | D38: DSCT | E38: 6+ | F38: SS | G38: DSCTSS-86+000-CA | H38: DSCTSS-86+000-CB | I38: DSCTSS-86+000-CC | J38: DSCTSS-86+000-CD | K38: N/A | L38: N/A | M38: N/A | N38: N/A | O38: N/A | P38: N/A
A39: Quartz - Corian QuartzContinuous TroughAD1 | B39: Quartz - Corian Quartz | C39: Continuous Trough | D39: AD | E39: 1 | G39: =$D39&F39 & "-8" & $E39 & "000-Q" &G$1 -> AD-81000-QA | H39: =$D39&F39 & "-8" & $E39 & "000-Q" &H$1 -> AD-81000-QB | I39: =$D39&F39 & "-8" & $E39 & "000-Q" &I$1 -> AD-81000-QC | J39: =$D39&F39 & "-8" & $E39 & "000-Q" &J$1 -> AD-81000-QD | K39: =$D39&F39 & "-8" & $E39 & "000-Q" &K$1 -> AD-81000-QE | L39: N/A | M39: N/A | N39: N/A | O39: N/A | P39: N/A
A40: Quartz - Corian QuartzContinuous TroughAD2 | B40: Quartz - Corian Quartz | C40: Continuous Trough | D40: AD | E40: 2 | G40: =$D40&F40 & "-8" & $E40 & "000-Q" &G$1 -> AD-82000-QA | H40: =$D40&F40 & "-8" & $E40 & "000-Q" &H$1 -> AD-82000-QB | I40: =$D40&F40 & "-8" & $E40 & "000-Q" &I$1 -> AD-82000-QC | J40: =$D40&F40 & "-8" & $E40 & "000-Q" &J$1 -> AD-82000-QD | K40: =$D40&F40 & "-8" & $E40 & "000-Q" &K$1 -> AD-82000-QE | L40: N/A | M40: N/A | N40: N/A | O40: N/A | P40: N/A
A41: Quartz - Corian QuartzContinuous TroughAD3 | B41: Quartz - Corian Quartz | C41: Continuous Trough | D41: AD | E41: 3 | G41: AD-83000-QA | H41: AD-83000-QB | I41: AD-83000-QC | J41: AD-83000-QD | K41: AD-83000-QE | L41: N/A | M41: N/A | N41: N/A | O41: N/A | P41: N/A
A42: Quartz - Corian QuartzContinuous TroughAD4 | B42: Quartz - Corian Quartz | C42: Continuous Trough | D42: AD | E42: 4 | G42: AD-84000-QA | H42: AD-84000-QB | I42: AD-84000-QC | J42: AD-84000-QD | K42: AD-84000-QE | L42: N/A | M42: N/A | N42: N/A | O42: N/A | P42: N/A
A43: Quartz - Corian QuartzContinuous TroughAD5 | B43: Quartz - Corian Quartz | C43: Continuous Trough | D43: AD | E43: 5 | G43: AD-85000-QA | H43: AD-85000-QB | I43: AD-85000-QC | J43: AD-85000-QD | K43: AD-85000-QE | L43: N/A | M43: N/A | N43: N/A | O43: N/A | P43: N/A
A44: Quartz - Corian QuartzContinuous TroughAD6+ | B44: Quartz - Corian Quartz | C44: Continuous Trough | D44: AD | E44: 6+ | G44: AD-86+000-QA | H44: AD-86+000-QB | I44: AD-86+000-QC | J44: AD-86+000-QD | K44: AD-86+000-QE | L44: N/A | M44: N/A | N44: N/A | O44: N/A | P44: N/A
A45: Quartz - Corian QuartzContinuous TroughDSG1 | B45: Quartz - Corian Quartz | C45: Continuous Trough | D45: DSG | E45: 1 | G45: DSG-81000-QA | H45: DSG-81000-QB | I45: DSG-81000-QC | J45: DSG-81000-QD | K45: DSG-81000-QE | L45: N/A | M45: N/A | N45: N/A | O45: N/A | P45: N/A
A46: Quartz - Corian QuartzContinuous TroughDSG2 | B46: Quartz - Corian Quartz | C46: Continuous Trough | D46: DSG | E46: 2 | G46: DSG-82000-QA | H46: DSG-82000-QB | I46: DSG-82000-QC | J46: DSG-82000-QD | K46: DSG-82000-QE | L46: N/A | M46: N/A | N46: N/A | O46: N/A | P46: N/A
A47: Quartz - Corian QuartzContinuous TroughDSG3 | B47: Quartz - Corian Quartz | C47: Continuous Trough | D47: DSG | E47: 3 | G47: DSG-83000-QA | H47: DSG-83000-QB | I47: DSG-83000-QC | J47: DSG-83000-QD | K47: DSG-83000-QE | L47: N/A | M47: N/A | N47: N/A | O47: N/A | P47: N/A
A48: Quartz - Corian QuartzContinuous TroughDSG4 | B48: Quartz - Corian Quartz | C48: Continuous Trough | D48: DSG | E48: 4 | G48: DSG-84000-QA | H48: DSG-84000-QB | I48: DSG-84000-QC | J48: DSG-84000-QD | K48: DSG-84000-QE | L48: N/A | M48: N/A | N48: N/A | O48: N/A | P48: N/A
A49: Quartz - Corian QuartzContinuous TroughDSG5 | B49: Quartz - Corian Quartz | C49: Continuous Trough | D49: DSG | E49: 5 | G49: DSG-85000-QA | H49: DSG-85000-QB | I49: DSG-85000-QC | J49: DSG-85000-QD | K49: DSG-85000-QE | L49: N/A | M49: N/A | N49: N/A | O49: N/A | P49: N/A
A50: Quartz - Corian QuartzContinuous TroughDSG6+ | B50: Quartz - Corian Quartz | C50: Continuous Trough | D50: DSG | E50: 6+ | G50: DSG-86+000-QA | H50: DSG-86+000-QB | I50: DSG-86+000-QC | J50: DSG-86+000-QD | K50: DSG-86+000-QE | L50: N/A | M50: N/A | N50: N/A | O50: N/A | P50: N/A
A51: Quartz - Corian QuartzContinuous TroughDSWD1 | B51: Quartz - Corian Quartz | C51: Continuous Trough | D51: DSWD | E51: 1 | G51: DSWD-81000-QA | H51: DSWD-81000-QB | I51: DSWD-81000-QC | J51: DSWD-81000-QD | K51: DSWD-81000-QE | L51: N/A | M51: N/A | N51: N/A | O51: N/A | P51: N/A
A52: Quartz - Corian QuartzContinuous TroughDSWD2 | B52: Quartz - Corian Quartz | C52: Continuous Trough | D52: DSWD | E52: 2 | G52: DSWD-82000-QA | H52: DSWD-82000-QB | I52: DSWD-82000-QC | J52: DSWD-82000-QD | K52: DSWD-82000-QE | L52: N/A | M52: N/A | N52: N/A | O52: N/A | P52: N/A
A53: Quartz - Corian QuartzContinuous TroughDSWD3 | B53: Quartz - Corian Quartz | C53: Continuous Trough | D53: DSWD | E53: 3 | G53: DSWD-83000-QA | H53: DSWD-83000-QB | I53: DSWD-83000-QC | J53: DSWD-83000-QD | K53: DSWD-83000-QE | L53: N/A | M53: N/A | N53: N/A | O53: N/A | P53: N/A
A54: Quartz - Corian QuartzContinuous TroughDSWD4 | B54: Quartz - Corian Quartz | C54: Continuous Trough | D54: DSWD | E54: 4 | G54: DSWD-84000-QA | H54: DSWD-84000-QB | I54: DSWD-84000-QC | J54: DSWD-84000-QD | K54: DSWD-84000-QE | L54: N/A | M54: N/A | N54: N/A | O54: N/A | P54: N/A
A55: Quartz - Corian QuartzContinuous TroughDSWD5 | B55: Quartz - Corian Quartz | C55: Continuous Trough | D55: DSWD | E55: 5 | G55: DSWD-85000-QA | H55: DSWD-85000-QB | I55: DSWD-85000-QC | J55: DSWD-85000-QD | K55: DSWD-85000-QE | L55: N/A | M55: N/A | N55: N/A | O55: N/A | P55: N/A
A56: Quartz - Corian QuartzContinuous TroughDSWD6+ | B56: Quartz - Corian Quartz | C56: Continuous Trough | D56: DSWD | E56: 6+ | G56: DSWD-86+000-QA | H56: DSWD-86+000-QB | I56: DSWD-86+000-QC | J56: DSWD-86+000-QD | K56: DSWD-86+000-QE | L56: N/A | M56: N/A | N56: N/A | O56: N/A | P56: N/A
A57: Quartz - Corian QuartzContinuous TroughDSOF1 | B57: Quartz - Corian Quartz | C57: Continuous Trough | D57: DSOF | E57: 1 | G57: DSOF-81000-QA | H57: DSOF-81000-QB | I57: DSOF-81000-QC | J57: DSOF-81000-QD | K57: DSOF-81000-QE | L57: N/A | M57: N/A | N57: N/A | O57: N/A | P57: N/A
A58: Quartz - Corian QuartzContinuous TroughDSOF2 | B58: Quartz - Corian Quartz | C58: Continuous Trough | D58: DSOF | E58: 2 | G58: DSOF-82000-QA | H58: DSOF-82000-QB | I58: DSOF-82000-QC | J58: DSOF-82000-QD | K58: DSOF-82000-QE | L58: N/A | M58: N/A | N58: N/A | O58: N/A | P58: N/A
A59: Quartz - Corian QuartzContinuous TroughDSOF3 | B59: Quartz - Corian Quartz | C59: Continuous Trough | D59: DSOF | E59: 3 | G59: DSOF-83000-QA | H59: DSOF-83000-QB | I59: DSOF-83000-QC | J59: DSOF-83000-QD | K59: DSOF-83000-QE | L59: N/A | M59: N/A | N59: N/A | O59: N/A | P59: N/A
A60: Quartz - Corian QuartzContinuous TroughDSOF4 | B60: Quartz - Corian Quartz | C60: Continuous Trough | D60: DSOF | E60: 4 | G60: DSOF-84000-QA | H60: DSOF-84000-QB | I60: DSOF-84000-QC | J60: DSOF-84000-QD | K60: DSOF-84000-QE | L60: N/A | M60: N/A | N60: N/A | O60: N/A | P60: N/A
A61: Quartz - Corian QuartzContinuous TroughDSOF5 | B61: Quartz - Corian Quartz | C61: Continuous Trough | D61: DSOF | E61: 5 | G61: DSOF-85000-QA | H61: DSOF-85000-QB | I61: DSOF-85000-QC | J61: DSOF-85000-QD | K61: DSOF-85000-QE | L61: N/A | M61: N/A | N61: N/A | O61: N/A | P61: N/A
A62: Quartz - Corian QuartzContinuous TroughDSOF6+ | B62: Quartz - Corian Quartz | C62: Continuous Trough | D62: DSOF | E62: 6+ | G62: DSOF-86+000-QA | H62: DSOF-86+000-QB | I62: DSOF-86+000-QC | J62: DSOF-86+000-QD | K62: DSOF-86+000-QE | L62: N/A | M62: N/A | N62: N/A | O62: N/A | P62: N/A
A63: Quartz - Corian QuartzContinuous TroughDSUP1 | B63: Quartz - Corian Quartz | C63: Continuous Trough | D63: DSUP | E63: 1 | G63: DSUP-81000-QA | H63: DSUP-81000-QB | I63: DSUP-81000-QC | J63: DSUP-81000-QD | K63: DSUP-81000-QE | L63: N/A | M63: N/A | N63: N/A | O63: N/A | P63: N/A
A64: Quartz - Corian QuartzContinuous TroughDSVR1 | B64: Quartz - Corian Quartz | C64: Continuous Trough | D64: DSVR | E64: 1 | G64: DSVR-81000-QA | H64: DSVR-81000-QB | I64: DSVR-81000-QC | J64: DSVR-81000-QD | K64: DSVR-81000-QE | L64: N/A | M64: N/A | N64: N/A | O64: N/A | P64: N/A
A65: Quartz - Corian QuartzContinuous TroughDSVR2 | B65: Quartz - Corian Quartz | C65: Continuous Trough | D65: DSVR | E65: 2 | G65: DSVR-82000-QA | H65: DSVR-82000-QB | I65: DSVR-82000-QC | J65: DSVR-82000-QD | K65: DSVR-82000-QE | L65: N/A | M65: N/A | N65: N/A | O65: N/A | P65: N/A
A66: Quartz - Corian QuartzContinuous TroughDSVR3 | B66: Quartz - Corian Quartz | C66: Continuous Trough | D66: DSVR | E66: 3 | G66: DSVR-83000-QA | H66: DSVR-83000-QB | I66: DSVR-83000-QC | J66: DSVR-83000-QD | K66: DSVR-83000-QE | L66: N/A | M66: N/A | N66: N/A | O66: N/A | P66: N/A
A67: =CONCATENATE(B67,C67,D67,E67,F67) -> Quartz - Corian QuartzContinuous TroughDSVR4 | B67: Quartz - Corian Quartz | C67: Continuous Trough | D67: DSVR | E67: 4 | G67: DSVR-84000-QA | H67: DSVR-84000-QB | I67: DSVR-84000-QC | J67: DSVR-84000-QD | K67: DSVR-84000-QE | L67: N/A | M67: N/A | N67: N/A | O67: N/A | P67: N/A
A68: Quartz - Corian QuartzContinuous TroughDSVR5 | B68: Quartz - Corian Quartz | C68: Continuous Trough | D68: DSVR | E68: 5 | G68: DSVR-85000-QA | H68: DSVR-85000-QB | I68: DSVR-85000-QC | J68: DSVR-85000-QD | K68: DSVR-85000-QE | L68: N/A | M68: N/A | N68: N/A | O68: N/A | P68: N/A
A69: Quartz - Corian QuartzContinuous TroughDSVR6+ | B69: Quartz - Corian Quartz | C69: Continuous Trough | D69: DSVR | E69: 6+ | G69: DSVR-86+000-QA | H69: DSVR-86+000-QB | I69: DSVR-86+000-QC | J69: DSVR-86+000-QD | K69: DSVR-86+000-QE | L69: N/A | M69: N/A | N69: N/A | O69: N/A | P69: N/A
A70: Quartz - Corian QuartzContinuous TroughDSCT1SS | B70: Quartz - Corian Quartz | C70: Continuous Trough | D70: DSCT | E70: 1 | F70: SS | G70: DSCTSS-81000-QA | H70: DSCTSS-81000-QB | I70: DSCTSS-81000-QC | J70: DSCTSS-81000-QD | K70: DSCTSS-81000-QE | L70: N/A | M70: N/A | N70: N/A | O70: N/A | P70: N/A
A71: Quartz - Corian QuartzContinuous TroughDSCT2SS | B71: Quartz - Corian Quartz | C71: Continuous Trough | D71: DSCT | E71: 2 | F71: SS | G71: DSCTSS-82000-QA | H71: DSCTSS-82000-QB | I71: DSCTSS-82000-QC | J71: DSCTSS-82000-QD | K71: DSCTSS-82000-QE | L71: N/A | M71: N/A | N71: N/A | O71: N/A | P71: N/A
A72: Quartz - Corian QuartzContinuous TroughDSCT3SS | B72: Quartz - Corian Quartz | C72: Continuous Trough | D72: DSCT | E72: 3 | F72: SS | G72: DSCTSS-83000-QA | H72: DSCTSS-83000-QB | I72: DSCTSS-83000-QC | J72: DSCTSS-83000-QD | K72: DSCTSS-83000-QE | L72: N/A | M72: N/A | N72: N/A | O72: N/A | P72: N/A
A73: Quartz - Corian QuartzContinuous TroughDSCT4SS | B73: Quartz - Corian Quartz | C73: Continuous Trough | D73: DSCT | E73: 4 | F73: SS | G73: DSCTSS-84000-QA | H73: DSCTSS-84000-QB | I73: DSCTSS-84000-QC | J73: DSCTSS-84000-QD | K73: DSCTSS-84000-QE | L73: N/A | M73: N/A | N73: N/A | O73: N/A | P73: N/A
A74: Quartz - Corian QuartzContinuous TroughDSCT5SS | B74: Quartz - Corian Quartz | C74: Continuous Trough | D74: DSCT | E74: 5 | F74: SS | G74: DSCTSS-85000-QA | H74: DSCTSS-85000-QB | I74: DSCTSS-85000-QC | J74: DSCTSS-85000-QD | K74: DSCTSS-85000-QE | L74: N/A | M74: N/A | N74: N/A | O74: N/A | P74: N/A
A75: Quartz - Corian QuartzContinuous TroughDSCT6+SS | B75: Quartz - Corian Quartz | C75: Continuous Trough | D75: DSCT | E75: 6+ | F75: SS | G75: DSCTSS-86+000-QA | H75: DSCTSS-86+000-QB | I75: DSCTSS-86+000-QC | J75: DSCTSS-86+000-QD | K75: DSCTSS-86+000-QE | L75: N/A | M75: N/A | N75: N/A | O75: N/A | P75: N/A
A76: Quartz - SilestoneContinuous TroughAD1 | B76: Quartz - Silestone | C76: Continuous Trough | D76: AD | E76: 1 | G76: AD-81000-QA | H76: AD-81000-QB | I76: AD-81000-QC | J76: AD-81000-QD | K76: AD-81000-QE | L76: N/A | M76: N/A | N76: N/A | O76: N/A | P76: N/A
A77: Quartz - SilestoneContinuous TroughAD2 | B77: Quartz - Silestone | C77: Continuous Trough | D77: AD | E77: 2 | G77: AD-82000-QA | H77: AD-82000-QB | I77: AD-82000-QC | J77: AD-82000-QD | K77: AD-82000-QE | L77: N/A | M77: N/A | N77: N/A | O77: N/A | P77: N/A
A78: Quartz - SilestoneContinuous TroughAD3 | B78: Quartz - Silestone | C78: Continuous Trough | D78: AD | E78: 3 | G78: AD-83000-QA | H78: AD-83000-QB | I78: AD-83000-QC | J78: AD-83000-QD | K78: AD-83000-QE | L78: N/A | M78: N/A | N78: N/A | O78: N/A | P78: N/A
A79: Quartz - SilestoneContinuous TroughAD4 | B79: Quartz - Silestone | C79: Continuous Trough | D79: AD | E79: 4 | G79: AD-84000-QA | H79: AD-84000-QB | I79: AD-84000-QC | J79: AD-84000-QD | K79: AD-84000-QE | L79: N/A | M79: N/A | N79: N/A | O79: N/A | P79: N/A
A80: Quartz - SilestoneContinuous TroughAD5 | B80: Quartz - Silestone | C80: Continuous Trough | D80: AD | E80: 5 | G80: AD-85000-QA | H80: AD-85000-QB | I80: AD-85000-QC | J80: AD-85000-QD | K80: AD-85000-QE | L80: N/A | M80: N/A | N80: N/A | O80: N/A | P80: N/A
A81: Quartz - SilestoneContinuous TroughAD6+ | B81: Quartz - Silestone | C81: Continuous Trough | D81: AD | E81: 6+ | G81: AD-86+000-QA | H81: AD-86+000-QB | I81: AD-86+000-QC | J81: AD-86+000-QD | K81: AD-86+000-QE | L81: N/A | M81: N/A | N81: N/A | O81: N/A | P81: N/A
A82: Quartz - SilestoneContinuous TroughDSG1 | B82: Quartz - Silestone | C82: Continuous Trough | D82: DSG | E82: 1 | G82: DSG-81000-QA | H82: DSG-81000-QB | I82: DSG-81000-QC | J82: DSG-81000-QD | K82: DSG-81000-QE | L82: N/A | M82: N/A | N82: N/A | O82: N/A | P82: N/A
A83: Quartz - SilestoneContinuous TroughDSG2 | B83: Quartz - Silestone | C83: Continuous Trough | D83: DSG | E83: 2 | G83: DSG-82000-QA | H83: DSG-82000-QB | I83: DSG-82000-QC | J83: DSG-82000-QD | K83: DSG-82000-QE | L83: N/A | M83: N/A | N83: N/A | O83: N/A | P83: N/A
A84: Quartz - SilestoneContinuous TroughDSG3 | B84: Quartz - Silestone | C84: Continuous Trough | D84: DSG | E84: 3 | G84: DSG-83000-QA | H84: DSG-83000-QB | I84: DSG-83000-QC | J84: DSG-83000-QD | K84: DSG-83000-QE | L84: N/A | M84: N/A | N84: N/A | O84: N/A | P84: N/A
A85: Quartz - SilestoneContinuous TroughDSG4 | B85: Quartz - Silestone | C85: Continuous Trough | D85: DSG | E85: 4 | G85: DSG-84000-QA | H85: DSG-84000-QB | I85: DSG-84000-QC | J85: DSG-84000-QD | K85: DSG-84000-QE | L85: N/A | M85: N/A | N85: N/A | O85: N/A | P85: N/A
A86: Quartz - SilestoneContinuous TroughDSG5 | B86: Quartz - Silestone | C86: Continuous Trough | D86: DSG | E86: 5 | G86: DSG-85000-QA | H86: DSG-85000-QB | I86: DSG-85000-QC | J86: DSG-85000-QD | K86: DSG-85000-QE | L86: N/A | M86: N/A | N86: N/A | O86: N/A | P86: N/A
A87: Quartz - SilestoneContinuous TroughDSG6+ | B87: Quartz - Silestone | C87: Continuous Trough | D87: DSG | E87: 6+ | G87: DSG-86+000-QA | H87: DSG-86+000-QB | I87: DSG-86+000-QC | J87: DSG-86+000-QD | K87: DSG-86+000-QE | L87: N/A | M87: N/A | N87: N/A | O87: N/A | P87: N/A
A88: Quartz - SilestoneContinuous TroughDSWD1 | B88: Quartz - Silestone | C88: Continuous Trough | D88: DSWD | E88: 1 | G88: DSWD-81000-QA | H88: DSWD-81000-QB | I88: DSWD-81000-QC | J88: DSWD-81000-QD | K88: DSWD-81000-QE | L88: N/A | M88: N/A | N88: N/A | O88: N/A | P88: N/A
A89: Quartz - SilestoneContinuous TroughDSWD2 | B89: Quartz - Silestone | C89: Continuous Trough | D89: DSWD | E89: 2 | G89: DSWD-82000-QA | H89: DSWD-82000-QB | I89: DSWD-82000-QC | J89: DSWD-82000-QD | K89: DSWD-82000-QE | L89: N/A | M89: N/A | N89: N/A | O89: N/A | P89: N/A
A90: Quartz - SilestoneContinuous TroughDSWD3 | B90: Quartz - Silestone | C90: Continuous Trough | D90: DSWD | E90: 3 | G90: DSWD-83000-QA | H90: DSWD-83000-QB | I90: DSWD-83000-QC | J90: DSWD-83000-QD | K90: DSWD-83000-QE | L90: N/A | M90: N/A | N90: N/A | O90: N/A | P90: N/A
A91: Quartz - SilestoneContinuous TroughDSWD4 | B91: Quartz - Silestone | C91: Continuous Trough | D91: DSWD | E91: 4 | G91: DSWD-84000-QA | H91: DSWD-84000-QB | I91: DSWD-84000-QC | J91: DSWD-84000-QD | K91: DSWD-84000-QE | L91: N/A | M91: N/A | N91: N/A | O91: N/A | P91: N/A
A92: Quartz - SilestoneContinuous TroughDSWD5 | B92: Quartz - Silestone | C92: Continuous Trough | D92: DSWD | E92: 5 | G92: DSWD-85000-QA | H92: DSWD-85000-QB | I92: DSWD-85000-QC | J92: DSWD-85000-QD | K92: DSWD-85000-QE | L92: N/A | M92: N/A | N92: N/A | O92: N/A | P92: N/A
A93: Quartz - SilestoneContinuous TroughDSWD6+ | B93: Quartz - Silestone | C93: Continuous Trough | D93: DSWD | E93: 6+ | G93: DSWD-86+000-QA | H93: DSWD-86+000-QB | I93: DSWD-86+000-QC | J93: DSWD-86+000-QD | K93: DSWD-86+000-QE | L93: N/A | M93: N/A | N93: N/A | O93: N/A | P93: N/A
A94: Quartz - SilestoneContinuous TroughDSOF1 | B94: Quartz - Silestone | C94: Continuous Trough | D94: DSOF | E94: 1 | G94: DSOF-81000-QA | H94: DSOF-81000-QB | I94: DSOF-81000-QC | J94: DSOF-81000-QD | K94: DSOF-81000-QE | L94: N/A | M94: N/A | N94: N/A | O94: N/A | P94: N/A
A95: Quartz - SilestoneContinuous TroughDSOF2 | B95: Quartz - Silestone | C95: Continuous Trough | D95: DSOF | E95: 2 | G95: DSOF-82000-QA | H95: DSOF-82000-QB | I95: DSOF-82000-QC | J95: DSOF-82000-QD | K95: DSOF-82000-QE | L95: N/A | M95: N/A | N95: N/A | O95: N/A | P95: N/A
A96: Quartz - SilestoneContinuous TroughDSOF3 | B96: Quartz - Silestone | C96: Continuous Trough | D96: DSOF | E96: 3 | G96: DSOF-83000-QA | H96: DSOF-83000-QB | I96: DSOF-83000-QC | J96: DSOF-83000-QD | K96: DSOF-83000-QE | L96: N/A | M96: N/A | N96: N/A | O96: N/A | P96: N/A
A97: Quartz - SilestoneContinuous TroughDSOF4 | B97: Quartz - Silestone | C97: Continuous Trough | D97: DSOF | E97: 4 | G97: DSOF-84000-QA | H97: DSOF-84000-QB | I97: DSOF-84000-QC | J97: DSOF-84000-QD | K97: DSOF-84000-QE | L97: N/A | M97: N/A | N97: N/A | O97: N/A | P97: N/A
A98: Quartz - SilestoneContinuous TroughDSOF5 | B98: Quartz - Silestone | C98: Continuous Trough | D98: DSOF | E98: 5 | G98: DSOF-85000-QA | H98: DSOF-85000-QB | I98: DSOF-85000-QC | J98: DSOF-85000-QD | K98: DSOF-85000-QE | L98: N/A | M98: N/A | N98: N/A | O98: N/A | P98: N/A
A99: Quartz - SilestoneContinuous TroughDSOF6+ | B99: Quartz - Silestone | C99: Continuous Trough | D99: DSOF | E99: 6+ | G99: DSOF-86+000-QA | H99: DSOF-86+000-QB | I99: DSOF-86+000-QC | J99: DSOF-86+000-QD | K99: DSOF-86+000-QE | L99: N/A | M99: N/A | N99: N/A | O99: N/A | P99: N/A
A100: Quartz - SilestoneContinuous TroughDSUP1 | B100: Quartz - Silestone | C100: Continuous Trough | D100: DSUP | E100: 1 | G100: DSUP-81000-QA | H100: DSUP-81000-QB | I100: DSUP-81000-QC | J100: DSUP-81000-QD | K100: DSUP-81000-QE | L100: N/A | M100: N/A | N100: N/A | O100: N/A | P100: N/A
A101: Quartz - SilestoneContinuous TroughDSVR1 | B101: Quartz - Silestone | C101: Continuous Trough | D101: DSVR | E101: 1 | G101: DSVR-81000-QA | H101: DSVR-81000-QB | I101: DSVR-81000-QC | J101: DSVR-81000-QD | K101: DSVR-81000-QE | L101: N/A | M101: N/A | N101: N/A | O101: N/A | P101: N/A
A102: Quartz - SilestoneContinuous TroughDSVR2 | B102: Quartz - Silestone | C102: Continuous Trough | D102: DSVR | E102: 2 | G102: DSVR-82000-QA | H102: DSVR-82000-QB | I102: DSVR-82000-QC | J102: DSVR-82000-QD | K102: DSVR-82000-QE | L102: N/A | M102: N/A | N102: N/A | O102: N/A | P102: N/A
A103: Quartz - SilestoneContinuous TroughDSVR3 | B103: Quartz - Silestone | C103: Continuous Trough | D103: DSVR | E103: 3 | G103: DSVR-83000-QA | H103: DSVR-83000-QB | I103: DSVR-83000-QC | J103: DSVR-83000-QD | K103: DSVR-83000-QE | L103: N/A | M103: N/A | N103: N/A | O103: N/A | P103: N/A
A104: Quartz - SilestoneContinuous TroughDSVR4 | B104: Quartz - Silestone | C104: Continuous Trough | D104: DSVR | E104: 4 | G104: =$D104&F104 & "-8" & $E104 & "000-Q" &G$1 -> DSVR-84000-QA | H104: =$D104&F104 & "-8" & $E104 & "000-Q" &H$1 -> DSVR-84000-QB | I104: =$D104&F104 & "-8" & $E104 & "000-Q" &I$1 -> DSVR-84000-QC | J104: =$D104&F104 & "-8" & $E104 & "000-Q" &J$1 -> DSVR-84000-QD | K104: =$D104&F104 & "-8" & $E104 & "000-Q" &K$1 -> DSVR-84000-QE | L104: N/A | M104: N/A | N104: N/A | O104: N/A | P104: N/A
A105: Quartz - SilestoneContinuous TroughDSVR5 | B105: Quartz - Silestone | C105: Continuous Trough | D105: DSVR | E105: 5 | G105: DSVR-85000-QA | H105: DSVR-85000-QB | I105: DSVR-85000-QC | J105: DSVR-85000-QD | K105: DSVR-85000-QE | L105: N/A | M105: N/A | N105: N/A | O105: N/A | P105: N/A
A106: Quartz - SilestoneContinuous TroughDSVR6+ | B106: Quartz - Silestone | C106: Continuous Trough | D106: DSVR | E106: 6+ | G106: DSVR-86+000-QA | H106: DSVR-86+000-QB | I106: DSVR-86+000-QC | J106: DSVR-86+000-QD | K106: DSVR-86+000-QE | L106: N/A | M106: N/A | N106: N/A | O106: N/A | P106: N/A
A107: Quartz - SilestoneContinuous TroughDSCT1SS | B107: Quartz - Silestone | C107: Continuous Trough | D107: DSCT | E107: 1 | F107: SS | G107: DSCTSS-81000-QA | H107: DSCTSS-81000-QB | I107: DSCTSS-81000-QC | J107: DSCTSS-81000-QD | K107: DSCTSS-81000-QE | L107: N/A | M107: N/A | N107: N/A | O107: N/A | P107: N/A
A108: Quartz - SilestoneContinuous TroughDSCT2SS | B108: Quartz - Silestone | C108: Continuous Trough | D108: DSCT | E108: 2 | F108: SS | G108: DSCTSS-82000-QA | H108: DSCTSS-82000-QB | I108: DSCTSS-82000-QC | J108: DSCTSS-82000-QD | K108: DSCTSS-82000-QE | L108: N/A | M108: N/A | N108: N/A | O108: N/A | P108: N/A
A109: Quartz - SilestoneContinuous TroughDSCT3SS | B109: Quartz - Silestone | C109: Continuous Trough | D109: DSCT | E109: 3 | F109: SS | G109: DSCTSS-83000-QA | H109: DSCTSS-83000-QB | I109: DSCTSS-83000-QC | J109: DSCTSS-83000-QD | K109: DSCTSS-83000-QE | L109: N/A | M109: N/A | N109: N/A | O109: N/A | P109: N/A
A110: Quartz - SilestoneContinuous TroughDSCT4SS | B110: Quartz - Silestone | C110: Continuous Trough | D110: DSCT | E110: 4 | F110: SS | G110: DSCTSS-84000-QA | H110: DSCTSS-84000-QB | I110: DSCTSS-84000-QC | J110: DSCTSS-84000-QD | K110: DSCTSS-84000-QE | L110: N/A | M110: N/A | N110: N/A | O110: N/A | P110: N/A
A111: Quartz - SilestoneContinuous TroughDSCT5SS | B111: Quartz - Silestone | C111: Continuous Trough | D111: DSCT | E111: 5 | F111: SS | G111: DSCTSS-85000-QA | H111: DSCTSS-85000-QB | I111: DSCTSS-85000-QC | J111: DSCTSS-85000-QD | K111: DSCTSS-85000-QE | L111: N/A | M111: N/A | N111: N/A | O111: N/A | P111: N/A
A112: Quartz - SilestoneContinuous TroughDSCT6+SS | B112: Quartz - Silestone | C112: Continuous Trough | D112: DSCT | E112: 6+ | F112: SS | G112: DSCTSS-86+000-QA | H112: DSCTSS-86+000-QB | I112: DSCTSS-86+000-QC | J112: DSCTSS-86+000-QD | K112: DSCTSS-86+000-QE | L112: N/A | M112: N/A | N112: N/A | O112: N/A | P112: N/A
A113: Solid Surface - CorianIndividual BasinAD1 | B113: Solid Surface - Corian | C113: Individual Basin | D113: AD | E113: 1 | G113: =$D113&F113 & "-8" & $E113 & "000-C" &G$1 -> AD-81000-CA | H113: =$D113&F113 & "-8" & $E113 & "000-C" &H$1 -> AD-81000-CB | I113: =$D113&F113 & "-8" & $E113 & "000-C" &I$1 -> AD-81000-CC | J113: =$D113&F113 & "-8" & $E113 & "000-C" &J$1 -> AD-81000-CD | K113: N/A | L113: N/A | M113: N/A | N113: N/A | O113: N/A | P113: N/A
A114: Solid Surface - CorianIndividual BasinAD2 | B114: Solid Surface - Corian | C114: Individual Basin | D114: AD | E114: 2 | G114: AD-82000-CA | H114: AD-82000-CB | I114: AD-82000-CC | J114: AD-82000-CD | K114: N/A | L114: N/A | M114: N/A | N114: N/A | O114: N/A | P114: N/A
A115: Solid Surface - CorianIndividual BasinAD3 | B115: Solid Surface - Corian | C115: Individual Basin | D115: AD | E115: 3 | G115: AD-83000-CA | H115: AD-83000-CB | I115: AD-83000-CC | J115: AD-83000-CD | K115: N/A | L115: N/A | M115: N/A | N115: N/A | O115: N/A | P115: N/A
A116: Solid Surface - CorianIndividual BasinAD4 | B116: Solid Surface - Corian | C116: Individual Basin | D116: AD | E116: 4 | G116: AD-84000-CA | H116: AD-84000-CB | I116: AD-84000-CC | J116: AD-84000-CD | K116: N/A | L116: N/A | M116: N/A | N116: N/A | O116: N/A | P116: N/A
A117: Solid Surface - CorianIndividual BasinAD5 | B117: Solid Surface - Corian | C117: Individual Basin | D117: AD | E117: 5 | G117: AD-85000-CA | H117: AD-85000-CB | I117: AD-85000-CC | J117: AD-85000-CD | K117: N/A | L117: N/A | M117: N/A | N117: N/A | O117: N/A | P117: N/A
A118: Solid Surface - CorianIndividual BasinAD6+ | B118: Solid Surface - Corian | C118: Individual Basin | D118: AD | E118: 6+ | G118: AD-86+000-CA | H118: AD-86+000-CB | I118: AD-86+000-CC | J118: AD-86+000-CD | K118: N/A | L118: N/A | M118: N/A | N118: N/A | O118: N/A | P118: N/A
A119: Solid Surface - CorianIndividual BasinDSG1 | B119: Solid Surface - Corian | C119: Individual Basin | D119: DSG | E119: 1 | G119: DSG-81000-CA | H119: DSG-81000-CB | I119: DSG-81000-CC | J119: DSG-81000-CD | K119: N/A | L119: N/A | M119: N/A | N119: N/A | O119: N/A | P119: N/A
A120: Solid Surface - CorianIndividual BasinDSG2 | B120: Solid Surface - Corian | C120: Individual Basin | D120: DSG | E120: 2 | G120: DSG-82000-CA | H120: DSG-82000-CB | I120: DSG-82000-CC | J120: DSG-82000-CD | K120: N/A | L120: N/A | M120: N/A | N120: N/A | O120: N/A | P120: N/A
A121: Solid Surface - CorianIndividual BasinDSG3 | B121: Solid Surface - Corian | C121: Individual Basin | D121: DSG | E121: 3 | G121: DSG-83000-CA | H121: DSG-83000-CB | I121: DSG-83000-CC | J121: DSG-83000-CD | K121: N/A | L121: N/A | M121: N/A | N121: N/A | O121: N/A | P121: N/A
A122: Solid Surface - CorianIndividual BasinDSG4 | B122: Solid Surface - Corian | C122: Individual Basin | D122: DSG | E122: 4 | G122: DSG-84000-CA | H122: DSG-84000-CB | I122: DSG-84000-CC | J122: DSG-84000-CD | K122: N/A | L122: N/A | M122: N/A | N122: N/A | O122: N/A | P122: N/A
A123: Solid Surface - CorianIndividual BasinDSG5 | B123: Solid Surface - Corian | C123: Individual Basin | D123: DSG | E123: 5 | G123: DSG-85000-CA | H123: DSG-85000-CB | I123: DSG-85000-CC | J123: DSG-85000-CD | K123: N/A | L123: N/A | M123: N/A | N123: N/A | O123: N/A | P123: N/A
A124: Solid Surface - CorianIndividual BasinDSG6+ | B124: Solid Surface - Corian | C124: Individual Basin | D124: DSG | E124: 6+ | G124: DSG-86+000-CA | H124: DSG-86+000-CB | I124: DSG-86+000-CC | J124: DSG-86+000-CD | K124: N/A | L124: N/A | M124: N/A | N124: N/A | O124: N/A | P124: N/A
A125: Solid Surface - CorianIndividual BasinDSWD1 | B125: Solid Surface - Corian | C125: Individual Basin | D125: DSWD | E125: 1 | G125: DSWD-81000-CA | H125: DSWD-81000-CB | I125: DSWD-81000-CC | J125: DSWD-81000-CD | K125: N/A | L125: N/A | M125: N/A | N125: N/A | O125: N/A | P125: N/A
A126: Solid Surface - CorianIndividual BasinDSWD2 | B126: Solid Surface - Corian | C126: Individual Basin | D126: DSWD | E126: 2 | G126: DSWD-82000-CA | H126: DSWD-82000-CB | I126: DSWD-82000-CC | J126: DSWD-82000-CD | K126: N/A | L126: N/A | M126: N/A | N126: N/A | O126: N/A | P126: N/A
A127: Solid Surface - CorianIndividual BasinDSWD3 | B127: Solid Surface - Corian | C127: Individual Basin | D127: DSWD | E127: 3 | G127: DSWD-83000-CA | H127: DSWD-83000-CB | I127: DSWD-83000-CC | J127: DSWD-83000-CD | K127: N/A | L127: N/A | M127: N/A | N127: N/A | O127: N/A | P127: N/A
A128: Solid Surface - CorianIndividual BasinDSWD4 | B128: Solid Surface - Corian | C128: Individual Basin | D128: DSWD | E128: 4 | G128: DSWD-84000-CA | H128: DSWD-84000-CB | I128: DSWD-84000-CC | J128: DSWD-84000-CD | K128: N/A | L128: N/A | M128: N/A | N128: N/A | O128: N/A | P128: N/A
A129: Solid Surface - CorianIndividual BasinDSWD5 | B129: Solid Surface - Corian | C129: Individual Basin | D129: DSWD | E129: 5 | G129: DSWD-85000-CA | H129: DSWD-85000-CB | I129: DSWD-85000-CC | J129: DSWD-85000-CD | K129: N/A | L129: N/A | M129: N/A | N129: N/A | O129: N/A | P129: N/A
A130: Solid Surface - CorianIndividual BasinDSWD6+ | B130: Solid Surface - Corian | C130: Individual Basin | D130: DSWD | E130: 6+ | G130: DSWD-86+000-CA | H130: DSWD-86+000-CB | I130: DSWD-86+000-CC | J130: DSWD-86+000-CD | K130: N/A | L130: N/A | M130: N/A | N130: N/A | O130: N/A | P130: N/A
A131: =CONCATENATE(B131,C131,D131,E131,F131) -> Solid Surface - CorianIndividual BasinDSOF1 | B131: Solid Surface - Corian | C131: Individual Basin | D131: DSOF | E131: 1 | G131: =$D131&F131 & "-8" & $E131 & "000-C" &G$1 -> DSOF-81000-CA | H131: =$D131&F131 & "-8" & $E131 & "000-C" &H$1 -> DSOF-81000-CB | I131: =$D131&F131 & "-8" & $E131 & "000-C" &I$1 -> DSOF-81000-CC | J131: =$D131&F131 & "-8" & $E131 & "000-C" &J$1 -> DSOF-81000-CD | K131: N/A | L131: N/A | M131: N/A | N131: N/A | O131: N/A | P131: N/A
A132: Solid Surface - CorianIndividual BasinDSOF2 | B132: Solid Surface - Corian | C132: Individual Basin | D132: DSOF | E132: 2 | G132: DSOF-82000-CA | H132: DSOF-82000-CB | I132: DSOF-82000-CC | J132: DSOF-82000-CD | K132: N/A | L132: N/A | M132: N/A | N132: N/A | O132: N/A | P132: N/A
A133: Solid Surface - CorianIndividual BasinDSOF3 | B133: Solid Surface - Corian | C133: Individual Basin | D133: DSOF | E133: 3 | G133: DSOF-83000-CA | H133: DSOF-83000-CB | I133: DSOF-83000-CC | J133: DSOF-83000-CD | K133: N/A | L133: N/A | M133: N/A | N133: N/A | O133: N/A | P133: N/A
A134: Solid Surface - CorianIndividual BasinDSOF4 | B134: Solid Surface - Corian | C134: Individual Basin | D134: DSOF | E134: 4 | G134: DSOF-84000-CA | H134: DSOF-84000-CB | I134: DSOF-84000-CC | J134: DSOF-84000-CD | K134: N/A | L134: N/A | M134: N/A | N134: N/A | O134: N/A | P134: N/A
A135: Solid Surface - CorianIndividual BasinDSOF5 | B135: Solid Surface - Corian | C135: Individual Basin | D135: DSOF | E135: 5 | G135: DSOF-85000-CA | H135: DSOF-85000-CB | I135: DSOF-85000-CC | J135: DSOF-85000-CD | K135: N/A | L135: N/A | M135: N/A | N135: N/A | O135: N/A | P135: N/A
A136: Solid Surface - CorianIndividual BasinDSOF6+ | B136: Solid Surface - Corian | C136: Individual Basin | D136: DSOF | E136: 6+ | G136: DSOF-86+000-CA | H136: DSOF-86+000-CB | I136: DSOF-86+000-CC | J136: DSOF-86+000-CD | K136: N/A | L136: N/A | M136: N/A | N136: N/A | O136: N/A | P136: N/A
A137: Solid Surface - CorianIndividual BasinDSUP1 | B137: Solid Surface - Corian | C137: Individual Basin | D137: DSUP | E137: 1 | G137: DSUP-81000-CA | H137: DSUP-81000-CB | I137: DSUP-81000-CC | J137: DSUP-81000-CD | K137: N/A | L137: N/A | M137: N/A | N137: N/A | O137: N/A | P137: N/A
A138: Solid Surface - CorianIndividual BasinDSVR1 | B138: Solid Surface - Corian | C138: Individual Basin | D138: DSVR | E138: 1 | G138: DSVR-81000-CA | H138: DSVR-81000-CB | I138: DSVR-81000-CC | J138: DSVR-81000-CD | K138: N/A | L138: N/A | M138: N/A | N138: N/A | O138: N/A | P138: N/A
A139: Solid Surface - CorianIndividual BasinDSVR2 | B139: Solid Surface - Corian | C139: Individual Basin | D139: DSVR | E139: 2 | G139: DSVR-82000-CA | H139: DSVR-82000-CB | I139: DSVR-82000-CC | J139: DSVR-82000-CD | K139: N/A | L139: N/A | M139: N/A | N139: N/A | O139: N/A | P139: N/A
A140: Solid Surface - CorianIndividual BasinDSVR3 | B140: Solid Surface - Corian | C140: Individual Basin | D140: DSVR | E140: 3 | G140: DSVR-83000-CA | H140: DSVR-83000-CB | I140: DSVR-83000-CC | J140: DSVR-83000-CD | K140: N/A | L140: N/A | M140: N/A | N140: N/A | O140: N/A | P140: N/A
A141: Solid Surface - CorianIndividual BasinDSVR4 | B141: Solid Surface - Corian | C141: Individual Basin | D141: DSVR | E141: 4 | G141: DSVR-84000-CA | H141: DSVR-84000-CB | I141: DSVR-84000-CC | J141: DSVR-84000-CD | K141: N/A | L141: N/A | M141: N/A | N141: N/A | O141: N/A | P141: N/A
A142: Solid Surface - CorianIndividual BasinDSVR5 | B142: Solid Surface - Corian | C142: Individual Basin | D142: DSVR | E142: 5 | G142: DSVR-85000-CA | H142: DSVR-85000-CB | I142: DSVR-85000-CC | J142: DSVR-85000-CD | K142: N/A | L142: N/A | M142: N/A | N142: N/A | O142: N/A | P142: N/A
A143: Solid Surface - CorianIndividual BasinDSVR6+ | B143: Solid Surface - Corian | C143: Individual Basin | D143: DSVR | E143: 6+ | G143: DSVR-86+000-CA | H143: DSVR-86+000-CB | I143: DSVR-86+000-CC | J143: DSVR-86+000-CD | K143: N/A | L143: N/A | M143: N/A | N143: N/A | O143: N/A | P143: N/A
A144: Solid Surface - CorianIndividual BasinDSCT1SS | B144: Solid Surface - Corian | C144: Individual Basin | D144: DSCT | E144: 1 | F144: SS | G144: DSCTSS-81000-CA | H144: DSCTSS-81000-CB | I144: DSCTSS-81000-CC | J144: DSCTSS-81000-CD | K144: N/A | L144: N/A | M144: N/A | N144: N/A | O144: N/A | P144: N/A
A145: Solid Surface - CorianIndividual BasinDSCT2SS | B145: Solid Surface - Corian | C145: Individual Basin | D145: DSCT | E145: 2 | F145: SS | G145: DSCTSS-82000-CA | H145: DSCTSS-82000-CB | I145: DSCTSS-82000-CC | J145: DSCTSS-82000-CD | K145: N/A | L145: N/A | M145: N/A | N145: N/A | O145: N/A | P145: N/A
A146: Solid Surface - CorianIndividual BasinDSCT3SS | B146: Solid Surface - Corian | C146: Individual Basin | D146: DSCT | E146: 3 | F146: SS | G146: DSCTSS-83000-CA | H146: DSCTSS-83000-CB | I146: DSCTSS-83000-CC | J146: DSCTSS-83000-CD | K146: N/A | L146: N/A | M146: N/A | N146: N/A | O146: N/A | P146: N/A
A147: Solid Surface - CorianIndividual BasinDSCT4SS | B147: Solid Surface - Corian | C147: Individual Basin | D147: DSCT | E147: 4 | F147: SS | G147: DSCTSS-84000-CA | H147: DSCTSS-84000-CB | I147: DSCTSS-84000-CC | J147: DSCTSS-84000-CD | K147: N/A | L147: N/A | M147: N/A | N147: N/A | O147: N/A | P147: N/A
A148: Solid Surface - CorianIndividual BasinDSCT5SS | B148: Solid Surface - Corian | C148: Individual Basin | D148: DSCT | E148: 5 | F148: SS | G148: DSCTSS-85000-CA | H148: DSCTSS-85000-CB | I148: DSCTSS-85000-CC | J148: DSCTSS-85000-CD | K148: N/A | L148: N/A | M148: N/A | N148: N/A | O148: N/A | P148: N/A
A149: Solid Surface - CorianIndividual BasinDSCT6+SS | B149: Solid Surface - Corian | C149: Individual Basin | D149: DSCT | E149: 6+ | F149: SS | G149: DSCTSS-86+000-CA | H149: DSCTSS-86+000-CB | I149: DSCTSS-86+000-CC | J149: DSCTSS-86+000-CD | K149: N/A | L149: N/A | M149: N/A | N149: N/A | O149: N/A | P149: N/A
A150: Quartz - Corian QuartzIndividual BasinAD1 | B150: Quartz - Corian Quartz | C150: Individual Basin | D150: AD | E150: 1 | G150: =$D150&F150 & "-8" & $E150 & "000-Q" &G$1 -> AD-81000-QA | H150: =$D150&F150 & "-8" & $E150 & "000-Q" &H$1 -> AD-81000-QB | I150: =$D150&F150 & "-8" & $E150 & "000-Q" &I$1 -> AD-81000-QC | J150: =$D150&F150 & "-8" & $E150 & "000-Q" &J$1 -> AD-81000-QD | K150: =$D150&F150 & "-8" & $E150 & "000-Q" &K$1 -> AD-81000-QE | L150: N/A | M150: N/A | N150: N/A | O150: N/A | P150: N/A
A151: Quartz - Corian QuartzIndividual BasinAD2 | B151: Quartz - Corian Quartz | C151: Individual Basin | D151: AD | E151: 2 | G151: =$D151&F151 & "-8" & $E151 & "000-Q" &G$1 -> AD-82000-QA | H151: =$D151&F151 & "-8" & $E151 & "000-Q" &H$1 -> AD-82000-QB | I151: =$D151&F151 & "-8" & $E151 & "000-Q" &I$1 -> AD-82000-QC | J151: =$D151&F151 & "-8" & $E151 & "000-Q" &J$1 -> AD-82000-QD | K151: =$D151&F151 & "-8" & $E151 & "000-Q" &K$1 -> AD-82000-QE | L151: N/A | M151: N/A | N151: N/A | O151: N/A | P151: N/A
A152: Quartz - Corian QuartzIndividual BasinAD3 | B152: Quartz - Corian Quartz | C152: Individual Basin | D152: AD | E152: 3 | G152: AD-83000-QA | H152: AD-83000-QB | I152: AD-83000-QC | J152: AD-83000-QD | K152: AD-83000-QE | L152: N/A | M152: N/A | N152: N/A | O152: N/A | P152: N/A
A153: Quartz - Corian QuartzIndividual BasinAD4 | B153: Quartz - Corian Quartz | C153: Individual Basin | D153: AD | E153: 4 | G153: AD-84000-QA | H153: AD-84000-QB | I153: AD-84000-QC | J153: AD-84000-QD | K153: AD-84000-QE | L153: N/A | M153: N/A | N153: N/A | O153: N/A | P153: N/A
A154: Quartz - Corian QuartzIndividual BasinAD5 | B154: Quartz - Corian Quartz | C154: Individual Basin | D154: AD | E154: 5 | G154: AD-85000-QA | H154: AD-85000-QB | I154: AD-85000-QC | J154: AD-85000-QD | K154: AD-85000-QE | L154: N/A | M154: N/A | N154: N/A | O154: N/A | P154: N/A
A155: Quartz - Corian QuartzIndividual BasinAD6+ | B155: Quartz - Corian Quartz | C155: Individual Basin | D155: AD | E155: 6+ | G155: AD-86+000-QA | H155: AD-86+000-QB | I155: AD-86+000-QC | J155: AD-86+000-QD | K155: AD-86+000-QE | L155: N/A | M155: N/A | N155: N/A | O155: N/A | P155: N/A
A156: Quartz - Corian QuartzIndividual BasinDSG1 | B156: Quartz - Corian Quartz | C156: Individual Basin | D156: DSG | E156: 1 | G156: DSG-81000-QA | H156: DSG-81000-QB | I156: DSG-81000-QC | J156: DSG-81000-QD | K156: DSG-81000-QE | L156: N/A | M156: N/A | N156: N/A | O156: N/A | P156: N/A
A157: Quartz - Corian QuartzIndividual BasinDSG2 | B157: Quartz - Corian Quartz | C157: Individual Basin | D157: DSG | E157: 2 | G157: DSG-82000-QA | H157: DSG-82000-QB | I157: DSG-82000-QC | J157: DSG-82000-QD | K157: DSG-82000-QE | L157: N/A | M157: N/A | N157: N/A | O157: N/A | P157: N/A
A158: Quartz - Corian QuartzIndividual BasinDSG3 | B158: Quartz - Corian Quartz | C158: Individual Basin | D158: DSG | E158: 3 | G158: DSG-83000-QA | H158: DSG-83000-QB | I158: DSG-83000-QC | J158: DSG-83000-QD | K158: DSG-83000-QE | L158: N/A | M158: N/A | N158: N/A | O158: N/A | P158: N/A
A159: Quartz - Corian QuartzIndividual BasinDSG4 | B159: Quartz - Corian Quartz | C159: Individual Basin | D159: DSG | E159: 4 | G159: DSG-84000-QA | H159: DSG-84000-QB | I159: DSG-84000-QC | J159: DSG-84000-QD | K159: DSG-84000-QE | L159: N/A | M159: N/A | N159: N/A | O159: N/A | P159: N/A
A160: Quartz - Corian QuartzIndividual BasinDSG5 | B160: Quartz - Corian Quartz | C160: Individual Basin | D160: DSG | E160: 5 | G160: DSG-85000-QA | H160: DSG-85000-QB | I160: DSG-85000-QC | J160: DSG-85000-QD | K160: DSG-85000-QE | L160: N/A | M160: N/A | N160: N/A | O160: N/A | P160: N/A
A161: Quartz - Corian QuartzIndividual BasinDSG6+ | B161: Quartz - Corian Quartz | C161: Individual Basin | D161: DSG | E161: 6+ | G161: DSG-86+000-QA | H161: DSG-86+000-QB | I161: DSG-86+000-QC | J161: DSG-86+000-QD | K161: DSG-86+000-QE | L161: N/A | M161: N/A | N161: N/A | O161: N/A | P161: N/A
A162: Quartz - Corian QuartzIndividual BasinDSWD1 | B162: Quartz - Corian Quartz | C162: Individual Basin | D162: DSWD | E162: 1 | G162: DSWD-81000-QA | H162: DSWD-81000-QB | I162: DSWD-81000-QC | J162: DSWD-81000-QD | K162: DSWD-81000-QE | L162: N/A | M162: N/A | N162: N/A | O162: N/A | P162: N/A
A163: Quartz - Corian QuartzIndividual BasinDSWD2 | B163: Quartz - Corian Quartz | C163: Individual Basin | D163: DSWD | E163: 2 | G163: DSWD-82000-QA | H163: DSWD-82000-QB | I163: DSWD-82000-QC | J163: DSWD-82000-QD | K163: DSWD-82000-QE | L163: N/A | M163: N/A | N163: N/A | O163: N/A | P163: N/A
A164: Quartz - Corian QuartzIndividual BasinDSWD3 | B164: Quartz - Corian Quartz | C164: Individual Basin | D164: DSWD | E164: 3 | G164: DSWD-83000-QA | H164: DSWD-83000-QB | I164: DSWD-83000-QC | J164: DSWD-83000-QD | K164: DSWD-83000-QE | L164: N/A | M164: N/A | N164: N/A | O164: N/A | P164: N/A
A165: Quartz - Corian QuartzIndividual BasinDSWD4 | B165: Quartz - Corian Quartz | C165: Individual Basin | D165: DSWD | E165: 4 | G165: DSWD-84000-QA | H165: DSWD-84000-QB | I165: DSWD-84000-QC | J165: DSWD-84000-QD | K165: DSWD-84000-QE | L165: N/A | M165: N/A | N165: N/A | O165: N/A | P165: N/A
A166: Quartz - Corian QuartzIndividual BasinDSWD5 | B166: Quartz - Corian Quartz | C166: Individual Basin | D166: DSWD | E166: 5 | G166: DSWD-85000-QA | H166: DSWD-85000-QB | I166: DSWD-85000-QC | J166: DSWD-85000-QD | K166: DSWD-85000-QE | L166: N/A | M166: N/A | N166: N/A | O166: N/A | P166: N/A
A167: Quartz - Corian QuartzIndividual BasinDSWD6+ | B167: Quartz - Corian Quartz | C167: Individual Basin | D167: DSWD | E167: 6+ | G167: DSWD-86+000-QA | H167: DSWD-86+000-QB | I167: DSWD-86+000-QC | J167: DSWD-86+000-QD | K167: DSWD-86+000-QE | L167: N/A | M167: N/A | N167: N/A | O167: N/A | P167: N/A
A168: Quartz - Corian QuartzIndividual BasinDSOF1 | B168: Quartz - Corian Quartz | C168: Individual Basin | D168: DSOF | E168: 1 | G168: DSOF-81000-QA | H168: DSOF-81000-QB | I168: DSOF-81000-QC | J168: DSOF-81000-QD | K168: DSOF-81000-QE | L168: N/A | M168: N/A | N168: N/A | O168: N/A | P168: N/A
A169: Quartz - Corian QuartzIndividual BasinDSOF2 | B169: Quartz - Corian Quartz | C169: Individual Basin | D169: DSOF | E169: 2 | G169: DSOF-82000-QA | H169: DSOF-82000-QB | I169: DSOF-82000-QC | J169: DSOF-82000-QD | K169: DSOF-82000-QE | L169: N/A | M169: N/A | N169: N/A | O169: N/A | P169: N/A
A170: Quartz - Corian QuartzIndividual BasinDSOF3 | B170: Quartz - Corian Quartz | C170: Individual Basin | D170: DSOF | E170: 3 | G170: DSOF-83000-QA | H170: DSOF-83000-QB | I170: DSOF-83000-QC | J170: DSOF-83000-QD | K170: DSOF-83000-QE | L170: N/A | M170: N/A | N170: N/A | O170: N/A | P170: N/A
A171: Quartz - Corian QuartzIndividual BasinDSOF4 | B171: Quartz - Corian Quartz | C171: Individual Basin | D171: DSOF | E171: 4 | G171: DSOF-84000-QA | H171: DSOF-84000-QB | I171: DSOF-84000-QC | J171: DSOF-84000-QD | K171: DSOF-84000-QE | L171: N/A | M171: N/A | N171: N/A | O171: N/A | P171: N/A
A172: Quartz - Corian QuartzIndividual BasinDSOF5 | B172: Quartz - Corian Quartz | C172: Individual Basin | D172: DSOF | E172: 5 | G172: DSOF-85000-QA | H172: DSOF-85000-QB | I172: DSOF-85000-QC | J172: DSOF-85000-QD | K172: DSOF-85000-QE | L172: N/A | M172: N/A | N172: N/A | O172: N/A | P172: N/A
A173: Quartz - Corian QuartzIndividual BasinDSOF6+ | B173: Quartz - Corian Quartz | C173: Individual Basin | D173: DSOF | E173: 6+ | G173: DSOF-86+000-QA | H173: DSOF-86+000-QB | I173: DSOF-86+000-QC | J173: DSOF-86+000-QD | K173: DSOF-86+000-QE | L173: N/A | M173: N/A | N173: N/A | O173: N/A | P173: N/A
A174: Quartz - Corian QuartzIndividual BasinDSUP1 | B174: Quartz - Corian Quartz | C174: Individual Basin | D174: DSUP | E174: 1 | G174: DSUP-81000-QA | H174: DSUP-81000-QB | I174: DSUP-81000-QC | J174: DSUP-81000-QD | K174: DSUP-81000-QE | L174: N/A | M174: N/A | N174: N/A | O174: N/A | P174: N/A
A175: Quartz - Corian QuartzIndividual BasinDSVR1 | B175: Quartz - Corian Quartz | C175: Individual Basin | D175: DSVR | E175: 1 | G175: DSVR-81000-QA | H175: DSVR-81000-QB | I175: DSVR-81000-QC | J175: DSVR-81000-QD | K175: DSVR-81000-QE | L175: N/A | M175: N/A | N175: N/A | O175: N/A | P175: N/A
A176: Quartz - Corian QuartzIndividual BasinDSVR2 | B176: Quartz - Corian Quartz | C176: Individual Basin | D176: DSVR | E176: 2 | G176: DSVR-82000-QA | H176: DSVR-82000-QB | I176: DSVR-82000-QC | J176: DSVR-82000-QD | K176: DSVR-82000-QE | L176: N/A | M176: N/A | N176: N/A | O176: N/A | P176: N/A
A177: Quartz - Corian QuartzIndividual BasinDSVR3 | B177: Quartz - Corian Quartz | C177: Individual Basin | D177: DSVR | E177: 3 | G177: DSVR-83000-QA | H177: DSVR-83000-QB | I177: DSVR-83000-QC | J177: DSVR-83000-QD | K177: DSVR-83000-QE | L177: N/A | M177: N/A | N177: N/A | O177: N/A | P177: N/A
A178: Quartz - Corian QuartzIndividual BasinDSVR4 | B178: Quartz - Corian Quartz | C178: Individual Basin | D178: DSVR | E178: 4 | G178: DSVR-84000-QA | H178: DSVR-84000-QB | I178: DSVR-84000-QC | J178: DSVR-84000-QD | K178: DSVR-84000-QE | L178: N/A | M178: N/A | N178: N/A | O178: N/A | P178: N/A
A179: Quartz - Corian QuartzIndividual BasinDSVR5 | B179: Quartz - Corian Quartz | C179: Individual Basin | D179: DSVR | E179: 5 | G179: DSVR-85000-QA | H179: DSVR-85000-QB | I179: DSVR-85000-QC | J179: DSVR-85000-QD | K179: DSVR-85000-QE | L179: N/A | M179: N/A | N179: N/A | O179: N/A | P179: N/A
A180: Quartz - Corian QuartzIndividual BasinDSVR6+ | B180: Quartz - Corian Quartz | C180: Individual Basin | D180: DSVR | E180: 6+ | G180: DSVR-86+000-QA | H180: DSVR-86+000-QB | I180: DSVR-86+000-QC | J180: DSVR-86+000-QD | K180: DSVR-86+000-QE | L180: N/A | M180: N/A | N180: N/A | O180: N/A | P180: N/A
A181: Quartz - Corian QuartzIndividual BasinDSCT1SS | B181: Quartz - Corian Quartz | C181: Individual Basin | D181: DSCT | E181: 1 | F181: SS | G181: DSCTSS-81000-QA | H181: DSCTSS-81000-QB | I181: DSCTSS-81000-QC | J181: DSCTSS-81000-QD | K181: DSCTSS-81000-QE | L181: N/A | M181: N/A | N181: N/A | O181: N/A | P181: N/A
A182: Quartz - Corian QuartzIndividual BasinDSCT2SS | B182: Quartz - Corian Quartz | C182: Individual Basin | D182: DSCT | E182: 2 | F182: SS | G182: DSCTSS-82000-QA | H182: DSCTSS-82000-QB | I182: DSCTSS-82000-QC | J182: DSCTSS-82000-QD | K182: DSCTSS-82000-QE | L182: N/A | M182: N/A | N182: N/A | O182: N/A | P182: N/A
A183: Quartz - Corian QuartzIndividual BasinDSCT3SS | B183: Quartz - Corian Quartz | C183: Individual Basin | D183: DSCT | E183: 3 | F183: SS | G183: DSCTSS-83000-QA | H183: DSCTSS-83000-QB | I183: DSCTSS-83000-QC | J183: DSCTSS-83000-QD | K183: DSCTSS-83000-QE | L183: N/A | M183: N/A | N183: N/A | O183: N/A | P183: N/A
A184: Quartz - Corian QuartzIndividual BasinDSCT4SS | B184: Quartz - Corian Quartz | C184: Individual Basin | D184: DSCT | E184: 4 | F184: SS | G184: DSCTSS-84000-QA | H184: DSCTSS-84000-QB | I184: DSCTSS-84000-QC | J184: DSCTSS-84000-QD | K184: DSCTSS-84000-QE | L184: N/A | M184: N/A | N184: N/A | O184: N/A | P184: N/A
A185: Quartz - Corian QuartzIndividual BasinDSCT5SS | B185: Quartz - Corian Quartz | C185: Individual Basin | D185: DSCT | E185: 5 | F185: SS | G185: DSCTSS-85000-QA | H185: DSCTSS-85000-QB | I185: DSCTSS-85000-QC | J185: DSCTSS-85000-QD | K185: DSCTSS-85000-QE | L185: N/A | M185: N/A | N185: N/A | O185: N/A | P185: N/A
A186: Quartz - Corian QuartzIndividual BasinDSCT6+SS | B186: Quartz - Corian Quartz | C186: Individual Basin | D186: DSCT | E186: 6+ | F186: SS | G186: DSCTSS-86+000-QA | H186: DSCTSS-86+000-QB | I186: DSCTSS-86+000-QC | J186: DSCTSS-86+000-QD | K186: DSCTSS-86+000-QE | L186: N/A | M186: N/A | N186: N/A | O186: N/A | P186: N/A
A187: Quartz - SilestoneIndividual BasinAD1 | B187: Quartz - Silestone | C187: Individual Basin | D187: AD | E187: 1 | G187: AD-81000-QA | H187: AD-81000-QB | I187: AD-81000-QC | J187: AD-81000-QD | K187: AD-81000-QE | L187: N/A | M187: N/A | N187: N/A | O187: N/A | P187: N/A
A188: Quartz - SilestoneIndividual BasinAD2 | B188: Quartz - Silestone | C188: Individual Basin | D188: AD | E188: 2 | G188: AD-82000-QA | H188: AD-82000-QB | I188: AD-82000-QC | J188: AD-82000-QD | K188: AD-82000-QE | L188: N/A | M188: N/A | N188: N/A | O188: N/A | P188: N/A
A189: Quartz - SilestoneIndividual BasinAD3 | B189: Quartz - Silestone | C189: Individual Basin | D189: AD | E189: 3 | G189: AD-83000-QA | H189: AD-83000-QB | I189: AD-83000-QC | J189: AD-83000-QD | K189: AD-83000-QE | L189: N/A | M189: N/A | N189: N/A | O189: N/A | P189: N/A
A190: Quartz - SilestoneIndividual BasinAD4 | B190: Quartz - Silestone | C190: Individual Basin | D190: AD | E190: 4 | G190: AD-84000-QA | H190: AD-84000-QB | I190: AD-84000-QC | J190: AD-84000-QD | K190: AD-84000-QE | L190: N/A | M190: N/A | N190: N/A | O190: N/A | P190: N/A
A191: Quartz - SilestoneIndividual BasinAD5 | B191: Quartz - Silestone | C191: Individual Basin | D191: AD | E191: 5 | G191: AD-85000-QA | H191: AD-85000-QB | I191: AD-85000-QC | J191: AD-85000-QD | K191: AD-85000-QE | L191: N/A | M191: N/A | N191: N/A | O191: N/A | P191: N/A
A192: Quartz - SilestoneIndividual BasinAD6+ | B192: Quartz - Silestone | C192: Individual Basin | D192: AD | E192: 6+ | G192: AD-86+000-QA | H192: AD-86+000-QB | I192: AD-86+000-QC | J192: AD-86+000-QD | K192: AD-86+000-QE | L192: N/A | M192: N/A | N192: N/A | O192: N/A | P192: N/A
A193: Quartz - SilestoneIndividual BasinDSG1 | B193: Quartz - Silestone | C193: Individual Basin | D193: DSG | E193: 1 | G193: DSG-81000-QA | H193: DSG-81000-QB | I193: DSG-81000-QC | J193: DSG-81000-QD | K193: DSG-81000-QE | L193: N/A | M193: N/A | N193: N/A | O193: N/A | P193: N/A
A194: Quartz - SilestoneIndividual BasinDSG2 | B194: Quartz - Silestone | C194: Individual Basin | D194: DSG | E194: 2 | G194: DSG-82000-QA | H194: DSG-82000-QB | I194: DSG-82000-QC | J194: DSG-82000-QD | K194: DSG-82000-QE | L194: N/A | M194: N/A | N194: N/A | O194: N/A | P194: N/A
A195: =CONCATENATE(B195,C195,D195,E195,F195) -> Quartz - SilestoneIndividual BasinDSG3 | B195: Quartz - Silestone | C195: Individual Basin | D195: DSG | E195: 3 | G195: DSG-83000-QA | H195: DSG-83000-QB | I195: DSG-83000-QC | J195: DSG-83000-QD | K195: DSG-83000-QE | L195: N/A | M195: N/A | N195: N/A | O195: N/A | P195: N/A
A196: Quartz - SilestoneIndividual BasinDSG4 | B196: Quartz - Silestone | C196: Individual Basin | D196: DSG | E196: 4 | G196: DSG-84000-QA | H196: DSG-84000-QB | I196: DSG-84000-QC | J196: DSG-84000-QD | K196: DSG-84000-QE | L196: N/A | M196: N/A | N196: N/A | O196: N/A | P196: N/A
A197: Quartz - SilestoneIndividual BasinDSG5 | B197: Quartz - Silestone | C197: Individual Basin | D197: DSG | E197: 5 | G197: DSG-85000-QA | H197: DSG-85000-QB | I197: DSG-85000-QC | J197: DSG-85000-QD | K197: DSG-85000-QE | L197: N/A | M197: N/A | N197: N/A | O197: N/A | P197: N/A
A198: Quartz - SilestoneIndividual BasinDSG6+ | B198: Quartz - Silestone | C198: Individual Basin | D198: DSG | E198: 6+ | G198: DSG-86+000-QA | H198: DSG-86+000-QB | I198: DSG-86+000-QC | J198: DSG-86+000-QD | K198: DSG-86+000-QE | L198: N/A | M198: N/A | N198: N/A | O198: N/A | P198: N/A
A199: Quartz - SilestoneIndividual BasinDSWD1 | B199: Quartz - Silestone | C199: Individual Basin | D199: DSWD | E199: 1 | G199: DSWD-81000-QA | H199: DSWD-81000-QB | I199: DSWD-81000-QC | J199: DSWD-81000-QD | K199: DSWD-81000-QE | L199: N/A | M199: N/A | N199: N/A | O199: N/A | P199: N/A
A200: Quartz - SilestoneIndividual BasinDSWD2 | B200: Quartz - Silestone | C200: Individual Basin | D200: DSWD | E200: 2 | G200: DSWD-82000-QA | H200: DSWD-82000-QB | I200: DSWD-82000-QC | J200: DSWD-82000-QD | K200: DSWD-82000-QE | L200: N/A | M200: N/A | N200: N/A | O200: N/A | P200: N/A
... 145 more rows

Sheet Dimensions (hidden)
A1: Bounce Code | B1: Material | C1: Sink Type | D1: Stations | E1: Look Up | F1: A | G1: B | H1: C | I1: D | J1: E | K1: Alcove | L1: Material Number
A2: ='Arc Worksheet'!D23&'Arc Worksheet'!I20&'Arc Worksheet'!N20 ->  | B2: Solid Surface - Corian | C2: AD | D2: 1 | E2: =B2&C2&D2 -> Solid Surface - CorianAD1 | F2: 4.5 | G2: 21 | H2: 4.5 | I2: 30 | J2: 23.5 | K2: No
B3: Solid Surface - Corian | C3: AD | D3: 2 | E3: Solid Surface - CorianAD2 | F3: 4.5 | G3: 51 | H3: 4.5 | I3: 60 | J3: 23.5 | K3: Yes | L3: ACV001
B4: Solid Surface - Corian | C4: AD | D4: 3 | E4: Solid Surface - CorianAD3 | F4: 4.5 | G4: 81 | H4: 4.5 | I4: 90 | J4: 23.5
B5: Solid Surface - Corian | C5: AD | D5: 4 | E5: Solid Surface - CorianAD4 | F5: 4.5 | G5: 111 | H5: 4.5 | I5: 120 | J5: 23.5
B6: Solid Surface - Corian | C6: AD | D6: 5 | E6: Solid Surface - CorianAD5 | F6: 4.5 | G6: 141 | H6: 4.5 | I6: 150 | J6: 23.5
B7: Solid Surface - Corian | C7: AD | D7: 6+ | E7: Solid Surface - CorianAD6+ | F7: 4.5 | G7: 171 | H7: 4.5 | I7: 180 | J7: 23.5
B8: Solid Surface - Corian | C8: DSCT | D8: 1 | E8: Solid Surface - CorianDSCT1 | F8: 7.1875 | G8: 15.625 | H8: 7.1875 | I8: 30 | J8: 24
B9: Solid Surface - Corian | C9: DSCT | D9: 2 | E9: Solid Surface - CorianDSCT2 | F9: 7.1875 | G9: 45.625 | H9: 7.1875 | I9: 60 | J9: 24
B10: Solid Surface - Corian | C10: DSCT | D10: 3 | E10: Solid Surface - CorianDSCT3 | F10: 7.1875 | G10: 75.625 | H10: 7.1875 | I10: 90 | J10: 24
B11: Solid Surface - Corian | C11: DSCT | D11: 4 | E11: Solid Surface - CorianDSCT4 | F11: 7.1875 | G11: 105.625 | H11: 7.1875 | I11: 120 | J11: 24
B12: Solid Surface - Corian | C12: DSCT | D12: 5 | E12: Solid Surface - CorianDSCT5 | F12: 7.1875 | G12: 135.625 | H12: 7.1875 | I12: 150 | J12: 24
B13: Solid Surface - Corian | C13: DSCT | D13: 6+ | E13: Solid Surface - CorianDSCT6+ | F13: 7.1875 | G13: 165.625 | H13: 7.1875 | I13: 180 | J13: 24
B14: Solid Surface - Corian | C14: DSG | D14: 1 | E14: Solid Surface - CorianDSG1 | F14: 4 | G14: 22 | H14: 4 | I14: 30 | J14: 22
B15: Solid Surface - Corian | C15: DSG | D15: 2 | E15: Solid Surface - CorianDSG2 | F15: 4 | G15: 52 | H15: 4 | I15: 60 | J15: 22
B16: Solid Surface - Corian | C16: DSG | D16: 3 | E16: Solid Surface - CorianDSG3 | F16: 4 | G16: 82 | H16: 4 | I16: 90 | J16: 22
B17: Solid Surface - Corian | C17: DSG | D17: 4 | E17: Solid Surface - CorianDSG4 | F17: 4 | G17: 112 | H17: 4 | I17: 120 | J17: 22
B18: Solid Surface - Corian | C18: DSG | D18: 5 | E18: Solid Surface - CorianDSG5 | F18: 4 | G18: 142 | H18: 4 | I18: 150 | J18: 22
B19: Solid Surface - Corian | C19: DSG | D19: 6+ | E19: Solid Surface - CorianDSG6+ | F19: 4 | G19: 172 | H19: 4 | I19: 180 | J19: 22
B20: Solid Surface - Corian | C20: DSOF | D20: 1 | E20: Solid Surface - CorianDSOF1 | F20: 6 | G20: 18 | H20: 6 | I20: 30 | J20: 22
B21: Solid Surface - Corian | C21: DSOF | D21: 2 | E21: Solid Surface - CorianDSOF2 | F21: 6 | G21: 48 | H21: 6 | I21: 60 | J21: 22
B22: Solid Surface - Corian | C22: DSOF | D22: 3 | E22: Solid Surface - CorianDSOF3 | F22: 6 | G22: 78 | H22: 6 | I22: 90 | J22: 22
B23: Solid Surface - Corian | C23: DSOF | D23: 4 | E23: Solid Surface - CorianDSOF4 | F23: 6 | G23: 108 | H23: 6 | I23: 120 | J23: 22
B24: Solid Surface - Corian | C24: DSOF | D24: 5 | E24: Solid Surface - CorianDSOF5 | F24: 6 | G24: 138 | H24: 6 | I24: 150 | J24: 22
B25: Solid Surface - Corian | C25: DSOF | D25: 6+ | E25: Solid Surface - CorianDSOF6+ | F25: 6 | G25: 168 | H25: 6 | I25: 180 | J25: 22
B26: Solid Surface - Corian | C26: DSVR | D26: 1 | E26: Solid Surface - CorianDSVR1 | F26: 6.5 | G26: 17 | H26: 6.5 | I26: 30 | J26: 22
B27: Solid Surface - Corian | C27: DSVR | D27: 2 | E27: Solid Surface - CorianDSVR2 | F27: 6.5 | G27: 47 | H27: 6.5 | I27: 60 | J27: 22
B28: Solid Surface - Corian | C28: DSVR | D28: 3 | E28: Solid Surface - CorianDSVR3 | F28: 6.5 | G28: 77 | H28: 6.5 | I28: 90 | J28: 22
B29: Solid Surface - Corian | C29: DSVR | D29: 5 | E29: Solid Surface - CorianDSVR5 | F29: 6.5 | G29: 137 | H29: 6.5 | I29: 150 | J29: 22
B30: Solid Surface - Corian | C30: DSVR | D30: 6+ | E30: Solid Surface - CorianDSVR6+ | F30: 6.5 | G30: 167 | H30: 6.5 | I30: 180 | J30: 22
B31: Solid Surface - Corian | C31: DSWD | D31: 1 | E31: Solid Surface - CorianDSWD1 | F31: 4 | G31: 22 | H31: 4 | I31: 30 | J31: 22
B32: Solid Surface - Corian | C32: DSWD | D32: 2 | E32: Solid Surface - CorianDSWD2 | F32: 4 | G32: 52 | H32: 4 | I32: 60 | J32: 22
B33: Solid Surface - Corian | C33: DSWD | D33: 3 | E33: Solid Surface - CorianDSWD3 | F33: 4 | G33: 82 | H33: 4 | I33: 90 | J33: 22
B34: Solid Surface - Corian | C34: DSWD | D34: 4 | E34: =B34&C34&D34 -> Solid Surface - CorianDSWD4 | F34: 4 | G34: 112 | H34: 4 | I34: 120 | J34: 22
B35: Solid Surface - Corian | C35: DSWD | D35: 5 | E35: Solid Surface - CorianDSWD5 | F35: 4 | G35: 142 | H35: 4 | I35: 150 | J35: 22
B36: Solid Surface - Corian | C36: DSWD | D36: 6+ | E36: Solid Surface - CorianDSWD6+ | F36: 4 | G36: 172 | H36: 4 | I36: 180 | J36: 22
B37: Quartz - Corian Quartz | C37: AD | D37: 1 | E37: Quartz - Corian QuartzAD1 | F37: 4.5 | G37: 21 | H37: 4.5 | I37: 30 | J37: 23.5
B38: Quartz - Corian Quartz | C38: AD | D38: 2 | E38: Quartz - Corian QuartzAD2 | F38: 4.5 | G38: 51 | H38: 4.5 | I38: 60 | J38: 23.5
B39: Quartz - Corian Quartz | C39: AD | D39: 3 | E39: Quartz - Corian QuartzAD3 | F39: 4.5 | G39: 81 | H39: 4.5 | I39: 90 | J39: 23.5
B40: Quartz - Corian Quartz | C40: AD | D40: 4 | E40: Quartz - Corian QuartzAD4 | F40: 4.5 | G40: 110 | H40: 4.5 | I40: 119 | J40: 23.5
B41: Quartz - Corian Quartz | C41: AD | D41: 5 | E41: Quartz - Corian QuartzAD5 | F41: 4.5 | G41: 141 | H41: 4.5 | I41: 150 | J41: 23.5
B42: Quartz - Corian Quartz | C42: AD | D42: 6+ | E42: Quartz - Corian QuartzAD6+ | F42: 4.5 | G42: 171 | H42: 4.5 | I42: 180 | J42: 23.5
B43: Quartz - Corian Quartz | C43: DSCT | D43: 1 | E43: Quartz - Corian QuartzDSCT1 | F43: 7.1875 | G43: 15.625 | H43: 7.1875 | I43: 30 | J43: 24
B44: Quartz - Corian Quartz | C44: DSCT | D44: 2 | E44: Quartz - Corian QuartzDSCT2 | F44: 7.1875 | G44: 45.625 | H44: 7.1875 | I44: 60 | J44: 24
B45: Quartz - Corian Quartz | C45: DSCT | D45: 3 | E45: Quartz - Corian QuartzDSCT3 | F45: 7.1875 | G45: 75.625 | H45: 7.1875 | I45: 90 | J45: 24
B46: Quartz - Corian Quartz | C46: DSCT | D46: 4 | E46: Quartz - Corian QuartzDSCT4 | F46: 7.1875 | G46: 104.625 | H46: 7.1875 | I46: 119 | J46: 24
B47: Quartz - Corian Quartz | C47: DSCT | D47: 5 | E47: Quartz - Corian QuartzDSCT5 | F47: 7.1875 | G47: 135.625 | H47: 7.1875 | I47: 150 | J47: 24
B48: Quartz - Corian Quartz | C48: DSCT | D48: 6+ | E48: Quartz - Corian QuartzDSCT6+ | F48: 7.1875 | G48: 165.625 | H48: 7.1875 | I48: 180 | J48: 24
B49: Quartz - Corian Quartz | C49: DSG | D49: 1 | E49: Quartz - Corian QuartzDSG1 | F49: 4 | G49: 22 | H49: 4 | I49: 30 | J49: 22
B50: Quartz - Corian Quartz | C50: DSG | D50: 2 | E50: Quartz - Corian QuartzDSG2 | F50: 4 | G50: 52 | H50: 4 | I50: 60 | J50: 22
B51: Quartz - Corian Quartz | C51: DSG | D51: 3 | E51: Quartz - Corian QuartzDSG3 | F51: 4 | G51: 82 | H51: 4 | I51: 90 | J51: 22
B52: Quartz - Corian Quartz | C52: DSG | D52: 4 | E52: Quartz - Corian QuartzDSG4 | F52: 4 | G52: 111 | H52: 4 | I52: 119 | J52: 22
B53: Quartz - Corian Quartz | C53: DSG | D53: 5 | E53: Quartz - Corian QuartzDSG5 | F53: 4 | G53: 142 | H53: 4 | I53: 150 | J53: 22
B54: Quartz - Corian Quartz | C54: DSG | D54: 6+ | E54: Quartz - Corian QuartzDSG6+ | F54: 4 | G54: 172 | H54: 4 | I54: 180 | J54: 22
B55: Quartz - Corian Quartz | C55: DSOF | D55: 1 | E55: Quartz - Corian QuartzDSOF1 | F55: 6 | G55: 18 | H55: 6 | I55: 30 | J55: 22
B56: Quartz - Corian Quartz | C56: DSOF | D56: 2 | E56: Quartz - Corian QuartzDSOF2 | F56: 6 | G56: 48 | H56: 6 | I56: 60 | J56: 22
B57: Quartz - Corian Quartz | C57: DSOF | D57: 3 | E57: Quartz - Corian QuartzDSOF3 | F57: 6 | G57: 78 | H57: 6 | I57: 90 | J57: 22
B58: Quartz - Corian Quartz | C58: DSOF | D58: 4 | E58: Quartz - Corian QuartzDSOF4 | F58: 6 | G58: 107 | H58: 6 | I58: 119 | J58: 22
B59: Quartz - Corian Quartz | C59: DSOF | D59: 5 | E59: Quartz - Corian QuartzDSOF5 | F59: 6 | G59: 138 | H59: 6 | I59: 150 | J59: 22
B60: Quartz - Corian Quartz | C60: DSOF | D60: 6+ | E60: Quartz - Corian QuartzDSOF6+ | F60: 6 | G60: 168 | H60: 6 | I60: 180 | J60: 22
B61: Quartz - Corian Quartz | C61: DSVR | D61: 1 | E61: Quartz - Corian QuartzDSVR1 | F61: 6.5 | G61: 17 | H61: 6.5 | I61: 30 | J61: 22
B62: Quartz - Corian Quartz | C62: DSVR | D62: 2 | E62: Quartz - Corian QuartzDSVR2 | F62: 6.5 | G62: 47 | H62: 6.5 | I62: 60 | J62: 22
B63: Quartz - Corian Quartz | C63: DSVR | D63: 3 | E63: Quartz - Corian QuartzDSVR3 | F63: 6.5 | G63: 77 | H63: 6.5 | I63: 90 | J63: 22
B64: Quartz - Corian Quartz | C64: DSVR | D64: 5 | E64: Quartz - Corian QuartzDSVR5 | F64: 6.5 | G64: 137 | H64: 6.5 | I64: 150 | J64: 22
B65: Quartz - Corian Quartz | C65: DSVR | D65: 6+ | E65: Quartz - Corian QuartzDSVR6+ | F65: 6.5 | G65: 167 | H65: 6.5 | I65: 180 | J65: 22
B66: Quartz - Corian Quartz | C66: DSWD | D66: 1 | E66: =B66&C66&D66 -> Quartz - Corian QuartzDSWD1 | F66: 4 | G66: 22 | H66: 4 | I66: 30 | J66: 22
B67: Quartz - Corian Quartz | C67: DSWD | D67: 2 | E67: Quartz - Corian QuartzDSWD2 | F67: 4 | G67: 52 | H67: 4 | I67: 60 | J67: 22
B68: Quartz - Corian Quartz | C68: DSWD | D68: 3 | E68: Quartz - Corian QuartzDSWD3 | F68: 4 | G68: 82 | H68: 4 | I68: 90 | J68: 22
B69: Quartz - Corian Quartz | C69: DSWD | D69: 4 | E69: Quartz - Corian QuartzDSWD4 | F69: 4 | G69: 111 | H69: 4 | I69: 119 | J69: 22
B70: Quartz - Corian Quartz | C70: DSWD | D70: 5 | E70: Quartz - Corian QuartzDSWD5 | F70: 4 | G70: 142 | H70: 4 | I70: 150 | J70: 22
B71: Quartz - Corian Quartz | C71: DSWD | D71: 6+ | E71: Quartz - Corian QuartzDSWD6+ | F71: 4 | G71: 172 | H71: 4 | I71: 180 | J71: 22
B72: Quartz - Caeserstone | C72: AD | D72: 1 | E72: Quartz - CaeserstoneAD1 | F72: 4.5 | G72: 21 | H72: 4.5 | I72: 30 | J72: 23.5
B73: Quartz - Caeserstone | C73: AD | D73: 2 | E73: Quartz - CaeserstoneAD2 | F73: 4.5 | G73: 51 | H73: 4.5 | I73: 60 | J73: 23.5
B74: Quartz - Caeserstone | C74: AD | D74: 3 | E74: Quartz - CaeserstoneAD3 | F74: 4.5 | G74: 81 | H74: 4.5 | I74: 90 | J74: 23.5
B75: Quartz - Caeserstone | C75: AD | D75: 4 | E75: Quartz - CaeserstoneAD4 | F75: 4.5 | G75: 110 | H75: 4.5 | I75: 119 | J75: 23.5
B76: Quartz - Caeserstone | C76: AD | D76: 5 | E76: Quartz - CaeserstoneAD5 | F76: 4.5 | G76: 141 | H76: 4.5 | I76: 150 | J76: 23.5
B77: Quartz - Caeserstone | C77: AD | D77: 6+ | E77: Quartz - CaeserstoneAD6+ | F77: 4.5 | G77: 171 | H77: 4.5 | I77: 180 | J77: 23.5
B78: Quartz - Caeserstone | C78: DSCT | D78: 1 | E78: Quartz - CaeserstoneDSCT1 | F78: 7.1875 | G78: 15.625 | H78: 7.1875 | I78: 30 | J78: 24
B79: Quartz - Caeserstone | C79: DSCT | D79: 2 | E79: Quartz - CaeserstoneDSCT2 | F79: 7.1875 | G79: 45.625 | H79: 7.1875 | I79: 60 | J79: 24
B80: Quartz - Caeserstone | C80: DSCT | D80: 3 | E80: Quartz - CaeserstoneDSCT3 | F80: 7.1875 | G80: 75.625 | H80: 7.1875 | I80: 90 | J80: 24
B81: Quartz - Caeserstone | C81: DSCT | D81: 4 | E81: Quartz - CaeserstoneDSCT4 | F81: 7.1875 | G81: 104.625 | H81: 7.1875 | I81: 119 | J81: 24
B82: Quartz - Caeserstone | C82: DSCT | D82: 5 | E82: Quartz - CaeserstoneDSCT5 | F82: 7.1875 | G82: 135.625 | H82: 7.1875 | I82: 150 | J82: 24
B83: Quartz - Caeserstone | C83: DSCT | D83: 6+ | E83: Quartz - CaeserstoneDSCT6+ | F83: 7.1875 | G83: 165.625 | H83: 7.1875 | I83: 180 | J83: 24
B84: Quartz - Caeserstone | C84: DSG | D84: 1 | E84: Quartz - CaeserstoneDSG1 | F84: 4 | G84: 22 | H84: 4 | I84: 30 | J84: 22
B85: Quartz - Caeserstone | C85: DSG | D85: 2 | E85: Quartz - CaeserstoneDSG2 | F85: 4 | G85: 52 | H85: 4 | I85: 60 | J85: 22
B86: Quartz - Caeserstone | C86: DSG | D86: 3 | E86: Quartz - CaeserstoneDSG3 | F86: 4 | G86: 82 | H86: 4 | I86: 90 | J86: 22
B87: Quartz - Caeserstone | C87: DSG | D87: 4 | E87: Quartz - CaeserstoneDSG4 | F87: 4 | G87: 111 | H87: 4 | I87: 119 | J87: 22
B88: Quartz - Caeserstone | C88: DSG | D88: 5 | E88: Quartz - CaeserstoneDSG5 | F88: 4 | G88: 142 | H88: 4 | I88: 150 | J88: 22
B89: Quartz - Caeserstone | C89: DSG | D89: 6+ | E89: Quartz - CaeserstoneDSG6+ | F89: 4 | G89: 172 | H89: 4 | I89: 180 | J89: 22
B90: Quartz - Caeserstone | C90: DSOF | D90: 1 | E90: Quartz - CaeserstoneDSOF1 | F90: 6 | G90: 18 | H90: 6 | I90: 30 | J90: 22
B91: Quartz - Caeserstone | C91: DSOF | D91: 2 | E91: Quartz - CaeserstoneDSOF2 | F91: 6 | G91: 48 | H91: 6 | I91: 60 | J91: 22
B92: Quartz - Caeserstone | C92: DSOF | D92: 3 | E92: Quartz - CaeserstoneDSOF3 | F92: 6 | G92: 78 | H92: 6 | I92: 90 | J92: 22
B93: Quartz - Caeserstone | C93: DSOF | D93: 4 | E93: Quartz - CaeserstoneDSOF4 | F93: 6 | G93: 107 | H93: 6 | I93: 119 | J93: 22
B94: Quartz - Caeserstone | C94: DSOF | D94: 5 | E94: Quartz - CaeserstoneDSOF5 | F94: 6 | G94: 138 | H94: 6 | I94: 150 | J94: 22
B95: Quartz - Caeserstone | C95: DSOF | D95: 6+ | E95: Quartz - CaeserstoneDSOF6+ | F95: 6 | G95: 168 | H95: 6 | I95: 180 | J95: 22
B96: Quartz - Caeserstone | C96: DSVR | D96: 1 | E96: Quartz - CaeserstoneDSVR1 | F96: 6.5 | G96: 17 | H96: 6.5 | I96: 30 | J96: 22
B97: Quartz - Caeserstone | C97: DSVR | D97: 2 | E97: Quartz - CaeserstoneDSVR2 | F97: 6.5 | G97: 47 | H97: 6.5 | I97: 60 | J97: 22
B98: Quartz - Caeserstone | C98: DSVR | D98: 3 | E98: =B98&C98&D98 -> Quartz - CaeserstoneDSVR3 | F98: 6.5 | G98: 77 | H98: 6.5 | I98: 90 | J98: 22
B99: Quartz - Caeserstone | C99: DSVR | D99: 5 | E99: Quartz - CaeserstoneDSVR5 | F99: 6.5 | G99: 137 | H99: 6.5 | I99: 150 | J99: 22
B100: Quartz - Caeserstone | C100: DSVR | D100: 6+ | E100: Quartz - CaeserstoneDSVR6+ | F100: 6.5 | G100: 167 | H100: 6.5 | I100: 180 | J100: 22
B101: Quartz - Caeserstone | C101: DSWD | D101: 1 | E101: Quartz - CaeserstoneDSWD1 | F101: 4 | G101: 22 | H101: 4 | I101: 30 | J101: 22
B102: Quartz - Caeserstone | C102: DSWD | D102: 2 | E102: Quartz - CaeserstoneDSWD2 | F102: 4 | G102: 52 | H102: 4 | I102: 60 | J102: 22
B103: Quartz - Caeserstone | C103: DSWD | D103: 3 | E103: Quartz - CaeserstoneDSWD3 | F103: 4 | G103: 82 | H103: 4 | I103: 90 | J103: 22
B104: Quartz - Caeserstone | C104: DSWD | D104: 4 | E104: Quartz - CaeserstoneDSWD4 | F104: 4 | G104: 111 | H104: 4 | I104: 119 | J104: 22
B105: Quartz - Caeserstone | C105: DSWD | D105: 5 | E105: Quartz - CaeserstoneDSWD5 | F105: 4 | G105: 142 | H105: 4 | I105: 150 | J105: 22
B106: Quartz - Caeserstone | C106: DSWD | D106: 6+ | E106: Quartz - CaeserstoneDSWD6+ | F106: 4 | G106: 172 | H106: 4 | I106: 180 | J106: 22
B107: Quartz - Silestone | C107: AD | D107: 1 | E107: Quartz - SilestoneAD1 | F107: 4.5 | G107: 21 | H107: 4.5 | I107: 30 | J107: 23.5
B108: Quartz - Silestone | C108: AD | D108: 2 | E108: Quartz - SilestoneAD2 | F108: 4.5 | G108: 51 | H108: 4.5 | I108: 60 | J108: 23.5
B109: Quartz - Silestone | C109: AD | D109: 3 | E109: Quartz - SilestoneAD3 | F109: 4.5 | G109: 81 | H109: 4.5 | I109: 90 | J109: 23.5
B110: Quartz - Silestone | C110: AD | D110: 4 | E110: Quartz - SilestoneAD4 | F110: 4.5 | G110: 110 | H110: 4.5 | I110: 119 | J110: 23.5
B111: Quartz - Silestone | C111: AD | D111: 5 | E111: Quartz - SilestoneAD5 | F111: 4.5 | G111: 141 | H111: 4.5 | I111: 150 | J111: 23.5
B112: Quartz - Silestone | C112: AD | D112: 6+ | E112: Quartz - SilestoneAD6+ | F112: 4.5 | G112: 171 | H112: 4.5 | I112: 180 | J112: 23.5
B113: Quartz - Silestone | C113: DSCT | D113: 1 | E113: Quartz - SilestoneDSCT1 | F113: 7.1875 | G113: 15.625 | H113: 7.1875 | I113: 30 | J113: 24
B114: Quartz - Silestone | C114: DSCT | D114: 2 | E114: Quartz - SilestoneDSCT2 | F114: 7.1875 | G114: 45.625 | H114: 7.1875 | I114: 60 | J114: 24
B115: Quartz - Silestone | C115: DSCT | D115: 3 | E115: Quartz - SilestoneDSCT3 | F115: 7.1875 | G115: 75.625 | H115: 7.1875 | I115: 90 | J115: 24
B116: Quartz - Silestone | C116: DSCT | D116: 4 | E116: Quartz - SilestoneDSCT4 | F116: 7.1875 | G116: 104.625 | H116: 7.1875 | I116: 119 | J116: 24
B117: Quartz - Silestone | C117: DSCT | D117: 5 | E117: Quartz - SilestoneDSCT5 | F117: 7.1875 | G117: 135.625 | H117: 7.1875 | I117: 150 | J117: 24
B118: Quartz - Silestone | C118: DSCT | D118: 6+ | E118: Quartz - SilestoneDSCT6+ | F118: 7.1875 | G118: 165.625 | H118: 7.1875 | I118: 180 | J118: 24
B119: Quartz - Silestone | C119: DSG | D119: 1 | E119: Quartz - SilestoneDSG1 | F119: 4 | G119: 22 | H119: 4 | I119: 30 | J119: 22
B120: Quartz - Silestone | C120: DSG | D120: 2 | E120: Quartz - SilestoneDSG2 | F120: 4 | G120: 52 | H120: 4 | I120: 60 | J120: 22
B121: Quartz - Silestone | C121: DSG | D121: 3 | E121: Quartz - SilestoneDSG3 | F121: 4 | G121: 82 | H121: 4 | I121: 90 | J121: 22
B122: Quartz - Silestone | C122: DSG | D122: 4 | E122: Quartz - SilestoneDSG4 | F122: 4 | G122: 111 | H122: 4 | I122: 119 | J122: 22
B123: Quartz - Silestone | C123: DSG | D123: 5 | E123: Quartz - SilestoneDSG5 | F123: 4 | G123: 142 | H123: 4 | I123: 150 | J123: 22
B124: Quartz - Silestone | C124: DSG | D124: 6+ | E124: Quartz - SilestoneDSG6+ | F124: 4 | G124: 172 | H124: 4 | I124: 180 | J124: 22
B125: Quartz - Silestone | C125: DSOF | D125: 1 | E125: Quartz - SilestoneDSOF1 | F125: 6 | G125: 18 | H125: 6 | I125: 30 | J125: 22
B126: Quartz - Silestone | C126: DSOF | D126: 2 | E126: Quartz - SilestoneDSOF2 | F126: 6 | G126: 48 | H126: 6 | I126: 60 | J126: 22
B127: Quartz - Silestone | C127: DSOF | D127: 3 | E127: Quartz - SilestoneDSOF3 | F127: 6 | G127: 78 | H127: 6 | I127: 90 | J127: 22
B128: Quartz - Silestone | C128: DSOF | D128: 4 | E128: Quartz - SilestoneDSOF4 | F128: 6 | G128: 107 | H128: 6 | I128: 119 | J128: 22
B129: Quartz - Silestone | C129: DSOF | D129: 5 | E129: Quartz - SilestoneDSOF5 | F129: 6 | G129: 138 | H129: 6 | I129: 150 | J129: 22
B130: Quartz - Silestone | C130: DSOF | D130: 6+ | E130: =B130&C130&D130 -> Quartz - SilestoneDSOF6+ | F130: 6 | G130: 168 | H130: 6 | I130: 180 | J130: 22
B131: Quartz - Silestone | C131: DSVR | D131: 1 | E131: Quartz - SilestoneDSVR1 | F131: 6.5 | G131: 17 | H131: 6.5 | I131: 30 | J131: 22
B132: Quartz - Silestone | C132: DSVR | D132: 2 | E132: Quartz - SilestoneDSVR2 | F132: 6.5 | G132: 47 | H132: 6.5 | I132: 60 | J132: 22
B133: Quartz - Silestone | C133: DSVR | D133: 3 | E133: Quartz - SilestoneDSVR3 | F133: 6.5 | G133: 77 | H133: 6.5 | I133: 90 | J133: 22
B134: Quartz - Silestone | C134: DSVR | D134: 5 | E134: Quartz - SilestoneDSVR5 | F134: 6.5 | G134: 137 | H134: 6.5 | I134: 150 | J134: 22
B135: Quartz - Silestone | C135: DSVR | D135: 6+ | E135: Quartz - SilestoneDSVR6+ | F135: 6.5 | G135: 167 | H135: 6.5 | I135: 180 | J135: 22
B136: Quartz - Silestone | C136: DSWD | D136: 1 | E136: Quartz - SilestoneDSWD1 | F136: 4 | G136: 22 | H136: 4 | I136: 30 | J136: 22
B137: Quartz - Silestone | C137: DSWD | D137: 2 | E137: Quartz - SilestoneDSWD2 | F137: 4 | G137: 52 | H137: 4 | I137: 60 | J137: 22
B138: Quartz - Silestone | C138: DSWD | D138: 3 | E138: Quartz - SilestoneDSWD3 | F138: 4 | G138: 82 | H138: 4 | I138: 90 | J138: 22
B139: Quartz - Silestone | C139: DSWD | D139: 4 | E139: Quartz - SilestoneDSWD4 | F139: 4 | G139: 111 | H139: 4 | I139: 119 | J139: 22
B140: Quartz - Silestone | C140: DSWD | D140: 5 | E140: Quartz - SilestoneDSWD5 | F140: 4 | G140: 142 | H140: 4 | I140: 150 | J140: 22
B141: Quartz - Silestone | C141: DSWD | D141: 6+ | E141: Quartz - SilestoneDSWD6+ | F141: 4 | G141: 172 | H141: 4 | I141: 180 | J141: 22

Sheet Calculator (hidden)
A1: Quantity | B1: Material Type | C1: Sink Type | D1: Model | E1: Edge Type | F1: Stations | G1: Trough Style | H1: Group | I1: LookUp Value 1 | J1: Hand Dryers (AD) | K1: Faucet Model | L1: Faucet Quantity | M1: Soap Dispencer | N1: Soap Disp. Quantity | O1: Enclosure Type | P1: LED Lights | Q1: Purse Hooks | R1: Purse Hook Color | S1: Purse Hook Quantity | T1: HD(AD)$$ | U1: Enclosure$$ | V1: LED$$ | W1: PH$$ | X1: Faucet$$ | Y1: Soap$$ | Z1: Faucet & Soap Total | AA1: Add-On Total | AB1: Mounting Total | AC1: Sink Total | AD1: Discount | AE1: Base Sink $$ | AF1: Extended Price | AG1: Stone SKU | AH1: Sloan SKU
A2: =Designer_Sink_Quote_1!D20 -> 0 | B2: =Designer_Sink_Quote_1!D23 -> 0 | C2: =Designer_Sink_Quote_1!D26 -> 0 | D2: =Designer_Sink_Quote_1!I20 -> 0 | E2: =Designer_Sink_Quote_1!I26 -> 0 | F2: =Designer_Sink_Quote_1!N20 -> 0 | G2: =Designer_Sink_Quote_1!D26 -> 0 | H2: =VLOOKUP('Arc Worksheet'!I23,'Drop Tables'!P:Q,2,0) ->  | I2: =CONCATENATE(Quote3[[#This Row],[Material Type]],Quote3[[#This Row],[Sink Type]],Quote3[[#This Row],[Model]],Quote3[[#This Row],[Stations]]) -> 0000 | J2: 0 | K2: =VLOOKUP(Designer_Sink_Quote_1!N32,'Faucet Price Table'!#REF!,2,0) ->  | L2: =Designer_Sink_Quote_1!D32 -> 0 | M2: =Designer_Sink_Quote_1!I35 -> 0 | N2: =Designer_Sink_Quote_1!D35 -> 0 | O2: =Designer_Sink_Quote_1!N26 -> 0 | P2: =Designer_Sink_Quote_1!D29 -> 0 | Q2: =Designer_Sink_Quote_1!I29 -> 0 | R2: =Designer_Sink_Quote_1!S29 -> 0 | S2: =Designer_Sink_Quote_1!N29 -> 0 | T2: 0 | U2: =IFERROR(INDEX('Sink Price Table'!#REF!,MATCH(Quote3[[#This Row],[LookUp Value 1]],'Sink Price Table'!#REF!,0),MATCH(Quote3[Enclosure Type],'Sink Price Table'!#REF!,0)),0) -> 0 | V2: =IF(Quote3[[#This Row],[LED Lights]]="Yes",VLOOKUP(Quote3[LookUp Value 1],'Sink Price Table'!#REF!,19,0),0) -> 0 | W2: =IF(Quote3[[#This Row],[Purse Hooks]]="Yes",(VLOOKUP(Quote3[LookUp Value 1],'Sink Price Table'!#REF!,20,0)*S2),0) -> 0 | X2: =IFERROR((VLOOKUP(Quote3[Faucet Model],'Faucet Price Table'!#REF!,2,0)*Quote3[Faucet Quantity]),0) -> 0 | Y2: =IFERROR((VLOOKUP(Quote3[Soap Dispencer],'Soap Price Table'!#REF!,2,0)*Quote3[Soap Disp. Quantity]),0) -> 0 | Z2: =IFERROR(SUM(Quote3[[Faucet$$]:[Soap$$]])*Quote3[Quantity],0) -> 0 | AA2: =IFERROR(SUM(Quote3[[#This Row],[LED$$]:[PH$$]],Quote3[[#This Row],[HD(AD)$$]])*Quote3[Quantity],0) -> 0 | AB2: =IFERROR(Quote3[Enclosure$$]*Quote3[Quantity],0) -> 0 | AC2: =IFERROR(A2*Quote3[[#This Row],[Base Sink $$]],0) -> 0 | AD2: =Designer_Sink_Quote_1!I38 -> 0 | AE2: =IFERROR(INDEX('Sink Price Table'!#REF!,MATCH(Quote3[[#This Row],[LookUp Value 1]],'Sink Price Table'!#REF!,0),MATCH(Quote3[[#This Row],[Group]],'Sink Price Table'!#REF!,0)),"Oops! Something Went Wrong Please Contact Sloan") -> Oops! Something Went Wrong Please Contact Sloan | AF2: =IFERROR((SUM(Quote3[[#This Row],[Faucet & Soap Total]],Quote3[[#This Row],[Add-On Total]],Quote3[[#This Row],[Mounting Total]],Quote3[[#This Row],[Sink Total]])-Quote3[[#This Row],[Discount ]]),0) -> 0 | AG2: =IFERROR(INDEX('Generic Codes'!$A$1:$P$112,MATCH(Quote3[LookUp Value 1],'Generic Codes'!$A$1:$A$112,0),MATCH(Quote3[Group],'Generic Codes'!$A$1:$P$1,0)),"Oops! Something Went Wrong Please Contact Sloan") -> Oops! Something Went Wrong Please Contact Sloan | AH2: =IFERROR(INDEX('Sku List'!$A$1:$P$48,MATCH(Quote3[LookUp Value 1],'Sku List'!$A$1:$A$48,0),MATCH(Quote3[Group],'Sku List'!$A$1:$P$1,0)),"Oops! Something Went Wrong Please Contact Sloan") -> Oops! Something Went Wrong Please Contact Sloan

Sheet Calculator_2 (hidden)
A1: Quantity | B1: Material Type | C1: Sink Type | D1: Model | E1: Edge Type | F1: Stations | G1: Trough Style | H1: Group | I1: LookUp Value 1 | J1: Hand Dryers (AD) | K1: Faucet Model | L1: Faucet Quantity | M1: Soap Dispencer | N1: Soap Disp. Quantity | O1: Enclosure Type | P1: LED Lights | Q1: Purse Hooks | R1: Purse Hook Color | S1: Purse Hook Quantity | T1: HD(AD)$$ | U1: Enclosure$$ | V1: LED$$ | W1: PH$$ | X1: Faucet$$ | Y1: Soap$$ | Z1: Faucet & Soap Total | AA1: Add-On Total | AB1: Mounting Total | AC1: Sink Total | AD1: Discount | AE1: Base Sink $$ | AF1: Extended Price | AG1: Stone SKU | AH1: Sloan SKU
A2: ='Arc Worksheet'!D20 -> 0 | B2: ='Arc Worksheet'!D23 -> 0 | C2: ='Arc Worksheet'!D26 -> 0 | D2: ='Arc Worksheet'!I20 -> 0 | E2: ='Arc Worksheet'!I26 -> 0 | F2: ='Arc Worksheet'!N20 -> 0 | G2: ='Arc Worksheet'!D26 -> 0 | H2: =VLOOKUP('Arc Worksheet'!I23,'Drop Tables'!P:Q,2,0) ->  | I2: =CONCATENATE(Quote39[[#This Row],[Material Type]],Quote39[[#This Row],[Sink Type]],Quote39[[#This Row],[Model]],Quote39[[#This Row],[Stations]]) -> 0000 | J2: 0 | K2: =VLOOKUP('Arc Worksheet'!S32,'Faucet Price Table'!#REF!,2,0) ->  | L2: ='Arc Worksheet'!D32 -> 0 | M2: ='Arc Worksheet'!I35 -> 0 | N2: ='Arc Worksheet'!D35 -> 0 | O2: ='Arc Worksheet'!N26 -> 0 | P2: ='Arc Worksheet'!D29 -> 0 | Q2: ='Arc Worksheet'!I29 -> 0 | R2: ='Arc Worksheet'!S29 -> 0 | S2: ='Arc Worksheet'!N29 -> 0 | T2: 0 | U2: =IFERROR(INDEX('Sink Price Table'!#REF!,MATCH(Quote39[[#This Row],[LookUp Value 1]],'Sink Price Table'!#REF!,0),MATCH(Quote39[Enclosure Type],'Sink Price Table'!#REF!,0)),0) -> 0 | V2: =IF(Quote39[[#This Row],[LED Lights]]="Yes",VLOOKUP(Quote39[LookUp Value 1],'Sink Price Table'!#REF!,19,0),0) -> 0 | W2: =IF(Quote39[[#This Row],[Purse Hooks]]="Yes",(VLOOKUP(Quote39[LookUp Value 1],'Sink Price Table'!#REF!,20,0)*S2),0) -> 0 | X2: =IFERROR((VLOOKUP(Quote39[Faucet Model],'Faucet Price Table'!#REF!,2,0)*Quote39[Faucet Quantity]),0) -> 0 | Y2: =IFERROR((VLOOKUP(Quote39[Soap Dispencer],'Soap Price Table'!#REF!,2,0)*Quote39[Soap Disp. Quantity]),0) -> 0 | Z2: =IFERROR(SUM(Quote39[[Faucet$$]:[Soap$$]])*Quote39[Quantity],0) -> 0 | AA2: =IFERROR(SUM(Quote39[[#This Row],[LED$$]:[PH$$]],Quote39[[#This Row],[HD(AD)$$]])*Quote39[Quantity],0) -> 0 | AB2: =IFERROR(Quote39[Enclosure$$]*Quote39[Quantity],0) -> 0 | AC2: =IFERROR(A2*Quote39[[#This Row],[Base Sink $$]],0) -> 0 | AD2: =Designer_Sink_Quote_1!I38 -> 0 | AE2: =IFERROR(INDEX('Sink Price Table'!#REF!,MATCH(Quote39[[#This Row],[LookUp Value 1]],'Sink Price Table'!#REF!,0),MATCH(Quote39[[#This Row],[Group]],'Sink Price Table'!#REF!,0)),"Oops! Something Went Wrong Please Contact Sloan") -> Oops! Something Went Wrong Please Contact Sloan | AF2: =IFERROR((SUM(Quote39[[#This Row],[Faucet & Soap Total]],Quote39[[#This Row],[Add-On Total]],Quote39[[#This Row],[Mounting Total]],Quote39[[#This Row],[Sink Total]])-Quote39[[#This Row],[Discount ]]),0) -> 0 | AG2: =IFERROR(INDEX('Generic Codes'!$A$1:$P$223,MATCH(Quote39[LookUp Value 1],'Generic Codes'!$A$1:$A$223,0),MATCH(Quote39[Group],'Generic Codes'!$A$1:$P$1,0)),"Oops! Something Went Wrong Please Contact Sloan") -> Oops! Something Went Wrong Please Contact Sloan | AH2: =IFERROR(INDEX('Sku List'!$A$1:$P$143,MATCH(Quote39[LookUp Value 1],'Sku List'!$A$1:$A$143,0),MATCH(Quote39[Group],'Sku List'!$A$1:$P$1,0)),"Oops! Something Went Wrong Please Contact Sloan") -> Oops! Something Went Wrong Please Contact Sloan

Sheet Sink Price Table (hidden)
A1: LUP | B1: Material | C1: Trough | D1: Model | E1: Stations | F1: Bowl | G1: A | H1: B | I1: C | J1: D | K1: E
A2: =CONCATENATE(B2,C2,D2,E2,F2,) -> Solid Surface - CorianContinuous TroughAD1 | B2: Solid Surface - Corian | C2: Continuous Trough | D2: AD | E2: 1 | G2: 1116.796 | H2: 1161.7959 | I2: 1241.7959 | J2: 1376.7959 | K2: ERR
A3: Solid Surface - CorianContinuous TroughAD2 | B3: Solid Surface - Corian | C3: Continuous Trough | D3: AD | E3: 2 | G3: 1265.9369 | H3: 1161.7959 | I3: 1241.7959 | J3: 1376.7959 | K3: ERR
A4: Solid Surface - CorianContinuous TroughAD3 | B4: Solid Surface - Corian | C4: Continuous Trough | D4: AD | E4: 3 | G4: 2268.6838 | H4: 2358.6838 | I4: 2518.6838 | J4: 2788.6838 | K4: ERR
A5: Solid Surface - CorianContinuous TroughAD4 | B5: Solid Surface - Corian | C5: Continuous Trough | D5: AD | E5: 4 | G5: 2444.1438 | H5: 2534.1438 | I5: 2694.1438 | J5: 2964.1438 | K5: ERR
A6: Solid Surface - CorianContinuous TroughAD5 | B6: Solid Surface - Corian | C6: Continuous Trough | D6: AD | E6: 5 | G6: 4323.5467 | H6: 4503.5467 | I6: 4823.5467 | J6: 5363.5467 | K6: ERR
A7: Solid Surface - CorianContinuous TroughAD6+ | B7: Solid Surface - Corian | C7: Continuous Trough | D7: AD | E7: 6+ | G7: 4639.3747 | H7: 4819.3747 | I7: 5139.3747 | J7: 5679.3747 | K7: ERR
A8: Solid Surface - CorianContinuous TroughDSG1 | B8: Solid Surface - Corian | C8: Continuous Trough | D8: DSG | E8: 1 | G8: 1088.685 | H8: 1133.685 | I8: 1213.685 | J8: 1348.685 | K8: ERR
A9: Solid Surface - CorianContinuous TroughDSG2 | B9: Solid Surface - Corian | C9: Continuous Trough | D9: DSG | E9: 2 | G9: 1202.734 | H9: 1247.734 | I9: 1327.734 | J9: 1462.734 | K9: ERR
A10: Solid Surface - CorianContinuous TroughDSG3 | B10: Solid Surface - Corian | C10: Continuous Trough | D10: DSG | E10: 3 | G10: 2177.37 | H10: 2267.37 | I10: 2427.37 | J10: 2697.37 | K10: ERR
A11: Solid Surface - CorianContinuous TroughDSG4 | B11: Solid Surface - Corian | C11: Continuous Trough | D11: DSG | E11: 4 | G11: 2317.738 | H11: 2407.738 | I11: 2567.738 | J11: 2837.738 | K11: ERR
A12: Solid Surface - CorianContinuous TroughDSG5 | B12: Solid Surface - Corian | C12: Continuous Trough | D12: DSG | E12: 5 | G12: 4169.03 | H12: 4349.03 | I12: 4669.03 | J12: 5209.03 | K12: ERR
A13: Solid Surface - CorianContinuous TroughDSG6+ | B13: Solid Surface - Corian | C13: Continuous Trough | D13: DSG | E13: 6+ | G13: 4449.766 | H13: 4629.766 | I13: 4949.766 | J13: 5489.766 | K13: ERR
A14: Solid Surface - CorianContinuous TroughDSWD1 | B14: Solid Surface - Corian | C14: Continuous Trough | D14: DSWD | E14: 1 | G14: 1109.7402 | H14: 1154.7402 | I14: 1234.7402 | J14: 1369.7402 | K14: ERR
A15: Solid Surface - CorianContinuous TroughDSWD2 | B15: Solid Surface - Corian | C15: Continuous Trough | D15: DSWD | E15: 2 | G15: 1227.2984 | H15: 1272.2984 | I15: 1352.2984 | J15: 1487.2984 | K15: ERR
A16: Solid Surface - CorianContinuous TroughDSWD3 | B16: Solid Surface - Corian | C16: Continuous Trough | D16: DSWD | E16: 3 | G16: 2219.4804 | H16: 2309.4804 | I16: 2469.4804 | J16: 2739.4804 | K16: ERR
A17: Solid Surface - CorianContinuous TroughDSWD4 | B17: Solid Surface - Corian | C17: Continuous Trough | D17: DSWD | E17: 4 | G17: 2363.3576 | H17: 2453.3576 | I17: 2613.3576 | J17: 2883.3576 | K17: ERR
A18: Solid Surface - CorianContinuous TroughDSWD5 | B18: Solid Surface - Corian | C18: Continuous Trough | D18: DSWD | E18: 5 | G18: 4247.987 | H18: 4427.987 | I18: 4747.987 | J18: 5287.987 | K18: ERR
A19: Solid Surface - CorianContinuous TroughDSWD6+ | B19: Solid Surface - Corian | C19: Continuous Trough | D19: DSWD | E19: 6+ | G19: 4535.7414 | H19: 4715.7414 | I19: 5035.7414 | J19: 5575.7414 | K19: ERR
A20: Solid Surface - CorianIndividual BasinAD1 | B20: Solid Surface - Corian | C20: Individual Basin | D20: AD | E20: 1 | G20: 1116.796 | H20: 1161.7959 | I20: 1241.7959 | J20: 1376.7959 | K20: ERR
A21: Solid Surface - CorianIndividual BasinAD2 | B21: Solid Surface - Corian | C21: Individual Basin | D21: AD | E21: 2 | G21: 1265.9369 | H21: 1161.7959 | I21: 1241.7959 | J21: 1376.7959 | K21: ERR
A22: Solid Surface - CorianIndividual BasinAD3 | B22: Solid Surface - Corian | C22: Individual Basin | D22: AD | E22: 3 | G22: 2268.6838 | H22: 2358.6838 | I22: 2518.6838 | J22: 2788.6838 | K22: ERR
A23: Solid Surface - CorianIndividual BasinAD4 | B23: Solid Surface - Corian | C23: Individual Basin | D23: AD | E23: 4 | G23: 2444.1438 | H23: 2534.1438 | I23: 2694.1438 | J23: 2964.1438 | K23: ERR
A24: Solid Surface - CorianIndividual BasinAD5 | B24: Solid Surface - Corian | C24: Individual Basin | D24: AD | E24: 5 | G24: 4323.5467 | H24: 4503.5467 | I24: 4823.5467 | J24: 5363.5467 | K24: ERR
A25: Solid Surface - CorianIndividual BasinAD6+ | B25: Solid Surface - Corian | C25: Individual Basin | D25: AD | E25: 6+ | G25: 4639.3747 | H25: 4819.3747 | I25: 5139.3747 | J25: 5679.3747 | K25: ERR
A26: Solid Surface - CorianIndividual BasinDSCT1SS | B26: Solid Surface - Corian | C26: Individual Basin | D26: DSCT | E26: 1 | F26: SS | G26: 672.4785 | H26: 717.4785 | I26: 797.4785 | J26: 932.4785 | K26: ERR
A27: Solid Surface - CorianIndividual BasinDSCT1VC | B27: Solid Surface - Corian | C27: Individual Basin | D27: DSCT | E27: 1 | F27: VC | G27: 593.9285 | H27: 638.9285 | I27: 718.9285 | J27: 853.9285 | K27: ERR
A28: Solid Surface - CorianIndividual BasinDSCT2SS | B28: Solid Surface - Corian | C28: Individual Basin | D28: DSCT | E28: 2 | F28: SS | G28: 1012.227 | H28: 1057.227 | I28: 1137.227 | J28: 1272.227 | K28: ERR
A29: Solid Surface - CorianIndividual BasinDSCT2VC | B29: Solid Surface - Corian | C29: Individual Basin | D29: DSCT | E29: 2 | F29: VC | G29: 855.127 | H29: 900.127 | I29: 980.127 | J29: 1115.127 | K29: ERR
A30: Solid Surface - CorianIndividual BasinDSCT3SS | B30: Solid Surface - Corian | C30: Individual Basin | D30: DSCT | E30: 3 | F30: SS | G30: 1772.4355 | H30: 1862.4355 | I30: 2022.4355 | J30: 2292.4355 | K30: ERR
A31: Solid Surface - CorianIndividual BasinDSCT3VC | B31: Solid Surface - Corian | C31: Individual Basin | D31: DSCT | E31: 3 | F31: VC | G31: 1536.7855 | H31: 1626.7855 | I31: 1786.7855 | J31: 2056.7855 | K31: ERR
A32: Solid Surface - CorianIndividual BasinDSCT4SS | B32: Solid Surface - Corian | C32: Individual Basin | D32: DSCT | E32: 4 | F32: SS | G32: 2112.184 | H32: 2202.184 | I32: 2362.184 | J32: 2632.184 | K32: ERR
A33: Solid Surface - CorianIndividual BasinDSCT4VC | B33: Solid Surface - Corian | C33: Individual Basin | D33: DSCT | E33: 4 | F33: VC | G33: 1797.984 | H33: 1887.984 | I33: 2047.984 | J33: 2317.984 | K33: ERR
A34: Solid Surface - CorianIndividual BasinDSCT5SS | B34: Solid Surface - Corian | C34: Individual Basin | D34: DSCT | E34: 5 | F34: SS | G34: 3073.5275 | H34: 3253.5275 | I34: 3573.5275 | J34: 4113.5275 | K34: ERR
A35: Solid Surface - CorianIndividual BasinDSCT5VC | B35: Solid Surface - Corian | C35: Individual Basin | D35: DSCT | E35: 5 | F35: VC | G35: 2680.7775 | H35: 2860.7775 | I35: 3180.7775 | J35: 3720.7775 | K35: ERR
A36: Solid Surface - CorianIndividual BasinDSCT6+SS | B36: Solid Surface - Corian | C36: Individual Basin | D36: DSCT | E36: 6+ | F36: SS | G36: 3544.871 | H36: 3724.871 | I36: 4044.871 | J36: 4584.871 | K36: ERR
A37: Solid Surface - CorianIndividual BasinDSCT6+VC | B37: Solid Surface - Corian | C37: Individual Basin | D37: DSCT | E37: 6+ | F37: VC | G37: 3073.571 | H37: 3253.571 | I37: 3573.571 | J37: 4113.571 | K37: ERR
A38: Solid Surface - CorianIndividual BasinDSG1 | B38: Solid Surface - Corian | C38: Individual Basin | D38: DSG | E38: 1 | G38: 1088.685 | H38: 1133.685 | I38: 1213.685 | J38: 1348.685 | K38: ERR
A39: Solid Surface - CorianIndividual BasinDSG2 | B39: Solid Surface - Corian | C39: Individual Basin | D39: DSG | E39: 2 | G39: 1202.734 | H39: 1247.734 | I39: 1327.734 | J39: 1462.734 | K39: ERR
A40: Solid Surface - CorianIndividual BasinDSG3 | B40: Solid Surface - Corian | C40: Individual Basin | D40: DSG | E40: 3 | G40: 2177.37 | H40: 2267.37 | I40: 2427.37 | J40: 2697.37 | K40: ERR
A41: Solid Surface - CorianIndividual BasinDSG4 | B41: Solid Surface - Corian | C41: Individual Basin | D41: DSG | E41: 4 | G41: 2317.738 | H41: 2407.738 | I41: 2567.738 | J41: 2837.738 | K41: ERR
A42: Solid Surface - CorianIndividual BasinDSG5 | B42: Solid Surface - Corian | C42: Individual Basin | D42: DSG | E42: 5 | G42: 4169.03 | H42: 4349.03 | I42: 4669.03 | J42: 5209.03 | K42: ERR
A43: Solid Surface - CorianIndividual BasinDSG6+ | B43: Solid Surface - Corian | C43: Individual Basin | D43: DSG | E43: 6+ | G43: 4449.766 | H43: 4629.766 | I43: 4949.766 | J43: 5489.766 | K43: ERR
A44: Solid Surface - CorianIndividual BasinDSOF1 | B44: Solid Surface - Corian | C44: Individual Basin | D44: DSOF | E44: 1 | G44: 1109.7402 | H44: 1154.7402 | I44: 1234.7402 | J44: 1369.7402 | K44: ERR
A45: Solid Surface - CorianIndividual BasinDSOF2 | B45: Solid Surface - Corian | C45: Individual Basin | D45: DSOF | E45: 2 | G45: 1239.303 | H45: 1284.303 | I45: 1364.303 | J45: 1499.303 | K45: ERR
A46: Solid Surface - CorianIndividual BasinDSOF3 | B46: Solid Surface - Corian | C46: Individual Basin | D46: DSOF | E46: 3 | G46: 2229.7304 | H46: 2319.7304 | I46: 2479.7304 | J46: 2749.7304 | K46: ERR
A47: Solid Surface - CorianIndividual BasinDSOF4 | B47: Solid Surface - Corian | C47: Individual Basin | D47: DSOF | E47: 4 | G47: 2383.8576 | H47: 2473.8576 | I47: 2633.8576 | J47: 2903.8576 | K47: ERR
A48: Solid Surface - CorianIndividual BasinDSOF5 | B48: Solid Surface - Corian | C48: Individual Basin | D48: DSOF | E48: 5 | G48: 4268.487 | H48: 4448.487 | I48: 4768.487 | J48: 5308.487 | K48: ERR
A49: Solid Surface - CorianIndividual BasinDSOF6+ | B49: Solid Surface - Corian | C49: Individual Basin | D49: DSOF | E49: 6+ | G49: 4575.2644 | H49: 4755.2644 | I49: 5075.2644 | J49: 5615.2644 | K49: ERR
A50: Solid Surface - CorianIndividual BasinDSVR1 | B50: Solid Surface - Corian | C50: Individual Basin | D50: DSVR | E50: 1 | G50: 526.6625 | H50: 571.6625 | I50: 651.6625 | J50: 786.6625 | K50: ERR
A51: Solid Surface - CorianIndividual BasinDSVR2 | B51: Solid Surface - Corian | C51: Individual Basin | D51: DSVR | E51: 2 | G51: 720.595 | H51: 765.595 | I51: 845.595 | J51: 980.595 | K51: ERR
A52: Solid Surface - CorianIndividual BasinDSVR3 | B52: Solid Surface - Corian | C52: Individual Basin | D52: DSVR | E52: 3 | G52: 1334.9875 | H52: 1424.9875 | I52: 1584.9875 | J52: 1854.9875 | K52: ERR
A53: Solid Surface - CorianIndividual BasinDSVR4 | B53: Solid Surface - Corian | C53: Individual Basin | D53: DSVR | E53: 4 | G53: 1528.92 | H53: 1618.92 | I53: 1778.92 | J53: 2048.92 | K53: ERR
A54: Solid Surface - CorianIndividual BasinDSVR5 | B54: Solid Surface - Corian | C54: Individual Basin | D54: DSVR | E54: 5 | G54: 2344.4475 | H54: 2524.4475 | I54: 2844.4475 | J54: 3384.4475 | K54: ERR
A55: Solid Surface - CorianIndividual BasinDSVR6+ | B55: Solid Surface - Corian | C55: Individual Basin | D55: DSVR | E55: 6+ | G55: 2669.975 | H55: 2849.975 | I55: 3169.975 | J55: 3709.975 | K55: ERR
A56: Solid Surface - CorianIndividual BasinDSWD1 | B56: Solid Surface - Corian | C56: Individual Basin | D56: DSWD | E56: 1 | G56: 1109.7402 | H56: 1154.7402 | I56: 1234.7402 | J56: 1369.7402 | K56: ERR
A57: Solid Surface - CorianIndividual BasinDSWD2 | B57: Solid Surface - Corian | C57: Individual Basin | D57: DSWD | E57: 2 | G57: 1227.2984 | H57: 1272.2984 | I57: 1352.2984 | J57: 1487.2984 | K57: ERR
A58: Solid Surface - CorianIndividual BasinDSWD3 | B58: Solid Surface - Corian | C58: Individual Basin | D58: DSWD | E58: 3 | G58: 2219.4804 | H58: 2309.4804 | I58: 2469.4804 | J58: 2739.4804 | K58: ERR
A59: Solid Surface - CorianIndividual BasinDSWD4 | B59: Solid Surface - Corian | C59: Individual Basin | D59: DSWD | E59: 4 | G59: 2363.3576 | H59: 2453.3576 | I59: 2613.3576 | J59: 2883.3576 | K59: ERR
A60: Solid Surface - CorianIndividual BasinDSWD5 | B60: Solid Surface - Corian | C60: Individual Basin | D60: DSWD | E60: 5 | G60: 4247.987 | H60: 4427.987 | I60: 4747.987 | J60: 5287.987 | K60: ERR
A61: Solid Surface - CorianIndividual BasinDSWD6+ | B61: Solid Surface - Corian | C61: Individual Basin | D61: DSWD | E61: 6+ | G61: 4535.7414 | H61: 4715.7414 | I61: 5035.7414 | J61: 5575.7414 | K61: ERR
A62: Quartz - Corian QuartzIndividual BasinAD1 | B62: Quartz - Corian Quartz | C62: Individual Basin | D62: AD | E62: 1 | G62: 2175.4022 | H62: 2242.5005 | I62: 6507.5789 | J62: 2533.5869 | K62: 4183.8509
A63: Quartz - Corian QuartzIndividual BasinAD2 | B63: Quartz - Corian Quartz | C63: Individual Basin | D63: AD | E63: 2 | G63: 2959.0282 | H63: 3026.1158 | I63: 3067.4054 | J63: 3317.2128 | K63: 4017.0662
A64: Quartz - Corian QuartzIndividual BasinAD3 | B64: Quartz - Corian Quartz | C64: Individual Basin | D64: AD | E64: 3 | G64: 5016.697 | H64: 5150.8829 | I64: 5233.4621 | J64: 5733.0662 | K64: 7132.7837
A65: Quartz - Corian QuartzIndividual BasinAD4 | B65: Quartz - Corian Quartz | C65: Individual Basin | D65: AD | E65: 4 | G65: 5827.4832 | H65: 5961.6797 | I65: 6044.2589 | J65: 6543.863 | K65: 7943.5805
A66: =CONCATENATE(B66,C66,D66,E66,F66,) -> Quartz - Corian QuartzIndividual BasinAD5 | B66: Quartz - Corian Quartz | C66: Individual Basin | D66: AD | E66: 5 | G66: 9182.3635 | H66: 9450.7459 | I66: 9105.97 | J66: 10615.1126 | K66: 13414.5475
A67: Quartz - Corian QuartzIndividual BasinAD6+ | B67: Quartz - Corian Quartz | C67: Individual Basin | D67: AD | E67: 6+ | G67: 10138.0541 | H67: 10406.4365 | I67: 10571.5949 | J67: 11570.8032 | K67: 14370.2381
A68: Quartz - Corian QuartzIndividual BasinDSCT1SS | B68: Quartz - Corian Quartz | C68: Individual Basin | D68: DSCT | E68: 1 | F68: SS | G68: 1455.9389 | H68: 1523.0371 | I68: 1564.3267 | J68: 1814.1341 | K68: 2513.9875
A69: Quartz - Corian QuartzIndividual BasinDSCT1VC | B69: Quartz - Corian Quartz | C69: Individual Basin | D69: DSCT | E69: 1 | F69: VC | G69: 1455.9389 | H69: 1523.0371 | I69: 1564.3267 | J69: 1814.1341 | K69: 2513.9875
A70: Quartz - Corian QuartzIndividual BasinDSCT2SS | B70: Quartz - Corian Quartz | C70: Individual Basin | D70: DSCT | E70: 2 | F70: SS | G70: 2116.7098 | H70: 2183.808 | I70: 2225.0976 | J70: 2473.849 | K70: 3174.7584
A71: Quartz - Corian QuartzIndividual BasinDSCT2VC | B71: Quartz - Corian Quartz | C71: Individual Basin | D71: DSCT | E71: 2 | F71: VC | G71: 2116.7098 | H71: 2183.808 | I71: 2225.0976 | J71: 2474.905 | K71: 3174.7584
A72: Quartz - Corian QuartzIndividual BasinDSCT3SS | B72: Quartz - Corian Quartz | C72: Individual Basin | D72: DSCT | E72: 3 | F72: SS | G72: 3548.8675 | H72: 3683.064 | I72: 3765.6432 | J72: 4265.2474 | K72: 5664.9648
A73: Quartz - Corian QuartzIndividual BasinDSCT3VC | B73: Quartz - Corian Quartz | C73: Individual Basin | D73: DSCT | E73: 3 | F73: VC | G73: 3548.5507 | H73: 3683.064 | I73: 3765.6432 | J73: 4265.2474 | K73: 5664.9648
A74: Quartz - Corian QuartzIndividual BasinDSCT4SS | B74: Quartz - Corian Quartz | C74: Individual Basin | D74: DSCT | E74: 4 | F74: SS | G74: 4215.1296 | H74: 4349.3155 | I74: 4431.8947 | J74: 4931.4989 | K74: 6331.2163
A75: Quartz - Corian QuartzIndividual BasinDSCT4VC | B75: Quartz - Corian Quartz | C75: Individual Basin | D75: DSCT | E75: 4 | F75: VC | G75: 4215.1296 | H75: 4349.3155 | I75: 4431.863 | J75: 4931.4989 | K75: 6331.2163
A76: Quartz - Corian QuartzIndividual BasinDSCT5SS | B76: Quartz - Corian Quartz | C76: Individual Basin | D76: DSCT | E76: 5 | F76: SS | G76: 6424.1654 | H76: 6692.5478 | I76: 6857.7062 | J76: 7856.9146 | K76: 10656.3494
A77: Quartz - Corian QuartzIndividual BasinDSCT5VC | B77: Quartz - Corian Quartz | C77: Individual Basin | D77: DSCT | E77: 5 | F77: VC | G77: 6424.1654 | H77: 6692.5478 | I77: 6857.7062 | J77: 7856.9146 | K77: 10656.3494
A78: Quartz - Corian QuartzIndividual BasinDSCT6+SS | B78: Quartz - Corian Quartz | C78: Individual Basin | D78: DSCT | E78: 6+ | F78: SS | G78: 7119.6998 | H78: 7388.0822 | I78: 7553.2406 | J78: 8552.449 | K78: 11351.8838
A79: Quartz - Corian QuartzIndividual BasinDSCT6+VC | B79: Quartz - Corian Quartz | C79: Individual Basin | D79: DSCT | E79: 6+ | F79: VC | G79: 7119.6998 | H79: 7388.0822 | I79: 7553.2406 | J79: 8552.449 | K79: 11351.8838
A80: Quartz - Corian QuartzIndividual BasinDSG1 | B80: Quartz - Corian Quartz | C80: Individual Basin | D80: DSG | E80: 1 | G80: 2145.7498 | H80: 2212.848 | I80: 2444.2176 | J80: 2503.9344 | K80: 3202.848
A81: Quartz - Corian QuartzIndividual BasinDSG2 | B81: Quartz - Corian Quartz | C81: Individual Basin | D81: DSG | E81: 2 | G81: 2893.1549 | H81: 2960.2426 | I81: 3001.5322 | J81: 3251.3395 | K81: 3951.193
A82: Quartz - Corian QuartzIndividual BasinDSG3 | B82: Quartz - Corian Quartz | C82: Individual Basin | D82: DSG | E82: 3 | G82: 4921.1712 | H82: 5055.3571 | I82: 5137.9363 | J82: 5637.5405 | K82: 7037.2579
A83: Quartz - Corian QuartzIndividual BasinDSG4 | B83: Quartz - Corian Quartz | C83: Individual Basin | D83: DSG | E83: 4 | G83: 5695.7366 | H83: 5829.9226 | I83: 5912.5018 | J83: 6412.1059 | K83: 7811.8234
A84: Quartz - Corian QuartzIndividual BasinDSG5 | B84: Quartz - Corian Quartz | C84: Individual Basin | D84: DSG | E84: 5 | G84: 9020.9645 | H84: 9289.3469 | I84: 9454.5053 | J84: 10453.7136 | K84: 13253.1485
A85: Quartz - Corian QuartzIndividual BasinDSG6+ | B85: Quartz - Corian Quartz | C85: Individual Basin | D85: DSG | E85: 6+ | G85: 9940.4342 | H85: 10208.8166 | I85: 10373.975 | J85: 11373.1834 | K85: 14172.6182
A86: Quartz - Corian QuartzIndividual BasinDSOF1 | B86: Quartz - Corian Quartz | C86: Individual Basin | D86: DSOF | E86: 1 | G86: 2167.2605 | H86: 2234.3587 | I86: 2275.6483 | J86: 2525.4451 | K86: 3225.3091
A87: Quartz - Corian QuartzIndividual BasinDSOF2 | B87: Quartz - Corian Quartz | C87: Individual Basin | D87: DSOF | E87: 2 | G87: 2928.1824 | H87: 2995.2806 | I87: 3036.5702 | J87: 3286.367 | K87: 3986.231
A88: Quartz - Corian QuartzIndividual BasinDSOF3 | B88: Quartz - Corian Quartz | C88: Individual Basin | D88: DSOF | E88: 3 | G88: 4974.7632 | H88: 5108.9597 | I88: 5191.5389 | J88: 2523.143 | K88: 7090.8605
A89: Quartz - Corian QuartzIndividual BasinDSOF4 | B89: Quartz - Corian Quartz | C89: Individual Basin | D89: DSOF | E89: 4 | G89: 5763.5424 | H89: 5897.7283 | I89: 5980.3075 | J89: 6479.9117 | K89: 7879.6291
A90: Quartz - Corian QuartzIndividual BasinDSOF5 | B90: Quartz - Corian Quartz | C90: Individual Basin | D90: DSOF | E90: 5 | G90: 9123.6288 | H90: 9392.0112 | I90: 9557.1696 | J90: 10556.3779 | K90: 13355.8128
A91: Quartz - Corian QuartzIndividual BasinDSOF6+ | B91: Quartz - Corian Quartz | C91: Individual Basin | D91: DSOF | E91: 6+ | G91: 10060.9238 | H91: 9283.8662 | I91: 10494.4646 | J91: 1989.673 | K91: 14293.1078
A92: Quartz - Corian QuartzIndividual BasinDSVR1 | B92: Quartz - Corian Quartz | C92: Individual Basin | D92: DSVR | E92: 1 | G92: 1378.73 | H92: 1442.27 | I92: 1481.37 | J92: 1717.93 | K92: 2380.67
A93: Quartz - Corian QuartzIndividual BasinDSVR2 | B93: Quartz - Corian Quartz | C93: Individual Basin | D93: DSVR | E93: 2 | G93: 2004.46 | H93: 2068 | I93: 2107.1 | J93: 2343.66 | K93: 3006.4
A94: Quartz - Corian QuartzIndividual BasinDSVR3 | B94: Quartz - Corian Quartz | C94: Individual Basin | D94: DSVR | E94: 3 | G94: 3360.67 | H94: 3487.75 | I94: 3565.95 | J94: 4039.06 | K94: 5364.55
A95: Quartz - Corian QuartzIndividual BasinDSVR4 | B95: Quartz - Corian Quartz | C95: Individual Basin | D95: DSVR | E95: 4 | G95: 3991.6 | H95: 4118.67 | I95: 4196.87 | J95: 4669.98 | K95: 5995.47
A96: Quartz - Corian QuartzIndividual BasinDSVR5 | B96: Quartz - Corian Quartz | C96: Individual Basin | D96: DSVR | E96: 5 | G96: 6083.49 | H96: 6337.64 | I96: 6494.04 | J96: 7440.26 | K96: 100.9124
A97: Quartz - Corian QuartzIndividual BasinDSVR6+ | B97: Quartz - Corian Quartz | C97: Individual Basin | D97: DSVR | E97: 6+ | G97: 6742.14 | H97: 6996.29 | I97: 7152.69 | J97: 8098.91 | K97: 10749.89
A98: Quartz - Corian QuartzIndividual BasinDSWD1 | B98: Quartz - Corian Quartz | C98: Individual Basin | D98: DSWD | E98: 1 | G98: 2167.2605 | H98: 2234.3587 | I98: 2275.6483 | J98: 2525.4451 | K98: 3225.3091
A99: Quartz - Corian QuartzIndividual BasinDSWD2 | B99: Quartz - Corian Quartz | C99: Individual Basin | D99: DSWD | E99: 2 | G99: 2885.9213 | H99: 2984.6995 | I99: 3025.9891 | J99: 3275.7859 | K99: 3975.6499
A100: Quartz - Corian QuartzIndividual BasinDSWD3 | B100: Quartz - Corian Quartz | C100: Individual Basin | D100: DSWD | E100: 3 | G100: 4964.1821 | H100: 5098.3786 | I100: 5181.4858 | J100: 5680.5619 | K100: 7080.2794
A101: Quartz - Corian QuartzIndividual BasinDSWD4 | B101: Quartz - Corian Quartz | C101: Individual Basin | D101: DSWD | E101: 4 | G101: 5742.3802 | H101: 5876.5661 | I101: 5959.1453 | J101: 6458.7494 | K101: 7858.4669
A102: Quartz - Corian QuartzIndividual BasinDSWD5 | B102: Quartz - Corian Quartz | C102: Individual Basin | D102: DSWD | E102: 5 | G102: 9102.4666 | H102: 93.7085 | I102: 9536.0074 | J102: 10535.2157 | K102: 13334.6506
A103: Quartz - Corian QuartzIndividual BasinDSWD6+ | B103: Quartz - Corian Quartz | C103: Individual Basin | D103: DSWD | E103: 6+ | G103: 10029.1805 | H103: 10297.5629 | I103: 10462.7213 | J103: 11461.9296 | K103: 14261.3645
A104: Quartz - Corian QuartzContinuous TroughAD1 | B104: Quartz - Corian Quartz | C104: Continuous Trough | D104: AD | E104: 1 | G104: 2175.4022 | H104: 2242.5005 | I104: 6507.5789 | J104: 2533.5869 | K104: 4183.8509
A105: Quartz - Corian QuartzContinuous TroughAD2 | B105: Quartz - Corian Quartz | C105: Continuous Trough | D105: AD | E105: 2 | G105: 2959.0282 | H105: 3026.1158 | I105: 3067.4054 | J105: 3317.2128 | K105: 4017.0662
A106: Quartz - Corian QuartzContinuous TroughAD3 | B106: Quartz - Corian Quartz | C106: Continuous Trough | D106: AD | E106: 3 | G106: 5016.697 | H106: 5150.8829 | I106: 5233.4621 | J106: 5733.0662 | K106: 7132.7837
A107: Quartz - Corian QuartzContinuous TroughAD4 | B107: Quartz - Corian Quartz | C107: Continuous Trough | D107: AD | E107: 4 | G107: 5827.4832 | H107: 5961.6797 | I107: 6044.2589 | J107: 6543.863 | K107: 7943.5805
A108: Quartz - Corian QuartzContinuous TroughAD5 | B108: Quartz - Corian Quartz | C108: Continuous Trough | D108: AD | E108: 5 | G108: 9182.3635 | H108: 9450.7459 | I108: 9105.97 | J108: 10615.1126 | K108: 13414.5475
A109: Quartz - Corian QuartzContinuous TroughAD6+ | B109: Quartz - Corian Quartz | C109: Continuous Trough | D109: AD | E109: 6+ | G109: 10138.0541 | H109: 10406.4365 | I109: 10571.5949 | J109: 11570.8032 | K109: 14370.2381
A110: Quartz - Corian QuartzContinuous TroughDSG1 | B110: Quartz - Corian Quartz | C110: Continuous Trough | D110: DSG | E110: 1 | G110: 2145.7498 | H110: 2212.848 | I110: 2444.2176 | J110: 2503.9344 | K110: 3202.848
A111: Quartz - Corian QuartzContinuous TroughDSG2 | B111: Quartz - Corian Quartz | C111: Continuous Trough | D111: DSG | E111: 2 | G111: 2893.1549 | H111: 2960.2426 | I111: 3001.5322 | J111: 3251.3395 | K111: 3951.193
A112: Quartz - Corian QuartzContinuous TroughDSG3 | B112: Quartz - Corian Quartz | C112: Continuous Trough | D112: DSG | E112: 3 | G112: 4921.1712 | H112: 5055.3571 | I112: 5137.9363 | J112: 5637.5405 | K112: 7037.2579
A113: Quartz - Corian QuartzContinuous TroughDSG4 | B113: Quartz - Corian Quartz | C113: Continuous Trough | D113: DSG | E113: 4 | G113: 5695.7366 | H113: 5829.9226 | I113: 5912.5018 | J113: 6412.1059 | K113: 7811.8234
A114: Quartz - Corian QuartzContinuous TroughDSG5 | B114: Quartz - Corian Quartz | C114: Continuous Trough | D114: DSG | E114: 5 | G114: 9020.9645 | H114: 9289.3469 | I114: 9454.5053 | J114: 10453.7136 | K114: 13253.1485
A115: Quartz - Corian QuartzContinuous TroughDSG6+ | B115: Quartz - Corian Quartz | C115: Continuous Trough | D115: DSG | E115: 6+ | G115: 9940.4342 | H115: 10208.8166 | I115: 10373.975 | J115: 11373.1834 | K115: 14172.6182
A116: Quartz - Corian QuartzContinuous TroughDSWD1 | B116: Quartz - Corian Quartz | C116: Continuous Trough | D116: DSWD | E116: 1 | G116: 2167.2605 | H116: 2234.3587 | I116: 2275.6483 | J116: 2525.4451 | K116: 3225.3091
A117: Quartz - Corian QuartzContinuous TroughDSWD2 | B117: Quartz - Corian Quartz | C117: Continuous Trough | D117: DSWD | E117: 2 | G117: 2885.9213 | H117: 2984.6995 | I117: 3025.9891 | J117: 3275.7859 | K117: 3975.6499
A118: Quartz - Corian QuartzContinuous TroughDSWD3 | B118: Quartz - Corian Quartz | C118: Continuous Trough | D118: DSWD | E118: 3 | G118: 4964.1821 | H118: 5098.3786 | I118: 5181.4858 | J118: 5680.5619 | K118: 7080.2794
A119: Quartz - Corian QuartzContinuous TroughDSWD4 | B119: Quartz - Corian Quartz | C119: Continuous Trough | D119: DSWD | E119: 4 | G119: 5742.3802 | H119: 5876.5661 | I119: 5959.1453 | J119: 6458.7494 | K119: 7858.4669
A120: Quartz - Corian QuartzContinuous TroughDSWD5 | B120: Quartz - Corian Quartz | C120: Continuous Trough | D120: DSWD | E120: 5 | G120: 9102.4666 | H120: 93.7085 | I120: 9536.0074 | J120: 10535.2157 | K120: 13334.6506
A121: Quartz - Corian QuartzContinuous TroughDSWD6+ | B121: Quartz - Corian Quartz | C121: Continuous Trough | D121: DSWD | E121: 6+ | G121: 10029.1805 | H121: 10297.5629 | I121: 10462.7213 | J121: 11461.9296 | K121: 14261.3645
A122: Quartz - CaeserstoneIndividual BasinAD1 | B122: Quartz - Caeserstone | C122: Individual Basin | D122: AD | E122: 1 | G122: 2175.4022 | H122: 2242.5005 | I122: 6507.5789 | J122: 2533.5869 | K122: 4183.8509
A123: Quartz - CaeserstoneIndividual BasinAD2 | B123: Quartz - Caeserstone | C123: Individual Basin | D123: AD | E123: 2 | G123: 2959.0282 | H123: 3026.1158 | I123: 3067.4054 | J123: 3317.2128 | K123: 4017.0662
A124: Quartz - CaeserstoneIndividual BasinAD3 | B124: Quartz - Caeserstone | C124: Individual Basin | D124: AD | E124: 3 | G124: 5016.697 | H124: 5150.8829 | I124: 5233.4621 | J124: 5733.0662 | K124: 7132.7837
A125: Quartz - CaeserstoneIndividual BasinAD4 | B125: Quartz - Caeserstone | C125: Individual Basin | D125: AD | E125: 4 | G125: 5827.4832 | H125: 5961.6797 | I125: 6044.2589 | J125: 6543.863 | K125: 7943.5805
A126: Quartz - CaeserstoneIndividual BasinAD5 | B126: Quartz - Caeserstone | C126: Individual Basin | D126: AD | E126: 5 | G126: 9182.3635 | H126: 9450.7459 | I126: 9105.97 | J126: 10615.1126 | K126: 13414.5475
A127: Quartz - CaeserstoneIndividual BasinAD6+ | B127: Quartz - Caeserstone | C127: Individual Basin | D127: AD | E127: 6+ | G127: 10138.0541 | H127: 10406.4365 | I127: 10571.5949 | J127: 11570.8032 | K127: 14370.2381
A128: Quartz - CaeserstoneIndividual BasinDSCT1SS | B128: Quartz - Caeserstone | C128: Individual Basin | D128: DSCT | E128: 1 | F128: SS | G128: 1455.9389 | H128: 1523.0371 | I128: 1564.3267 | J128: 1814.1341 | K128: 2513.9875
A129: Quartz - CaeserstoneIndividual BasinDSCT1VC | B129: Quartz - Caeserstone | C129: Individual Basin | D129: DSCT | E129: 1 | F129: VC | G129: 1455.9389 | H129: 1523.0371 | I129: 1564.3267 | J129: 1814.1341 | K129: 2513.9875
A130: =CONCATENATE(B130,C130,D130,E130,F130,) -> Quartz - CaeserstoneIndividual BasinDSCT2SS | B130: Quartz - Caeserstone | C130: Individual Basin | D130: DSCT | E130: 2 | F130: SS | G130: 2116.7098 | H130: 2183.808 | I130: 2225.0976 | J130: 2473.849 | K130: 3174.7584
A131: Quartz - CaeserstoneIndividual BasinDSCT2VC | B131: Quartz - Caeserstone | C131: Individual Basin | D131: DSCT | E131: 2 | F131: VC | G131: 2116.7098 | H131: 2183.808 | I131: 2225.0976 | J131: 2474.905 | K131: 3174.7584
A132: Quartz - CaeserstoneIndividual BasinDSCT3SS | B132: Quartz - Caeserstone | C132: Individual Basin | D132: DSCT | E132: 3 | F132: SS | G132: 3548.8675 | H132: 3683.064 | I132: 3765.6432 | J132: 4265.2474 | K132: 5664.9648
A133: Quartz - CaeserstoneIndividual BasinDSCT3VC | B133: Quartz - Caeserstone | C133: Individual Basin | D133: DSCT | E133: 3 | F133: VC | G133: 3548.5507 | H133: 3683.064 | I133: 3765.6432 | J133: 4265.2474 | K133: 5664.9648
A134: Quartz - CaeserstoneIndividual BasinDSCT4SS | B134: Quartz - Caeserstone | C134: Individual Basin | D134: DSCT | E134: 4 | F134: SS | G134: 4215.1296 | H134: 4349.3155 | I134: 4431.8947 | J134: 4931.4989 | K134: 6331.2163
A135: Quartz - CaeserstoneIndividual BasinDSCT4VC | B135: Quartz - Caeserstone | C135: Individual Basin | D135: DSCT | E135: 4 | F135: VC | G135: 4215.1296 | H135: 4349.3155 | I135: 4431.863 | J135: 4931.4989 | K135: 6331.2163
A136: Quartz - CaeserstoneIndividual BasinDSCT5SS | B136: Quartz - Caeserstone | C136: Individual Basin | D136: DSCT | E136: 5 | F136: SS | G136: 6424.1654 | H136: 6692.5478 | I136: 6857.7062 | J136: 7856.9146 | K136: 10656.3494
A137: Quartz - CaeserstoneIndividual BasinDSCT5VC | B137: Quartz - Caeserstone | C137: Individual Basin | D137: DSCT | E137: 5 | F137: VC | G137: 6424.1654 | H137: 6692.5478 | I137: 6857.7062 | J137: 7856.9146 | K137: 10656.3494
A138: Quartz - CaeserstoneIndividual BasinDSCT6+SS | B138: Quartz - Caeserstone | C138: Individual Basin | D138: DSCT | E138: 6+ | F138: SS | G138: 7119.6998 | H138: 7388.0822 | I138: 7553.2406 | J138: 8552.449 | K138: 11351.8838
A139: Quartz - CaeserstoneIndividual BasinDSCT6+VC | B139: Quartz - Caeserstone | C139: Individual Basin | D139: DSCT | E139: 6+ | F139: VC | G139: 7119.6998 | H139: 7388.0822 | I139: 7553.2406 | J139: 8552.449 | K139: 11351.8838
A140: Quartz - CaeserstoneIndividual BasinDSG1 | B140: Quartz - Caeserstone | C140: Individual Basin | D140: DSG | E140: 1 | G140: 2145.7498 | H140: 2212.848 | I140: 2444.2176 | J140: 2503.9344 | K140: 3202.848
A141: Quartz - CaeserstoneIndividual BasinDSG2 | B141: Quartz - Caeserstone | C141: Individual Basin | D141: DSG | E141: 2 | G141: 2893.1549 | H141: 2960.2426 | I141: 3001.5322 | J141: 3251.3395 | K141: 3951.193
A142: Quartz - CaeserstoneIndividual BasinDSG3 | B142: Quartz - Caeserstone | C142: Individual Basin | D142: DSG | E142: 3 | G142: 4921.1712 | H142: 5055.3571 | I142: 5137.9363 | J142: 5637.5405 | K142: 7037.2579
A143: Quartz - CaeserstoneIndividual BasinDSG4 | B143: Quartz - Caeserstone | C143: Individual Basin | D143: DSG | E143: 4 | G143: 5695.7366 | H143: 5829.9226 | I143: 5912.5018 | J143: 6412.1059 | K143: 7811.8234
A144: Quartz - CaeserstoneIndividual BasinDSG5 | B144: Quartz - Caeserstone | C144: Individual Basin | D144: DSG | E144: 5 | G144: 9020.9645 | H144: 9289.3469 | I144: 9454.5053 | J144: 10453.7136 | K144: 13253.1485
A145: Quartz - CaeserstoneIndividual BasinDSG6+ | B145: Quartz - Caeserstone | C145: Individual Basin | D145: DSG | E145: 6+ | G145: 9940.4342 | H145: 10208.8166 | I145: 10373.975 | J145: 11373.1834 | K145: 14172.6182
A146: Quartz - CaeserstoneIndividual BasinDSOF1 | B146: Quartz - Caeserstone | C146: Individual Basin | D146: DSOF | E146: 1 | G146: 2167.2605 | H146: 2234.3587 | I146: 2275.6483 | J146: 2525.4451 | K146: 3225.3091
A147: Quartz - CaeserstoneIndividual BasinDSOF2 | B147: Quartz - Caeserstone | C147: Individual Basin | D147: DSOF | E147: 2 | G147: 2928.1824 | H147: 2995.2806 | I147: 3036.5702 | J147: 3286.367 | K147: 3986.231
A148: Quartz - CaeserstoneIndividual BasinDSOF3 | B148: Quartz - Caeserstone | C148: Individual Basin | D148: DSOF | E148: 3 | G148: 4974.7632 | H148: 5108.9597 | I148: 5191.5389 | J148: 2523.143 | K148: 7090.8605
A149: Quartz - CaeserstoneIndividual BasinDSOF4 | B149: Quartz - Caeserstone | C149: Individual Basin | D149: DSOF | E149: 4 | G149: 5763.5424 | H149: 5897.7283 | I149: 5980.3075 | J149: 6479.9117 | K149: 7879.6291
A150: Quartz - CaeserstoneIndividual BasinDSOF5 | B150: Quartz - Caeserstone | C150: Individual Basin | D150: DSOF | E150: 5 | G150: 9123.6288 | H150: 9392.0112 | I150: 9557.1696 | J150: 10556.3779 | K150: 13355.8128
A151: Quartz - CaeserstoneIndividual BasinDSOF6+ | B151: Quartz - Caeserstone | C151: Individual Basin | D151: DSOF | E151: 6+ | G151: 10060.9238 | H151: 9283.8662 | I151: 10494.4646 | J151: 1989.673 | K151: 14293.1078
A152: Quartz - CaeserstoneIndividual BasinDSVR1 | B152: Quartz - Caeserstone | C152: Individual Basin | D152: DSVR | E152: 1 | G152: 1378.73 | H152: 1442.27 | I152: 1481.37 | J152: 1717.93 | K152: 2380.67
A153: Quartz - CaeserstoneIndividual BasinDSVR2 | B153: Quartz - Caeserstone | C153: Individual Basin | D153: DSVR | E153: 2 | G153: 2004.46 | H153: 2068 | I153: 2107.1 | J153: 2343.66 | K153: 3006.4
A154: Quartz - CaeserstoneIndividual BasinDSVR3 | B154: Quartz - Caeserstone | C154: Individual Basin | D154: DSVR | E154: 3 | G154: 3360.67 | H154: 3487.75 | I154: 3565.95 | J154: 4039.06 | K154: 5364.55
A155: Quartz - CaeserstoneIndividual BasinDSVR4 | B155: Quartz - Caeserstone | C155: Individual Basin | D155: DSVR | E155: 4 | G155: 3991.6 | H155: 4118.67 | I155: 4196.87 | J155: 4669.98 | K155: 5995.47
A156: Quartz - CaeserstoneIndividual BasinDSVR5 | B156: Quartz - Caeserstone | C156: Individual Basin | D156: DSVR | E156: 5 | G156: 6083.49 | H156: 6337.64 | I156: 6494.04 | J156: 7440.26 | K156: 100.9124
A157: Quartz - CaeserstoneIndividual BasinDSVR6+ | B157: Quartz - Caeserstone | C157: Individual Basin | D157: DSVR | E157: 6+ | G157: 6742.14 | H157: 6996.29 | I157: 7152.69 | J157: 8098.91 | K157: 10749.89
A158: Quartz - CaeserstoneIndividual BasinDSWD1 | B158: Quartz - Caeserstone | C158: Individual Basin | D158: DSWD | E158: 1 | G158: 2167.2605 | H158: 2234.3587 | I158: 2275.6483 | J158: 2525.4451 | K158: 3225.3091
A159: Quartz - CaeserstoneIndividual BasinDSWD2 | B159: Quartz - Caeserstone | C159: Individual Basin | D159: DSWD | E159: 2 | G159: 2885.9213 | H159: 2984.6995 | I159: 3025.9891 | J159: 3275.7859 | K159: 3975.6499
A160: Quartz - CaeserstoneIndividual BasinDSWD3 | B160: Quartz - Caeserstone | C160: Individual Basin | D160: DSWD | E160: 3 | G160: 4964.1821 | H160: 5098.3786 | I160: 5181.4858 | J160: 5680.5619 | K160: 7080.2794
A161: Quartz - CaeserstoneIndividual BasinDSWD4 | B161: Quartz - Caeserstone | C161: Individual Basin | D161: DSWD | E161: 4 | G161: 5742.3802 | H161: 5876.5661 | I161: 5959.1453 | J161: 6458.7494 | K161: 7858.4669
A162: Quartz - CaeserstoneIndividual BasinDSWD5 | B162: Quartz - Caeserstone | C162: Individual Basin | D162: DSWD | E162: 5 | G162: 9102.4666 | H162: 93.7085 | I162: 9536.0074 | J162: 10535.2157 | K162: 13334.6506
A163: Quartz - CaeserstoneIndividual BasinDSWD6+ | B163: Quartz - Caeserstone | C163: Individual Basin | D163: DSWD | E163: 6+ | G163: 10029.1805 | H163: 10297.5629 | I163: 10462.7213 | J163: 11461.9296 | K163: 14261.3645
A164: Quartz - CaeserstoneContinuous TroughAD1 | B164: Quartz - Caeserstone | C164: Continuous Trough | D164: AD | E164: 1 | G164: 2175.4022 | H164: 2242.5005 | I164: 6507.5789 | J164: 2533.5869 | K164: 4183.8509
A165: Quartz - CaeserstoneContinuous TroughAD2 | B165: Quartz - Caeserstone | C165: Continuous Trough | D165: AD | E165: 2 | G165: 2959.0282 | H165: 3026.1158 | I165: 3067.4054 | J165: 3317.2128 | K165: 4017.0662
A166: Quartz - CaeserstoneContinuous TroughAD3 | B166: Quartz - Caeserstone | C166: Continuous Trough | D166: AD | E166: 3 | G166: 5016.697 | H166: 5150.8829 | I166: 5233.4621 | J166: 5733.0662 | K166: 7132.7837
A167: Quartz - CaeserstoneContinuous TroughAD4 | B167: Quartz - Caeserstone | C167: Continuous Trough | D167: AD | E167: 4 | G167: 5827.4832 | H167: 5961.6797 | I167: 6044.2589 | J167: 6543.863 | K167: 7943.5805
A168: Quartz - CaeserstoneContinuous TroughAD5 | B168: Quartz - Caeserstone | C168: Continuous Trough | D168: AD | E168: 5 | G168: 9182.3635 | H168: 9450.7459 | I168: 9105.97 | J168: 10615.1126 | K168: 13414.5475
A169: Quartz - CaeserstoneContinuous TroughAD6+ | B169: Quartz - Caeserstone | C169: Continuous Trough | D169: AD | E169: 6+ | G169: 10138.0541 | H169: 10406.4365 | I169: 10571.5949 | J169: 11570.8032 | K169: 14370.2381
A170: Quartz - CaeserstoneContinuous TroughDSG1 | B170: Quartz - Caeserstone | C170: Continuous Trough | D170: DSG | E170: 1 | G170: 2145.7498 | H170: 2212.848 | I170: 2444.2176 | J170: 2503.9344 | K170: 3202.848
A171: Quartz - CaeserstoneContinuous TroughDSG2 | B171: Quartz - Caeserstone | C171: Continuous Trough | D171: DSG | E171: 2 | G171: 2893.1549 | H171: 2960.2426 | I171: 3001.5322 | J171: 3251.3395 | K171: 3951.193
A172: Quartz - CaeserstoneContinuous TroughDSG3 | B172: Quartz - Caeserstone | C172: Continuous Trough | D172: DSG | E172: 3 | G172: 4921.1712 | H172: 5055.3571 | I172: 5137.9363 | J172: 5637.5405 | K172: 7037.2579
A173: Quartz - CaeserstoneContinuous TroughDSG4 | B173: Quartz - Caeserstone | C173: Continuous Trough | D173: DSG | E173: 4 | G173: 5695.7366 | H173: 5829.9226 | I173: 5912.5018 | J173: 6412.1059 | K173: 7811.8234
A174: Quartz - CaeserstoneContinuous TroughDSG5 | B174: Quartz - Caeserstone | C174: Continuous Trough | D174: DSG | E174: 5 | G174: 9020.9645 | H174: 9289.3469 | I174: 9454.5053 | J174: 10453.7136 | K174: 13253.1485
A175: Quartz - CaeserstoneContinuous TroughDSG6+ | B175: Quartz - Caeserstone | C175: Continuous Trough | D175: DSG | E175: 6+ | G175: 9940.4342 | H175: 10208.8166 | I175: 10373.975 | J175: 11373.1834 | K175: 14172.6182
A176: Quartz - CaeserstoneContinuous TroughDSWD1 | B176: Quartz - Caeserstone | C176: Continuous Trough | D176: DSWD | E176: 1 | G176: 2167.2605 | H176: 2234.3587 | I176: 2275.6483 | J176: 2525.4451 | K176: 3225.3091
A177: Quartz - CaeserstoneContinuous TroughDSWD2 | B177: Quartz - Caeserstone | C177: Continuous Trough | D177: DSWD | E177: 2 | G177: 2885.9213 | H177: 2984.6995 | I177: 3025.9891 | J177: 3275.7859 | K177: 3975.6499
A178: Quartz - CaeserstoneContinuous TroughDSWD3 | B178: Quartz - Caeserstone | C178: Continuous Trough | D178: DSWD | E178: 3 | G178: 4964.1821 | H178: 5098.3786 | I178: 5181.4858 | J178: 5680.5619 | K178: 7080.2794
A179: Quartz - CaeserstoneContinuous TroughDSWD4 | B179: Quartz - Caeserstone | C179: Continuous Trough | D179: DSWD | E179: 4 | G179: 5742.3802 | H179: 5876.5661 | I179: 5959.1453 | J179: 6458.7494 | K179: 7858.4669
A180: Quartz - CaeserstoneContinuous TroughDSWD5 | B180: Quartz - Caeserstone | C180: Continuous Trough | D180: DSWD | E180: 5 | G180: 9102.4666 | H180: 93.7085 | I180: 9536.0074 | J180: 10535.2157 | K180: 13334.6506
A181: Quartz - CaeserstoneContinuous TroughDSWD6+ | B181: Quartz - Caeserstone | C181: Continuous Trough | D181: DSWD | E181: 6+ | G181: 10029.1805 | H181: 10297.5629 | I181: 10462.7213 | J181: 11461.9296 | K181: 14261.3645
A182: =CONCATENATE(B182,C182,D182,E182,F182,) -> Quartz - SilestoneIndividual BasinAD1 | B182: Quartz - Silestone | C182: Individual Basin | D182: AD | E182: 1 | G182: 2175.4022 | H182: 2242.5005 | I182: 6507.5789 | J182: 2533.5869 | K182: 4183.8509
A183: =CONCATENATE(B183,C183,D183,E183,F183,) -> Quartz - SilestoneIndividual BasinAD2 | B183: Quartz - Silestone | C183: Individual Basin | D183: AD | E183: 2 | G183: 2959.0282 | H183: 3026.1158 | I183: 3067.4054 | J183: 3317.2128 | K183: 4017.0662
A184: Quartz - SilestoneIndividual BasinAD3 | B184: Quartz - Silestone | C184: Individual Basin | D184: AD | E184: 3 | G184: 5016.697 | H184: 5150.8829 | I184: 5233.4621 | J184: 5733.0662 | K184: 7132.7837
A185: Quartz - SilestoneIndividual BasinAD4 | B185: Quartz - Silestone | C185: Individual Basin | D185: AD | E185: 4 | G185: 5827.4832 | H185: 5961.6797 | I185: 6044.2589 | J185: 6543.863 | K185: 7943.5805
A186: Quartz - SilestoneIndividual BasinAD5 | B186: Quartz - Silestone | C186: Individual Basin | D186: AD | E186: 5 | G186: 9182.3635 | H186: 9450.7459 | I186: 9105.97 | J186: 10615.1126 | K186: 13414.5475
A187: Quartz - SilestoneIndividual BasinAD6+ | B187: Quartz - Silestone | C187: Individual Basin | D187: AD | E187: 6+ | G187: 10138.0541 | H187: 10406.4365 | I187: 10571.5949 | J187: 11570.8032 | K187: 14370.2381
A188: Quartz - SilestoneIndividual BasinDSCT1SS | B188: Quartz - Silestone | C188: Individual Basin | D188: DSCT | E188: 1 | F188: SS | G188: 1455.9389 | H188: 1523.0371 | I188: 1564.3267 | J188: 1814.1341 | K188: 2513.9875
A189: Quartz - SilestoneIndividual BasinDSCT1VC | B189: Quartz - Silestone | C189: Individual Basin | D189: DSCT | E189: 1 | F189: VC | G189: 1455.9389 | H189: 1523.0371 | I189: 1564.3267 | J189: 1814.1341 | K189: 2513.9875
A190: Quartz - SilestoneIndividual BasinDSCT2SS | B190: Quartz - Silestone | C190: Individual Basin | D190: DSCT | E190: 2 | F190: SS | G190: 2116.7098 | H190: 2183.808 | I190: 2225.0976 | J190: 2473.849 | K190: 3174.7584
A191: Quartz - SilestoneIndividual BasinDSCT2VC | B191: Quartz - Silestone | C191: Individual Basin | D191: DSCT | E191: 2 | F191: VC | G191: 2116.7098 | H191: 2183.808 | I191: 2225.0976 | J191: 2474.905 | K191: 3174.7584
A192: Quartz - SilestoneIndividual BasinDSCT3SS | B192: Quartz - Silestone | C192: Individual Basin | D192: DSCT | E192: 3 | F192: SS | G192: 3548.8675 | H192: 3683.064 | I192: 3765.6432 | J192: 4265.2474 | K192: 5664.9648
A193: Quartz - SilestoneIndividual BasinDSCT3VC | B193: Quartz - Silestone | C193: Individual Basin | D193: DSCT | E193: 3 | F193: VC | G193: 3548.5507 | H193: 3683.064 | I193: 3765.6432 | J193: 4265.2474 | K193: 5664.9648
A194: Quartz - SilestoneIndividual BasinDSCT4SS | B194: Quartz - Silestone | C194: Individual Basin | D194: DSCT | E194: 4 | F194: SS | G194: 4215.1296 | H194: 4349.3155 | I194: 4431.8947 | J194: 4931.4989 | K194: 6331.2163
A195: Quartz - SilestoneIndividual BasinDSCT4VC | B195: Quartz - Silestone | C195: Individual Basin | D195: DSCT | E195: 4 | F195: VC | G195: 4215.1296 | H195: 4349.3155 | I195: 4431.863 | J195: 4931.4989 | K195: 6331.2163
A196: Quartz - SilestoneIndividual BasinDSCT5SS | B196: Quartz - Silestone | C196: Individual Basin | D196: DSCT | E196: 5 | F196: SS | G196: 6424.1654 | H196: 6692.5478 | I196: 6857.7062 | J196: 7856.9146 | K196: 10656.3494
A197: Quartz - SilestoneIndividual BasinDSCT5VC | B197: Quartz - Silestone | C197: Individual Basin | D197: DSCT | E197: 5 | F197: VC | G197: 6424.1654 | H197: 6692.5478 | I197: 6857.7062 | J197: 7856.9146 | K197: 10656.3494
A198: Quartz - SilestoneIndividual BasinDSCT6+SS | B198: Quartz - Silestone | C198: Individual Basin | D198: DSCT | E198: 6+ | F198: SS | G198: 7119.6998 | H198: 7388.0822 | I198: 7553.2406 | J198: 8552.449 | K198: 11351.8838
A199: Quartz - SilestoneIndividual BasinDSCT6+VC | B199: Quartz - Silestone | C199: Individual Basin | D199: DSCT | E199: 6+ | F199: VC | G199: 7119.6998 | H199: 7388.0822 | I199: 7553.2406 | J199: 8552.449 | K199: 11351.8838
A200: Quartz - SilestoneIndividual BasinDSG1 | B200: Quartz - Silestone | C200: Individual Basin | D200: DSG | E200: 1 | G200: 2145.7498 | H200: 2212.848 | I200: 2444.2176 | J200: 2503.9344 | K200: 3202.848
... 41 more rows

Sheet Color List 2 (hidden)
A1: Material Type | B1: Brand | C1: Color | D1: Matl-Color | E1: JP COLOR | F1: Price Group (original) | G1: SAP Code | H1: PriceCode | I1: Supplier Color Code | J1: Color Code | K1: Ext Color Code | L1: Price Group (version 2) | N1: IF Blank 000000 | P1: Sink Color (old) | Q1: Category | R1: Code | U1: Sink Color List as of 4/2020 | V1: Color Category | W1: Color Code
A2: Quartz | B2: Caeserstone | C2: Alpine Mist | D2: =A2& " - " & C2 -> Quartz - Alpine Mist | E2: =B2&" - "&C2 -> Caeserstone - Alpine Mist | F2: C | H2: Quartz D | I2: 5110 | J2: AMI | K2: ="N"&J2 -> NAMI | L2: D | P2: Silestone - Albedo*** | R2: =IFERROR(VLOOKUP(P2,E:G,6,0),"0000000") -> 0000000 | U2: Silestone - Blanco City | V2: A | W2: 0000000
A3: Quartz | B3: Caeserstone | C3: Atlantic Salt | D3: Quartz - Atlantic Salt | E3: Caeserstone - Atlantic Salt | F3: B | H3: Quartz B | I3: 6270 | J3: ASA | K3: NASA | L3: B | P3: Silestone - Aquatint*** | R3: 0000000 | U3: Silestone - Grey Expo | V3: A | W3: 0000000
A4: Quartz | B4: Caeserstone | C4: Bianco Drift | D4: Quartz - Bianco Drift | E4: Caeserstone - Bianco Drift | F4: C | H4: Quartz D | I4: 6131 | J4: BDR | K4: NBDR | L4: D | P4: Silestone - Ariel*** | R4: 0000000 | U4: Silestone - Lena | V4: A | W4: 0000000
A5: Quartz | B5: Caeserstone | C5: Blizzard | D5: Quartz - Blizzard | E5: Caeserstone - Blizzard | F5: A | G5: 0108095 | H5: Quartz A | I5: 2141 | J5: BLI | K5: NBLI | L5: A | P5: Silestone - Bianco River | Q5: D | R5: 0000000 | U5: Silestone - Marengo | V5: A | W5: 0000000
A6: Quartz | B6: Caeserstone | C6: Calacatta Nuovo | D6: Quartz - Calacatta Nuovo | E6: Caeserstone - Calacatta Nuovo | F6: E | H6: Quartz E | I6: 5131 | J6: CAL | K6: NCAL | L6: E | P6: Silestone - Blanco Orion | Q6: D | R6: 0000000 | U6: Silestone - Minerva Cream | V6: A | W6: 0000000
A7: Quartz | B7: Caeserstone | C7: Clamshell | D7: Quartz - Clamshell | E7: Caeserstone - Clamshell | F7: B | H7: Quartz B | I7: 4130 | J7: CLA | K7: NCLA | L7: B | P7: Silestone - Coppermist*** | R7: 0000000 | U7: Silestone - Noka | V7: A | W7: 0000000
A8: Quartz | B8: Caeserstone | C8: Coastal Grey | D8: Quartz - Coastal Grey | E8: Caeserstone - Coastal Grey | F8: C | H8: Quartz D | I8: 6003 | J8: CGR | K8: NCGR | L8: D | P8: Silestone - Cygnus Suede | Q8: H | R8: 0000000 | U8: Silestone - Tebas Black | V8: A | W8: 0000000
A9: Quartz | B9: Caeserstone | C9: Concrete | D9: Quartz - Concrete | E9: Caeserstone - Concrete | F9: A | G9: 0108099 | H9: Quartz A | I9: 2003 | J9: CCR | K9: NCCR | L9: A | P9: Silestone - Daria Suede | Q9: J | R9: 0000000 | U9: Silestone - Altair | V9: B | W9: 0000000
A10: Quartz | B10: Caeserstone | C10: Cosmopolitan White | D10: Quartz - Cosmopolitan White | E10: Caeserstone - Cosmopolitan White | F10: C | H10: Quartz D | I10: 5130 | J10: CWH | K10: NCWH | L10: D | P10: Silestone - Eternal Serena*** | R10: 0000000 | U10: Silestone - Blue Sahara | V10: B | W10: 0000000
A11: Quartz | B11: Caeserstone | C11: Dreamy Marfil | D11: Quartz - Dreamy Marfil | E11: Caeserstone - Dreamy Marfil | F11: C | H11: Quartz D | I11: 5220 | J11: DMA | K11: NDMA | L11: D | P11: Silestone - Grey Amazon | Q11: D | R11: 0000000 | U11: Silestone - Cemento | V11: B | W11: 0000000
A12: Quartz | B12: Caeserstone | C12: Eggshell | D12: Quartz - Eggshell | E12: Caeserstone - Eggshell | F12: A | H12: Quartz A | I12: 3141 | J12: EGG | K12: NEGG | L12: A | P12: Silestone - Grey Expo*** | R12: 0000000 | U12: Silestone - Coral Clay | V12: B | W12: 0000000
A13: Quartz | B13: Caeserstone | C13: Fresh Concrete | D13: Quartz - Fresh Concrete | E13: Caeserstone - Fresh Concrete | F13: C | H13: Quartz D | I13: 4001 | J13: FCR | K13: NFCR | L13: D | P13: Silestone - Hudson*** | R13: 0000000 | U13: Silestone - Cygnus | V13: B | W13: 0000000
A14: Quartz | B14: Caeserstone | C14: Frosty Carrina | D14: Quartz - Frosty Carrina | E14: Caeserstone - Frosty Carrina | F14: C | H14: Quartz D | I14: 5141 | J14: FCA | K14: NFCA | L14: D | P14: Silestone - Iconic White*** | R14: 0000000 | U14: Silestone - Iron Bark | V14: B | W14: 0000000
A15: Quartz | B15: Caeserstone | C15: Geogian Bluffs | D15: Quartz - Geogian Bluffs | E15: Caeserstone - Geogian Bluffs | F15: C | H15: Quartz D | I15: 6134 | J15: GBL | K15: NGBL | L15: D | P15: Silestone - Iron Bark*** | R15: 0000000 | U15: Silestone - Royal Reef | V15: B | W15: 0000000
A16: Quartz | B16: Caeserstone | C16: Ginger | D16: Quartz - Ginger | E16: Caeserstone - Ginger | F16: A | H16: Quartz A | I16: 4330 | J16: GIN | K16: NGIN | L16: A | P16: Silestone - Iron Ore*** | R16: 0000000 | U16: Silestone - White North | V16: B | W16: 0000000
A17: Quartz | B17: Caeserstone | C17: Haze | D17: Quartz - Haze | E17: Caeserstone - Haze | F17: B | H17: Quartz B | I17: 2030 | J17: HAZ | K17: NHAZ | L17: B | P17: Silestone - Koan*** | R17: 0000000 | U17: Silestone - White Storm | V17: B | W17: 0108096
A18: Quartz | B18: Caeserstone | C18: Jet Black | D18: Quartz - Jet Black | E18: Caeserstone - Jet Black | F18: B | H18: Quartz B | I18: 3100 | J18: JBL | K18: NJBL | L18: B | P18: Silestone - Marengo | Q18: A | R18: 0000000 | U18: Silestone - Alpina White | V18: C | W18: 0000000
A19: Quartz | B19: Caeserstone | C19: Lagos Blue | D19: Quartz - Lagos Blue | E19: Caeserstone - Lagos Blue | F19: B | H19: Quartz B | I19: 4350 | J19: LBL | K19: NLBL | L19: B | P19: Silestone - Mountain Mist*** | R19: 0000000 | U19: Silestone - Ariel | V19: C | W19: 0000000
A20: Quartz | B20: Caeserstone | C20: Linen | D20: Quartz - Linen | E20: Caeserstone - Linen | F20: B | H20: Quartz B | I20: 2230 | J20: LIN | K20: NLIN | L20: B | P20: Silestone - Noka | Q20: A | R20: 0000000 | U20: Silestone - Blanco Maple | V20: C | W20: 0108087
A21: Quartz | B21: Caeserstone | C21: London Grey | D21: Quartz - London Grey | E21: Caeserstone - London Grey | F21: C | H21: Quartz D | I21: 5000 | J21: LGR | K21: NLGR | L21: D | P21: Silestone - Nuit Bleue*** | R21: 0000000 | U21: Silestone - Capri Limestone | V21: C | W21: 0000000
A22: Quartz | B22: Caeserstone | C22: Montblanc | D22: Quartz - Montblanc | E22: Caeserstone - Montblanc | F22: C | H22: Quartz D | I22: 5043 | J22: MBL | K22: NMBL | L22: D | P22: Silestone - Red Vital*** | R22: 0000000 | U22: Silestone - Classic White | V22: C | W22: 0000000
A23: Quartz | B23: Caeserstone | C23: Moorland Fog | D23: Quartz - Moorland Fog | E23: Caeserstone - Moorland Fog | F23: B | H23: Quartz B | I23: 6046 | J23: MLF | K23: NMLF | L23: B | P23: Silestone - Riverbed*** | R23: 0000000 | U23: Silestone - Kona Beige | V23: C | W23: 0000000
A24: Quartz | B24: Caeserstone | C24: Nobel Grey | D24: Quartz - Nobel Grey | E24: Caeserstone - Nobel Grey | F24: C | H24: Quartz D | I24: 5211 | J24: NGR | K24: NNGR | L24: D | P24: Silestone - Sienna Ridge*** | R24: 0000000 | U24: Silestone - Mountain Mist | V24: C | W24: 0000000
A25: Quartz | B25: Caeserstone | C25: Nougat | D25: Quartz - Nougat | E25: Caeserstone - Nougat | F25: A | H25: Quartz A | I25: 6600 | J25: NOU | K25: NNOU | L25: A | P25: Silestone - Silver Nube*** | R25: 0000000 | U25: Silestone - Sienna Ridge | V25: C | W25: 0000000
A26: Quartz | B26: Caeserstone | C26: Ocean Foam | D26: Quartz - Ocean Foam | E26: Caeserstone - Ocean Foam | F26: B | H26: Quartz B | I26: 6141 | J26: OFO | K26: NOFO | L26: B | P26: Silestone - Starlight*** | R26: 0000000 | U26: Silestone - Sierra Madre | V26: C | W26: 0000000
A27: Quartz | B27: Caeserstone | C27: Organic White | D27: Quartz - Organic White | E27: Caeserstone - Organic White | F27: B | H27: Quartz B | I27: 4600 | J27: OWH | K27: NOWH | L27: B | P27: Silestone - Stellar Night*** | R27: 0000000 | U27: Silestone - Bamboo | V27: D | W27: 0000000
A28: Quartz | B28: Caeserstone | C28: Pebble | D28: Quartz - Pebble | E28: Caeserstone - Pebble | F28: B | H28: Quartz B | I28: 4030 | J28: PEB | K28: NPEB | L28: B | P28: Silestone - Tebas Black*** | R28: 0000000 | U28: Silestone - Blanco Orion | V28: D | W28: 0000000
A29: Quartz | B29: Caeserstone | C29: Piatra Grey | D29: Quartz - Piatra Grey | E29: Caeserstone - Piatra Grey | F29: C | H29: Quartz D | I29: 5003 | J29: PIA | K29: NPIA | L29: D | P29: Silestone - Tigris Sand | Q29: D | R29: 0000000 | U29: Silestone - Charcoal Soapstone | V29: D | W29: 0000000
A30: Quartz | B30: Caeserstone | C30: Pure White | D30: Quartz - Pure White | E30: Caeserstone - Pure White | F30: C | H30: Quartz D | I30: 1141 | J30: PWH | K30: NPWH | L30: D | P30: Silestone - Urban Cream*** | R30: 0000000 | U30: Silestone - Coppermist | V30: D | W30: 0000000
A31: Quartz | B31: Caeserstone | C31: Quartz Reflections | D31: Quartz - Quartz Reflections | E31: Caeserstone - Quartz Reflections | F31: B | H31: Quartz B | I31: 7141 | J31: QRE | K31: NQRE | L31: B | P31: Silestone - Verde Agua*** | R31: 0000000 | U31: Silestone - Forest Snow | V31: D | W31: 0000000
A32: Quartz | B32: Caeserstone | C32: Raven | D32: Quartz - Raven | E32: Caeserstone - Raven | F32: B | H32: Quartz B | I32: 4120 | J32: RAV | K32: NRAV | L32: B | P32: Silestone - White Diamond*** | R32: 0000000 | U32: Silestone - Iconic Black | V32: D | W32: 0000000
A33: Quartz | B33: Caeserstone | C33: Raw Concrete | D33: Quartz - Raw Concrete | E33: Caeserstone - Raw Concrete | F33: C | H33: Quartz D | I33: 4004 | J33: RCR | K33: NRCR | L33: D | P33: Silestone - White Dune*** | R33: 0000000 | U33: Silestone - Kensho | V33: D | W33: 0000000
A34: Quartz | B34: Caeserstone | C34: Rugged Concrete | D34: Quartz - Rugged Concrete | E34: Caeserstone - Rugged Concrete | F34: C | H34: Quartz D | I34: 4033 | J34: RGC | K34: NRGC | L34: D | P34: Silestone - White Zeus Extreme*** | R34: 0000000 | U34: Silestone - Lagoon | V34: D | W34: 0000000
A35: Quartz | B35: Caeserstone | C35: Shitake | D35: Quartz - Shitake | E35: Caeserstone - Shitake | F35: B | H35: Quartz B | I35: 4230 | J35: SHI | K35: NSHI | L35: B | P35: Zodiaq - Antique Pearl | Q35: A | R35: 0000000 | U35: Silestone - Lusso | V35: D | W35: 0000000
A36: Quartz | B36: Caeserstone | C36: Sleek Concrete | D36: Quartz - Sleek Concrete | E36: Caeserstone - Sleek Concrete | F36: B | H36: Quartz B | I36: 4003 | J36: SCR | K36: NSCR | L36: B | P36: Zodiaq - Calacatta Natura | Q36: B | R36: 0000000 | U36: Silestone - Lyra | V36: D | W36: 0000000
A37: Quartz | B37: Caeserstone | C37: Statuario Maximus | D37: Quartz - Statuario Maximus | E37: Caeserstone - Statuario Maximus | F37: E | H37: Quartz E | I37: 5031 | J37: SMA | K37: NSMA | L37: E | P37: Zodiaq - Coarse Carrara | Q37: A | R37: 0000000 | U37: Silestone - Pearl Jasmine | V37: D | W37: 0000000
A38: Quartz | B38: Caeserstone | C38: Statuario Nuovo | D38: Quartz - Statuario Nuovo | E38: Caeserstone - Statuario Nuovo | F38: E | H38: Quartz E | I38: 5111 | J38: SNU | K38: NSNU | L38: E | P38: Zodiaq - Coarse Marfil | Q38: A | R38: 0000000 | U38: Silestone - Stellar Night | V38: D | W38: 0000000
A39: Quartz | B39: Caeserstone | C39: Sympony Grey | D39: Quartz - Sympony Grey | E39: Caeserstone - Sympony Grey | F39: C | H39: Quartz D | I39: 5133 | J39: SGR | K39: NSGR | L39: D | P39: Zodiaq - Evergreen | Q39: A | R39: 0000000 | U39: Silestone - Stellar Snow | V39: D | W39: 0000000
A40: Quartz | B40: Caeserstone | C40: Taj Royal | D40: Quartz - Taj Royal | E40: Caeserstone - Taj Royal | F40: C | H40: Quartz D | I40: 5212 | J40: TAJ | K40: NTAJ | L40: D | P40: Zodiaq - Galaxy Black | Q40: A | R40: 0000000 | U40: Silestone - Tigris Sand | V40: D | W40: 0000000
A41: Quartz | B41: Caeserstone | C41: Turbine Grey | D41: Quartz - Turbine Grey | E41: Caeserstone - Turbine Grey | F41: B | H41: Quartz B | I41: 6313 | J41: TGR | K41: NTGR | L41: B | P41: Zodiaq - Indus Red | Q41: A | R41: 0000000 | U41: Silestone - Unsui | V41: D | W41: 0000000
A42: Quartz | B42: Caeserstone | C42: Tuscan Dawn | D42: Quartz - Tuscan Dawn | E42: Caeserstone - Tuscan Dawn | F42: C | H42: Quartz D | I42: 5104 | J42: TDA | K42: NTDA | L42: D | P42: Zodiaq - London Sky | Q42: A | R42: 0000000 | U42: Silestone - White Zeus Extreme | V42: D | W42: 0000000
A43: Quartz | B43: Caeserstone | C43: Urban Safari | D43: Quartz - Urban Safari | E43: Caeserstone - Urban Safari | F43: C | H43: Quartz D | I43: 5134 | J43: USA | K43: NUSA | L43: D | P43: Zodiaq - Marble Mist | Q43: A | R43: 0000000 | U43: Silestone - Yukon Blanco | V43: D | W43: 0000000
A44: Quartz | B44: Caeserstone | C44: Villa Noir | D44: Quartz - Villa Noir | E44: Caeserstone - Villa Noir | F44: C | H44: Quartz D | I44: 5100 | J44: VNO | K44: NVNO | L44: D | P44: Zodiaq - Mystic Black | Q44: A | R44: 0000000 | U44: Silestone - Arctic | V44: E | W44: 0000000
A45: Quartz | B45: Caeserstone | C45: White Attica | D45: Quartz - White Attica | E45: Caeserstone - White Attica | F45: C | H45: Quartz D | I45: 5143 | J45: WHA | K45: NWHA | L45: D | P45: Zodiaq - Octavio | Q45: B | R45: 0000000 | U45: Silestone - Calacatta Gold | V45: E | W45: 0000000
A46: Quartz | B46: Caeserstone | C46: Wild Rice | D46: Quartz - Wild Rice | E46: Caeserstone - Wild Rice | F46: B | H46: Quartz B | I46: 4360 | J46: WRI | K46: NWRI | L46: B | P46: Zodiaq - Storm Grey | Q46: A | R46: 0000000 | U46: Silestone - Calypso | V46: E | W46: 0000000
A47: Quartz | B47: Caeserstone | C47: Woodlands | D47: Quartz - Woodlands | E47: Caeserstone - Woodlands | F47: C | H47: Quartz D | I47: 6338 | J47: WOO | K47: NWOO | L47: D | P47: Zodiaq - Stratus White | Q47: A | R47: 0000000 | U47: Silestone - Chrome | V47: E | W47: 0000000
A48: Corian | B48: Corian | C48: Abalone | D48: Corian - Abalone | E48: Corian - Abalone | F48: A | G48: 0000001 | H48: ="Corian " & F48 -> Corian A | I48: =J48 -> ABA | J48: ABA | K48: CABA | L48: A | P48: Corian - Abalone | Q48: A | R48: 0000000 | U48: Silestone - Daria | V48: E | W48: 0000000
A49: Corian | B49: Corian | C49: Allspice | D49: Corian - Allspice | E49: Corian - Allspice | F49: D | G49: =J2+1 | H49: Corian D | I49: ALS | J49: ALS | K49: CALS | L49: D | P49: Corian - Allspice | Q49: D | R49: 0000000 | U49: Silestone - Helix | V49: E | W49: 0000000
A50: Corian | B50: Corian | C50: Antarctica | D50: Corian - Antarctica | E50: Corian - Antarctica | F50: B | G50: 0108003 | H50: Corian B | I50: MAN | J50: MAN | K50: CMAN | L50: B | P50: Corian - Antarctica | Q50: B | R50: 0000000 | U50: Silestone - Iconic White | V50: E | W50: 0000000
A51: Corian | B51: Corian | C51: Anthracite | D51: Corian - Anthracite | E51: Corian - Anthracite | F51: C | G51: 0108035 | H51: Corian C | I51: ANT | J51: ANT | K51: CANT | L51: C | P51: Corian - Anthracite | Q51: C | R51: 0000000 | U51: Silestone - Iron Ore | V51: E | W51: 0000000
A52: Corian | B52: Corian | C52: Aqualite | D52: Corian - Aqualite | E52: Corian - Aqualite | F52: D | H52: Corian D | I52: AQT | J52: AQT | K52: CAQT | L52: D | P52: Corian - Aqualite | Q52: D | R52: 0000000 | U52: Silestone - Kimbler Mist | V52: E | W52: 0000000
A53: Corian | B53: Corian | C53: Arctic Ice | D53: Corian - Arctic Ice | E53: Corian - Arctic Ice | F53: C | G53: 0108028 | H53: Corian C | I53: ARI | J53: ARI | K53: CARI | L53: C | P53: Corian - Arctic Ice | Q53: C | R53: 0000000 | U53: Silestone - Luna | V53: E | W53: 0000000
A54: Corian | B54: Corian | C54: Arrowroot | D54: Corian - Arrowroot | E54: Corian - Arrowroot | F54: D | G54: 0108034 | H54: Corian D | I54: ARR | J54: ARR | K54: CARR | L54: D | P54: Corian - Arrowroot | Q54: D | R54: 0000000 | U54: Silestone - Marquina | V54: E | W54: 0000000
A55: Corian | B55: Corian | C55: Ash Concrete | D55: Corian - Ash Concrete | E55: Corian - Ash Concrete | F55: C | H55: Corian C | I55: ACN | J55: ACN | K55: CACN | L55: C | P55: Corian - Ash Concrete | Q55: C | R55: 0000000 | U55: Silestone - Moonstone | V55: E | W55: 0000000
A56: Corian | B56: Corian | C56: Basil | D56: Corian - Basil | E56: Corian - Basil | F56: D | H56: Corian D | I56: BSL | J56: BSL | K56: CBSL | L56: D | P56: Corian - Basil | Q56: D | R56: 0000000 | U56: Silestone - Ocean Jasper | V56: E | W56: 0000000
A57: Corian | B57: Corian | C57: Bisque | D57: Corian - Bisque | E57: Corian - Bisque | F57: A | G57: 0108042 | H57: Corian A | I57: BIS | J57: BIS | K57: CBIS | L57: A | P57: Corian - Bisque | Q57: A | R57: 0000000 | U57: Silestone - Ocean Storm | V57: E | W57: 0000000
A58: Corian | B58: Corian | C58: Blue Pebble | D58: Corian - Blue Pebble | E58: Corian - Blue Pebble | F58: B | G58: 0108016 | H58: Corian B | I58: BPE | J58: BPE | K58: CBPE | L58: B | P58: Corian - Blue Pebble | Q58: B | R58: 0000000 | U58: Silestone - Phoenix | V58: E | W58: 0000000
A59: Corian | B59: Corian | C59: Blue Spice | D59: Corian - Blue Spice | E59: Corian - Blue Spice | F59: C | H59: Corian C | I59: BLS | J59: BLS | K59: CBLS | L59: C | P59: Corian - Blue Spice | Q59: C | R59: 0000000 | U59: Silestone - Pietra | V59: E | W59: 0000000
A60: Corian | B60: Corian | C60: Bone | D60: Corian - Bone | E60: Corian - Bone | F60: A | H60: Corian A | I60: BNE | J60: BNE | K60: CBNE | L60: A | P60: Corian - Bone | Q60: A | R60: 0000000 | U60: Silestone - Quasar | V60: E | W60: 0000000
A61: Corian | B61: Corian | C61: Bronzite | D61: Corian - Bronzite | E61: Corian - Bronzite | F61: C | H61: Corian C | I61: BRO | J61: BRO | K61: CBRO | L61: C | P61: Corian - Bronzite | Q61: C | R61: 0000000 | U61: Silestone - Riverbed | V61: E | W61: 0000000
A62: Corian | B62: Corian | C62: Burled Birch | D62: Corian - Burled Birch | E62: Corian - Burled Birch | F62: D | H62: Corian D | I62: BUB | J62: BUB | K62: CBUB | L62: D | P62: Corian - Burled Birch | Q62: D | R62: 0000000 | U62: Silestone - Seleno | V62: E | W62: 0000000
A63: Corian | B63: Corian | C63: Cameo White | D63: Corian - Cameo White | E63: Corian - Cameo White | F63: A | G63: 0108004 | H63: Corian A | I63: CWH | J63: CWH | K63: CCWH | L63: A | P63: Corian - Cameo White | Q63: A | R63: 0000000 | U63: Silestone - Serena | V63: E | W63: 0000000
A64: Corian | B64: Corian | C64: Canvas | D64: Corian - Canvas | E64: Corian - Canvas | F64: C | G64: 0108009 | H64: Corian C | I64: CVS | J64: CVS | K64: CCVS | L64: C | P64: Corian - Canvas | Q64: C | R64: 0000000 | U64: Silestone - Statuario | V64: E | W64: 0000000
A65: Corian | B65: Corian | C65: Canyon | D65: Corian - Canyon | E65: Corian - Canyon | F65: B | H65: Corian B | I65: CAN | J65: CAN | K65: CCAN | L65: B | P65: Corian - Canyon | Q65: B | R65: 0000000 | U65: Silestone - Vortium | V65: E | W65: 0000000
A66: Corian | B66: Corian | C66: Carbon Concrete | D66: =A66& " - " & C66 -> Corian - Carbon Concrete | E66: =B66&" - "&C66 -> Corian - Carbon Concrete | F66: C | H66: Corian C | I66: CCN | J66: CCN | K66: CCCN | L66: C | P66: Corian - Carbon Concrete | Q66: C | R66: =IFERROR(VLOOKUP(P66,E:G,6,0),"0000000") -> 0000000 | U66: Silestone - White Diamond | V66: E | W66: 0000000
A67: Corian | B67: Corian | C67: Cilantro | D67: Corian - Cilantro | E67: Corian - Cilantro | F67: C | H67: Corian C | I67: CIL | J67: CIL | K67: CCIL | L67: C | P67: Corian - Cilantro | Q67: C | R67: 0000000 | U67: Silestone - White Platinum | V67: E | W67: 0000000
A68: Corian | B68: Corian | C68: Clam Shell | D68: Corian - Clam Shell | E68: Corian - Clam Shell | F68: D | H68: Corian D | I68: CSH | J68: CSH | K68: CCSH | L68: D | P68: Corian - Clam Shell | Q68: D | R68: 0000000 | U68: Silestone - Zirconium | V68: E | W68: 0000000
A69: Corian | B69: Corian | C69: Cobalt | D69: Corian - Cobalt | E69: Corian - Cobalt | F69: C | H69: Corian C | I69: COB | J69: COB | K69: CCOB | L69: C | P69: Corian - Cobalt | Q69: C | R69: 0000000 | U69: Silestone - Absolute Green*** | W69: 0000000
A70: Corian | B70: Corian | C70: Cocoa Brown | D70: Corian - Cocoa Brown | E70: Corian - Cocoa Brown | F70: B | G70: 0108047 | H70: Corian B | I70: CBR | J70: CBR | K70: CCBR | L70: B | P70: Corian - Cocoa Brown | Q70: B | R70: 0000000 | U70: Silestone - African Red*** | W70: 0000000
A71: Corian | B71: Corian | C71: Cocoa Prima | D71: Corian - Cocoa Prima | E71: Corian - Cocoa Prima | F71: D | H71: Corian D | I71: CPM | J71: CPM | K71: CCPM | L71: D | P71: Corian - Cocoa Prima | Q71: D | R71: 0000000 | U71: Silestone - Albedo*** | W71: 0000000
A72: Corian | B72: Corian | C72: Concrete | D72: Corian - Concrete | E72: Corian - Concrete | F72: C | G72: 0108013 | H72: Corian C | I72: CON | J72: CON | K72: CCON | L72: C | P72: Corian - Concrete | Q72: C | R72: 0000000 | U72: Silestone - Amarillo Palmira*** | W72: 0000000
A73: Corian | B73: Corian | C73: Cosmos Prima | D73: Corian - Cosmos Prima | E73: Corian - Cosmos Prima | F73: D | H73: Corian D | I73: OPM | J73: OPM | K73: COPM | L73: D | P73: Corian - Cosmos Prima | Q73: D | R73: 0000000 | U73: Silestone - Amarillo Sand*** | W73: 0000000
A74: Corian | B74: Corian | C74: Cottage Lane | D74: Corian - Cottage Lane | E74: Corian - Cottage Lane | F74: C | H74: Corian C | I74: COL | J74: COL | K74: CCOL | L74: C | P74: Corian - Cottage Lane | Q74: C | R74: 0000000 | U74: Silestone - Antique Gold*** | W74: 0000000
A75: Corian | B75: Corian | C75: Deep Anthracite | D75: Corian - Deep Anthracite | E75: Corian - Deep Anthracite | F75: C | H75: Corian C | I75: DAT | J75: DAT | K75: CDAT | L75: C | P75: Corian - Deep Anthracite | Q75: C | R75: 0000000 | U75: Silestone - Aquatint*** | W75: 0000000
A76: Corian | B76: Corian | C76: Deep Bedrock | D76: Corian - Deep Bedrock | E76: Corian - Deep Bedrock | F76: C | H76: Corian C | I76: DBR | J76: DBR | K76: CDBR | L76: C | P76: Corian - Deep Bedrock | Q76: C | R76: 0000000 | U76: Silestone - Arezzo*** | W76: 0000000
A77: Corian | B77: Corian | C77: Deep Black Quartz | D77: Corian - Deep Black Quartz | E77: Corian - Deep Black Quartz | F77: C | H77: Corian C | I77: DBQ | J77: DBQ | K77: CDBQ | L77: C | P77: Corian - Deep Black Quartz | Q77: C | R77: 0000000 | U77: Silestone - Atlantis*** | W77: 0000000
A78: Corian | B78: Corian | C78: Deep Caviar | D78: Corian - Deep Caviar | E78: Corian - Deep Caviar | F78: C | H78: Corian C | I78: DCV | J78: DCV | K78: CDCV | L78: C | P78: Corian - Deep Caviar | Q78: C | R78: 0000000 | U78: Silestone - Bering*** | W78: 0000000
A79: Corian | B79: Corian | C79: Deep Cloud | D79: Corian - Deep Cloud | E79: Corian - Deep Cloud | F79: C | G79: 0108037 | H79: Corian C | I79: DCL | J79: DCL | K79: CDCL | L79: C | P79: Corian - Deep Cloud | Q79: C | R79: 0000000 | U79: Silestone - Bianco River*** | W79: 0000000
A80: Corian | B80: Corian | C80: Deep Espresso | D80: Corian - Deep Espresso | E80: Corian - Deep Espresso | F80: C | H80: ="Corian " & F80 -> Corian C | I80: =J80 -> DEP | J80: DEP | K80: CDEP | L80: C | P80: Corian - Deep Espresso | Q80: C | R80: 0000000 | U80: Silestone - Black Anubis*** | W80: 0000000
A81: Corian | B81: Corian | C81: Deep Inkwell | D81: Corian - Deep Inkwell | E81: Corian - Deep Inkwell | F81: D | H81: Corian D | I81: DIW | J81: DIW | K81: CDIW | L81: D | P81: Corian - Deep Inkwell | Q81: D | R81: 0000000 | U81: Silestone - Black Canyon*** | W81: 0000000
A82: Corian | B82: Corian | C82: Deep Lapis | D82: Corian - Deep Lapis | E82: Corian - Deep Lapis | F82: D | H82: Corian D | I82: DLS | J82: DLS | K82: CDLS | L82: D | P82: Corian - Deep Lapis | Q82: D | R82: 0000000 | U82: Silestone - Black Dragon*** | W82: 0000000
A83: Corian | B83: Corian | C83: Deep Mink | D83: Corian - Deep Mink | E83: Corian - Deep Mink | F83: C | G83: 0108053 | H83: Corian C | I83: DMK | J83: DMK | K83: CDMK | L83: C | P83: Corian - Deep Mink | Q83: C | R83: 0000000 | U83: Silestone - Black Forest*** | W83: 0000000
A84: Corian | B84: Corian | C84: Deep Night Sky | D84: Corian - Deep Night Sky | E84: Corian - Deep Night Sky | F84: C | G84: 0108018 | H84: Corian C | I84: DNS | J84: DNS | K84: CDNS | L84: C | P84: Corian - Deep Night Sky | Q84: C | R84: 0000000 | U84: Silestone - Blue Cielo*** | W84: 0000000
A85: Corian | B85: Corian | C85: Deep Nocturne | D85: Corian - Deep Nocturne | E85: Corian - Deep Nocturne | F85: C | G85: 0108061 | H85: Corian C | I85: DNC | J85: DNC | K85: CDNC | L85: C | P85: Corian - Deep Nocturne | Q85: C | R85: 0000000 | U85: Silestone - Blue Enjoy*** | W85: 0000000
A86: Corian | B86: Corian | C86: Deep Sable | D86: Corian - Deep Sable | E86: Corian - Deep Sable | F86: C | G86: 0108065 | H86: Corian C | I86: DSB | J86: DSB | K86: CDSB | L86: C | P86: Corian - Deep Sable | Q86: C | R86: 0000000 | U86: Silestone - Blue Safita*** | W86: 0000000
A87: Corian | B87: Corian | C87: Deep Smokey Pearl | D87: Corian - Deep Smokey Pearl | E87: Corian - Deep Smokey Pearl | F87: D | H87: Corian D | I87: DSY | J87: DSY | K87: CDSY | L87: D | P87: Corian - Deep Smokey Pearl | Q87: D | R87: 0000000 | U87: Silestone - Brazilian Brown*** | W87: 0000000
A88: Corian | B88: Corian | C88: Deep Space | D88: Corian - Deep Space | E88: Corian - Deep Space | F88: C | H88: Corian C | I88: DSC | J88: DSC | K88: CDSC | L88: C | P88: Corian - Deep Space | Q88: C | R88: 0000000 | U88: Silestone - Caramel Rhine*** | W88: 0000000
A89: Corian | B89: Corian | C89: Deep Storm | D89: Corian - Deep Storm | E89: Corian - Deep Storm | F89: C | H89: Corian C | I89: DSM | J89: DSM | K89: CDSM | L89: C | P89: Corian - Deep Storm | Q89: C | R89: 0000000 | U89: Silestone - Carbono*** | W89: 0000000
A90: Corian | B90: Corian | C90: Deep Terrain | D90: Corian - Deep Terrain | E90: Corian - Deep Terrain | F90: D | H90: Corian D | I90: DTR | J90: DTR | K90: CDTR | L90: D | P90: Corian - Deep Terrain | Q90: D | R90: 0000000 | U90: Silestone - Cobalt Blue*** | W90: 0000000
A91: Corian | B91: Corian | C91: Deep Titanium | D91: Corian - Deep Titanium | E91: Corian - Deep Titanium | F91: C | G91: 0108044 | H91: Corian C | I91: DTI | J91: DTI | K91: CDTI | L91: C | P91: Corian - Deep Titanium | Q91: C | R91: 0000000 | U91: Silestone - Coffee Brown*** | W91: 0000000
A92: Corian | B92: Corian | C92: Designer White | D92: Corian - Designer White | E92: Corian - Designer White | F92: B | G92: 0108001 | H92: Corian B | I92: DEW | J92: DEW | K92: CDEW | L92: B | P92: Corian - Designer White | Q92: B | R92: 0000000 | U92: Silestone - Coral Troya*** | W92: 0000000
A93: Corian | B93: Corian | C93: Doeskin | D93: Corian - Doeskin | E93: Corian - Doeskin | F93: C | G93: 0108060 | H93: Corian C | I93: DOE | J93: DOE | K93: CDOE | L93: C | P93: Corian - Doeskin | Q93: C | R93: 0000000 | U93: Silestone - Crystal Ash*** | W93: 0000000
A94: Corian | B94: Corian | C94: Dove | D94: Corian - Dove | E94: Corian - Dove | F94: C | G94: 0108015 | H94: Corian C | I94: DOV | J94: DOV | K94: CDOV | L94: C | P94: Corian - Dove | Q94: C | R94: 0000000 | U94: Silestone - Crystal Sand*** | W94: 0000000
A95: Corian | B95: Corian | C95: Dune Prima | D95: Corian - Dune Prima | E95: Corian - Dune Prima | F95: D | H95: Corian D | I95: DPM | J95: DPM | K95: CDPM | L95: D | P95: Corian - Dune Prima | Q95: D | R95: 0000000 | U95: Silestone - Dinux*** | W95: 0000000
A96: Corian | B96: Corian | C96: Earth | D96: Corian - Earth | E96: Corian - Earth | F96: D | G96: 0108063 | H96: Corian D | I96: EAR | J96: EAR | K96: CEAR | L96: D | P96: Corian - Earth | Q96: D | R96: 0000000 | U96: Silestone - Doradus*** | W96: 0000000
A97: Corian | B97: Corian | C97: Ecru | D97: Corian - Ecru | E97: Corian - Ecru | F97: D | H97: Corian D | I97: ECR | J97: ECR | K97: CECR | L97: D | P97: Corian - Ecru | Q97: D | R97: 0000000 | U97: Silestone - Dreis*** | W97: 0000000
A98: Corian | B98: Corian | C98: Elderberry | D98: Corian - Elderberry | E98: Corian - Elderberry | F98: D | H98: Corian D | I98: ELB | J98: ELB | K98: CELB | L98: D | P98: Corian - Elderberry | Q98: D | R98: 0000000 | U98: Silestone - Ebony Pearl*** | W98: 0000000
A99: Corian | B99: Corian | C99: Elegant Gray | D99: Corian - Elegant Gray | E99: Corian - Elegant Gray | F99: B | H99: Corian B | I99: EGG | J99: EGG | K99: CEGG | L99: B | P99: Corian - Elegant Gray | Q99: B | R99: 0000000 | U99: Silestone - Eternal Marquina*** | W99: 0000000
A100: Corian | B100: Corian | C100: Evening Prima | D100: Corian - Evening Prima | E100: Corian - Evening Prima | F100: D | H100: Corian D | I100: EPM | J100: EPM | K100: CEPM | L100: D | P100: Corian - Evening Prima | Q100: D | R100: 0000000 | U100: Silestone - Eternal Serena*** | W100: 0000000
A101: Corian | B101: Corian | C101: Everest | D101: Corian - Everest | E101: Corian - Everest | F101: B | H101: Corian B | I101: EVE | J101: EVE | K101: CEVE | L101: B | P101: Corian - Everest | Q101: B | R101: 0000000 | U101: Silestone - Eternal Statuario*** | W101: 0000000
